Workbook

Sheet HOM
G1: SOUVENIR DANIEL BOBHOT | Q1: DATE : | S1: 2016-03-05
I2: MONACO | P2: AUTEUR : | S2: Daniel MENONI
A4: SEXE | B4: ZONE | C4: REG. | D4: Cl. | E4: LICENCE | F4: NAT | G4: NOMS | H4: Prénoms | I4: CLUB | J4: AN | K4: POIDS | L4: 1 | M4: 2 | N4: 3 | O4: ARR | P4: 1 | Q4: 2 | R4: 3 | S4: EP-J | T4: Total | U4: IWF SMM | V4: SERIE | X4: Caté | Y4: Catég | AA4: N.CL. | AB4: REG + | AC4: FRA + | AD4: EUR + | AE4: MON + | AF4: INTB + | AG4: INTA + | AH4: OLY + | AI4: NCL
A5: H | B5: SE | C5: CAZ | E5: 172489 | F5: FR | G5: BOCHEW | H5: JEROME | I5: AC MENTON | J5: 1980 | K5: 74.6 | L5: 72 | M5: -77 | N5: 77 | O5: =IF(K5="","",IF(MAXA(L5:N5)<=0,0,MAXA(L5:N5))) -> 77 | P5: 90 | Q5: 95 | R5: -97 | S5: =IF(K5="","",IF(MAXA(P5:R5)<=0,0,MAXA(P5:R5))) -> 95 | T5: =IF(K5="","",IF(OR(O5=0,S5=0),0,O5+S5)) -> 172 | U5: =IF(K5="","",IF(A5="H",10^(0.794358141*LOG(K5/174.393)^2)*T5*AS5,IF(A5="F",10^(0.89726074 * LOG(K5/148.026)^2)*T5*AS5,""))) -> 239.7704425 | V5: =IF(K5="","",AP5) -> FRA + | W5: =IF(K5="","",IF(AH5>=0,AH5,IF(AG5>=0,AG5,IF(AF5>=0,AF5,IF(AE5>=0,AE5,IF(AD5>=0,AD5,IF(AC5>=0,AC5,IF(AB5>=0,AB5,AA5)))))))) -> 0 | X5: =IF(AQ5<95,IF(AQ5<=90,VLOOKUP(AQ5,$AQ$555:$AR$610,2))) -> V1 H35 | Y5: =IF(AND(J5<1920),VLOOKUP(K5,Feuil2!$F$10:$P$28,11),IF(AND(J5>=1920,J5<1937),VLOOKUP(K5,Feuil2!$F$10:$P$28,11),IF(AND(J5>=1936,J5<1942),VLOOKUP(K5,Feuil2!$F$10:$P$28,10),IF(AND(J5>=1942,J5<1947),VLOOKUP(K5,Feuil2!$F$10:$P$28,9),IF(AND(J5>=1947,J5<1952),VLOOKUP(K5,Feuil2!$F$10:$P$28,8),IF(AND(J5>=1952,J5<1957),VLOOKUP(K5,Feuil2!$F$10:$P$28,7),IF(AND(J5>=1957,J5<1962),VLOOKUP(K5,Feuil2!$F$10:$P$28,6),IF(AND(J5>=1962,J5<1967),VLOOKUP(K5,Feuil2!$F$10:$P$28,5),IF(AND(J5>=1967,J5<1972),VLOOKUP(K5,Feuil2!$F$10:$P$28,4),IF(AND(J5>=1972,J5<1977),VLOOKUP(K5,Feuil2!$F$10:$P$28,3),IF(AND(J5>=1977,J5<1982),VLOOKUP(K5,Feuil2!$F$10:$P$28,2),VLOOKUP(K5,Feuil2!$F$10:$P$28,2)))))))))))) -> VH35-77 | AA5: =T5-HLOOKUP(Y5,Feuil2!$C$1:$CD$9,2,FALSE) -> 172 | AB5: =T5-HLOOKUP(Y5,Feuil2!$C$1:$CD$9,3,FALSE) -> 10 | AC5: =T5-HLOOKUP(Y5,Feuil2!$C$1:$CD$9,4,FALSE) -> 0 | AD5: =T5-HLOOKUP(Y5,Feuil2!$C$1:$CD$9,5,FALSE) -> -10 | AE5: =T5-HLOOKUP(Y5,Feuil2!$C$1:$CD$9,6,FALSE) -> -30 | AF5: =T5-HLOOKUP(Y5,Feuil2!$C$1:$CD$9,7,FALSE) -> -828 | AG5: =T5-HLOOKUP(Y5,Feuil2!$C$1:$CD$9,8,FALSE) -> -828 | AH5: =T5-HLOOKUP(Y5,Feuil2!$C$1:$CD$9,9,FALSE) -> -828 | AP5: =IF(AH5>=0,$AH$4,IF(AG5>=0,$AG$4,IF(AF5>=0,$AF$4,IF(AE5>=0,$AE$4,IF(AD5>=0,$AD$4,IF(AC5>=0,$AC$4,IF(AB5>=0,$AB$4,IF(AA5>=0,$AA$4,$AI$4)))))))) -> FRA + | AQ5: =2016-J5 -> 36 | AS5: =IF(AQ5,VLOOKUP(AQ5,HOM!$AS$555:$AT$610,2)) -> 1.087
A6: H | B6: SE | C6: CAZ | E6: 353250 | F6: FR | G6: DJAMCHED | H6: DJAWED | I6: AS MONACO | J6: 1977 | K6: 74.7 | L6: 65 | M6: 68 | N6: -70 | O6: 68 | P6: 78 | Q6: 83 | R6: 85 | S6: 85 | T6: 153 | U6: 220.5672419 | V6: N.CL. | W6: 153 | X6: =IF(AQ6<95,IF(AQ6<=90,VLOOKUP(AQ6,$AQ$555:$AR$610,2))) -> V1 H35 | Y6: =IF(AND(J6<1920),VLOOKUP(K6,Feuil2!$F$10:$P$28,11),IF(AND(J6>=1920,J6<1937),VLOOKUP(K6,Feuil2!$F$10:$P$28,11),IF(AND(J6>=1936,J6<1942),VLOOKUP(K6,Feuil2!$F$10:$P$28,10),IF(AND(J6>=1942,J6<1947),VLOOKUP(K6,Feuil2!$F$10:$P$28,9),IF(AND(J6>=1947,J6<1952),VLOOKUP(K6,Feuil2!$F$10:$P$28,8),IF(AND(J6>=1952,J6<1957),VLOOKUP(K6,Feuil2!$F$10:$P$28,7),IF(AND(J6>=1957,J6<1962),VLOOKUP(K6,Feuil2!$F$10:$P$28,6),IF(AND(J6>=1962,J6<1967),VLOOKUP(K6,Feuil2!$F$10:$P$28,5),IF(AND(J6>=1967,J6<1972),VLOOKUP(K6,Feuil2!$F$10:$P$28,4),IF(AND(J6>=1972,J6<1977),VLOOKUP(K6,Feuil2!$F$10:$P$28,3),IF(AND(J6>=1977,J6<1982),VLOOKUP(K6,Feuil2!$F$10:$P$28,2),VLOOKUP(K6,Feuil2!$F$10:$P$28,2)))))))))))) -> VH35-77 | AA6: =T6-HLOOKUP(Y6,Feuil2!$C$1:$CD$9,2,FALSE) -> 153 | AB6: =T6-HLOOKUP(Y6,Feuil2!$C$1:$CD$9,3,FALSE) -> -9 | AC6: =T6-HLOOKUP(Y6,Feuil2!$C$1:$CD$9,4,FALSE) -> -19 | AD6: =T6-HLOOKUP(Y6,Feuil2!$C$1:$CD$9,5,FALSE) -> -29 | AE6: =T6-HLOOKUP(Y6,Feuil2!$C$1:$CD$9,6,FALSE) -> -49 | AF6: =T6-HLOOKUP(Y6,Feuil2!$C$1:$CD$9,7,FALSE) -> -847 | AG6: =T6-HLOOKUP(Y6,Feuil2!$C$1:$CD$9,8,FALSE) -> -847 | AH6: =T6-HLOOKUP(Y6,Feuil2!$C$1:$CD$9,9,FALSE) -> -847 | AP6: N.CL. | AQ6: =2016-J6 -> 39 | AS6: =IF(AQ6,VLOOKUP(AQ6,HOM!$AS$555:$AT$610,2)) -> 1.125
A7: H | O7: =IF(K7="","",IF(MAXA(L7:N7)<=0,0,MAXA(L7:N7))) ->  | S7: =IF(K7="","",IF(MAXA(P7:R7)<=0,0,MAXA(P7:R7))) ->  | T7: =IF(K7="","",IF(OR(O7=0,S7=0),0,O7+S7)) ->  | X7: =IF(AQ7<95,IF(AQ7<=90,VLOOKUP(AQ7,$AQ$555:$AR$610,2))) -> FALSE | Y7: =IF(AND(J7<1920),VLOOKUP(K7,Feuil2!$F$10:$P$28,11),IF(AND(J7>=1920,J7<1937),VLOOKUP(K7,Feuil2!$F$10:$P$28,11),IF(AND(J7>=1936,J7<1942),VLOOKUP(K7,Feuil2!$F$10:$P$28,10),IF(AND(J7>=1942,J7<1947),VLOOKUP(K7,Feuil2!$F$10:$P$28,9),IF(AND(J7>=1947,J7<1952),VLOOKUP(K7,Feuil2!$F$10:$P$28,8),IF(AND(J7>=1952,J7<1957),VLOOKUP(K7,Feuil2!$F$10:$P$28,7),IF(AND(J7>=1957,J7<1962),VLOOKUP(K7,Feuil2!$F$10:$P$28,6),IF(AND(J7>=1962,J7<1967),VLOOKUP(K7,Feuil2!$F$10:$P$28,5),IF(AND(J7>=1967,J7<1972),VLOOKUP(K7,Feuil2!$F$10:$P$28,4),IF(AND(J7>=1972,J7<1977),VLOOKUP(K7,Feuil2!$F$10:$P$28,3),IF(AND(J7>=1977,J7<1982),VLOOKUP(K7,Feuil2!$F$10:$P$28,2),VLOOKUP(K7,Feuil2!$F$10:$P$28,2)))))))))))) ->  | AA7: =T7-HLOOKUP(Y7,Feuil2!$C$1:$CD$9,2,FALSE) ->  | AB7: =T7-HLOOKUP(Y7,Feuil2!$C$1:$CD$9,3,FALSE) ->  | AC7: =T7-HLOOKUP(Y7,Feuil2!$C$1:$CD$9,4,FALSE) ->  | AD7: =T7-HLOOKUP(Y7,Feuil2!$C$1:$CD$9,5,FALSE) ->  | AE7: =T7-HLOOKUP(Y7,Feuil2!$C$1:$CD$9,6,FALSE) ->  | AF7: =T7-HLOOKUP(Y7,Feuil2!$C$1:$CD$9,7,FALSE) ->  | AG7: =T7-HLOOKUP(Y7,Feuil2!$C$1:$CD$9,8,FALSE) ->  | AH7: =T7-HLOOKUP(Y7,Feuil2!$C$1:$CD$9,9,FALSE) ->  | AQ7: =2016-J7 -> 2016 | AS7: =IF(AQ7,VLOOKUP(AQ7,HOM!$AS$555:$AT$610,2)) -> 3.571
A8: H | B8: SE | C8: CAZ | E8: 407585 | F8: FR | G8: SECCHIERI | H8: EDDY | I8: HCNICE | J8: 1978 | K8: 85 | L8: 75 | M8: 80 | N8: 85 | O8: 85 | P8: 105 | Q8: 110 | R8: 113 | S8: 113 | T8: 198 | U8: 263.3546244 | V8: EUR + | W8: 6 | X8: =IF(AQ8<95,IF(AQ8<=90,VLOOKUP(AQ8,$AQ$555:$AR$610,2))) -> V1 H35 | Y8: =IF(AND(J8<1920),VLOOKUP(K8,Feuil2!$F$10:$P$28,11),IF(AND(J8>=1920,J8<1937),VLOOKUP(K8,Feuil2!$F$10:$P$28,11),IF(AND(J8>=1936,J8<1942),VLOOKUP(K8,Feuil2!$F$10:$P$28,10),IF(AND(J8>=1942,J8<1947),VLOOKUP(K8,Feuil2!$F$10:$P$28,9),IF(AND(J8>=1947,J8<1952),VLOOKUP(K8,Feuil2!$F$10:$P$28,8),IF(AND(J8>=1952,J8<1957),VLOOKUP(K8,Feuil2!$F$10:$P$28,7),IF(AND(J8>=1957,J8<1962),VLOOKUP(K8,Feuil2!$F$10:$P$28,6),IF(AND(J8>=1962,J8<1967),VLOOKUP(K8,Feuil2!$F$10:$P$28,5),IF(AND(J8>=1967,J8<1972),VLOOKUP(K8,Feuil2!$F$10:$P$28,4),IF(AND(J8>=1972,J8<1977),VLOOKUP(K8,Feuil2!$F$10:$P$28,3),IF(AND(J8>=1977,J8<1982),VLOOKUP(K8,Feuil2!$F$10:$P$28,2),VLOOKUP(K8,Feuil2!$F$10:$P$28,2)))))))))))) -> VH35-85 | AA8: =T8-HLOOKUP(Y8,Feuil2!$C$1:$CD$9,2,FALSE) -> 198 | AB8: =T8-HLOOKUP(Y8,Feuil2!$C$1:$CD$9,3,FALSE) -> 26 | AC8: =T8-HLOOKUP(Y8,Feuil2!$C$1:$CD$9,4,FALSE) -> 16 | AD8: =T8-HLOOKUP(Y8,Feuil2!$C$1:$CD$9,5,FALSE) -> 6 | AE8: =T8-HLOOKUP(Y8,Feuil2!$C$1:$CD$9,6,FALSE) -> -17 | AF8: =T8-HLOOKUP(Y8,Feuil2!$C$1:$CD$9,7,FALSE) -> -802 | AG8: =T8-HLOOKUP(Y8,Feuil2!$C$1:$CD$9,8,FALSE) -> -802 | AH8: =T8-HLOOKUP(Y8,Feuil2!$C$1:$CD$9,9,FALSE) -> -802 | AP8: EUR + | AQ8: 38 | AS8: =IF(AQ8,VLOOKUP(AQ8,HOM!$AS$555:$AT$610,2)) -> 1.113
A9: H | B9: SE | C9: CAZ | E9: 324164 | F9: MC | G9: TORZUOLI | H9: ERIC | I9: AS MONACO | J9: 1980 | K9: 84.5 | L9: 80 | M9: 85 | N9: 90 | O9: 90 | P9: 100 | Q9: 105 | R9: -110 | S9: 105 | T9: 195 | U9: 254.0507323 | V9: EUR + | W9: 3 | X9: =IF(AQ9<95,IF(AQ9<=90,VLOOKUP(AQ9,$AQ$555:$AR$610,2))) -> V1 H35 | Y9: =IF(AND(J9<1920),VLOOKUP(K9,Feuil2!$F$10:$P$28,11),IF(AND(J9>=1920,J9<1937),VLOOKUP(K9,Feuil2!$F$10:$P$28,11),IF(AND(J9>=1936,J9<1942),VLOOKUP(K9,Feuil2!$F$10:$P$28,10),IF(AND(J9>=1942,J9<1947),VLOOKUP(K9,Feuil2!$F$10:$P$28,9),IF(AND(J9>=1947,J9<1952),VLOOKUP(K9,Feuil2!$F$10:$P$28,8),IF(AND(J9>=1952,J9<1957),VLOOKUP(K9,Feuil2!$F$10:$P$28,7),IF(AND(J9>=1957,J9<1962),VLOOKUP(K9,Feuil2!$F$10:$P$28,6),IF(AND(J9>=1962,J9<1967),VLOOKUP(K9,Feuil2!$F$10:$P$28,5),IF(AND(J9>=1967,J9<1972),VLOOKUP(K9,Feuil2!$F$10:$P$28,4),IF(AND(J9>=1972,J9<1977),VLOOKUP(K9,Feuil2!$F$10:$P$28,3),IF(AND(J9>=1977,J9<1982),VLOOKUP(K9,Feuil2!$F$10:$P$28,2),VLOOKUP(K9,Feuil2!$F$10:$P$28,2)))))))))))) -> VH35-85 | AA9: =T9-HLOOKUP(Y9,Feuil2!$C$1:$CD$9,2,FALSE) -> 195 | AB9: =T9-HLOOKUP(Y9,Feuil2!$C$1:$CD$9,3,FALSE) -> 23 | AC9: =T9-HLOOKUP(Y9,Feuil2!$C$1:$CD$9,4,FALSE) -> 13 | AD9: =T9-HLOOKUP(Y9,Feuil2!$C$1:$CD$9,5,FALSE) -> 3 | AE9: =T9-HLOOKUP(Y9,Feuil2!$C$1:$CD$9,6,FALSE) -> -20 | AF9: =T9-HLOOKUP(Y9,Feuil2!$C$1:$CD$9,7,FALSE) -> -805 | AG9: =T9-HLOOKUP(Y9,Feuil2!$C$1:$CD$9,8,FALSE) -> -805 | AH9: =T9-HLOOKUP(Y9,Feuil2!$C$1:$CD$9,9,FALSE) -> -805 | AP9: EUR + | AQ9: 36 | AS9: =IF(AQ9,VLOOKUP(AQ9,HOM!$AS$555:$AT$610,2)) -> 1.087
A10: H | O10: =IF(K10="","",IF(MAXA(L10:N10)<=0,0,MAXA(L10:N10))) ->  | S10: =IF(K10="","",IF(MAXA(P10:R10)<=0,0,MAXA(P10:R10))) ->  | T10: =IF(K10="","",IF(OR(O10=0,S10=0),0,O10+S10)) ->  | U10: =IF(K10="","",IF(A10="H",10^(0.794358141*LOG(K10/174.393)^2)*T10*AS10,IF(A10="F",10^(0.89726074 * LOG(K10/148.026)^2)*T10*AS10,""))) ->  | X10: =IF(AQ10<95,IF(AQ10<=90,VLOOKUP(AQ10,$AQ$555:$AR$610,2))) -> FALSE | Y10: =IF(AND(J10<1920),VLOOKUP(K10,Feuil2!$F$10:$P$28,11),IF(AND(J10>=1920,J10<1937),VLOOKUP(K10,Feuil2!$F$10:$P$28,11),IF(AND(J10>=1936,J10<1942),VLOOKUP(K10,Feuil2!$F$10:$P$28,10),IF(AND(J10>=1942,J10<1947),VLOOKUP(K10,Feuil2!$F$10:$P$28,9),IF(AND(J10>=1947,J10<1952),VLOOKUP(K10,Feuil2!$F$10:$P$28,8),IF(AND(J10>=1952,J10<1957),VLOOKUP(K10,Feuil2!$F$10:$P$28,7),IF(AND(J10>=1957,J10<1962),VLOOKUP(K10,Feuil2!$F$10:$P$28,6),IF(AND(J10>=1962,J10<1967),VLOOKUP(K10,Feuil2!$F$10:$P$28,5),IF(AND(J10>=1967,J10<1972),VLOOKUP(K10,Feuil2!$F$10:$P$28,4),IF(AND(J10>=1972,J10<1977),VLOOKUP(K10,Feuil2!$F$10:$P$28,3),IF(AND(J10>=1977,J10<1982),VLOOKUP(K10,Feuil2!$F$10:$P$28,2),VLOOKUP(K10,Feuil2!$F$10:$P$28,2)))))))))))) ->  | AA10: =T10-HLOOKUP(Y10,Feuil2!$C$1:$CD$9,2,FALSE) ->  | AB10: =T10-HLOOKUP(Y10,Feuil2!$C$1:$CD$9,3,FALSE) ->  | AC10: =T10-HLOOKUP(Y10,Feuil2!$C$1:$CD$9,4,FALSE) ->  | AD10: =T10-HLOOKUP(Y10,Feuil2!$C$1:$CD$9,5,FALSE) ->  | AE10: =T10-HLOOKUP(Y10,Feuil2!$C$1:$CD$9,6,FALSE) ->  | AF10: =T10-HLOOKUP(Y10,Feuil2!$C$1:$CD$9,7,FALSE) ->  | AG10: =T10-HLOOKUP(Y10,Feuil2!$C$1:$CD$9,8,FALSE) ->  | AH10: =T10-HLOOKUP(Y10,Feuil2!$C$1:$CD$9,9,FALSE) ->  | AQ10: 2016 | AS10: =IF(AQ10,VLOOKUP(AQ10,HOM!$AS$555:$AT$610,2)) -> 3.571
A11: H | B11: SE | C11: CAZ | E11: 352969 | F11: FR | G11: PUYLAURENT | H11: JEANNICK | I11: HC NICE | J11: 1978 | K11: 99.4 | L11: 95 | M11: 100 | N11: 105 | O11: =IF(K11="","",IF(MAXA(L11:N11)<=0,0,MAXA(L11:N11))) -> 105 | P11: 135 | Q11: 140 | R11: -145 | S11: =IF(K11="","",IF(MAXA(P11:R11)<=0,0,MAXA(P11:R11))) -> 140 | T11: =IF(K11="","",IF(OR(O11=0,S11=0),0,O11+S11)) -> 245 | U11: =IF(K11="","",IF(A11="H",10^(0.794358141*LOG(K11/174.393)^2)*T11*AS11,IF(A11="F",10^(0.89726074 * LOG(K11/148.026)^2)*T11*AS11,""))) -> 304.0951366 | V11: MON + | W11: 8 | X11: =IF(AQ11<95,IF(AQ11<=90,VLOOKUP(AQ11,$AQ$555:$AR$610,2))) -> V1 H35 | Y11: =IF(AND(J11<1920),VLOOKUP(K11,Feuil2!$F$10:$P$28,11),IF(AND(J11>=1920,J11<1937),VLOOKUP(K11,Feuil2!$F$10:$P$28,11),IF(AND(J11>=1936,J11<1942),VLOOKUP(K11,Feuil2!$F$10:$P$28,10),IF(AND(J11>=1942,J11<1947),VLOOKUP(K11,Feuil2!$F$10:$P$28,9),IF(AND(J11>=1947,J11<1952),VLOOKUP(K11,Feuil2!$F$10:$P$28,8),IF(AND(J11>=1952,J11<1957),VLOOKUP(K11,Feuil2!$F$10:$P$28,7),IF(AND(J11>=1957,J11<1962),VLOOKUP(K11,Feuil2!$F$10:$P$28,6),IF(AND(J11>=1962,J11<1967),VLOOKUP(K11,Feuil2!$F$10:$P$28,5),IF(AND(J11>=1967,J11<1972),VLOOKUP(K11,Feuil2!$F$10:$P$28,4),IF(AND(J11>=1972,J11<1977),VLOOKUP(K11,Feuil2!$F$10:$P$28,3),IF(AND(J11>=1977,J11<1982),VLOOKUP(K11,Feuil2!$F$10:$P$28,2),VLOOKUP(K11,Feuil2!$F$10:$P$28,2)))))))))))) -> VH35-105 | AA11: =T11-HLOOKUP(Y11,Feuil2!$C$1:$CD$9,2,FALSE) -> 245 | AB11: =T11-HLOOKUP(Y11,Feuil2!$C$1:$CD$9,3,FALSE) -> 55 | AC11: =T11-HLOOKUP(Y11,Feuil2!$C$1:$CD$9,4,FALSE) -> 45 | AD11: =T11-HLOOKUP(Y11,Feuil2!$C$1:$CD$9,5,FALSE) -> 35 | AE11: =T11-HLOOKUP(Y11,Feuil2!$C$1:$CD$9,6,FALSE) -> 8 | AF11: =T11-HLOOKUP(Y11,Feuil2!$C$1:$CD$9,7,FALSE) -> -755 | AG11: =T11-HLOOKUP(Y11,Feuil2!$C$1:$CD$9,8,FALSE) -> -755 | AH11: =T11-HLOOKUP(Y11,Feuil2!$C$1:$CD$9,9,FALSE) -> -755 | AP11: =IF(AH11>=0,$AH$4,IF(AG11>=0,$AG$4,IF(AF11>=0,$AF$4,IF(AE11>=0,$AE$4,IF(AD11>=0,$AD$4,IF(AC11>=0,$AC$4,IF(AB11>=0,$AB$4,IF(AA11>=0,$AA$4,$AI$4)))))))) -> MON + | AQ11: 38 | AS11: =IF(AQ11,VLOOKUP(AQ11,HOM!$AS$555:$AT$610,2)) -> 1.113
A12: H | B12: SE | C12: CAZ | E12: 47605 | F12: FR | G12: JUSTINIEN | H12: EDDY | I12: ASPTT DRAGUIGNAN | J12: 1978 | K12: 105 | L12: 105 | M12: -110 | N12: -110 | O12: 105 | P12: 140 | Q12: -145 | R12: -145 | S12: 140 | T12: 245 | U12: 298.0073825 | V12: MON + | W12: 8 | X12: V1 H35 | Y12: =IF(AND(J12<1920),VLOOKUP(K12,Feuil2!$F$10:$P$28,11),IF(AND(J12>=1920,J12<1937),VLOOKUP(K12,Feuil2!$F$10:$P$28,11),IF(AND(J12>=1936,J12<1942),VLOOKUP(K12,Feuil2!$F$10:$P$28,10),IF(AND(J12>=1942,J12<1947),VLOOKUP(K12,Feuil2!$F$10:$P$28,9),IF(AND(J12>=1947,J12<1952),VLOOKUP(K12,Feuil2!$F$10:$P$28,8),IF(AND(J12>=1952,J12<1957),VLOOKUP(K12,Feuil2!$F$10:$P$28,7),IF(AND(J12>=1957,J12<1962),VLOOKUP(K12,Feuil2!$F$10:$P$28,6),IF(AND(J12>=1962,J12<1967),VLOOKUP(K12,Feuil2!$F$10:$P$28,5),IF(AND(J12>=1967,J12<1972),VLOOKUP(K12,Feuil2!$F$10:$P$28,4),IF(AND(J12>=1972,J12<1977),VLOOKUP(K12,Feuil2!$F$10:$P$28,3),IF(AND(J12>=1977,J12<1982),VLOOKUP(K12,Feuil2!$F$10:$P$28,2),VLOOKUP(K12,Feuil2!$F$10:$P$28,2)))))))))))) -> VH35-105 | AA12: =T12-HLOOKUP(Y12,Feuil2!$C$1:$CD$9,2,FALSE) -> 245 | AB12: =T12-HLOOKUP(Y12,Feuil2!$C$1:$CD$9,3,FALSE) -> 55 | AC12: =T12-HLOOKUP(Y12,Feuil2!$C$1:$CD$9,4,FALSE) -> 45 | AD12: =T12-HLOOKUP(Y12,Feuil2!$C$1:$CD$9,5,FALSE) -> 35 | AE12: =T12-HLOOKUP(Y12,Feuil2!$C$1:$CD$9,6,FALSE) -> 8 | AF12: =T12-HLOOKUP(Y12,Feuil2!$C$1:$CD$9,7,FALSE) -> -755 | AG12: =T12-HLOOKUP(Y12,Feuil2!$C$1:$CD$9,8,FALSE) -> -755 | AH12: =T12-HLOOKUP(Y12,Feuil2!$C$1:$CD$9,9,FALSE) -> -755 | AP12: =IF(AH12>=0,$AH$4,IF(AG12>=0,$AG$4,IF(AF12>=0,$AF$4,IF(AE12>=0,$AE$4,IF(AD12>=0,$AD$4,IF(AC12>=0,$AC$4,IF(AB12>=0,$AB$4,IF(AA12>=0,$AA$4,$AI$4)))))))) -> MON + | AQ12: 38 | AS12: =IF(AQ12,VLOOKUP(AQ12,HOM!$AS$555:$AT$610,2)) -> 1.113
A13: H | B13: SE | C13: CAZ | E13: 7988 | F13: FR | G13: DESRUMEAUX | H13: NICOLAS | I13: AS MONACO | J13: 1977 | K13: 97.1 | L13: -75 | M13: 75 | N13: -80 | O13: 75 | P13: 95 | Q13: -100 | R13: -100 | S13: 95 | T13: 170 | U13: 215.265956 | V13: =IF(K13="","",AP13) -> N.CL. | W13: =IF(K13="","",IF(AH13>=0,AH13,IF(AG13>=0,AG13,IF(AF13>=0,AF13,IF(AE13>=0,AE13,IF(AD13>=0,AD13,IF(AC13>=0,AC13,IF(AB13>=0,AB13,AA13)))))))) -> 170 | X13: V1 H35 | Y13: =IF(AND(J13<1920),VLOOKUP(K13,Feuil2!$F$10:$P$28,11),IF(AND(J13>=1920,J13<1937),VLOOKUP(K13,Feuil2!$F$10:$P$28,11),IF(AND(J13>=1936,J13<1942),VLOOKUP(K13,Feuil2!$F$10:$P$28,10),IF(AND(J13>=1942,J13<1947),VLOOKUP(K13,Feuil2!$F$10:$P$28,9),IF(AND(J13>=1947,J13<1952),VLOOKUP(K13,Feuil2!$F$10:$P$28,8),IF(AND(J13>=1952,J13<1957),VLOOKUP(K13,Feuil2!$F$10:$P$28,7),IF(AND(J13>=1957,J13<1962),VLOOKUP(K13,Feuil2!$F$10:$P$28,6),IF(AND(J13>=1962,J13<1967),VLOOKUP(K13,Feuil2!$F$10:$P$28,5),IF(AND(J13>=1967,J13<1972),VLOOKUP(K13,Feuil2!$F$10:$P$28,4),IF(AND(J13>=1972,J13<1977),VLOOKUP(K13,Feuil2!$F$10:$P$28,3),IF(AND(J13>=1977,J13<1982),VLOOKUP(K13,Feuil2!$F$10:$P$28,2),VLOOKUP(K13,Feuil2!$F$10:$P$28,2)))))))))))) -> VH35-105 | AA13: =T13-HLOOKUP(Y13,Feuil2!$C$1:$CD$9,2,FALSE) -> 170 | AB13: =T13-HLOOKUP(Y13,Feuil2!$C$1:$CD$9,3,FALSE) -> -20 | AC13: =T13-HLOOKUP(Y13,Feuil2!$C$1:$CD$9,4,FALSE) -> -30 | AD13: =T13-HLOOKUP(Y13,Feuil2!$C$1:$CD$9,5,FALSE) -> -40 | AE13: =T13-HLOOKUP(Y13,Feuil2!$C$1:$CD$9,6,FALSE) -> -67 | AF13: =T13-HLOOKUP(Y13,Feuil2!$C$1:$CD$9,7,FALSE) -> -830 | AG13: =T13-HLOOKUP(Y13,Feuil2!$C$1:$CD$9,8,FALSE) -> -830 | AH13: =T13-HLOOKUP(Y13,Feuil2!$C$1:$CD$9,9,FALSE) -> -830 | AP13: N.CL. | AQ13: 39 | AS13: =IF(AQ13,VLOOKUP(AQ13,HOM!$AS$555:$AT$610,2)) -> 1.125
A14: H
A15: H | B15: NPC | C15: P | E15: 75093 | F15: FR | G15: LEDANT | H15: JOHN | I15: SENLIS | J15: 1976 | K15: 75.2 | L15: 77 | M15: 81 | N15: -83 | O15: =IF(K15="","",IF(MAXA(L15:N15)<=0,0,MAXA(L15:N15))) -> 81 | P15: 95 | Q15: -101 | R15: -101 | S15: =IF(K15="","",IF(MAXA(P15:R15)<=0,0,MAXA(P15:R15))) -> 95 | T15: =IF(K15="","",IF(OR(O15=0,S15=0),0,O15+S15)) -> 176 | U15: 255.211 | V15: EUR+ | W15: 4 | X15: V2 H40 | Y15: =IF(AND(J15<1920),VLOOKUP(K15,Feuil2!$F$10:$P$28,11),IF(AND(J15>=1920,J15<1937),VLOOKUP(K15,Feuil2!$F$10:$P$28,11),IF(AND(J15>=1936,J15<1942),VLOOKUP(K15,Feuil2!$F$10:$P$28,10),IF(AND(J15>=1942,J15<1947),VLOOKUP(K15,Feuil2!$F$10:$P$28,9),IF(AND(J15>=1947,J15<1952),VLOOKUP(K15,Feuil2!$F$10:$P$28,8),IF(AND(J15>=1952,J15<1957),VLOOKUP(K15,Feuil2!$F$10:$P$28,7),IF(AND(J15>=1957,J15<1962),VLOOKUP(K15,Feuil2!$F$10:$P$28,6),IF(AND(J15>=1962,J15<1967),VLOOKUP(K15,Feuil2!$F$10:$P$28,5),IF(AND(J15>=1967,J15<1972),VLOOKUP(K15,Feuil2!$F$10:$P$28,4),IF(AND(J15>=1972,J15<1977),VLOOKUP(K15,Feuil2!$F$10:$P$28,3),IF(AND(J15>=1977,J15<1982),VLOOKUP(K15,Feuil2!$F$10:$P$28,2),VLOOKUP(K15,Feuil2!$F$10:$P$28,2)))))))))))) -> VH40-77
A16: H | B16: SE | C16: CAZ | E16: 413914 | F16: FR | G16: MENONI | H16: LORIS | I16: AS MONACO | J16: 1974 | K16: 75.4 | L16: 60 | M16: 65 | N16: 68 | O16: 68 | P16: 75 | Q16: 80 | R16: -85 | S16: 80 | T16: 148 | U16: 218.429 | V16: ncl 148 | W16: =IF(K16="","",IF(AH16>=0,AH16,IF(AG16>=0,AG16,IF(AF16>=0,AF16,IF(AE16>=0,AE16,IF(AD16>=0,AD16,IF(AC16>=0,AC16,IF(AB16>=0,AB16,AA16)))))))) -> 0 | X16: V2 H40 | Y16: =IF(AND(J16<1920),VLOOKUP(K16,Feuil2!$F$10:$P$28,11),IF(AND(J16>=1920,J16<1937),VLOOKUP(K16,Feuil2!$F$10:$P$28,11),IF(AND(J16>=1936,J16<1942),VLOOKUP(K16,Feuil2!$F$10:$P$28,10),IF(AND(J16>=1942,J16<1947),VLOOKUP(K16,Feuil2!$F$10:$P$28,9),IF(AND(J16>=1947,J16<1952),VLOOKUP(K16,Feuil2!$F$10:$P$28,8),IF(AND(J16>=1952,J16<1957),VLOOKUP(K16,Feuil2!$F$10:$P$28,7),IF(AND(J16>=1957,J16<1962),VLOOKUP(K16,Feuil2!$F$10:$P$28,6),IF(AND(J16>=1962,J16<1967),VLOOKUP(K16,Feuil2!$F$10:$P$28,5),IF(AND(J16>=1967,J16<1972),VLOOKUP(K16,Feuil2!$F$10:$P$28,4),IF(AND(J16>=1972,J16<1977),VLOOKUP(K16,Feuil2!$F$10:$P$28,3),IF(AND(J16>=1977,J16<1982),VLOOKUP(K16,Feuil2!$F$10:$P$28,2),VLOOKUP(K16,Feuil2!$F$10:$P$28,2)))))))))))) -> VH40-77
A17: H | U17: =IF(K17="","",IF(A17="H",10^(0.794358141*LOG(K17/174.393)^2)*T17*AS17,IF(A17="F",10^(0.89726074 * LOG(K17/148.026)^2)*T17*AS17,""))) ->  | V17: =IF(K17="","",AP17) ->  | W17: =IF(K17="","",IF(AH17>=0,AH17,IF(AG17>=0,AG17,IF(AF17>=0,AF17,IF(AE17>=0,AE17,IF(AD17>=0,AD17,IF(AC17>=0,AC17,IF(AB17>=0,AB17,AA17)))))))) ->  | Y17: =IF(AND(J17<1920),VLOOKUP(K17,Feuil2!$F$10:$P$28,11),IF(AND(J17>=1920,J17<1937),VLOOKUP(K17,Feuil2!$F$10:$P$28,11),IF(AND(J17>=1936,J17<1942),VLOOKUP(K17,Feuil2!$F$10:$P$28,10),IF(AND(J17>=1942,J17<1947),VLOOKUP(K17,Feuil2!$F$10:$P$28,9),IF(AND(J17>=1947,J17<1952),VLOOKUP(K17,Feuil2!$F$10:$P$28,8),IF(AND(J17>=1952,J17<1957),VLOOKUP(K17,Feuil2!$F$10:$P$28,7),IF(AND(J17>=1957,J17<1962),VLOOKUP(K17,Feuil2!$F$10:$P$28,6),IF(AND(J17>=1962,J17<1967),VLOOKUP(K17,Feuil2!$F$10:$P$28,5),IF(AND(J17>=1967,J17<1972),VLOOKUP(K17,Feuil2!$F$10:$P$28,4),IF(AND(J17>=1972,J17<1977),VLOOKUP(K17,Feuil2!$F$10:$P$28,3),IF(AND(J17>=1977,J17<1982),VLOOKUP(K17,Feuil2!$F$10:$P$28,2),VLOOKUP(K17,Feuil2!$F$10:$P$28,2)))))))))))) -> 
A18: H | B18: SE | C18: CAZ | E18: 357693 | F18: IT | G18: LEKAJ | H18: LADI | I18: AS MONACO | J18: 1975 | K18: 83.7 | L18: 80 | M18: 85 | N18: -87 | O18: 85 | P18: 105 | Q18: -110 | R18: -110 | S18: 105 | T18: 190 | U18: 262.4533907 | V18: EUR + | W18: 8 | X18: V2 H40 | Y18: =IF(AND(J18<1920),VLOOKUP(K18,Feuil2!$F$10:$P$28,11),IF(AND(J18>=1920,J18<1937),VLOOKUP(K18,Feuil2!$F$10:$P$28,11),IF(AND(J18>=1936,J18<1942),VLOOKUP(K18,Feuil2!$F$10:$P$28,10),IF(AND(J18>=1942,J18<1947),VLOOKUP(K18,Feuil2!$F$10:$P$28,9),IF(AND(J18>=1947,J18<1952),VLOOKUP(K18,Feuil2!$F$10:$P$28,8),IF(AND(J18>=1952,J18<1957),VLOOKUP(K18,Feuil2!$F$10:$P$28,7),IF(AND(J18>=1957,J18<1962),VLOOKUP(K18,Feuil2!$F$10:$P$28,6),IF(AND(J18>=1962,J18<1967),VLOOKUP(K18,Feuil2!$F$10:$P$28,5),IF(AND(J18>=1967,J18<1972),VLOOKUP(K18,Feuil2!$F$10:$P$28,4),IF(AND(J18>=1972,J18<1977),VLOOKUP(K18,Feuil2!$F$10:$P$28,3),IF(AND(J18>=1977,J18<1982),VLOOKUP(K18,Feuil2!$F$10:$P$28,2),VLOOKUP(K18,Feuil2!$F$10:$P$28,2)))))))))))) -> VH40-85 | AA18: =T18-HLOOKUP(Y18,Feuil2!$C$1:$CD$9,2,FALSE) -> 190 | AB18: =T18-HLOOKUP(Y18,Feuil2!$C$1:$CD$9,3,FALSE) -> 28 | AC18: =T18-HLOOKUP(Y18,Feuil2!$C$1:$CD$9,4,FALSE) -> 18 | AD18: =T18-HLOOKUP(Y18,Feuil2!$C$1:$CD$9,5,FALSE) -> 8 | AE18: =T18-HLOOKUP(Y18,Feuil2!$C$1:$CD$9,6,FALSE) -> -15 | AF18: =T18-HLOOKUP(Y18,Feuil2!$C$1:$CD$9,7,FALSE) -> -810 | AG18: =T18-HLOOKUP(Y18,Feuil2!$C$1:$CD$9,8,FALSE) -> -810 | AH18: =T18-HLOOKUP(Y18,Feuil2!$C$1:$CD$9,9,FALSE) -> -810 | AP18: EUR + | AQ18: 41 | AS18: =IF(AQ18,VLOOKUP(AQ18,HOM!$AS$555:$AT$610,2)) -> 1.147
A19: H | B19: SE | C19: CAZ | E19: 386642 | F19: FR | G19: LAMBERT | H19: STEPHANE | I19: ASPTT DRAGUIGNAN | J19: 1976 | K19: 82.1 | L19: -75 | M19: -75 | N19: -75 | O19: 0 | P19: 90 | Q19: 0 | R19: 0 | S19: 90 | T19: 0 | U19: 0 | V19: N.CL. | W19: 0 | X19: V2 H40 | Y19: =IF(AND(J19<1920),VLOOKUP(K19,Feuil2!$F$10:$P$28,11),IF(AND(J19>=1920,J19<1937),VLOOKUP(K19,Feuil2!$F$10:$P$28,11),IF(AND(J19>=1936,J19<1942),VLOOKUP(K19,Feuil2!$F$10:$P$28,10),IF(AND(J19>=1942,J19<1947),VLOOKUP(K19,Feuil2!$F$10:$P$28,9),IF(AND(J19>=1947,J19<1952),VLOOKUP(K19,Feuil2!$F$10:$P$28,8),IF(AND(J19>=1952,J19<1957),VLOOKUP(K19,Feuil2!$F$10:$P$28,7),IF(AND(J19>=1957,J19<1962),VLOOKUP(K19,Feuil2!$F$10:$P$28,6),IF(AND(J19>=1962,J19<1967),VLOOKUP(K19,Feuil2!$F$10:$P$28,5),IF(AND(J19>=1967,J19<1972),VLOOKUP(K19,Feuil2!$F$10:$P$28,4),IF(AND(J19>=1972,J19<1977),VLOOKUP(K19,Feuil2!$F$10:$P$28,3),IF(AND(J19>=1977,J19<1982),VLOOKUP(K19,Feuil2!$F$10:$P$28,2),VLOOKUP(K19,Feuil2!$F$10:$P$28,2)))))))))))) -> VH40-85 | AA19: =T19-HLOOKUP(Y19,Feuil2!$C$1:$CD$9,2,FALSE) -> 0 | AB19: =T19-HLOOKUP(Y19,Feuil2!$C$1:$CD$9,3,FALSE) -> -162 | AC19: =T19-HLOOKUP(Y19,Feuil2!$C$1:$CD$9,4,FALSE) -> -172 | AD19: =T19-HLOOKUP(Y19,Feuil2!$C$1:$CD$9,5,FALSE) -> -182 | AE19: =T19-HLOOKUP(Y19,Feuil2!$C$1:$CD$9,6,FALSE) -> -205 | AF19: =T19-HLOOKUP(Y19,Feuil2!$C$1:$CD$9,7,FALSE) -> -1000 | AG19: =T19-HLOOKUP(Y19,Feuil2!$C$1:$CD$9,8,FALSE) -> -1000 | AH19: =T19-HLOOKUP(Y19,Feuil2!$C$1:$CD$9,9,FALSE) -> -1000 | AP19: N.CL. | AQ19: 40 | AS19: =IF(AQ19,VLOOKUP(AQ19,HOM!$AS$555:$AT$610,2)) -> 1.136
A20: H | O20: =IF(K20="","",IF(MAXA(L20:N20)<=0,0,MAXA(L20:N20))) ->  | S20: =IF(K20="","",IF(MAXA(P20:R20)<=0,0,MAXA(P20:R20))) ->  | T20: =IF(K20="","",IF(OR(O20=0,S20=0),0,O20+S20)) ->  | U20: =IF(K20="","",IF(A20="H",10^(0.794358141*LOG(K20/174.393)^2)*T20*AS20,IF(A20="F",10^(0.89726074 * LOG(K20/148.026)^2)*T20*AS20,""))) ->  | V20: =IF(K20="","",AP20) ->  | W20: =IF(K20="","",IF(AH20>=0,AH20,IF(AG20>=0,AG20,IF(AF20>=0,AF20,IF(AE20>=0,AE20,IF(AD20>=0,AD20,IF(AC20>=0,AC20,IF(AB20>=0,AB20,AA20)))))))) ->  | X20: =IF(AQ20<95,IF(AQ20<=90,VLOOKUP(AQ20,$AQ$555:$AR$610,2))) -> FALSE | Y20: =IF(AND(J20<1920),VLOOKUP(K20,Feuil2!$F$10:$P$28,11),IF(AND(J20>=1920,J20<1937),VLOOKUP(K20,Feuil2!$F$10:$P$28,11),IF(AND(J20>=1936,J20<1942),VLOOKUP(K20,Feuil2!$F$10:$P$28,10),IF(AND(J20>=1942,J20<1947),VLOOKUP(K20,Feuil2!$F$10:$P$28,9),IF(AND(J20>=1947,J20<1952),VLOOKUP(K20,Feuil2!$F$10:$P$28,8),IF(AND(J20>=1952,J20<1957),VLOOKUP(K20,Feuil2!$F$10:$P$28,7),IF(AND(J20>=1957,J20<1962),VLOOKUP(K20,Feuil2!$F$10:$P$28,6),IF(AND(J20>=1962,J20<1967),VLOOKUP(K20,Feuil2!$F$10:$P$28,5),IF(AND(J20>=1967,J20<1972),VLOOKUP(K20,Feuil2!$F$10:$P$28,4),IF(AND(J20>=1972,J20<1977),VLOOKUP(K20,Feuil2!$F$10:$P$28,3),IF(AND(J20>=1977,J20<1982),VLOOKUP(K20,Feuil2!$F$10:$P$28,2),VLOOKUP(K20,Feuil2!$F$10:$P$28,2)))))))))))) ->  | AA20: =T20-HLOOKUP(Y20,Feuil2!$C$1:$CD$9,2,FALSE) ->  | AB20: =T20-HLOOKUP(Y20,Feuil2!$C$1:$CD$9,3,FALSE) ->  | AC20: =T20-HLOOKUP(Y20,Feuil2!$C$1:$CD$9,4,FALSE) ->  | AD20: =T20-HLOOKUP(Y20,Feuil2!$C$1:$CD$9,5,FALSE) ->  | AE20: =T20-HLOOKUP(Y20,Feuil2!$C$1:$CD$9,6,FALSE) ->  | AF20: =T20-HLOOKUP(Y20,Feuil2!$C$1:$CD$9,7,FALSE) ->  | AG20: =T20-HLOOKUP(Y20,Feuil2!$C$1:$CD$9,8,FALSE) ->  | AH20: =T20-HLOOKUP(Y20,Feuil2!$C$1:$CD$9,9,FALSE) ->  | AQ20: 2016 | AS20: =IF(AQ20,VLOOKUP(AQ20,HOM!$AS$555:$AT$610,2)) -> 3.571
A21: H | B21: SE | C21: CAZ | E21: 953 | F21: FR | G21: BONVENTRE | H21: SEBASTIEN | I21: AS MONACO | J21: 1971 | K21: 61 | L21: 75 | M21: -80 | N21: 80 | O21: 80 | P21: 95 | Q21: 100 | R21: -103 | S21: 100 | T21: 180 | U21: 314.7461436 | V21: MON + | W21: 25 | X21: =IF(AQ21<95,IF(AQ21<=90,VLOOKUP(AQ21,$AQ$555:$AR$610,2))) -> V3 H45 | Y21: =IF(AND(J21<1920),VLOOKUP(K21,Feuil2!$F$10:$P$28,11),IF(AND(J21>=1920,J21<1937),VLOOKUP(K21,Feuil2!$F$10:$P$28,11),IF(AND(J21>=1936,J21<1942),VLOOKUP(K21,Feuil2!$F$10:$P$28,10),IF(AND(J21>=1942,J21<1947),VLOOKUP(K21,Feuil2!$F$10:$P$28,9),IF(AND(J21>=1947,J21<1952),VLOOKUP(K21,Feuil2!$F$10:$P$28,8),IF(AND(J21>=1952,J21<1957),VLOOKUP(K21,Feuil2!$F$10:$P$28,7),IF(AND(J21>=1957,J21<1962),VLOOKUP(K21,Feuil2!$F$10:$P$28,6),IF(AND(J21>=1962,J21<1967),VLOOKUP(K21,Feuil2!$F$10:$P$28,5),IF(AND(J21>=1967,J21<1972),VLOOKUP(K21,Feuil2!$F$10:$P$28,4),IF(AND(J21>=1972,J21<1977),VLOOKUP(K21,Feuil2!$F$10:$P$28,3),IF(AND(J21>=1977,J21<1982),VLOOKUP(K21,Feuil2!$F$10:$P$28,2),VLOOKUP(K21,Feuil2!$F$10:$P$28,2)))))))))))) -> VH45-62 | AA21: =T21-HLOOKUP(Y21,Feuil2!$C$1:$CD$9,2,FALSE) -> 180 | AB21: =T21-HLOOKUP(Y21,Feuil2!$C$1:$CD$9,3,FALSE) -> 63 | AC21: =T21-HLOOKUP(Y21,Feuil2!$C$1:$CD$9,4,FALSE) -> 53 | AD21: =T21-HLOOKUP(Y21,Feuil2!$C$1:$CD$9,5,FALSE) -> 43 | AE21: =T21-HLOOKUP(Y21,Feuil2!$C$1:$CD$9,6,FALSE) -> 25 | AF21: =T21-HLOOKUP(Y21,Feuil2!$C$1:$CD$9,7,FALSE) -> -820 | AG21: =T21-HLOOKUP(Y21,Feuil2!$C$1:$CD$9,8,FALSE) -> -820 | AH21: =T21-HLOOKUP(Y21,Feuil2!$C$1:$CD$9,9,FALSE) -> -820 | AP21: MON + | AQ21: 45 | AS21: =IF(AQ21,VLOOKUP(AQ21,HOM!$AS$555:$AT$610,2)) -> 1.195
A22: H | X22: FALSE | Y22: =IF(AND(J22<1920),VLOOKUP(K22,Feuil2!$F$10:$P$28,11),IF(AND(J22>=1920,J22<1937),VLOOKUP(K22,Feuil2!$F$10:$P$28,11),IF(AND(J22>=1936,J22<1942),VLOOKUP(K22,Feuil2!$F$10:$P$28,10),IF(AND(J22>=1942,J22<1947),VLOOKUP(K22,Feuil2!$F$10:$P$28,9),IF(AND(J22>=1947,J22<1952),VLOOKUP(K22,Feuil2!$F$10:$P$28,8),IF(AND(J22>=1952,J22<1957),VLOOKUP(K22,Feuil2!$F$10:$P$28,7),IF(AND(J22>=1957,J22<1962),VLOOKUP(K22,Feuil2!$F$10:$P$28,6),IF(AND(J22>=1962,J22<1967),VLOOKUP(K22,Feuil2!$F$10:$P$28,5),IF(AND(J22>=1967,J22<1972),VLOOKUP(K22,Feuil2!$F$10:$P$28,4),IF(AND(J22>=1972,J22<1977),VLOOKUP(K22,Feuil2!$F$10:$P$28,3),IF(AND(J22>=1977,J22<1982),VLOOKUP(K22,Feuil2!$F$10:$P$28,2),VLOOKUP(K22,Feuil2!$F$10:$P$28,2)))))))))))) ->  | AA22: =T22-HLOOKUP(Y22,Feuil2!$C$1:$CD$9,2,FALSE) ->  | AB22: =T22-HLOOKUP(Y22,Feuil2!$C$1:$CD$9,3,FALSE) ->  | AC22: =T22-HLOOKUP(Y22,Feuil2!$C$1:$CD$9,4,FALSE) ->  | AD22: =T22-HLOOKUP(Y22,Feuil2!$C$1:$CD$9,5,FALSE) ->  | AE22: =T22-HLOOKUP(Y22,Feuil2!$C$1:$CD$9,6,FALSE) ->  | AF22: =T22-HLOOKUP(Y22,Feuil2!$C$1:$CD$9,7,FALSE) ->  | AG22: =T22-HLOOKUP(Y22,Feuil2!$C$1:$CD$9,8,FALSE) ->  | AH22: =T22-HLOOKUP(Y22,Feuil2!$C$1:$CD$9,9,FALSE) ->  | AQ22: 2016 | AS22: =IF(AQ22,VLOOKUP(AQ22,HOM!$AS$555:$AT$610,2)) -> 3.571
A23: H | B23: SE | C23: PRO | E23: 704 | F23: FR | G23: MAZZOCHI | H23: REMI | I23: HCC NOVES | J23: 1967 | K23: 75.9 | L23: 70 | M23: 75 | N23: -80 | O23: 75 | P23: 90 | Q23: 95 | R23: -100 | S23: 95 | T23: 170 | U23: 266.3486209 | V23: EUR + | W23: 5 | X23: V3 H45 | Y23: =IF(AND(J23<1920),VLOOKUP(K23,Feuil2!$F$10:$P$28,11),IF(AND(J23>=1920,J23<1937),VLOOKUP(K23,Feuil2!$F$10:$P$28,11),IF(AND(J23>=1936,J23<1942),VLOOKUP(K23,Feuil2!$F$10:$P$28,10),IF(AND(J23>=1942,J23<1947),VLOOKUP(K23,Feuil2!$F$10:$P$28,9),IF(AND(J23>=1947,J23<1952),VLOOKUP(K23,Feuil2!$F$10:$P$28,8),IF(AND(J23>=1952,J23<1957),VLOOKUP(K23,Feuil2!$F$10:$P$28,7),IF(AND(J23>=1957,J23<1962),VLOOKUP(K23,Feuil2!$F$10:$P$28,6),IF(AND(J23>=1962,J23<1967),VLOOKUP(K23,Feuil2!$F$10:$P$28,5),IF(AND(J23>=1967,J23<1972),VLOOKUP(K23,Feuil2!$F$10:$P$28,4),IF(AND(J23>=1972,J23<1977),VLOOKUP(K23,Feuil2!$F$10:$P$28,3),IF(AND(J23>=1977,J23<1982),VLOOKUP(K23,Feuil2!$F$10:$P$28,2),VLOOKUP(K23,Feuil2!$F$10:$P$28,2)))))))))))) -> VH45-77 | AA23: =T23-HLOOKUP(Y23,Feuil2!$C$1:$CD$9,2,FALSE) -> 170 | AB23: =T23-HLOOKUP(Y23,Feuil2!$C$1:$CD$9,3,FALSE) -> 25 | AC23: =T23-HLOOKUP(Y23,Feuil2!$C$1:$CD$9,4,FALSE) -> 15 | AD23: =T23-HLOOKUP(Y23,Feuil2!$C$1:$CD$9,5,FALSE) -> 5 | AE23: =T23-HLOOKUP(Y23,Feuil2!$C$1:$CD$9,6,FALSE) -> -15 | AF23: =T23-HLOOKUP(Y23,Feuil2!$C$1:$CD$9,7,FALSE) -> -830 | AG23: =T23-HLOOKUP(Y23,Feuil2!$C$1:$CD$9,8,FALSE) -> -830 | AH23: =T23-HLOOKUP(Y23,Feuil2!$C$1:$CD$9,9,FALSE) -> -830 | AP23: EUR + | AQ23: 49 | AS23: =IF(AQ23,VLOOKUP(AQ23,HOM!$AS$555:$AT$610,2)) -> 1.234
A24: H | X24: FALSE | Y24: =IF(AND(J24<1920),VLOOKUP(K24,Feuil2!$F$10:$P$28,11),IF(AND(J24>=1920,J24<1937),VLOOKUP(K24,Feuil2!$F$10:$P$28,11),IF(AND(J24>=1936,J24<1942),VLOOKUP(K24,Feuil2!$F$10:$P$28,10),IF(AND(J24>=1942,J24<1947),VLOOKUP(K24,Feuil2!$F$10:$P$28,9),IF(AND(J24>=1947,J24<1952),VLOOKUP(K24,Feuil2!$F$10:$P$28,8),IF(AND(J24>=1952,J24<1957),VLOOKUP(K24,Feuil2!$F$10:$P$28,7),IF(AND(J24>=1957,J24<1962),VLOOKUP(K24,Feuil2!$F$10:$P$28,6),IF(AND(J24>=1962,J24<1967),VLOOKUP(K24,Feuil2!$F$10:$P$28,5),IF(AND(J24>=1967,J24<1972),VLOOKUP(K24,Feuil2!$F$10:$P$28,4),IF(AND(J24>=1972,J24<1977),VLOOKUP(K24,Feuil2!$F$10:$P$28,3),IF(AND(J24>=1977,J24<1982),VLOOKUP(K24,Feuil2!$F$10:$P$28,2),VLOOKUP(K24,Feuil2!$F$10:$P$28,2)))))))))))) ->  | AA24: =T24-HLOOKUP(Y24,Feuil2!$C$1:$CD$9,2,FALSE) ->  | AB24: =T24-HLOOKUP(Y24,Feuil2!$C$1:$CD$9,3,FALSE) ->  | AC24: =T24-HLOOKUP(Y24,Feuil2!$C$1:$CD$9,4,FALSE) ->  | AD24: =T24-HLOOKUP(Y24,Feuil2!$C$1:$CD$9,5,FALSE) ->  | AE24: =T24-HLOOKUP(Y24,Feuil2!$C$1:$CD$9,6,FALSE) ->  | AF24: =T24-HLOOKUP(Y24,Feuil2!$C$1:$CD$9,7,FALSE) ->  | AG24: =T24-HLOOKUP(Y24,Feuil2!$C$1:$CD$9,8,FALSE) ->  | AH24: =T24-HLOOKUP(Y24,Feuil2!$C$1:$CD$9,9,FALSE) ->  | AQ24: 2016 | AS24: =IF(AQ24,VLOOKUP(AQ24,HOM!$AS$555:$AT$610,2)) -> 3.571
A25: H | B25: SE | C25: CAZ | E25: 955 | F25: FR | G25: CANESTRIER | H25: JEAN | I25: AS MONACO | J25: 1966 | K25: 68.2 | L25: 85 | M25: -90 | N25: -90 | O25: 85 | P25: 100 | Q25: 105 | R25: 110 | S25: 110 | T25: 195 | U25: 328.5279503 | V25: MON + | W25: 38 | X25: V4 H50 | Y25: =IF(AND(J25<1920),VLOOKUP(K25,Feuil2!$F$10:$P$28,11),IF(AND(J25>=1920,J25<1937),VLOOKUP(K25,Feuil2!$F$10:$P$28,11),IF(AND(J25>=1936,J25<1942),VLOOKUP(K25,Feuil2!$F$10:$P$28,10),IF(AND(J25>=1942,J25<1947),VLOOKUP(K25,Feuil2!$F$10:$P$28,9),IF(AND(J25>=1947,J25<1952),VLOOKUP(K25,Feuil2!$F$10:$P$28,8),IF(AND(J25>=1952,J25<1957),VLOOKUP(K25,Feuil2!$F$10:$P$28,7),IF(AND(J25>=1957,J25<1962),VLOOKUP(K25,Feuil2!$F$10:$P$28,6),IF(AND(J25>=1962,J25<1967),VLOOKUP(K25,Feuil2!$F$10:$P$28,5),IF(AND(J25>=1967,J25<1972),VLOOKUP(K25,Feuil2!$F$10:$P$28,4),IF(AND(J25>=1972,J25<1977),VLOOKUP(K25,Feuil2!$F$10:$P$28,3),IF(AND(J25>=1977,J25<1982),VLOOKUP(K25,Feuil2!$F$10:$P$28,2),VLOOKUP(K25,Feuil2!$F$10:$P$28,2)))))))))))) -> VH50-69 | AA25: =T25-HLOOKUP(Y25,Feuil2!$C$1:$CD$9,2,FALSE) -> 195 | AB25: =T25-HLOOKUP(Y25,Feuil2!$C$1:$CD$9,3,FALSE) -> 75 | AC25: =T25-HLOOKUP(Y25,Feuil2!$C$1:$CD$9,4,FALSE) -> 65 | AD25: =T25-HLOOKUP(Y25,Feuil2!$C$1:$CD$9,5,FALSE) -> 55 | AE25: =T25-HLOOKUP(Y25,Feuil2!$C$1:$CD$9,6,FALSE) -> 38 | AF25: =T25-HLOOKUP(Y25,Feuil2!$C$1:$CD$9,7,FALSE) -> -805 | AG25: =T25-HLOOKUP(Y25,Feuil2!$C$1:$CD$9,8,FALSE) -> -805 | AH25: =T25-HLOOKUP(Y25,Feuil2!$C$1:$CD$9,9,FALSE) -> -805 | AP25: MON + | AQ25: 50 | AS25: =IF(AQ25,VLOOKUP(AQ25,HOM!$AS$555:$AT$610,2)) -> 1.243
A26: H | X26: FALSE | Y26: =IF(AND(J26<1920),VLOOKUP(K26,Feuil2!$F$10:$P$28,11),IF(AND(J26>=1920,J26<1937),VLOOKUP(K26,Feuil2!$F$10:$P$28,11),IF(AND(J26>=1936,J26<1942),VLOOKUP(K26,Feuil2!$F$10:$P$28,10),IF(AND(J26>=1942,J26<1947),VLOOKUP(K26,Feuil2!$F$10:$P$28,9),IF(AND(J26>=1947,J26<1952),VLOOKUP(K26,Feuil2!$F$10:$P$28,8),IF(AND(J26>=1952,J26<1957),VLOOKUP(K26,Feuil2!$F$10:$P$28,7),IF(AND(J26>=1957,J26<1962),VLOOKUP(K26,Feuil2!$F$10:$P$28,6),IF(AND(J26>=1962,J26<1967),VLOOKUP(K26,Feuil2!$F$10:$P$28,5),IF(AND(J26>=1967,J26<1972),VLOOKUP(K26,Feuil2!$F$10:$P$28,4),IF(AND(J26>=1972,J26<1977),VLOOKUP(K26,Feuil2!$F$10:$P$28,3),IF(AND(J26>=1977,J26<1982),VLOOKUP(K26,Feuil2!$F$10:$P$28,2),VLOOKUP(K26,Feuil2!$F$10:$P$28,2)))))))))))) ->  | AA26: =T26-HLOOKUP(Y26,Feuil2!$C$1:$CD$9,2,FALSE) ->  | AB26: =T26-HLOOKUP(Y26,Feuil2!$C$1:$CD$9,3,FALSE) ->  | AC26: =T26-HLOOKUP(Y26,Feuil2!$C$1:$CD$9,4,FALSE) ->  | AD26: =T26-HLOOKUP(Y26,Feuil2!$C$1:$CD$9,5,FALSE) ->  | AE26: =T26-HLOOKUP(Y26,Feuil2!$C$1:$CD$9,6,FALSE) ->  | AF26: =T26-HLOOKUP(Y26,Feuil2!$C$1:$CD$9,7,FALSE) ->  | AG26: =T26-HLOOKUP(Y26,Feuil2!$C$1:$CD$9,8,FALSE) ->  | AH26: =T26-HLOOKUP(Y26,Feuil2!$C$1:$CD$9,9,FALSE) ->  | AQ26: 2016 | AS26: =IF(AQ26,VLOOKUP(AQ26,HOM!$AS$555:$AT$610,2)) -> 3.571
A27: H | B27: SE | C27: CAZ | E27: 123970 | F27: FR | G27: VERMELEN | H27: DOMINIQUE | I27: AS MENTON | J27: 1966 | K27: 75.6 | L27: 70 | M27: -80 | N27: -80 | O27: 70 | P27: 80 | Q27: 87 | R27: -92 | S27: 87 | T27: 157 | U27: 248.3400372 | V27: EUR + | W27: 7 | X27: V4 H50 | Y27: =IF(AND(J27<1920),VLOOKUP(K27,Feuil2!$F$10:$P$28,11),IF(AND(J27>=1920,J27<1937),VLOOKUP(K27,Feuil2!$F$10:$P$28,11),IF(AND(J27>=1936,J27<1942),VLOOKUP(K27,Feuil2!$F$10:$P$28,10),IF(AND(J27>=1942,J27<1947),VLOOKUP(K27,Feuil2!$F$10:$P$28,9),IF(AND(J27>=1947,J27<1952),VLOOKUP(K27,Feuil2!$F$10:$P$28,8),IF(AND(J27>=1952,J27<1957),VLOOKUP(K27,Feuil2!$F$10:$P$28,7),IF(AND(J27>=1957,J27<1962),VLOOKUP(K27,Feuil2!$F$10:$P$28,6),IF(AND(J27>=1962,J27<1967),VLOOKUP(K27,Feuil2!$F$10:$P$28,5),IF(AND(J27>=1967,J27<1972),VLOOKUP(K27,Feuil2!$F$10:$P$28,4),IF(AND(J27>=1972,J27<1977),VLOOKUP(K27,Feuil2!$F$10:$P$28,3),IF(AND(J27>=1977,J27<1982),VLOOKUP(K27,Feuil2!$F$10:$P$28,2),VLOOKUP(K27,Feuil2!$F$10:$P$28,2)))))))))))) -> VH50-77 | AA27: =T27-HLOOKUP(Y27,Feuil2!$C$1:$CD$9,2,FALSE) -> 157 | AB27: =T27-HLOOKUP(Y27,Feuil2!$C$1:$CD$9,3,FALSE) -> 27 | AC27: =T27-HLOOKUP(Y27,Feuil2!$C$1:$CD$9,4,FALSE) -> 17 | AD27: =T27-HLOOKUP(Y27,Feuil2!$C$1:$CD$9,5,FALSE) -> 7 | AE27: =T27-HLOOKUP(Y27,Feuil2!$C$1:$CD$9,6,FALSE) -> -13 | AF27: =T27-HLOOKUP(Y27,Feuil2!$C$1:$CD$9,7,FALSE) -> -843 | AG27: =T27-HLOOKUP(Y27,Feuil2!$C$1:$CD$9,8,FALSE) -> -843 | AH27: =T27-HLOOKUP(Y27,Feuil2!$C$1:$CD$9,9,FALSE) -> -843 | AP27: EUR + | AQ27: 50 | AS27: =IF(AQ27,VLOOKUP(AQ27,HOM!$AS$555:$AT$610,2)) -> 1.243
A28: H | X28: FALSE | Y28: =IF(AND(J28<1920),VLOOKUP(K28,Feuil2!$F$10:$P$28,11),IF(AND(J28>=1920,J28<1937),VLOOKUP(K28,Feuil2!$F$10:$P$28,11),IF(AND(J28>=1936,J28<1942),VLOOKUP(K28,Feuil2!$F$10:$P$28,10),IF(AND(J28>=1942,J28<1947),VLOOKUP(K28,Feuil2!$F$10:$P$28,9),IF(AND(J28>=1947,J28<1952),VLOOKUP(K28,Feuil2!$F$10:$P$28,8),IF(AND(J28>=1952,J28<1957),VLOOKUP(K28,Feuil2!$F$10:$P$28,7),IF(AND(J28>=1957,J28<1962),VLOOKUP(K28,Feuil2!$F$10:$P$28,6),IF(AND(J28>=1962,J28<1967),VLOOKUP(K28,Feuil2!$F$10:$P$28,5),IF(AND(J28>=1967,J28<1972),VLOOKUP(K28,Feuil2!$F$10:$P$28,4),IF(AND(J28>=1972,J28<1977),VLOOKUP(K28,Feuil2!$F$10:$P$28,3),IF(AND(J28>=1977,J28<1982),VLOOKUP(K28,Feuil2!$F$10:$P$28,2),VLOOKUP(K28,Feuil2!$F$10:$P$28,2)))))))))))) ->  | AA28: =T28-HLOOKUP(Y28,Feuil2!$C$1:$CD$9,2,FALSE) ->  | AB28: =T28-HLOOKUP(Y28,Feuil2!$C$1:$CD$9,3,FALSE) ->  | AC28: =T28-HLOOKUP(Y28,Feuil2!$C$1:$CD$9,4,FALSE) ->  | AD28: =T28-HLOOKUP(Y28,Feuil2!$C$1:$CD$9,5,FALSE) ->  | AE28: =T28-HLOOKUP(Y28,Feuil2!$C$1:$CD$9,6,FALSE) ->  | AF28: =T28-HLOOKUP(Y28,Feuil2!$C$1:$CD$9,7,FALSE) ->  | AG28: =T28-HLOOKUP(Y28,Feuil2!$C$1:$CD$9,8,FALSE) ->  | AH28: =T28-HLOOKUP(Y28,Feuil2!$C$1:$CD$9,9,FALSE) ->  | AQ28: 2016 | AS28: =IF(AQ28,VLOOKUP(AQ28,HOM!$AS$555:$AT$610,2)) -> 3.571
A29: H | B29: SE | C29: CAZ | E29: 8004 | F29: MC | G29: BATTAGLIA | H29: ERIC | I29: AS MONACO | J29: 1962 | K29: 104 | L29: 80 | M29: 85 | N29: -87 | O29: 85 | P29: 95 | Q29: 100 | R29: -103 | S29: 100 | T29: 185 | U29: 267.5782706 | V29: EUR + | W29: 10 | X29: V4 H50 | Y29: =IF(AND(J29<1920),VLOOKUP(K29,Feuil2!$F$10:$P$28,11),IF(AND(J29>=1920,J29<1937),VLOOKUP(K29,Feuil2!$F$10:$P$28,11),IF(AND(J29>=1936,J29<1942),VLOOKUP(K29,Feuil2!$F$10:$P$28,10),IF(AND(J29>=1942,J29<1947),VLOOKUP(K29,Feuil2!$F$10:$P$28,9),IF(AND(J29>=1947,J29<1952),VLOOKUP(K29,Feuil2!$F$10:$P$28,8),IF(AND(J29>=1952,J29<1957),VLOOKUP(K29,Feuil2!$F$10:$P$28,7),IF(AND(J29>=1957,J29<1962),VLOOKUP(K29,Feuil2!$F$10:$P$28,6),IF(AND(J29>=1962,J29<1967),VLOOKUP(K29,Feuil2!$F$10:$P$28,5),IF(AND(J29>=1967,J29<1972),VLOOKUP(K29,Feuil2!$F$10:$P$28,4),IF(AND(J29>=1972,J29<1977),VLOOKUP(K29,Feuil2!$F$10:$P$28,3),IF(AND(J29>=1977,J29<1982),VLOOKUP(K29,Feuil2!$F$10:$P$28,2),VLOOKUP(K29,Feuil2!$F$10:$P$28,2)))))))))))) -> VH50-105 | AA29: =T29-HLOOKUP(Y29,Feuil2!$C$1:$CD$9,2,FALSE) -> 185 | AB29: =T29-HLOOKUP(Y29,Feuil2!$C$1:$CD$9,3,FALSE) -> 30 | AC29: =T29-HLOOKUP(Y29,Feuil2!$C$1:$CD$9,4,FALSE) -> 20 | AD29: =T29-HLOOKUP(Y29,Feuil2!$C$1:$CD$9,5,FALSE) -> 10 | AE29: =T29-HLOOKUP(Y29,Feuil2!$C$1:$CD$9,6,FALSE) -> -12 | AF29: =T29-HLOOKUP(Y29,Feuil2!$C$1:$CD$9,7,FALSE) -> -815 | AG29: =T29-HLOOKUP(Y29,Feuil2!$C$1:$CD$9,8,FALSE) -> -815 | AH29: =T29-HLOOKUP(Y29,Feuil2!$C$1:$CD$9,9,FALSE) -> -815 | AP29: EUR + | AQ29: 54 | AS29: =IF(AQ29,VLOOKUP(AQ29,HOM!$AS$555:$AT$610,2)) -> 1.319
A30: H | X30: FALSE | Y30: =IF(AND(J30<1920),VLOOKUP(K30,Feuil2!$F$10:$P$28,11),IF(AND(J30>=1920,J30<1937),VLOOKUP(K30,Feuil2!$F$10:$P$28,11),IF(AND(J30>=1936,J30<1942),VLOOKUP(K30,Feuil2!$F$10:$P$28,10),IF(AND(J30>=1942,J30<1947),VLOOKUP(K30,Feuil2!$F$10:$P$28,9),IF(AND(J30>=1947,J30<1952),VLOOKUP(K30,Feuil2!$F$10:$P$28,8),IF(AND(J30>=1952,J30<1957),VLOOKUP(K30,Feuil2!$F$10:$P$28,7),IF(AND(J30>=1957,J30<1962),VLOOKUP(K30,Feuil2!$F$10:$P$28,6),IF(AND(J30>=1962,J30<1967),VLOOKUP(K30,Feuil2!$F$10:$P$28,5),IF(AND(J30>=1967,J30<1972),VLOOKUP(K30,Feuil2!$F$10:$P$28,4),IF(AND(J30>=1972,J30<1977),VLOOKUP(K30,Feuil2!$F$10:$P$28,3),IF(AND(J30>=1977,J30<1982),VLOOKUP(K30,Feuil2!$F$10:$P$28,2),VLOOKUP(K30,Feuil2!$F$10:$P$28,2)))))))))))) ->  | AA30: =T30-HLOOKUP(Y30,Feuil2!$C$1:$CD$9,2,FALSE) ->  | AB30: =T30-HLOOKUP(Y30,Feuil2!$C$1:$CD$9,3,FALSE) ->  | AC30: =T30-HLOOKUP(Y30,Feuil2!$C$1:$CD$9,4,FALSE) ->  | AD30: =T30-HLOOKUP(Y30,Feuil2!$C$1:$CD$9,5,FALSE) ->  | AE30: =T30-HLOOKUP(Y30,Feuil2!$C$1:$CD$9,6,FALSE) ->  | AF30: =T30-HLOOKUP(Y30,Feuil2!$C$1:$CD$9,7,FALSE) ->  | AG30: =T30-HLOOKUP(Y30,Feuil2!$C$1:$CD$9,8,FALSE) ->  | AH30: =T30-HLOOKUP(Y30,Feuil2!$C$1:$CD$9,9,FALSE) ->  | AQ30: 2016 | AS30: =IF(AQ30,VLOOKUP(AQ30,HOM!$AS$555:$AT$610,2)) -> 3.571
A31: H | B31: SE | C31: PR | E31: 37253 | F31: FR | G31: PEDROLA | H31: JEAN-MARC | I31: AVIGNON | J31: 1956 | K31: 61.3 | L31: 42 | M31: -46 | N31: 46 | O31: 46 | P31: 55 | Q31: -60 | R31: -60 | S31: 55 | T31: 101 | U31: 222.2235089 | V31: FRA + | W31: 9 | X31: V6 H60 | Y31: =IF(AND(J31<1920),VLOOKUP(K31,Feuil2!$F$10:$P$28,11),IF(AND(J31>=1920,J31<1937),VLOOKUP(K31,Feuil2!$F$10:$P$28,11),IF(AND(J31>=1936,J31<1942),VLOOKUP(K31,Feuil2!$F$10:$P$28,10),IF(AND(J31>=1942,J31<1947),VLOOKUP(K31,Feuil2!$F$10:$P$28,9),IF(AND(J31>=1947,J31<1952),VLOOKUP(K31,Feuil2!$F$10:$P$28,8),IF(AND(J31>=1952,J31<1957),VLOOKUP(K31,Feuil2!$F$10:$P$28,7),IF(AND(J31>=1957,J31<1962),VLOOKUP(K31,Feuil2!$F$10:$P$28,6),IF(AND(J31>=1962,J31<1967),VLOOKUP(K31,Feuil2!$F$10:$P$28,5),IF(AND(J31>=1967,J31<1972),VLOOKUP(K31,Feuil2!$F$10:$P$28,4),IF(AND(J31>=1972,J31<1977),VLOOKUP(K31,Feuil2!$F$10:$P$28,3),IF(AND(J31>=1977,J31<1982),VLOOKUP(K31,Feuil2!$F$10:$P$28,2),VLOOKUP(K31,Feuil2!$F$10:$P$28,2)))))))))))) -> VH60-62 | AA31: =T31-HLOOKUP(Y31,Feuil2!$C$1:$CD$9,2,FALSE) -> 101 | AB31: =T31-HLOOKUP(Y31,Feuil2!$C$1:$CD$9,3,FALSE) -> 19 | AC31: =T31-HLOOKUP(Y31,Feuil2!$C$1:$CD$9,4,FALSE) -> 9 | AD31: =T31-HLOOKUP(Y31,Feuil2!$C$1:$CD$9,5,FALSE) -> -1 | AE31: =T31-HLOOKUP(Y31,Feuil2!$C$1:$CD$9,6,FALSE) -> -16 | AF31: =T31-HLOOKUP(Y31,Feuil2!$C$1:$CD$9,7,FALSE) -> -899 | AG31: =T31-HLOOKUP(Y31,Feuil2!$C$1:$CD$9,8,FALSE) -> -899 | AH31: =T31-HLOOKUP(Y31,Feuil2!$C$1:$CD$9,9,FALSE) -> -899 | AP31: FRA + | AQ31: 60 | AS31: =IF(AQ31,VLOOKUP(AQ31,HOM!$AS$555:$AT$610,2)) -> 1.509
A32: H | X32: FALSE | Y32: =IF(AND(J32<1920),VLOOKUP(K32,Feuil2!$F$10:$P$28,11),IF(AND(J32>=1920,J32<1937),VLOOKUP(K32,Feuil2!$F$10:$P$28,11),IF(AND(J32>=1936,J32<1942),VLOOKUP(K32,Feuil2!$F$10:$P$28,10),IF(AND(J32>=1942,J32<1947),VLOOKUP(K32,Feuil2!$F$10:$P$28,9),IF(AND(J32>=1947,J32<1952),VLOOKUP(K32,Feuil2!$F$10:$P$28,8),IF(AND(J32>=1952,J32<1957),VLOOKUP(K32,Feuil2!$F$10:$P$28,7),IF(AND(J32>=1957,J32<1962),VLOOKUP(K32,Feuil2!$F$10:$P$28,6),IF(AND(J32>=1962,J32<1967),VLOOKUP(K32,Feuil2!$F$10:$P$28,5),IF(AND(J32>=1967,J32<1972),VLOOKUP(K32,Feuil2!$F$10:$P$28,4),IF(AND(J32>=1972,J32<1977),VLOOKUP(K32,Feuil2!$F$10:$P$28,3),IF(AND(J32>=1977,J32<1982),VLOOKUP(K32,Feuil2!$F$10:$P$28,2),VLOOKUP(K32,Feuil2!$F$10:$P$28,2)))))))))))) ->  | AA32: =T32-HLOOKUP(Y32,Feuil2!$C$1:$CD$9,2,FALSE) ->  | AB32: =T32-HLOOKUP(Y32,Feuil2!$C$1:$CD$9,3,FALSE) ->  | AC32: =T32-HLOOKUP(Y32,Feuil2!$C$1:$CD$9,4,FALSE) ->  | AD32: =T32-HLOOKUP(Y32,Feuil2!$C$1:$CD$9,5,FALSE) ->  | AE32: =T32-HLOOKUP(Y32,Feuil2!$C$1:$CD$9,6,FALSE) ->  | AF32: =T32-HLOOKUP(Y32,Feuil2!$C$1:$CD$9,7,FALSE) ->  | AG32: =T32-HLOOKUP(Y32,Feuil2!$C$1:$CD$9,8,FALSE) ->  | AH32: =T32-HLOOKUP(Y32,Feuil2!$C$1:$CD$9,9,FALSE) ->  | AQ32: 2016 | AS32: =IF(AQ32,VLOOKUP(AQ32,HOM!$AS$555:$AT$610,2)) -> 3.571
A33: H | B33: SE | C33: CAZ | E33: 399168 | F33: FR | G33: SERRA | H33: CHRISTIAN | I33: ASLDD TOULON | J33: 1952 | K33: 76.5 | L33: 37 | M33: -42 | N33: 42 | O33: 42 | P33: 52 | Q33: 60 | R33: 0 | S33: 60 | T33: 102 | U33: 207.3094267 | V33: REG + | W33: 0 | X33: V6 H60 | Y33: =IF(AND(J33<1920),VLOOKUP(K33,Feuil2!$F$10:$P$28,11),IF(AND(J33>=1920,J33<1937),VLOOKUP(K33,Feuil2!$F$10:$P$28,11),IF(AND(J33>=1936,J33<1942),VLOOKUP(K33,Feuil2!$F$10:$P$28,10),IF(AND(J33>=1942,J33<1947),VLOOKUP(K33,Feuil2!$F$10:$P$28,9),IF(AND(J33>=1947,J33<1952),VLOOKUP(K33,Feuil2!$F$10:$P$28,8),IF(AND(J33>=1952,J33<1957),VLOOKUP(K33,Feuil2!$F$10:$P$28,7),IF(AND(J33>=1957,J33<1962),VLOOKUP(K33,Feuil2!$F$10:$P$28,6),IF(AND(J33>=1962,J33<1967),VLOOKUP(K33,Feuil2!$F$10:$P$28,5),IF(AND(J33>=1967,J33<1972),VLOOKUP(K33,Feuil2!$F$10:$P$28,4),IF(AND(J33>=1972,J33<1977),VLOOKUP(K33,Feuil2!$F$10:$P$28,3),IF(AND(J33>=1977,J33<1982),VLOOKUP(K33,Feuil2!$F$10:$P$28,2),VLOOKUP(K33,Feuil2!$F$10:$P$28,2)))))))))))) -> VH60-77 | AA33: =T33-HLOOKUP(Y33,Feuil2!$C$1:$CD$9,2,FALSE) -> 102 | AB33: =T33-HLOOKUP(Y33,Feuil2!$C$1:$CD$9,3,FALSE) -> 0 | AC33: =T33-HLOOKUP(Y33,Feuil2!$C$1:$CD$9,4,FALSE) -> -10 | AD33: =T33-HLOOKUP(Y33,Feuil2!$C$1:$CD$9,5,FALSE) -> -20 | AE33: =T33-HLOOKUP(Y33,Feuil2!$C$1:$CD$9,6,FALSE) -> -35 | AF33: =T33-HLOOKUP(Y33,Feuil2!$C$1:$CD$9,7,FALSE) -> -898 | AG33: =T33-HLOOKUP(Y33,Feuil2!$C$1:$CD$9,8,FALSE) -> -898 | AH33: =T33-HLOOKUP(Y33,Feuil2!$C$1:$CD$9,9,FALSE) -> -898 | AP33: REG + | AQ33: 64 | AS33: =IF(AQ33,VLOOKUP(AQ33,HOM!$AS$555:$AT$610,2)) -> 1.608
A34: H | X34: FALSE | Y34: =IF(AND(J34<1920),VLOOKUP(K34,Feuil2!$F$10:$P$28,11),IF(AND(J34>=1920,J34<1937),VLOOKUP(K34,Feuil2!$F$10:$P$28,11),IF(AND(J34>=1936,J34<1942),VLOOKUP(K34,Feuil2!$F$10:$P$28,10),IF(AND(J34>=1942,J34<1947),VLOOKUP(K34,Feuil2!$F$10:$P$28,9),IF(AND(J34>=1947,J34<1952),VLOOKUP(K34,Feuil2!$F$10:$P$28,8),IF(AND(J34>=1952,J34<1957),VLOOKUP(K34,Feuil2!$F$10:$P$28,7),IF(AND(J34>=1957,J34<1962),VLOOKUP(K34,Feuil2!$F$10:$P$28,6),IF(AND(J34>=1962,J34<1967),VLOOKUP(K34,Feuil2!$F$10:$P$28,5),IF(AND(J34>=1967,J34<1972),VLOOKUP(K34,Feuil2!$F$10:$P$28,4),IF(AND(J34>=1972,J34<1977),VLOOKUP(K34,Feuil2!$F$10:$P$28,3),IF(AND(J34>=1977,J34<1982),VLOOKUP(K34,Feuil2!$F$10:$P$28,2),VLOOKUP(K34,Feuil2!$F$10:$P$28,2)))))))))))) ->  | AA34: =T34-HLOOKUP(Y34,Feuil2!$C$1:$CD$9,2,FALSE) ->  | AB34: =T34-HLOOKUP(Y34,Feuil2!$C$1:$CD$9,3,FALSE) ->  | AC34: =T34-HLOOKUP(Y34,Feuil2!$C$1:$CD$9,4,FALSE) ->  | AD34: =T34-HLOOKUP(Y34,Feuil2!$C$1:$CD$9,5,FALSE) ->  | AE34: =T34-HLOOKUP(Y34,Feuil2!$C$1:$CD$9,6,FALSE) ->  | AF34: =T34-HLOOKUP(Y34,Feuil2!$C$1:$CD$9,7,FALSE) ->  | AG34: =T34-HLOOKUP(Y34,Feuil2!$C$1:$CD$9,8,FALSE) ->  | AH34: =T34-HLOOKUP(Y34,Feuil2!$C$1:$CD$9,9,FALSE) ->  | AQ34: 2016 | AS34: =IF(AQ34,VLOOKUP(AQ34,HOM!$AS$555:$AT$610,2)) -> 3.571
A35: H | B35: SE | C35: PR | E35: 122918 | F35: FR | G35: SAVOLDELLI | H35: BRUNO | I35: AVIGNON | J35: 1951 | K35: 90.3 | L35: 60 | M35: -65 | N35: 65 | O35: 65 | P35: 72 | Q35: 76 | R35: 80 | S35: 80 | T35: 145 | U35: 275.4574548 | V35: MON + | W35: 10 | X35: V7 H65 | Y35: =IF(AND(J35<1920),VLOOKUP(K35,Feuil2!$F$10:$P$28,11),IF(AND(J35>=1920,J35<1937),VLOOKUP(K35,Feuil2!$F$10:$P$28,11),IF(AND(J35>=1936,J35<1942),VLOOKUP(K35,Feuil2!$F$10:$P$28,10),IF(AND(J35>=1942,J35<1947),VLOOKUP(K35,Feuil2!$F$10:$P$28,9),IF(AND(J35>=1947,J35<1952),VLOOKUP(K35,Feuil2!$F$10:$P$28,8),IF(AND(J35>=1952,J35<1957),VLOOKUP(K35,Feuil2!$F$10:$P$28,7),IF(AND(J35>=1957,J35<1962),VLOOKUP(K35,Feuil2!$F$10:$P$28,6),IF(AND(J35>=1962,J35<1967),VLOOKUP(K35,Feuil2!$F$10:$P$28,5),IF(AND(J35>=1967,J35<1972),VLOOKUP(K35,Feuil2!$F$10:$P$28,4),IF(AND(J35>=1972,J35<1977),VLOOKUP(K35,Feuil2!$F$10:$P$28,3),IF(AND(J35>=1977,J35<1982),VLOOKUP(K35,Feuil2!$F$10:$P$28,2),VLOOKUP(K35,Feuil2!$F$10:$P$28,2)))))))))))) -> VH65-94 | AA35: =T35-HLOOKUP(Y35,Feuil2!$C$1:$CD$9,2,FALSE) -> 145 | AB35: =T35-HLOOKUP(Y35,Feuil2!$C$1:$CD$9,3,FALSE) -> 45 | AC35: =T35-HLOOKUP(Y35,Feuil2!$C$1:$CD$9,4,FALSE) -> 35 | AD35: =T35-HLOOKUP(Y35,Feuil2!$C$1:$CD$9,5,FALSE) -> 25 | AE35: =T35-HLOOKUP(Y35,Feuil2!$C$1:$CD$9,6,FALSE) -> 10 | AF35: =T35-HLOOKUP(Y35,Feuil2!$C$1:$CD$9,7,FALSE) -> -855 | AG35: =T35-HLOOKUP(Y35,Feuil2!$C$1:$CD$9,8,FALSE) -> -855 | AH35: =T35-HLOOKUP(Y35,Feuil2!$C$1:$CD$9,9,FALSE) -> -855 | AP35: MON + | AQ35: 65 | AS35: =IF(AQ35,VLOOKUP(AQ35,HOM!$AS$555:$AT$610,2)) -> 1.636
A36: H | X36: FALSE | Y36: =IF(AND(J36<1920),VLOOKUP(K36,Feuil2!$F$10:$P$28,11),IF(AND(J36>=1920,J36<1937),VLOOKUP(K36,Feuil2!$F$10:$P$28,11),IF(AND(J36>=1936,J36<1942),VLOOKUP(K36,Feuil2!$F$10:$P$28,10),IF(AND(J36>=1942,J36<1947),VLOOKUP(K36,Feuil2!$F$10:$P$28,9),IF(AND(J36>=1947,J36<1952),VLOOKUP(K36,Feuil2!$F$10:$P$28,8),IF(AND(J36>=1952,J36<1957),VLOOKUP(K36,Feuil2!$F$10:$P$28,7),IF(AND(J36>=1957,J36<1962),VLOOKUP(K36,Feuil2!$F$10:$P$28,6),IF(AND(J36>=1962,J36<1967),VLOOKUP(K36,Feuil2!$F$10:$P$28,5),IF(AND(J36>=1967,J36<1972),VLOOKUP(K36,Feuil2!$F$10:$P$28,4),IF(AND(J36>=1972,J36<1977),VLOOKUP(K36,Feuil2!$F$10:$P$28,3),IF(AND(J36>=1977,J36<1982),VLOOKUP(K36,Feuil2!$F$10:$P$28,2),VLOOKUP(K36,Feuil2!$F$10:$P$28,2)))))))))))) ->  | AA36: =T36-HLOOKUP(Y36,Feuil2!$C$1:$CD$9,2,FALSE) ->  | AB36: =T36-HLOOKUP(Y36,Feuil2!$C$1:$CD$9,3,FALSE) ->  | AC36: =T36-HLOOKUP(Y36,Feuil2!$C$1:$CD$9,4,FALSE) ->  | AD36: =T36-HLOOKUP(Y36,Feuil2!$C$1:$CD$9,5,FALSE) ->  | AE36: =T36-HLOOKUP(Y36,Feuil2!$C$1:$CD$9,6,FALSE) ->  | AF36: =T36-HLOOKUP(Y36,Feuil2!$C$1:$CD$9,7,FALSE) ->  | AG36: =T36-HLOOKUP(Y36,Feuil2!$C$1:$CD$9,8,FALSE) ->  | AH36: =T36-HLOOKUP(Y36,Feuil2!$C$1:$CD$9,9,FALSE) ->  | AQ36: 2016 | AS36: =IF(AQ36,VLOOKUP(AQ36,HOM!$AS$555:$AT$610,2)) -> 3.571
A37: H | B37: SE | C37: PR | E37: 2685 | F37: FR | G37: LEBAILLY | H37: PIERRE | I37: AVIGNON | J37: 1944 | K37: 93.7 | L37: 54 | M37: 58 | N37: -61 | O37: 58 | P37: 70 | Q37: 77 | R37: 81 | S37: 81 | T37: 139 | U37: 326.0034383 | V37: MON + | W37: 32 | X37: V8 H70 | Y37: =IF(AND(J37<1920),VLOOKUP(K37,Feuil2!$F$10:$P$28,11),IF(AND(J37>=1920,J37<1937),VLOOKUP(K37,Feuil2!$F$10:$P$28,11),IF(AND(J37>=1936,J37<1942),VLOOKUP(K37,Feuil2!$F$10:$P$28,10),IF(AND(J37>=1942,J37<1947),VLOOKUP(K37,Feuil2!$F$10:$P$28,9),IF(AND(J37>=1947,J37<1952),VLOOKUP(K37,Feuil2!$F$10:$P$28,8),IF(AND(J37>=1952,J37<1957),VLOOKUP(K37,Feuil2!$F$10:$P$28,7),IF(AND(J37>=1957,J37<1962),VLOOKUP(K37,Feuil2!$F$10:$P$28,6),IF(AND(J37>=1962,J37<1967),VLOOKUP(K37,Feuil2!$F$10:$P$28,5),IF(AND(J37>=1967,J37<1972),VLOOKUP(K37,Feuil2!$F$10:$P$28,4),IF(AND(J37>=1972,J37<1977),VLOOKUP(K37,Feuil2!$F$10:$P$28,3),IF(AND(J37>=1977,J37<1982),VLOOKUP(K37,Feuil2!$F$10:$P$28,2),VLOOKUP(K37,Feuil2!$F$10:$P$28,2)))))))))))) -> VH70-94 | AA37: =T37-HLOOKUP(Y37,Feuil2!$C$1:$CD$9,2,FALSE) -> 139 | AB37: =T37-HLOOKUP(Y37,Feuil2!$C$1:$CD$9,3,FALSE) -> 59 | AC37: =T37-HLOOKUP(Y37,Feuil2!$C$1:$CD$9,4,FALSE) -> 49 | AD37: =T37-HLOOKUP(Y37,Feuil2!$C$1:$CD$9,5,FALSE) -> 39 | AE37: =T37-HLOOKUP(Y37,Feuil2!$C$1:$CD$9,6,FALSE) -> 32 | AF37: =T37-HLOOKUP(Y37,Feuil2!$C$1:$CD$9,7,FALSE) -> -861 | AG37: =T37-HLOOKUP(Y37,Feuil2!$C$1:$CD$9,8,FALSE) -> -861 | AH37: =T37-HLOOKUP(Y37,Feuil2!$C$1:$CD$9,9,FALSE) -> -861 | AP37: MON + | AQ37: 72 | AS37: =IF(AQ37,VLOOKUP(AQ37,HOM!$AS$555:$AT$610,2)) -> 2.053
A38: H | X38: FALSE | Y38: =IF(AND(J38<1920),VLOOKUP(K38,Feuil2!$F$10:$P$28,11),IF(AND(J38>=1920,J38<1937),VLOOKUP(K38,Feuil2!$F$10:$P$28,11),IF(AND(J38>=1936,J38<1942),VLOOKUP(K38,Feuil2!$F$10:$P$28,10),IF(AND(J38>=1942,J38<1947),VLOOKUP(K38,Feuil2!$F$10:$P$28,9),IF(AND(J38>=1947,J38<1952),VLOOKUP(K38,Feuil2!$F$10:$P$28,8),IF(AND(J38>=1952,J38<1957),VLOOKUP(K38,Feuil2!$F$10:$P$28,7),IF(AND(J38>=1957,J38<1962),VLOOKUP(K38,Feuil2!$F$10:$P$28,6),IF(AND(J38>=1962,J38<1967),VLOOKUP(K38,Feuil2!$F$10:$P$28,5),IF(AND(J38>=1967,J38<1972),VLOOKUP(K38,Feuil2!$F$10:$P$28,4),IF(AND(J38>=1972,J38<1977),VLOOKUP(K38,Feuil2!$F$10:$P$28,3),IF(AND(J38>=1977,J38<1982),VLOOKUP(K38,Feuil2!$F$10:$P$28,2),VLOOKUP(K38,Feuil2!$F$10:$P$28,2)))))))))))) ->  | AA38: =T38-HLOOKUP(Y38,Feuil2!$C$1:$CD$9,2,FALSE) ->  | AB38: =T38-HLOOKUP(Y38,Feuil2!$C$1:$CD$9,3,FALSE) ->  | AC38: =T38-HLOOKUP(Y38,Feuil2!$C$1:$CD$9,4,FALSE) ->  | AD38: =T38-HLOOKUP(Y38,Feuil2!$C$1:$CD$9,5,FALSE) ->  | AE38: =T38-HLOOKUP(Y38,Feuil2!$C$1:$CD$9,6,FALSE) ->  | AF38: =T38-HLOOKUP(Y38,Feuil2!$C$1:$CD$9,7,FALSE) ->  | AG38: =T38-HLOOKUP(Y38,Feuil2!$C$1:$CD$9,8,FALSE) ->  | AH38: =T38-HLOOKUP(Y38,Feuil2!$C$1:$CD$9,9,FALSE) ->  | AQ38: 2016 | AS38: =IF(AQ38,VLOOKUP(AQ38,HOM!$AS$555:$AT$610,2)) -> 3.571
A39: H | X39: FALSE | Y39: =IF(AND(J39<1920),VLOOKUP(K39,Feuil2!$F$10:$P$28,11),IF(AND(J39>=1920,J39<1937),VLOOKUP(K39,Feuil2!$F$10:$P$28,11),IF(AND(J39>=1936,J39<1942),VLOOKUP(K39,Feuil2!$F$10:$P$28,10),IF(AND(J39>=1942,J39<1947),VLOOKUP(K39,Feuil2!$F$10:$P$28,9),IF(AND(J39>=1947,J39<1952),VLOOKUP(K39,Feuil2!$F$10:$P$28,8),IF(AND(J39>=1952,J39<1957),VLOOKUP(K39,Feuil2!$F$10:$P$28,7),IF(AND(J39>=1957,J39<1962),VLOOKUP(K39,Feuil2!$F$10:$P$28,6),IF(AND(J39>=1962,J39<1967),VLOOKUP(K39,Feuil2!$F$10:$P$28,5),IF(AND(J39>=1967,J39<1972),VLOOKUP(K39,Feuil2!$F$10:$P$28,4),IF(AND(J39>=1972,J39<1977),VLOOKUP(K39,Feuil2!$F$10:$P$28,3),IF(AND(J39>=1977,J39<1982),VLOOKUP(K39,Feuil2!$F$10:$P$28,2),VLOOKUP(K39,Feuil2!$F$10:$P$28,2)))))))))))) ->  | AA39: =T39-HLOOKUP(Y39,Feuil2!$C$1:$CD$9,2,FALSE) ->  | AB39: =T39-HLOOKUP(Y39,Feuil2!$C$1:$CD$9,3,FALSE) ->  | AC39: =T39-HLOOKUP(Y39,Feuil2!$C$1:$CD$9,4,FALSE) ->  | AD39: =T39-HLOOKUP(Y39,Feuil2!$C$1:$CD$9,5,FALSE) ->  | AE39: =T39-HLOOKUP(Y39,Feuil2!$C$1:$CD$9,6,FALSE) ->  | AF39: =T39-HLOOKUP(Y39,Feuil2!$C$1:$CD$9,7,FALSE) ->  | AG39: =T39-HLOOKUP(Y39,Feuil2!$C$1:$CD$9,8,FALSE) ->  | AH39: =T39-HLOOKUP(Y39,Feuil2!$C$1:$CD$9,9,FALSE) ->  | AQ39: 2016 | AS39: =IF(AQ39,VLOOKUP(AQ39,HOM!$AS$555:$AT$610,2)) -> 3.571
A40: H | X40: FALSE | Y40: =IF(AND(J40<1920),VLOOKUP(K40,Feuil2!$F$10:$P$28,11),IF(AND(J40>=1920,J40<1937),VLOOKUP(K40,Feuil2!$F$10:$P$28,11),IF(AND(J40>=1936,J40<1942),VLOOKUP(K40,Feuil2!$F$10:$P$28,10),IF(AND(J40>=1942,J40<1947),VLOOKUP(K40,Feuil2!$F$10:$P$28,9),IF(AND(J40>=1947,J40<1952),VLOOKUP(K40,Feuil2!$F$10:$P$28,8),IF(AND(J40>=1952,J40<1957),VLOOKUP(K40,Feuil2!$F$10:$P$28,7),IF(AND(J40>=1957,J40<1962),VLOOKUP(K40,Feuil2!$F$10:$P$28,6),IF(AND(J40>=1962,J40<1967),VLOOKUP(K40,Feuil2!$F$10:$P$28,5),IF(AND(J40>=1967,J40<1972),VLOOKUP(K40,Feuil2!$F$10:$P$28,4),IF(AND(J40>=1972,J40<1977),VLOOKUP(K40,Feuil2!$F$10:$P$28,3),IF(AND(J40>=1977,J40<1982),VLOOKUP(K40,Feuil2!$F$10:$P$28,2),VLOOKUP(K40,Feuil2!$F$10:$P$28,2)))))))))))) ->  | AA40: =T40-HLOOKUP(Y40,Feuil2!$C$1:$CD$9,2,FALSE) ->  | AB40: =T40-HLOOKUP(Y40,Feuil2!$C$1:$CD$9,3,FALSE) ->  | AC40: =T40-HLOOKUP(Y40,Feuil2!$C$1:$CD$9,4,FALSE) ->  | AD40: =T40-HLOOKUP(Y40,Feuil2!$C$1:$CD$9,5,FALSE) ->  | AE40: =T40-HLOOKUP(Y40,Feuil2!$C$1:$CD$9,6,FALSE) ->  | AF40: =T40-HLOOKUP(Y40,Feuil2!$C$1:$CD$9,7,FALSE) ->  | AG40: =T40-HLOOKUP(Y40,Feuil2!$C$1:$CD$9,8,FALSE) ->  | AH40: =T40-HLOOKUP(Y40,Feuil2!$C$1:$CD$9,9,FALSE) ->  | AQ40: 2016 | AS40: =IF(AQ40,VLOOKUP(AQ40,HOM!$AS$555:$AT$610,2)) -> 3.571
A41: H | X41: FALSE | Y41: =IF(AND(J41<1920),VLOOKUP(K41,Feuil2!$F$10:$P$28,11),IF(AND(J41>=1920,J41<1937),VLOOKUP(K41,Feuil2!$F$10:$P$28,11),IF(AND(J41>=1936,J41<1942),VLOOKUP(K41,Feuil2!$F$10:$P$28,10),IF(AND(J41>=1942,J41<1947),VLOOKUP(K41,Feuil2!$F$10:$P$28,9),IF(AND(J41>=1947,J41<1952),VLOOKUP(K41,Feuil2!$F$10:$P$28,8),IF(AND(J41>=1952,J41<1957),VLOOKUP(K41,Feuil2!$F$10:$P$28,7),IF(AND(J41>=1957,J41<1962),VLOOKUP(K41,Feuil2!$F$10:$P$28,6),IF(AND(J41>=1962,J41<1967),VLOOKUP(K41,Feuil2!$F$10:$P$28,5),IF(AND(J41>=1967,J41<1972),VLOOKUP(K41,Feuil2!$F$10:$P$28,4),IF(AND(J41>=1972,J41<1977),VLOOKUP(K41,Feuil2!$F$10:$P$28,3),IF(AND(J41>=1977,J41<1982),VLOOKUP(K41,Feuil2!$F$10:$P$28,2),VLOOKUP(K41,Feuil2!$F$10:$P$28,2)))))))))))) ->  | AA41: =T41-HLOOKUP(Y41,Feuil2!$C$1:$CD$9,2,FALSE) ->  | AB41: =T41-HLOOKUP(Y41,Feuil2!$C$1:$CD$9,3,FALSE) ->  | AC41: =T41-HLOOKUP(Y41,Feuil2!$C$1:$CD$9,4,FALSE) ->  | AD41: =T41-HLOOKUP(Y41,Feuil2!$C$1:$CD$9,5,FALSE) ->  | AE41: =T41-HLOOKUP(Y41,Feuil2!$C$1:$CD$9,6,FALSE) ->  | AF41: =T41-HLOOKUP(Y41,Feuil2!$C$1:$CD$9,7,FALSE) ->  | AG41: =T41-HLOOKUP(Y41,Feuil2!$C$1:$CD$9,8,FALSE) ->  | AH41: =T41-HLOOKUP(Y41,Feuil2!$C$1:$CD$9,9,FALSE) ->  | AQ41: 2016 | AS41: =IF(AQ41,VLOOKUP(AQ41,HOM!$AS$555:$AT$610,2)) -> 3.571
A42: H | X42: FALSE | Y42: =IF(AND(J42<1920),VLOOKUP(K42,Feuil2!$F$10:$P$28,11),IF(AND(J42>=1920,J42<1937),VLOOKUP(K42,Feuil2!$F$10:$P$28,11),IF(AND(J42>=1936,J42<1942),VLOOKUP(K42,Feuil2!$F$10:$P$28,10),IF(AND(J42>=1942,J42<1947),VLOOKUP(K42,Feuil2!$F$10:$P$28,9),IF(AND(J42>=1947,J42<1952),VLOOKUP(K42,Feuil2!$F$10:$P$28,8),IF(AND(J42>=1952,J42<1957),VLOOKUP(K42,Feuil2!$F$10:$P$28,7),IF(AND(J42>=1957,J42<1962),VLOOKUP(K42,Feuil2!$F$10:$P$28,6),IF(AND(J42>=1962,J42<1967),VLOOKUP(K42,Feuil2!$F$10:$P$28,5),IF(AND(J42>=1967,J42<1972),VLOOKUP(K42,Feuil2!$F$10:$P$28,4),IF(AND(J42>=1972,J42<1977),VLOOKUP(K42,Feuil2!$F$10:$P$28,3),IF(AND(J42>=1977,J42<1982),VLOOKUP(K42,Feuil2!$F$10:$P$28,2),VLOOKUP(K42,Feuil2!$F$10:$P$28,2)))))))))))) ->  | AA42: =T42-HLOOKUP(Y42,Feuil2!$C$1:$CD$9,2,FALSE) ->  | AB42: =T42-HLOOKUP(Y42,Feuil2!$C$1:$CD$9,3,FALSE) ->  | AC42: =T42-HLOOKUP(Y42,Feuil2!$C$1:$CD$9,4,FALSE) ->  | AD42: =T42-HLOOKUP(Y42,Feuil2!$C$1:$CD$9,5,FALSE) ->  | AE42: =T42-HLOOKUP(Y42,Feuil2!$C$1:$CD$9,6,FALSE) ->  | AF42: =T42-HLOOKUP(Y42,Feuil2!$C$1:$CD$9,7,FALSE) ->  | AG42: =T42-HLOOKUP(Y42,Feuil2!$C$1:$CD$9,8,FALSE) ->  | AH42: =T42-HLOOKUP(Y42,Feuil2!$C$1:$CD$9,9,FALSE) ->  | AQ42: 2016 | AS42: =IF(AQ42,VLOOKUP(AQ42,HOM!$AS$555:$AT$610,2)) -> 3.571
A43: H | X43: FALSE | Y43: =IF(AND(J43<1920),VLOOKUP(K43,Feuil2!$F$10:$P$28,11),IF(AND(J43>=1920,J43<1937),VLOOKUP(K43,Feuil2!$F$10:$P$28,11),IF(AND(J43>=1936,J43<1942),VLOOKUP(K43,Feuil2!$F$10:$P$28,10),IF(AND(J43>=1942,J43<1947),VLOOKUP(K43,Feuil2!$F$10:$P$28,9),IF(AND(J43>=1947,J43<1952),VLOOKUP(K43,Feuil2!$F$10:$P$28,8),IF(AND(J43>=1952,J43<1957),VLOOKUP(K43,Feuil2!$F$10:$P$28,7),IF(AND(J43>=1957,J43<1962),VLOOKUP(K43,Feuil2!$F$10:$P$28,6),IF(AND(J43>=1962,J43<1967),VLOOKUP(K43,Feuil2!$F$10:$P$28,5),IF(AND(J43>=1967,J43<1972),VLOOKUP(K43,Feuil2!$F$10:$P$28,4),IF(AND(J43>=1972,J43<1977),VLOOKUP(K43,Feuil2!$F$10:$P$28,3),IF(AND(J43>=1977,J43<1982),VLOOKUP(K43,Feuil2!$F$10:$P$28,2),VLOOKUP(K43,Feuil2!$F$10:$P$28,2)))))))))))) ->  | AA43: =T43-HLOOKUP(Y43,Feuil2!$C$1:$CD$9,2,FALSE) ->  | AB43: =T43-HLOOKUP(Y43,Feuil2!$C$1:$CD$9,3,FALSE) ->  | AC43: =T43-HLOOKUP(Y43,Feuil2!$C$1:$CD$9,4,FALSE) ->  | AD43: =T43-HLOOKUP(Y43,Feuil2!$C$1:$CD$9,5,FALSE) ->  | AE43: =T43-HLOOKUP(Y43,Feuil2!$C$1:$CD$9,6,FALSE) ->  | AF43: =T43-HLOOKUP(Y43,Feuil2!$C$1:$CD$9,7,FALSE) ->  | AG43: =T43-HLOOKUP(Y43,Feuil2!$C$1:$CD$9,8,FALSE) ->  | AH43: =T43-HLOOKUP(Y43,Feuil2!$C$1:$CD$9,9,FALSE) ->  | AQ43: 2016 | AS43: =IF(AQ43,VLOOKUP(AQ43,HOM!$AS$555:$AT$610,2)) -> 3.571
A44: H | S44: =IF(K44="","",IF(MAXA(P44:R44)<=0,0,MAXA(P44:R44))) ->  | X44: FALSE | Y44: =IF(AND(J44<1920),VLOOKUP(K44,Feuil2!$F$10:$P$28,11),IF(AND(J44>=1920,J44<1937),VLOOKUP(K44,Feuil2!$F$10:$P$28,11),IF(AND(J44>=1936,J44<1942),VLOOKUP(K44,Feuil2!$F$10:$P$28,10),IF(AND(J44>=1942,J44<1947),VLOOKUP(K44,Feuil2!$F$10:$P$28,9),IF(AND(J44>=1947,J44<1952),VLOOKUP(K44,Feuil2!$F$10:$P$28,8),IF(AND(J44>=1952,J44<1957),VLOOKUP(K44,Feuil2!$F$10:$P$28,7),IF(AND(J44>=1957,J44<1962),VLOOKUP(K44,Feuil2!$F$10:$P$28,6),IF(AND(J44>=1962,J44<1967),VLOOKUP(K44,Feuil2!$F$10:$P$28,5),IF(AND(J44>=1967,J44<1972),VLOOKUP(K44,Feuil2!$F$10:$P$28,4),IF(AND(J44>=1972,J44<1977),VLOOKUP(K44,Feuil2!$F$10:$P$28,3),IF(AND(J44>=1977,J44<1982),VLOOKUP(K44,Feuil2!$F$10:$P$28,2),VLOOKUP(K44,Feuil2!$F$10:$P$28,2)))))))))))) ->  | AA44: =T44-HLOOKUP(Y44,Feuil2!$C$1:$CD$9,2,FALSE) ->  | AB44: =T44-HLOOKUP(Y44,Feuil2!$C$1:$CD$9,3,FALSE) ->  | AC44: =T44-HLOOKUP(Y44,Feuil2!$C$1:$CD$9,4,FALSE) ->  | AD44: =T44-HLOOKUP(Y44,Feuil2!$C$1:$CD$9,5,FALSE) ->  | AE44: =T44-HLOOKUP(Y44,Feuil2!$C$1:$CD$9,6,FALSE) ->  | AF44: =T44-HLOOKUP(Y44,Feuil2!$C$1:$CD$9,7,FALSE) ->  | AG44: =T44-HLOOKUP(Y44,Feuil2!$C$1:$CD$9,8,FALSE) ->  | AH44: =T44-HLOOKUP(Y44,Feuil2!$C$1:$CD$9,9,FALSE) ->  | AQ44: 2016 | AS44: =IF(AQ44,VLOOKUP(AQ44,HOM!$AS$555:$AT$610,2)) -> 3.571
A45: H | X45: FALSE | Y45: =IF(AND(J45<1920),VLOOKUP(K45,Feuil2!$F$10:$P$28,11),IF(AND(J45>=1920,J45<1937),VLOOKUP(K45,Feuil2!$F$10:$P$28,11),IF(AND(J45>=1936,J45<1942),VLOOKUP(K45,Feuil2!$F$10:$P$28,10),IF(AND(J45>=1942,J45<1947),VLOOKUP(K45,Feuil2!$F$10:$P$28,9),IF(AND(J45>=1947,J45<1952),VLOOKUP(K45,Feuil2!$F$10:$P$28,8),IF(AND(J45>=1952,J45<1957),VLOOKUP(K45,Feuil2!$F$10:$P$28,7),IF(AND(J45>=1957,J45<1962),VLOOKUP(K45,Feuil2!$F$10:$P$28,6),IF(AND(J45>=1962,J45<1967),VLOOKUP(K45,Feuil2!$F$10:$P$28,5),IF(AND(J45>=1967,J45<1972),VLOOKUP(K45,Feuil2!$F$10:$P$28,4),IF(AND(J45>=1972,J45<1977),VLOOKUP(K45,Feuil2!$F$10:$P$28,3),IF(AND(J45>=1977,J45<1982),VLOOKUP(K45,Feuil2!$F$10:$P$28,2),VLOOKUP(K45,Feuil2!$F$10:$P$28,2)))))))))))) ->  | AA45: =T45-HLOOKUP(Y45,Feuil2!$C$1:$CD$9,2,FALSE) ->  | AB45: =T45-HLOOKUP(Y45,Feuil2!$C$1:$CD$9,3,FALSE) ->  | AC45: =T45-HLOOKUP(Y45,Feuil2!$C$1:$CD$9,4,FALSE) ->  | AD45: =T45-HLOOKUP(Y45,Feuil2!$C$1:$CD$9,5,FALSE) ->  | AE45: =T45-HLOOKUP(Y45,Feuil2!$C$1:$CD$9,6,FALSE) ->  | AF45: =T45-HLOOKUP(Y45,Feuil2!$C$1:$CD$9,7,FALSE) ->  | AG45: =T45-HLOOKUP(Y45,Feuil2!$C$1:$CD$9,8,FALSE) ->  | AH45: =T45-HLOOKUP(Y45,Feuil2!$C$1:$CD$9,9,FALSE) ->  | AQ45: 2016 | AS45: =IF(AQ45,VLOOKUP(AQ45,HOM!$AS$555:$AT$610,2)) -> 3.571
A46: H | O46: =IF(K46="","",IF(MAXA(L46:N46)<=0,0,MAXA(L46:N46))) ->  | S46: =IF(K46="","",IF(MAXA(P46:R46)<=0,0,MAXA(P46:R46))) ->  | T46: =IF(K46="","",IF(OR(O46=0,S46=0),0,O46+S46)) ->  | U46: =IF(K46="","",IF(A46="H",10^(0.794358141*LOG(K46/174.393)^2)*T46*AS46,IF(A46="F",10^(0.89726074 * LOG(K46/148.026)^2)*T46*AS46,""))) ->  | V46: =IF(K46="","",AP46) ->  | W46: =IF(K46="","",IF(AH46>=0,AH46,IF(AG46>=0,AG46,IF(AF46>=0,AF46,IF(AE46>=0,AE46,IF(AD46>=0,AD46,IF(AC46>=0,AC46,IF(AB46>=0,AB46,AA46)))))))) ->  | X46: =IF(AQ46<95,IF(AQ46<=90,VLOOKUP(AQ46,$AQ$555:$AR$610,2))) -> FALSE | Y46: =IF(AND(J46<1920),VLOOKUP(K46,Feuil2!$F$10:$P$28,11),IF(AND(J46>=1920,J46<1937),VLOOKUP(K46,Feuil2!$F$10:$P$28,11),IF(AND(J46>=1936,J46<1942),VLOOKUP(K46,Feuil2!$F$10:$P$28,10),IF(AND(J46>=1942,J46<1947),VLOOKUP(K46,Feuil2!$F$10:$P$28,9),IF(AND(J46>=1947,J46<1952),VLOOKUP(K46,Feuil2!$F$10:$P$28,8),IF(AND(J46>=1952,J46<1957),VLOOKUP(K46,Feuil2!$F$10:$P$28,7),IF(AND(J46>=1957,J46<1962),VLOOKUP(K46,Feuil2!$F$10:$P$28,6),IF(AND(J46>=1962,J46<1967),VLOOKUP(K46,Feuil2!$F$10:$P$28,5),IF(AND(J46>=1967,J46<1972),VLOOKUP(K46,Feuil2!$F$10:$P$28,4),IF(AND(J46>=1972,J46<1977),VLOOKUP(K46,Feuil2!$F$10:$P$28,3),IF(AND(J46>=1977,J46<1982),VLOOKUP(K46,Feuil2!$F$10:$P$28,2),VLOOKUP(K46,Feuil2!$F$10:$P$28,2)))))))))))) ->  | AA46: =T46-HLOOKUP(Y46,Feuil2!$C$1:$CD$9,2,FALSE) ->  | AB46: =T46-HLOOKUP(Y46,Feuil2!$C$1:$CD$9,3,FALSE) ->  | AC46: =T46-HLOOKUP(Y46,Feuil2!$C$1:$CD$9,4,FALSE) ->  | AD46: =T46-HLOOKUP(Y46,Feuil2!$C$1:$CD$9,5,FALSE) ->  | AE46: =T46-HLOOKUP(Y46,Feuil2!$C$1:$CD$9,6,FALSE) ->  | AF46: =T46-HLOOKUP(Y46,Feuil2!$C$1:$CD$9,7,FALSE) ->  | AG46: =T46-HLOOKUP(Y46,Feuil2!$C$1:$CD$9,8,FALSE) ->  | AH46: =T46-HLOOKUP(Y46,Feuil2!$C$1:$CD$9,9,FALSE) ->  | AQ46: 2016 | AS46: =IF(AQ46,VLOOKUP(AQ46,HOM!$AS$555:$AT$610,2)) -> 3.571
A47: H | X47: =IF(BI47<95,IF(BI47<=90,VLOOKUP(BI47,$AQ$554:$AR$609,2))) ->  | Y47: =IF(AND(J47<1920),VLOOKUP(K47,Feuil2!$F$10:$P$28,11),IF(AND(J47>=1920,J47<1937),VLOOKUP(K47,Feuil2!$F$10:$P$28,11),IF(AND(J47>=1936,J47<1942),VLOOKUP(K47,Feuil2!$F$10:$P$28,10),IF(AND(J47>=1942,J47<1947),VLOOKUP(K47,Feuil2!$F$10:$P$28,9),IF(AND(J47>=1947,J47<1952),VLOOKUP(K47,Feuil2!$F$10:$P$28,8),IF(AND(J47>=1952,J47<1957),VLOOKUP(K47,Feuil2!$F$10:$P$28,7),IF(AND(J47>=1957,J47<1962),VLOOKUP(K47,Feuil2!$F$10:$P$28,6),IF(AND(J47>=1962,J47<1967),VLOOKUP(K47,Feuil2!$F$10:$P$28,5),IF(AND(J47>=1967,J47<1972),VLOOKUP(K47,Feuil2!$F$10:$P$28,4),IF(AND(J47>=1972,J47<1977),VLOOKUP(K47,Feuil2!$F$10:$P$28,3),IF(AND(J47>=1977,J47<1982),VLOOKUP(K47,Feuil2!$F$10:$P$28,2),VLOOKUP(K47,Feuil2!$F$10:$P$28,2)))))))))))) ->  | AA47: =T47-HLOOKUP(Y47,Feuil2!$C$1:$CD$9,2,FALSE) ->  | AB47: =T47-HLOOKUP(Y47,Feuil2!$C$1:$CD$9,3,FALSE) ->  | AC47: =T47-HLOOKUP(Y47,Feuil2!$C$1:$CD$9,4,FALSE) ->  | AD47: =T47-HLOOKUP(Y47,Feuil2!$C$1:$CD$9,5,FALSE) ->  | AE47: =T47-HLOOKUP(Y47,Feuil2!$C$1:$CD$9,6,FALSE) ->  | AF47: =T47-HLOOKUP(Y47,Feuil2!$C$1:$CD$9,7,FALSE) ->  | AG47: =T47-HLOOKUP(Y47,Feuil2!$C$1:$CD$9,8,FALSE) ->  | AH47: =T47-HLOOKUP(Y47,Feuil2!$C$1:$CD$9,9,FALSE) ->  | AQ47: 2016 | AS47: =IF(AQ47,VLOOKUP(AQ47,HOM!$AS$555:$AT$610,2)) -> 3.571
A48: H | Y48: =IF(AND(J48<1920),VLOOKUP(K48,Feuil2!$F$10:$P$28,11),IF(AND(J48>=1920,J48<1937),VLOOKUP(K48,Feuil2!$F$10:$P$28,11),IF(AND(J48>=1936,J48<1942),VLOOKUP(K48,Feuil2!$F$10:$P$28,10),IF(AND(J48>=1942,J48<1947),VLOOKUP(K48,Feuil2!$F$10:$P$28,9),IF(AND(J48>=1947,J48<1952),VLOOKUP(K48,Feuil2!$F$10:$P$28,8),IF(AND(J48>=1952,J48<1957),VLOOKUP(K48,Feuil2!$F$10:$P$28,7),IF(AND(J48>=1957,J48<1962),VLOOKUP(K48,Feuil2!$F$10:$P$28,6),IF(AND(J48>=1962,J48<1967),VLOOKUP(K48,Feuil2!$F$10:$P$28,5),IF(AND(J48>=1967,J48<1972),VLOOKUP(K48,Feuil2!$F$10:$P$28,4),IF(AND(J48>=1972,J48<1977),VLOOKUP(K48,Feuil2!$F$10:$P$28,3),IF(AND(J48>=1977,J48<1982),VLOOKUP(K48,Feuil2!$F$10:$P$28,2),VLOOKUP(K48,Feuil2!$F$10:$P$28,2)))))))))))) ->  | AA48: =T48-HLOOKUP(Y48,Feuil2!$C$1:$CD$9,2,FALSE) ->  | AB48: =T48-HLOOKUP(Y48,Feuil2!$C$1:$CD$9,3,FALSE) ->  | AC48: =T48-HLOOKUP(Y48,Feuil2!$C$1:$CD$9,4,FALSE) ->  | AD48: =T48-HLOOKUP(Y48,Feuil2!$C$1:$CD$9,5,FALSE) ->  | AE48: =T48-HLOOKUP(Y48,Feuil2!$C$1:$CD$9,6,FALSE) ->  | AF48: =T48-HLOOKUP(Y48,Feuil2!$C$1:$CD$9,7,FALSE) ->  | AG48: =T48-HLOOKUP(Y48,Feuil2!$C$1:$CD$9,8,FALSE) ->  | AH48: =T48-HLOOKUP(Y48,Feuil2!$C$1:$CD$9,9,FALSE) ->  | AQ48: 2016 | AS48: =IF(AQ48,VLOOKUP(AQ48,HOM!$AS$555:$AT$610,2)) -> 3.571
A49: H | Y49: =IF(AND(J49<1920),VLOOKUP(K49,Feuil2!$F$10:$P$28,11),IF(AND(J49>=1920,J49<1937),VLOOKUP(K49,Feuil2!$F$10:$P$28,11),IF(AND(J49>=1936,J49<1942),VLOOKUP(K49,Feuil2!$F$10:$P$28,10),IF(AND(J49>=1942,J49<1947),VLOOKUP(K49,Feuil2!$F$10:$P$28,9),IF(AND(J49>=1947,J49<1952),VLOOKUP(K49,Feuil2!$F$10:$P$28,8),IF(AND(J49>=1952,J49<1957),VLOOKUP(K49,Feuil2!$F$10:$P$28,7),IF(AND(J49>=1957,J49<1962),VLOOKUP(K49,Feuil2!$F$10:$P$28,6),IF(AND(J49>=1962,J49<1967),VLOOKUP(K49,Feuil2!$F$10:$P$28,5),IF(AND(J49>=1967,J49<1972),VLOOKUP(K49,Feuil2!$F$10:$P$28,4),IF(AND(J49>=1972,J49<1977),VLOOKUP(K49,Feuil2!$F$10:$P$28,3),IF(AND(J49>=1977,J49<1982),VLOOKUP(K49,Feuil2!$F$10:$P$28,2),VLOOKUP(K49,Feuil2!$F$10:$P$28,2)))))))))))) ->  | AA49: =T49-HLOOKUP(Y49,Feuil2!$C$1:$CD$9,2,FALSE) ->  | AB49: =T49-HLOOKUP(Y49,Feuil2!$C$1:$CD$9,3,FALSE) ->  | AC49: =T49-HLOOKUP(Y49,Feuil2!$C$1:$CD$9,4,FALSE) ->  | AD49: =T49-HLOOKUP(Y49,Feuil2!$C$1:$CD$9,5,FALSE) ->  | AE49: =T49-HLOOKUP(Y49,Feuil2!$C$1:$CD$9,6,FALSE) ->  | AF49: =T49-HLOOKUP(Y49,Feuil2!$C$1:$CD$9,7,FALSE) ->  | AG49: =T49-HLOOKUP(Y49,Feuil2!$C$1:$CD$9,8,FALSE) ->  | AH49: =T49-HLOOKUP(Y49,Feuil2!$C$1:$CD$9,9,FALSE) ->  | AQ49: 2016 | AS49: =IF(AQ49,VLOOKUP(AQ49,HOM!$AS$555:$AT$610,2)) -> 3.571
A50: H | O50: =IF(K50="","",IF(MAXA(L50:N50)<=0,0,MAXA(L50:N50))) ->  | Y50: =IF(AND(J50<1920),VLOOKUP(K50,Feuil2!$F$10:$P$28,11),IF(AND(J50>=1920,J50<1937),VLOOKUP(K50,Feuil2!$F$10:$P$28,11),IF(AND(J50>=1936,J50<1942),VLOOKUP(K50,Feuil2!$F$10:$P$28,10),IF(AND(J50>=1942,J50<1947),VLOOKUP(K50,Feuil2!$F$10:$P$28,9),IF(AND(J50>=1947,J50<1952),VLOOKUP(K50,Feuil2!$F$10:$P$28,8),IF(AND(J50>=1952,J50<1957),VLOOKUP(K50,Feuil2!$F$10:$P$28,7),IF(AND(J50>=1957,J50<1962),VLOOKUP(K50,Feuil2!$F$10:$P$28,6),IF(AND(J50>=1962,J50<1967),VLOOKUP(K50,Feuil2!$F$10:$P$28,5),IF(AND(J50>=1967,J50<1972),VLOOKUP(K50,Feuil2!$F$10:$P$28,4),IF(AND(J50>=1972,J50<1977),VLOOKUP(K50,Feuil2!$F$10:$P$28,3),IF(AND(J50>=1977,J50<1982),VLOOKUP(K50,Feuil2!$F$10:$P$28,2),VLOOKUP(K50,Feuil2!$F$10:$P$28,2)))))))))))) ->  | AA50: =T50-HLOOKUP(Y50,Feuil2!$C$1:$CD$9,2,FALSE) ->  | AB50: =T50-HLOOKUP(Y50,Feuil2!$C$1:$CD$9,3,FALSE) ->  | AC50: =T50-HLOOKUP(Y50,Feuil2!$C$1:$CD$9,4,FALSE) ->  | AD50: =T50-HLOOKUP(Y50,Feuil2!$C$1:$CD$9,5,FALSE) ->  | AE50: =T50-HLOOKUP(Y50,Feuil2!$C$1:$CD$9,6,FALSE) ->  | AF50: =T50-HLOOKUP(Y50,Feuil2!$C$1:$CD$9,7,FALSE) ->  | AG50: =T50-HLOOKUP(Y50,Feuil2!$C$1:$CD$9,8,FALSE) ->  | AH50: =T50-HLOOKUP(Y50,Feuil2!$C$1:$CD$9,9,FALSE) ->  | AQ50: 2016 | AS50: =IF(AQ50,VLOOKUP(AQ50,HOM!$AS$555:$AT$610,2)) -> 3.571
A51: H | Y51: =IF(AND(J51<1920),VLOOKUP(K51,Feuil2!$F$10:$P$28,11),IF(AND(J51>=1920,J51<1937),VLOOKUP(K51,Feuil2!$F$10:$P$28,11),IF(AND(J51>=1936,J51<1942),VLOOKUP(K51,Feuil2!$F$10:$P$28,10),IF(AND(J51>=1942,J51<1947),VLOOKUP(K51,Feuil2!$F$10:$P$28,9),IF(AND(J51>=1947,J51<1952),VLOOKUP(K51,Feuil2!$F$10:$P$28,8),IF(AND(J51>=1952,J51<1957),VLOOKUP(K51,Feuil2!$F$10:$P$28,7),IF(AND(J51>=1957,J51<1962),VLOOKUP(K51,Feuil2!$F$10:$P$28,6),IF(AND(J51>=1962,J51<1967),VLOOKUP(K51,Feuil2!$F$10:$P$28,5),IF(AND(J51>=1967,J51<1972),VLOOKUP(K51,Feuil2!$F$10:$P$28,4),IF(AND(J51>=1972,J51<1977),VLOOKUP(K51,Feuil2!$F$10:$P$28,3),IF(AND(J51>=1977,J51<1982),VLOOKUP(K51,Feuil2!$F$10:$P$28,2),VLOOKUP(K51,Feuil2!$F$10:$P$28,2)))))))))))) ->  | AA51: =T51-HLOOKUP(Y51,Feuil2!$C$1:$CD$9,2,FALSE) ->  | AB51: =T51-HLOOKUP(Y51,Feuil2!$C$1:$CD$9,3,FALSE) ->  | AC51: =T51-HLOOKUP(Y51,Feuil2!$C$1:$CD$9,4,FALSE) ->  | AD51: =T51-HLOOKUP(Y51,Feuil2!$C$1:$CD$9,5,FALSE) ->  | AE51: =T51-HLOOKUP(Y51,Feuil2!$C$1:$CD$9,6,FALSE) ->  | AF51: =T51-HLOOKUP(Y51,Feuil2!$C$1:$CD$9,7,FALSE) ->  | AG51: =T51-HLOOKUP(Y51,Feuil2!$C$1:$CD$9,8,FALSE) ->  | AH51: =T51-HLOOKUP(Y51,Feuil2!$C$1:$CD$9,9,FALSE) ->  | AQ51: 2016 | AS51: =IF(AQ51,VLOOKUP(AQ51,HOM!$AS$555:$AT$610,2)) -> 3.571
A52: H | S52: =IF(K52="","",IF(MAXA(P52:R52)<=0,0,MAXA(P52:R52))) ->  | Y52: =IF(AND(J52<1920),VLOOKUP(K52,Feuil2!$F$10:$P$28,11),IF(AND(J52>=1920,J52<1937),VLOOKUP(K52,Feuil2!$F$10:$P$28,11),IF(AND(J52>=1936,J52<1942),VLOOKUP(K52,Feuil2!$F$10:$P$28,10),IF(AND(J52>=1942,J52<1947),VLOOKUP(K52,Feuil2!$F$10:$P$28,9),IF(AND(J52>=1947,J52<1952),VLOOKUP(K52,Feuil2!$F$10:$P$28,8),IF(AND(J52>=1952,J52<1957),VLOOKUP(K52,Feuil2!$F$10:$P$28,7),IF(AND(J52>=1957,J52<1962),VLOOKUP(K52,Feuil2!$F$10:$P$28,6),IF(AND(J52>=1962,J52<1967),VLOOKUP(K52,Feuil2!$F$10:$P$28,5),IF(AND(J52>=1967,J52<1972),VLOOKUP(K52,Feuil2!$F$10:$P$28,4),IF(AND(J52>=1972,J52<1977),VLOOKUP(K52,Feuil2!$F$10:$P$28,3),IF(AND(J52>=1977,J52<1982),VLOOKUP(K52,Feuil2!$F$10:$P$28,2),VLOOKUP(K52,Feuil2!$F$10:$P$28,2)))))))))))) ->  | AA52: =T52-HLOOKUP(Y52,Feuil2!$C$1:$CD$9,2,FALSE) ->  | AB52: =T52-HLOOKUP(Y52,Feuil2!$C$1:$CD$9,3,FALSE) ->  | AC52: =T52-HLOOKUP(Y52,Feuil2!$C$1:$CD$9,4,FALSE) ->  | AD52: =T52-HLOOKUP(Y52,Feuil2!$C$1:$CD$9,5,FALSE) ->  | AE52: =T52-HLOOKUP(Y52,Feuil2!$C$1:$CD$9,6,FALSE) ->  | AF52: =T52-HLOOKUP(Y52,Feuil2!$C$1:$CD$9,7,FALSE) ->  | AG52: =T52-HLOOKUP(Y52,Feuil2!$C$1:$CD$9,8,FALSE) ->  | AH52: =T52-HLOOKUP(Y52,Feuil2!$C$1:$CD$9,9,FALSE) ->  | AQ52: 2016 | AS52: =IF(AQ52,VLOOKUP(AQ52,HOM!$AS$555:$AT$610,2)) -> 3.571
A53: H | T53: =IF(K53="","",IF(OR(O53=0,S53=0),0,O53+S53)) ->  | Y53: =IF(AND(J53<1920),VLOOKUP(K53,Feuil2!$F$10:$P$28,11),IF(AND(J53>=1920,J53<1937),VLOOKUP(K53,Feuil2!$F$10:$P$28,11),IF(AND(J53>=1936,J53<1942),VLOOKUP(K53,Feuil2!$F$10:$P$28,10),IF(AND(J53>=1942,J53<1947),VLOOKUP(K53,Feuil2!$F$10:$P$28,9),IF(AND(J53>=1947,J53<1952),VLOOKUP(K53,Feuil2!$F$10:$P$28,8),IF(AND(J53>=1952,J53<1957),VLOOKUP(K53,Feuil2!$F$10:$P$28,7),IF(AND(J53>=1957,J53<1962),VLOOKUP(K53,Feuil2!$F$10:$P$28,6),IF(AND(J53>=1962,J53<1967),VLOOKUP(K53,Feuil2!$F$10:$P$28,5),IF(AND(J53>=1967,J53<1972),VLOOKUP(K53,Feuil2!$F$10:$P$28,4),IF(AND(J53>=1972,J53<1977),VLOOKUP(K53,Feuil2!$F$10:$P$28,3),IF(AND(J53>=1977,J53<1982),VLOOKUP(K53,Feuil2!$F$10:$P$28,2),VLOOKUP(K53,Feuil2!$F$10:$P$28,2)))))))))))) ->  | AA53: =T53-HLOOKUP(Y53,Feuil2!$C$1:$CD$9,2,FALSE) ->  | AB53: =T53-HLOOKUP(Y53,Feuil2!$C$1:$CD$9,3,FALSE) ->  | AC53: =T53-HLOOKUP(Y53,Feuil2!$C$1:$CD$9,4,FALSE) ->  | AD53: =T53-HLOOKUP(Y53,Feuil2!$C$1:$CD$9,5,FALSE) ->  | AE53: =T53-HLOOKUP(Y53,Feuil2!$C$1:$CD$9,6,FALSE) ->  | AF53: =T53-HLOOKUP(Y53,Feuil2!$C$1:$CD$9,7,FALSE) ->  | AG53: =T53-HLOOKUP(Y53,Feuil2!$C$1:$CD$9,8,FALSE) ->  | AH53: =T53-HLOOKUP(Y53,Feuil2!$C$1:$CD$9,9,FALSE) ->  | AQ53: 2016 | AS53: =IF(AQ53,VLOOKUP(AQ53,HOM!$AS$555:$AT$610,2)) -> 3.571
A54: H | Y54: =IF(AND(J54<1920),VLOOKUP(K54,Feuil2!$F$10:$P$28,11),IF(AND(J54>=1920,J54<1937),VLOOKUP(K54,Feuil2!$F$10:$P$28,11),IF(AND(J54>=1936,J54<1942),VLOOKUP(K54,Feuil2!$F$10:$P$28,10),IF(AND(J54>=1942,J54<1947),VLOOKUP(K54,Feuil2!$F$10:$P$28,9),IF(AND(J54>=1947,J54<1952),VLOOKUP(K54,Feuil2!$F$10:$P$28,8),IF(AND(J54>=1952,J54<1957),VLOOKUP(K54,Feuil2!$F$10:$P$28,7),IF(AND(J54>=1957,J54<1962),VLOOKUP(K54,Feuil2!$F$10:$P$28,6),IF(AND(J54>=1962,J54<1967),VLOOKUP(K54,Feuil2!$F$10:$P$28,5),IF(AND(J54>=1967,J54<1972),VLOOKUP(K54,Feuil2!$F$10:$P$28,4),IF(AND(J54>=1972,J54<1977),VLOOKUP(K54,Feuil2!$F$10:$P$28,3),IF(AND(J54>=1977,J54<1982),VLOOKUP(K54,Feuil2!$F$10:$P$28,2),VLOOKUP(K54,Feuil2!$F$10:$P$28,2)))))))))))) ->  | AA54: =T54-HLOOKUP(Y54,Feuil2!$C$1:$CD$9,2,FALSE) ->  | AB54: =T54-HLOOKUP(Y54,Feuil2!$C$1:$CD$9,3,FALSE) ->  | AC54: =T54-HLOOKUP(Y54,Feuil2!$C$1:$CD$9,4,FALSE) ->  | AD54: =T54-HLOOKUP(Y54,Feuil2!$C$1:$CD$9,5,FALSE) ->  | AE54: =T54-HLOOKUP(Y54,Feuil2!$C$1:$CD$9,6,FALSE) ->  | AF54: =T54-HLOOKUP(Y54,Feuil2!$C$1:$CD$9,7,FALSE) ->  | AG54: =T54-HLOOKUP(Y54,Feuil2!$C$1:$CD$9,8,FALSE) ->  | AH54: =T54-HLOOKUP(Y54,Feuil2!$C$1:$CD$9,9,FALSE) ->  | AQ54: 2016 | AS54: =IF(AQ54,VLOOKUP(AQ54,HOM!$AS$555:$AT$610,2)) -> 3.571
A55: H | Y55: =IF(AND(J55<1920),VLOOKUP(K55,Feuil2!$F$10:$P$28,11),IF(AND(J55>=1920,J55<1937),VLOOKUP(K55,Feuil2!$F$10:$P$28,11),IF(AND(J55>=1936,J55<1942),VLOOKUP(K55,Feuil2!$F$10:$P$28,10),IF(AND(J55>=1942,J55<1947),VLOOKUP(K55,Feuil2!$F$10:$P$28,9),IF(AND(J55>=1947,J55<1952),VLOOKUP(K55,Feuil2!$F$10:$P$28,8),IF(AND(J55>=1952,J55<1957),VLOOKUP(K55,Feuil2!$F$10:$P$28,7),IF(AND(J55>=1957,J55<1962),VLOOKUP(K55,Feuil2!$F$10:$P$28,6),IF(AND(J55>=1962,J55<1967),VLOOKUP(K55,Feuil2!$F$10:$P$28,5),IF(AND(J55>=1967,J55<1972),VLOOKUP(K55,Feuil2!$F$10:$P$28,4),IF(AND(J55>=1972,J55<1977),VLOOKUP(K55,Feuil2!$F$10:$P$28,3),IF(AND(J55>=1977,J55<1982),VLOOKUP(K55,Feuil2!$F$10:$P$28,2),VLOOKUP(K55,Feuil2!$F$10:$P$28,2)))))))))))) ->  | AA55: =T55-HLOOKUP(Y55,Feuil2!$C$1:$CD$9,2,FALSE) ->  | AB55: =T55-HLOOKUP(Y55,Feuil2!$C$1:$CD$9,3,FALSE) ->  | AC55: =T55-HLOOKUP(Y55,Feuil2!$C$1:$CD$9,4,FALSE) ->  | AD55: =T55-HLOOKUP(Y55,Feuil2!$C$1:$CD$9,5,FALSE) ->  | AE55: =T55-HLOOKUP(Y55,Feuil2!$C$1:$CD$9,6,FALSE) ->  | AF55: =T55-HLOOKUP(Y55,Feuil2!$C$1:$CD$9,7,FALSE) ->  | AG55: =T55-HLOOKUP(Y55,Feuil2!$C$1:$CD$9,8,FALSE) ->  | AH55: =T55-HLOOKUP(Y55,Feuil2!$C$1:$CD$9,9,FALSE) ->  | AQ55: 2016 | AS55: =IF(AQ55,VLOOKUP(AQ55,HOM!$AS$555:$AT$610,2)) -> 3.571
A56: H | Y56: =IF(AND(J56<1920),VLOOKUP(K56,Feuil2!$F$10:$P$28,11),IF(AND(J56>=1920,J56<1937),VLOOKUP(K56,Feuil2!$F$10:$P$28,11),IF(AND(J56>=1936,J56<1942),VLOOKUP(K56,Feuil2!$F$10:$P$28,10),IF(AND(J56>=1942,J56<1947),VLOOKUP(K56,Feuil2!$F$10:$P$28,9),IF(AND(J56>=1947,J56<1952),VLOOKUP(K56,Feuil2!$F$10:$P$28,8),IF(AND(J56>=1952,J56<1957),VLOOKUP(K56,Feuil2!$F$10:$P$28,7),IF(AND(J56>=1957,J56<1962),VLOOKUP(K56,Feuil2!$F$10:$P$28,6),IF(AND(J56>=1962,J56<1967),VLOOKUP(K56,Feuil2!$F$10:$P$28,5),IF(AND(J56>=1967,J56<1972),VLOOKUP(K56,Feuil2!$F$10:$P$28,4),IF(AND(J56>=1972,J56<1977),VLOOKUP(K56,Feuil2!$F$10:$P$28,3),IF(AND(J56>=1977,J56<1982),VLOOKUP(K56,Feuil2!$F$10:$P$28,2),VLOOKUP(K56,Feuil2!$F$10:$P$28,2)))))))))))) ->  | AA56: =T56-HLOOKUP(Y56,Feuil2!$C$1:$CD$9,2,FALSE) ->  | AB56: =T56-HLOOKUP(Y56,Feuil2!$C$1:$CD$9,3,FALSE) ->  | AC56: =T56-HLOOKUP(Y56,Feuil2!$C$1:$CD$9,4,FALSE) ->  | AD56: =T56-HLOOKUP(Y56,Feuil2!$C$1:$CD$9,5,FALSE) ->  | AE56: =T56-HLOOKUP(Y56,Feuil2!$C$1:$CD$9,6,FALSE) ->  | AF56: =T56-HLOOKUP(Y56,Feuil2!$C$1:$CD$9,7,FALSE) ->  | AG56: =T56-HLOOKUP(Y56,Feuil2!$C$1:$CD$9,8,FALSE) ->  | AH56: =T56-HLOOKUP(Y56,Feuil2!$C$1:$CD$9,9,FALSE) ->  | AQ56: 2016 | AS56: =IF(AQ56,VLOOKUP(AQ56,HOM!$AS$555:$AT$610,2)) -> 3.571
A57: H | O57: =IF(K57="","",IF(MAXA(L57:N57)<=0,0,MAXA(L57:N57))) ->  | Y57: =IF(AND(J57<1920),VLOOKUP(K57,Feuil2!$F$10:$P$28,11),IF(AND(J57>=1920,J57<1937),VLOOKUP(K57,Feuil2!$F$10:$P$28,11),IF(AND(J57>=1936,J57<1942),VLOOKUP(K57,Feuil2!$F$10:$P$28,10),IF(AND(J57>=1942,J57<1947),VLOOKUP(K57,Feuil2!$F$10:$P$28,9),IF(AND(J57>=1947,J57<1952),VLOOKUP(K57,Feuil2!$F$10:$P$28,8),IF(AND(J57>=1952,J57<1957),VLOOKUP(K57,Feuil2!$F$10:$P$28,7),IF(AND(J57>=1957,J57<1962),VLOOKUP(K57,Feuil2!$F$10:$P$28,6),IF(AND(J57>=1962,J57<1967),VLOOKUP(K57,Feuil2!$F$10:$P$28,5),IF(AND(J57>=1967,J57<1972),VLOOKUP(K57,Feuil2!$F$10:$P$28,4),IF(AND(J57>=1972,J57<1977),VLOOKUP(K57,Feuil2!$F$10:$P$28,3),IF(AND(J57>=1977,J57<1982),VLOOKUP(K57,Feuil2!$F$10:$P$28,2),VLOOKUP(K57,Feuil2!$F$10:$P$28,2)))))))))))) ->  | AA57: =T57-HLOOKUP(Y57,Feuil2!$C$1:$CD$9,2,FALSE) ->  | AB57: =T57-HLOOKUP(Y57,Feuil2!$C$1:$CD$9,3,FALSE) ->  | AC57: =T57-HLOOKUP(Y57,Feuil2!$C$1:$CD$9,4,FALSE) ->  | AD57: =T57-HLOOKUP(Y57,Feuil2!$C$1:$CD$9,5,FALSE) ->  | AE57: =T57-HLOOKUP(Y57,Feuil2!$C$1:$CD$9,6,FALSE) ->  | AF57: =T57-HLOOKUP(Y57,Feuil2!$C$1:$CD$9,7,FALSE) ->  | AG57: =T57-HLOOKUP(Y57,Feuil2!$C$1:$CD$9,8,FALSE) ->  | AH57: =T57-HLOOKUP(Y57,Feuil2!$C$1:$CD$9,9,FALSE) ->  | AQ57: 2016 | AS57: =IF(AQ57,VLOOKUP(AQ57,HOM!$AS$555:$AT$610,2)) -> 3.571
A58: H | Y58: =IF(AND(J58<1920),VLOOKUP(K58,Feuil2!$F$10:$P$28,11),IF(AND(J58>=1920,J58<1937),VLOOKUP(K58,Feuil2!$F$10:$P$28,11),IF(AND(J58>=1936,J58<1942),VLOOKUP(K58,Feuil2!$F$10:$P$28,10),IF(AND(J58>=1942,J58<1947),VLOOKUP(K58,Feuil2!$F$10:$P$28,9),IF(AND(J58>=1947,J58<1952),VLOOKUP(K58,Feuil2!$F$10:$P$28,8),IF(AND(J58>=1952,J58<1957),VLOOKUP(K58,Feuil2!$F$10:$P$28,7),IF(AND(J58>=1957,J58<1962),VLOOKUP(K58,Feuil2!$F$10:$P$28,6),IF(AND(J58>=1962,J58<1967),VLOOKUP(K58,Feuil2!$F$10:$P$28,5),IF(AND(J58>=1967,J58<1972),VLOOKUP(K58,Feuil2!$F$10:$P$28,4),IF(AND(J58>=1972,J58<1977),VLOOKUP(K58,Feuil2!$F$10:$P$28,3),IF(AND(J58>=1977,J58<1982),VLOOKUP(K58,Feuil2!$F$10:$P$28,2),VLOOKUP(K58,Feuil2!$F$10:$P$28,2)))))))))))) ->  | AA58: =T58-HLOOKUP(Y58,Feuil2!$C$1:$CD$9,2,FALSE) ->  | AB58: =T58-HLOOKUP(Y58,Feuil2!$C$1:$CD$9,3,FALSE) ->  | AC58: =T58-HLOOKUP(Y58,Feuil2!$C$1:$CD$9,4,FALSE) ->  | AD58: =T58-HLOOKUP(Y58,Feuil2!$C$1:$CD$9,5,FALSE) ->  | AE58: =T58-HLOOKUP(Y58,Feuil2!$C$1:$CD$9,6,FALSE) ->  | AF58: =T58-HLOOKUP(Y58,Feuil2!$C$1:$CD$9,7,FALSE) ->  | AG58: =T58-HLOOKUP(Y58,Feuil2!$C$1:$CD$9,8,FALSE) ->  | AH58: =T58-HLOOKUP(Y58,Feuil2!$C$1:$CD$9,9,FALSE) ->  | AQ58: 2016 | AS58: =IF(AQ58,VLOOKUP(AQ58,HOM!$AS$555:$AT$610,2)) -> 3.571
A59: H | Y59: =IF(AND(J59<1920),VLOOKUP(K59,Feuil2!$F$10:$P$28,11),IF(AND(J59>=1920,J59<1937),VLOOKUP(K59,Feuil2!$F$10:$P$28,11),IF(AND(J59>=1936,J59<1942),VLOOKUP(K59,Feuil2!$F$10:$P$28,10),IF(AND(J59>=1942,J59<1947),VLOOKUP(K59,Feuil2!$F$10:$P$28,9),IF(AND(J59>=1947,J59<1952),VLOOKUP(K59,Feuil2!$F$10:$P$28,8),IF(AND(J59>=1952,J59<1957),VLOOKUP(K59,Feuil2!$F$10:$P$28,7),IF(AND(J59>=1957,J59<1962),VLOOKUP(K59,Feuil2!$F$10:$P$28,6),IF(AND(J59>=1962,J59<1967),VLOOKUP(K59,Feuil2!$F$10:$P$28,5),IF(AND(J59>=1967,J59<1972),VLOOKUP(K59,Feuil2!$F$10:$P$28,4),IF(AND(J59>=1972,J59<1977),VLOOKUP(K59,Feuil2!$F$10:$P$28,3),IF(AND(J59>=1977,J59<1982),VLOOKUP(K59,Feuil2!$F$10:$P$28,2),VLOOKUP(K59,Feuil2!$F$10:$P$28,2)))))))))))) ->  | AA59: =T59-HLOOKUP(Y59,Feuil2!$C$1:$CD$9,2,FALSE) ->  | AB59: =T59-HLOOKUP(Y59,Feuil2!$C$1:$CD$9,3,FALSE) ->  | AC59: =T59-HLOOKUP(Y59,Feuil2!$C$1:$CD$9,4,FALSE) ->  | AD59: =T59-HLOOKUP(Y59,Feuil2!$C$1:$CD$9,5,FALSE) ->  | AE59: =T59-HLOOKUP(Y59,Feuil2!$C$1:$CD$9,6,FALSE) ->  | AF59: =T59-HLOOKUP(Y59,Feuil2!$C$1:$CD$9,7,FALSE) ->  | AG59: =T59-HLOOKUP(Y59,Feuil2!$C$1:$CD$9,8,FALSE) ->  | AH59: =T59-HLOOKUP(Y59,Feuil2!$C$1:$CD$9,9,FALSE) ->  | AQ59: 2016 | AS59: =IF(AQ59,VLOOKUP(AQ59,HOM!$AS$555:$AT$610,2)) -> 3.571
A60: H | Y60: =IF(AND(J60<1920),VLOOKUP(K60,Feuil2!$F$10:$P$28,11),IF(AND(J60>=1920,J60<1937),VLOOKUP(K60,Feuil2!$F$10:$P$28,11),IF(AND(J60>=1936,J60<1942),VLOOKUP(K60,Feuil2!$F$10:$P$28,10),IF(AND(J60>=1942,J60<1947),VLOOKUP(K60,Feuil2!$F$10:$P$28,9),IF(AND(J60>=1947,J60<1952),VLOOKUP(K60,Feuil2!$F$10:$P$28,8),IF(AND(J60>=1952,J60<1957),VLOOKUP(K60,Feuil2!$F$10:$P$28,7),IF(AND(J60>=1957,J60<1962),VLOOKUP(K60,Feuil2!$F$10:$P$28,6),IF(AND(J60>=1962,J60<1967),VLOOKUP(K60,Feuil2!$F$10:$P$28,5),IF(AND(J60>=1967,J60<1972),VLOOKUP(K60,Feuil2!$F$10:$P$28,4),IF(AND(J60>=1972,J60<1977),VLOOKUP(K60,Feuil2!$F$10:$P$28,3),IF(AND(J60>=1977,J60<1982),VLOOKUP(K60,Feuil2!$F$10:$P$28,2),VLOOKUP(K60,Feuil2!$F$10:$P$28,2)))))))))))) ->  | AA60: =T60-HLOOKUP(Y60,Feuil2!$C$1:$CD$9,2,FALSE) ->  | AB60: =T60-HLOOKUP(Y60,Feuil2!$C$1:$CD$9,3,FALSE) ->  | AC60: =T60-HLOOKUP(Y60,Feuil2!$C$1:$CD$9,4,FALSE) ->  | AD60: =T60-HLOOKUP(Y60,Feuil2!$C$1:$CD$9,5,FALSE) ->  | AE60: =T60-HLOOKUP(Y60,Feuil2!$C$1:$CD$9,6,FALSE) ->  | AF60: =T60-HLOOKUP(Y60,Feuil2!$C$1:$CD$9,7,FALSE) ->  | AG60: =T60-HLOOKUP(Y60,Feuil2!$C$1:$CD$9,8,FALSE) ->  | AH60: =T60-HLOOKUP(Y60,Feuil2!$C$1:$CD$9,9,FALSE) ->  | AQ60: 2016 | AS60: =IF(AQ60,VLOOKUP(AQ60,HOM!$AS$555:$AT$610,2)) -> 3.571
A61: H | Y61: =IF(AND(J61<1920),VLOOKUP(K61,Feuil2!$F$10:$P$28,11),IF(AND(J61>=1920,J61<1937),VLOOKUP(K61,Feuil2!$F$10:$P$28,11),IF(AND(J61>=1936,J61<1942),VLOOKUP(K61,Feuil2!$F$10:$P$28,10),IF(AND(J61>=1942,J61<1947),VLOOKUP(K61,Feuil2!$F$10:$P$28,9),IF(AND(J61>=1947,J61<1952),VLOOKUP(K61,Feuil2!$F$10:$P$28,8),IF(AND(J61>=1952,J61<1957),VLOOKUP(K61,Feuil2!$F$10:$P$28,7),IF(AND(J61>=1957,J61<1962),VLOOKUP(K61,Feuil2!$F$10:$P$28,6),IF(AND(J61>=1962,J61<1967),VLOOKUP(K61,Feuil2!$F$10:$P$28,5),IF(AND(J61>=1967,J61<1972),VLOOKUP(K61,Feuil2!$F$10:$P$28,4),IF(AND(J61>=1972,J61<1977),VLOOKUP(K61,Feuil2!$F$10:$P$28,3),IF(AND(J61>=1977,J61<1982),VLOOKUP(K61,Feuil2!$F$10:$P$28,2),VLOOKUP(K61,Feuil2!$F$10:$P$28,2)))))))))))) ->  | AA61: =T61-HLOOKUP(Y61,Feuil2!$C$1:$CD$9,2,FALSE) ->  | AB61: =T61-HLOOKUP(Y61,Feuil2!$C$1:$CD$9,3,FALSE) ->  | AC61: =T61-HLOOKUP(Y61,Feuil2!$C$1:$CD$9,4,FALSE) ->  | AD61: =T61-HLOOKUP(Y61,Feuil2!$C$1:$CD$9,5,FALSE) ->  | AE61: =T61-HLOOKUP(Y61,Feuil2!$C$1:$CD$9,6,FALSE) ->  | AF61: =T61-HLOOKUP(Y61,Feuil2!$C$1:$CD$9,7,FALSE) ->  | AG61: =T61-HLOOKUP(Y61,Feuil2!$C$1:$CD$9,8,FALSE) ->  | AH61: =T61-HLOOKUP(Y61,Feuil2!$C$1:$CD$9,9,FALSE) ->  | AQ61: 2016 | AS61: =IF(AQ61,VLOOKUP(AQ61,HOM!$AS$555:$AT$610,2)) -> 3.571
A62: H | Y62: =IF(AND(J62<1920),VLOOKUP(K62,Feuil2!$F$10:$P$28,11),IF(AND(J62>=1920,J62<1937),VLOOKUP(K62,Feuil2!$F$10:$P$28,11),IF(AND(J62>=1936,J62<1942),VLOOKUP(K62,Feuil2!$F$10:$P$28,10),IF(AND(J62>=1942,J62<1947),VLOOKUP(K62,Feuil2!$F$10:$P$28,9),IF(AND(J62>=1947,J62<1952),VLOOKUP(K62,Feuil2!$F$10:$P$28,8),IF(AND(J62>=1952,J62<1957),VLOOKUP(K62,Feuil2!$F$10:$P$28,7),IF(AND(J62>=1957,J62<1962),VLOOKUP(K62,Feuil2!$F$10:$P$28,6),IF(AND(J62>=1962,J62<1967),VLOOKUP(K62,Feuil2!$F$10:$P$28,5),IF(AND(J62>=1967,J62<1972),VLOOKUP(K62,Feuil2!$F$10:$P$28,4),IF(AND(J62>=1972,J62<1977),VLOOKUP(K62,Feuil2!$F$10:$P$28,3),IF(AND(J62>=1977,J62<1982),VLOOKUP(K62,Feuil2!$F$10:$P$28,2),VLOOKUP(K62,Feuil2!$F$10:$P$28,2)))))))))))) ->  | AA62: =T62-HLOOKUP(Y62,Feuil2!$C$1:$CD$9,2,FALSE) ->  | AB62: =T62-HLOOKUP(Y62,Feuil2!$C$1:$CD$9,3,FALSE) ->  | AC62: =T62-HLOOKUP(Y62,Feuil2!$C$1:$CD$9,4,FALSE) ->  | AD62: =T62-HLOOKUP(Y62,Feuil2!$C$1:$CD$9,5,FALSE) ->  | AE62: =T62-HLOOKUP(Y62,Feuil2!$C$1:$CD$9,6,FALSE) ->  | AF62: =T62-HLOOKUP(Y62,Feuil2!$C$1:$CD$9,7,FALSE) ->  | AG62: =T62-HLOOKUP(Y62,Feuil2!$C$1:$CD$9,8,FALSE) ->  | AH62: =T62-HLOOKUP(Y62,Feuil2!$C$1:$CD$9,9,FALSE) ->  | AQ62: 2016 | AS62: =IF(AQ62,VLOOKUP(AQ62,HOM!$AS$555:$AT$610,2)) -> 3.571
A63: H | Y63: =IF(AND(J63<1920),VLOOKUP(K63,Feuil2!$F$10:$P$28,11),IF(AND(J63>=1920,J63<1937),VLOOKUP(K63,Feuil2!$F$10:$P$28,11),IF(AND(J63>=1936,J63<1942),VLOOKUP(K63,Feuil2!$F$10:$P$28,10),IF(AND(J63>=1942,J63<1947),VLOOKUP(K63,Feuil2!$F$10:$P$28,9),IF(AND(J63>=1947,J63<1952),VLOOKUP(K63,Feuil2!$F$10:$P$28,8),IF(AND(J63>=1952,J63<1957),VLOOKUP(K63,Feuil2!$F$10:$P$28,7),IF(AND(J63>=1957,J63<1962),VLOOKUP(K63,Feuil2!$F$10:$P$28,6),IF(AND(J63>=1962,J63<1967),VLOOKUP(K63,Feuil2!$F$10:$P$28,5),IF(AND(J63>=1967,J63<1972),VLOOKUP(K63,Feuil2!$F$10:$P$28,4),IF(AND(J63>=1972,J63<1977),VLOOKUP(K63,Feuil2!$F$10:$P$28,3),IF(AND(J63>=1977,J63<1982),VLOOKUP(K63,Feuil2!$F$10:$P$28,2),VLOOKUP(K63,Feuil2!$F$10:$P$28,2)))))))))))) ->  | AA63: =T63-HLOOKUP(Y63,Feuil2!$C$1:$CD$9,2,FALSE) ->  | AB63: =T63-HLOOKUP(Y63,Feuil2!$C$1:$CD$9,3,FALSE) ->  | AC63: =T63-HLOOKUP(Y63,Feuil2!$C$1:$CD$9,4,FALSE) ->  | AD63: =T63-HLOOKUP(Y63,Feuil2!$C$1:$CD$9,5,FALSE) ->  | AE63: =T63-HLOOKUP(Y63,Feuil2!$C$1:$CD$9,6,FALSE) ->  | AF63: =T63-HLOOKUP(Y63,Feuil2!$C$1:$CD$9,7,FALSE) ->  | AG63: =T63-HLOOKUP(Y63,Feuil2!$C$1:$CD$9,8,FALSE) ->  | AH63: =T63-HLOOKUP(Y63,Feuil2!$C$1:$CD$9,9,FALSE) ->  | AQ63: 2016 | AS63: =IF(AQ63,VLOOKUP(AQ63,HOM!$AS$555:$AT$610,2)) -> 3.571
A64: H | Y64: =IF(AND(J64<1920),VLOOKUP(K64,Feuil2!$F$10:$P$28,11),IF(AND(J64>=1920,J64<1937),VLOOKUP(K64,Feuil2!$F$10:$P$28,11),IF(AND(J64>=1936,J64<1942),VLOOKUP(K64,Feuil2!$F$10:$P$28,10),IF(AND(J64>=1942,J64<1947),VLOOKUP(K64,Feuil2!$F$10:$P$28,9),IF(AND(J64>=1947,J64<1952),VLOOKUP(K64,Feuil2!$F$10:$P$28,8),IF(AND(J64>=1952,J64<1957),VLOOKUP(K64,Feuil2!$F$10:$P$28,7),IF(AND(J64>=1957,J64<1962),VLOOKUP(K64,Feuil2!$F$10:$P$28,6),IF(AND(J64>=1962,J64<1967),VLOOKUP(K64,Feuil2!$F$10:$P$28,5),IF(AND(J64>=1967,J64<1972),VLOOKUP(K64,Feuil2!$F$10:$P$28,4),IF(AND(J64>=1972,J64<1977),VLOOKUP(K64,Feuil2!$F$10:$P$28,3),IF(AND(J64>=1977,J64<1982),VLOOKUP(K64,Feuil2!$F$10:$P$28,2),VLOOKUP(K64,Feuil2!$F$10:$P$28,2)))))))))))) ->  | AA64: =T64-HLOOKUP(Y64,Feuil2!$C$1:$CD$9,2,FALSE) ->  | AB64: =T64-HLOOKUP(Y64,Feuil2!$C$1:$CD$9,3,FALSE) ->  | AC64: =T64-HLOOKUP(Y64,Feuil2!$C$1:$CD$9,4,FALSE) ->  | AD64: =T64-HLOOKUP(Y64,Feuil2!$C$1:$CD$9,5,FALSE) ->  | AE64: =T64-HLOOKUP(Y64,Feuil2!$C$1:$CD$9,6,FALSE) ->  | AF64: =T64-HLOOKUP(Y64,Feuil2!$C$1:$CD$9,7,FALSE) ->  | AG64: =T64-HLOOKUP(Y64,Feuil2!$C$1:$CD$9,8,FALSE) ->  | AH64: =T64-HLOOKUP(Y64,Feuil2!$C$1:$CD$9,9,FALSE) ->  | AQ64: 2016 | AS64: =IF(AQ64,VLOOKUP(AQ64,HOM!$AS$555:$AT$610,2)) -> 3.571
A65: H | Y65: =IF(AND(J65<1920),VLOOKUP(K65,Feuil2!$F$10:$P$28,11),IF(AND(J65>=1920,J65<1937),VLOOKUP(K65,Feuil2!$F$10:$P$28,11),IF(AND(J65>=1936,J65<1942),VLOOKUP(K65,Feuil2!$F$10:$P$28,10),IF(AND(J65>=1942,J65<1947),VLOOKUP(K65,Feuil2!$F$10:$P$28,9),IF(AND(J65>=1947,J65<1952),VLOOKUP(K65,Feuil2!$F$10:$P$28,8),IF(AND(J65>=1952,J65<1957),VLOOKUP(K65,Feuil2!$F$10:$P$28,7),IF(AND(J65>=1957,J65<1962),VLOOKUP(K65,Feuil2!$F$10:$P$28,6),IF(AND(J65>=1962,J65<1967),VLOOKUP(K65,Feuil2!$F$10:$P$28,5),IF(AND(J65>=1967,J65<1972),VLOOKUP(K65,Feuil2!$F$10:$P$28,4),IF(AND(J65>=1972,J65<1977),VLOOKUP(K65,Feuil2!$F$10:$P$28,3),IF(AND(J65>=1977,J65<1982),VLOOKUP(K65,Feuil2!$F$10:$P$28,2),VLOOKUP(K65,Feuil2!$F$10:$P$28,2)))))))))))) ->  | AA65: =T65-HLOOKUP(Y65,Feuil2!$C$1:$CD$9,2,FALSE) ->  | AB65: =T65-HLOOKUP(Y65,Feuil2!$C$1:$CD$9,3,FALSE) ->  | AC65: =T65-HLOOKUP(Y65,Feuil2!$C$1:$CD$9,4,FALSE) ->  | AD65: =T65-HLOOKUP(Y65,Feuil2!$C$1:$CD$9,5,FALSE) ->  | AE65: =T65-HLOOKUP(Y65,Feuil2!$C$1:$CD$9,6,FALSE) ->  | AF65: =T65-HLOOKUP(Y65,Feuil2!$C$1:$CD$9,7,FALSE) ->  | AG65: =T65-HLOOKUP(Y65,Feuil2!$C$1:$CD$9,8,FALSE) ->  | AH65: =T65-HLOOKUP(Y65,Feuil2!$C$1:$CD$9,9,FALSE) ->  | AQ65: 2016 | AS65: =IF(AQ65,VLOOKUP(AQ65,HOM!$AS$555:$AT$610,2)) -> 3.571
A66: H | Y66: =IF(AND(J66<1920),VLOOKUP(K66,Feuil2!$F$10:$P$28,11),IF(AND(J66>=1920,J66<1937),VLOOKUP(K66,Feuil2!$F$10:$P$28,11),IF(AND(J66>=1936,J66<1942),VLOOKUP(K66,Feuil2!$F$10:$P$28,10),IF(AND(J66>=1942,J66<1947),VLOOKUP(K66,Feuil2!$F$10:$P$28,9),IF(AND(J66>=1947,J66<1952),VLOOKUP(K66,Feuil2!$F$10:$P$28,8),IF(AND(J66>=1952,J66<1957),VLOOKUP(K66,Feuil2!$F$10:$P$28,7),IF(AND(J66>=1957,J66<1962),VLOOKUP(K66,Feuil2!$F$10:$P$28,6),IF(AND(J66>=1962,J66<1967),VLOOKUP(K66,Feuil2!$F$10:$P$28,5),IF(AND(J66>=1967,J66<1972),VLOOKUP(K66,Feuil2!$F$10:$P$28,4),IF(AND(J66>=1972,J66<1977),VLOOKUP(K66,Feuil2!$F$10:$P$28,3),IF(AND(J66>=1977,J66<1982),VLOOKUP(K66,Feuil2!$F$10:$P$28,2),VLOOKUP(K66,Feuil2!$F$10:$P$28,2)))))))))))) ->  | AA66: =T66-HLOOKUP(Y66,Feuil2!$C$1:$CD$9,2,FALSE) ->  | AB66: =T66-HLOOKUP(Y66,Feuil2!$C$1:$CD$9,3,FALSE) ->  | AC66: =T66-HLOOKUP(Y66,Feuil2!$C$1:$CD$9,4,FALSE) ->  | AD66: =T66-HLOOKUP(Y66,Feuil2!$C$1:$CD$9,5,FALSE) ->  | AE66: =T66-HLOOKUP(Y66,Feuil2!$C$1:$CD$9,6,FALSE) ->  | AF66: =T66-HLOOKUP(Y66,Feuil2!$C$1:$CD$9,7,FALSE) ->  | AG66: =T66-HLOOKUP(Y66,Feuil2!$C$1:$CD$9,8,FALSE) ->  | AH66: =T66-HLOOKUP(Y66,Feuil2!$C$1:$CD$9,9,FALSE) ->  | AQ66: 2016 | AS66: =IF(AQ66,VLOOKUP(AQ66,HOM!$AS$555:$AT$610,2)) -> 3.571
A67: H | Y67: =IF(AND(J67<1920),VLOOKUP(K67,Feuil2!$F$10:$P$28,11),IF(AND(J67>=1920,J67<1937),VLOOKUP(K67,Feuil2!$F$10:$P$28,11),IF(AND(J67>=1936,J67<1942),VLOOKUP(K67,Feuil2!$F$10:$P$28,10),IF(AND(J67>=1942,J67<1947),VLOOKUP(K67,Feuil2!$F$10:$P$28,9),IF(AND(J67>=1947,J67<1952),VLOOKUP(K67,Feuil2!$F$10:$P$28,8),IF(AND(J67>=1952,J67<1957),VLOOKUP(K67,Feuil2!$F$10:$P$28,7),IF(AND(J67>=1957,J67<1962),VLOOKUP(K67,Feuil2!$F$10:$P$28,6),IF(AND(J67>=1962,J67<1967),VLOOKUP(K67,Feuil2!$F$10:$P$28,5),IF(AND(J67>=1967,J67<1972),VLOOKUP(K67,Feuil2!$F$10:$P$28,4),IF(AND(J67>=1972,J67<1977),VLOOKUP(K67,Feuil2!$F$10:$P$28,3),IF(AND(J67>=1977,J67<1982),VLOOKUP(K67,Feuil2!$F$10:$P$28,2),VLOOKUP(K67,Feuil2!$F$10:$P$28,2)))))))))))) ->  | AA67: =T67-HLOOKUP(Y67,Feuil2!$C$1:$CD$9,2,FALSE) ->  | AB67: =T67-HLOOKUP(Y67,Feuil2!$C$1:$CD$9,3,FALSE) ->  | AC67: =T67-HLOOKUP(Y67,Feuil2!$C$1:$CD$9,4,FALSE) ->  | AD67: =T67-HLOOKUP(Y67,Feuil2!$C$1:$CD$9,5,FALSE) ->  | AE67: =T67-HLOOKUP(Y67,Feuil2!$C$1:$CD$9,6,FALSE) ->  | AF67: =T67-HLOOKUP(Y67,Feuil2!$C$1:$CD$9,7,FALSE) ->  | AG67: =T67-HLOOKUP(Y67,Feuil2!$C$1:$CD$9,8,FALSE) ->  | AH67: =T67-HLOOKUP(Y67,Feuil2!$C$1:$CD$9,9,FALSE) ->  | AQ67: 2016 | AS67: =IF(AQ67,VLOOKUP(AQ67,HOM!$AS$555:$AT$610,2)) -> 3.571
A68: H | Y68: =IF(AND(J68<1920),VLOOKUP(K68,Feuil2!$F$10:$P$28,11),IF(AND(J68>=1920,J68<1937),VLOOKUP(K68,Feuil2!$F$10:$P$28,11),IF(AND(J68>=1936,J68<1942),VLOOKUP(K68,Feuil2!$F$10:$P$28,10),IF(AND(J68>=1942,J68<1947),VLOOKUP(K68,Feuil2!$F$10:$P$28,9),IF(AND(J68>=1947,J68<1952),VLOOKUP(K68,Feuil2!$F$10:$P$28,8),IF(AND(J68>=1952,J68<1957),VLOOKUP(K68,Feuil2!$F$10:$P$28,7),IF(AND(J68>=1957,J68<1962),VLOOKUP(K68,Feuil2!$F$10:$P$28,6),IF(AND(J68>=1962,J68<1967),VLOOKUP(K68,Feuil2!$F$10:$P$28,5),IF(AND(J68>=1967,J68<1972),VLOOKUP(K68,Feuil2!$F$10:$P$28,4),IF(AND(J68>=1972,J68<1977),VLOOKUP(K68,Feuil2!$F$10:$P$28,3),IF(AND(J68>=1977,J68<1982),VLOOKUP(K68,Feuil2!$F$10:$P$28,2),VLOOKUP(K68,Feuil2!$F$10:$P$28,2)))))))))))) ->  | AA68: =T68-HLOOKUP(Y68,Feuil2!$C$1:$CD$9,2,FALSE) ->  | AB68: =T68-HLOOKUP(Y68,Feuil2!$C$1:$CD$9,3,FALSE) ->  | AC68: =T68-HLOOKUP(Y68,Feuil2!$C$1:$CD$9,4,FALSE) ->  | AD68: =T68-HLOOKUP(Y68,Feuil2!$C$1:$CD$9,5,FALSE) ->  | AE68: =T68-HLOOKUP(Y68,Feuil2!$C$1:$CD$9,6,FALSE) ->  | AF68: =T68-HLOOKUP(Y68,Feuil2!$C$1:$CD$9,7,FALSE) ->  | AG68: =T68-HLOOKUP(Y68,Feuil2!$C$1:$CD$9,8,FALSE) ->  | AH68: =T68-HLOOKUP(Y68,Feuil2!$C$1:$CD$9,9,FALSE) ->  | AQ68: 2016 | AS68: =IF(AQ68,VLOOKUP(AQ68,HOM!$AS$555:$AT$610,2)) -> 3.571
A69: H | Y69: =IF(AND(J69<1920),VLOOKUP(K69,Feuil2!$F$10:$P$28,11),IF(AND(J69>=1920,J69<1937),VLOOKUP(K69,Feuil2!$F$10:$P$28,11),IF(AND(J69>=1936,J69<1942),VLOOKUP(K69,Feuil2!$F$10:$P$28,10),IF(AND(J69>=1942,J69<1947),VLOOKUP(K69,Feuil2!$F$10:$P$28,9),IF(AND(J69>=1947,J69<1952),VLOOKUP(K69,Feuil2!$F$10:$P$28,8),IF(AND(J69>=1952,J69<1957),VLOOKUP(K69,Feuil2!$F$10:$P$28,7),IF(AND(J69>=1957,J69<1962),VLOOKUP(K69,Feuil2!$F$10:$P$28,6),IF(AND(J69>=1962,J69<1967),VLOOKUP(K69,Feuil2!$F$10:$P$28,5),IF(AND(J69>=1967,J69<1972),VLOOKUP(K69,Feuil2!$F$10:$P$28,4),IF(AND(J69>=1972,J69<1977),VLOOKUP(K69,Feuil2!$F$10:$P$28,3),IF(AND(J69>=1977,J69<1982),VLOOKUP(K69,Feuil2!$F$10:$P$28,2),VLOOKUP(K69,Feuil2!$F$10:$P$28,2)))))))))))) ->  | AA69: =T69-HLOOKUP(Y69,Feuil2!$C$1:$CD$9,2,FALSE) ->  | AB69: =T69-HLOOKUP(Y69,Feuil2!$C$1:$CD$9,3,FALSE) ->  | AC69: =T69-HLOOKUP(Y69,Feuil2!$C$1:$CD$9,4,FALSE) ->  | AD69: =T69-HLOOKUP(Y69,Feuil2!$C$1:$CD$9,5,FALSE) ->  | AE69: =T69-HLOOKUP(Y69,Feuil2!$C$1:$CD$9,6,FALSE) ->  | AF69: =T69-HLOOKUP(Y69,Feuil2!$C$1:$CD$9,7,FALSE) ->  | AG69: =T69-HLOOKUP(Y69,Feuil2!$C$1:$CD$9,8,FALSE) ->  | AH69: =T69-HLOOKUP(Y69,Feuil2!$C$1:$CD$9,9,FALSE) ->  | AQ69: 2016 | AS69: =IF(AQ69,VLOOKUP(AQ69,HOM!$AS$555:$AT$610,2)) -> 3.571
A70: H | Y70: =IF(AND(J70<1920),VLOOKUP(K70,Feuil2!$F$10:$P$28,11),IF(AND(J70>=1920,J70<1937),VLOOKUP(K70,Feuil2!$F$10:$P$28,11),IF(AND(J70>=1936,J70<1942),VLOOKUP(K70,Feuil2!$F$10:$P$28,10),IF(AND(J70>=1942,J70<1947),VLOOKUP(K70,Feuil2!$F$10:$P$28,9),IF(AND(J70>=1947,J70<1952),VLOOKUP(K70,Feuil2!$F$10:$P$28,8),IF(AND(J70>=1952,J70<1957),VLOOKUP(K70,Feuil2!$F$10:$P$28,7),IF(AND(J70>=1957,J70<1962),VLOOKUP(K70,Feuil2!$F$10:$P$28,6),IF(AND(J70>=1962,J70<1967),VLOOKUP(K70,Feuil2!$F$10:$P$28,5),IF(AND(J70>=1967,J70<1972),VLOOKUP(K70,Feuil2!$F$10:$P$28,4),IF(AND(J70>=1972,J70<1977),VLOOKUP(K70,Feuil2!$F$10:$P$28,3),IF(AND(J70>=1977,J70<1982),VLOOKUP(K70,Feuil2!$F$10:$P$28,2),VLOOKUP(K70,Feuil2!$F$10:$P$28,2)))))))))))) ->  | AA70: =T70-HLOOKUP(Y70,Feuil2!$C$1:$CD$9,2,FALSE) ->  | AB70: =T70-HLOOKUP(Y70,Feuil2!$C$1:$CD$9,3,FALSE) ->  | AC70: =T70-HLOOKUP(Y70,Feuil2!$C$1:$CD$9,4,FALSE) ->  | AD70: =T70-HLOOKUP(Y70,Feuil2!$C$1:$CD$9,5,FALSE) ->  | AE70: =T70-HLOOKUP(Y70,Feuil2!$C$1:$CD$9,6,FALSE) ->  | AF70: =T70-HLOOKUP(Y70,Feuil2!$C$1:$CD$9,7,FALSE) ->  | AG70: =T70-HLOOKUP(Y70,Feuil2!$C$1:$CD$9,8,FALSE) ->  | AH70: =T70-HLOOKUP(Y70,Feuil2!$C$1:$CD$9,9,FALSE) ->  | AQ70: 2016 | AS70: =IF(AQ70,VLOOKUP(AQ70,HOM!$AS$555:$AT$610,2)) -> 3.571
A71: H | Y71: =IF(AND(J71<1920),VLOOKUP(K71,Feuil2!$F$10:$P$28,11),IF(AND(J71>=1920,J71<1937),VLOOKUP(K71,Feuil2!$F$10:$P$28,11),IF(AND(J71>=1936,J71<1942),VLOOKUP(K71,Feuil2!$F$10:$P$28,10),IF(AND(J71>=1942,J71<1947),VLOOKUP(K71,Feuil2!$F$10:$P$28,9),IF(AND(J71>=1947,J71<1952),VLOOKUP(K71,Feuil2!$F$10:$P$28,8),IF(AND(J71>=1952,J71<1957),VLOOKUP(K71,Feuil2!$F$10:$P$28,7),IF(AND(J71>=1957,J71<1962),VLOOKUP(K71,Feuil2!$F$10:$P$28,6),IF(AND(J71>=1962,J71<1967),VLOOKUP(K71,Feuil2!$F$10:$P$28,5),IF(AND(J71>=1967,J71<1972),VLOOKUP(K71,Feuil2!$F$10:$P$28,4),IF(AND(J71>=1972,J71<1977),VLOOKUP(K71,Feuil2!$F$10:$P$28,3),IF(AND(J71>=1977,J71<1982),VLOOKUP(K71,Feuil2!$F$10:$P$28,2),VLOOKUP(K71,Feuil2!$F$10:$P$28,2)))))))))))) ->  | AA71: =T71-HLOOKUP(Y71,Feuil2!$C$1:$CD$9,2,FALSE) ->  | AB71: =T71-HLOOKUP(Y71,Feuil2!$C$1:$CD$9,3,FALSE) ->  | AC71: =T71-HLOOKUP(Y71,Feuil2!$C$1:$CD$9,4,FALSE) ->  | AD71: =T71-HLOOKUP(Y71,Feuil2!$C$1:$CD$9,5,FALSE) ->  | AE71: =T71-HLOOKUP(Y71,Feuil2!$C$1:$CD$9,6,FALSE) ->  | AF71: =T71-HLOOKUP(Y71,Feuil2!$C$1:$CD$9,7,FALSE) ->  | AG71: =T71-HLOOKUP(Y71,Feuil2!$C$1:$CD$9,8,FALSE) ->  | AH71: =T71-HLOOKUP(Y71,Feuil2!$C$1:$CD$9,9,FALSE) ->  | AQ71: 2016 | AS71: =IF(AQ71,VLOOKUP(AQ71,HOM!$AS$555:$AT$610,2)) -> 3.571
A72: H | Y72: =IF(AND(J72<1920),VLOOKUP(K72,Feuil2!$F$10:$P$28,11),IF(AND(J72>=1920,J72<1937),VLOOKUP(K72,Feuil2!$F$10:$P$28,11),IF(AND(J72>=1936,J72<1942),VLOOKUP(K72,Feuil2!$F$10:$P$28,10),IF(AND(J72>=1942,J72<1947),VLOOKUP(K72,Feuil2!$F$10:$P$28,9),IF(AND(J72>=1947,J72<1952),VLOOKUP(K72,Feuil2!$F$10:$P$28,8),IF(AND(J72>=1952,J72<1957),VLOOKUP(K72,Feuil2!$F$10:$P$28,7),IF(AND(J72>=1957,J72<1962),VLOOKUP(K72,Feuil2!$F$10:$P$28,6),IF(AND(J72>=1962,J72<1967),VLOOKUP(K72,Feuil2!$F$10:$P$28,5),IF(AND(J72>=1967,J72<1972),VLOOKUP(K72,Feuil2!$F$10:$P$28,4),IF(AND(J72>=1972,J72<1977),VLOOKUP(K72,Feuil2!$F$10:$P$28,3),IF(AND(J72>=1977,J72<1982),VLOOKUP(K72,Feuil2!$F$10:$P$28,2),VLOOKUP(K72,Feuil2!$F$10:$P$28,2)))))))))))) ->  | AA72: =T72-HLOOKUP(Y72,Feuil2!$C$1:$CD$9,2,FALSE) ->  | AB72: =T72-HLOOKUP(Y72,Feuil2!$C$1:$CD$9,3,FALSE) ->  | AC72: =T72-HLOOKUP(Y72,Feuil2!$C$1:$CD$9,4,FALSE) ->  | AD72: =T72-HLOOKUP(Y72,Feuil2!$C$1:$CD$9,5,FALSE) ->  | AE72: =T72-HLOOKUP(Y72,Feuil2!$C$1:$CD$9,6,FALSE) ->  | AF72: =T72-HLOOKUP(Y72,Feuil2!$C$1:$CD$9,7,FALSE) ->  | AG72: =T72-HLOOKUP(Y72,Feuil2!$C$1:$CD$9,8,FALSE) ->  | AH72: =T72-HLOOKUP(Y72,Feuil2!$C$1:$CD$9,9,FALSE) ->  | AQ72: 2016 | AS72: =IF(AQ72,VLOOKUP(AQ72,HOM!$AS$555:$AT$610,2)) -> 3.571
A73: H | U73: =IF(K73="","",IF(A73="H",10^(0.794358141*LOG(K73/174.393)^2)*T73*AS73,IF(A73="F",10^(0.89726074 * LOG(K73/148.026)^2)*T73*AS73,""))) ->  | X73: =IF(BI73<95,IF(BI73<=90,VLOOKUP(BI73,$AQ$554:$AR$609,2))) ->  | Y73: =IF(AND(J73<1920),VLOOKUP(K73,Feuil2!$F$10:$P$28,11),IF(AND(J73>=1920,J73<1937),VLOOKUP(K73,Feuil2!$F$10:$P$28,11),IF(AND(J73>=1936,J73<1942),VLOOKUP(K73,Feuil2!$F$10:$P$28,10),IF(AND(J73>=1942,J73<1947),VLOOKUP(K73,Feuil2!$F$10:$P$28,9),IF(AND(J73>=1947,J73<1952),VLOOKUP(K73,Feuil2!$F$10:$P$28,8),IF(AND(J73>=1952,J73<1957),VLOOKUP(K73,Feuil2!$F$10:$P$28,7),IF(AND(J73>=1957,J73<1962),VLOOKUP(K73,Feuil2!$F$10:$P$28,6),IF(AND(J73>=1962,J73<1967),VLOOKUP(K73,Feuil2!$F$10:$P$28,5),IF(AND(J73>=1967,J73<1972),VLOOKUP(K73,Feuil2!$F$10:$P$28,4),IF(AND(J73>=1972,J73<1977),VLOOKUP(K73,Feuil2!$F$10:$P$28,3),IF(AND(J73>=1977,J73<1982),VLOOKUP(K73,Feuil2!$F$10:$P$28,2),VLOOKUP(K73,Feuil2!$F$10:$P$28,2)))))))))))) ->  | AA73: =T73-HLOOKUP(Y73,Feuil2!$C$1:$CD$9,2,FALSE) ->  | AB73: =T73-HLOOKUP(Y73,Feuil2!$C$1:$CD$9,3,FALSE) ->  | AC73: =T73-HLOOKUP(Y73,Feuil2!$C$1:$CD$9,4,FALSE) ->  | AD73: =T73-HLOOKUP(Y73,Feuil2!$C$1:$CD$9,5,FALSE) ->  | AE73: =T73-HLOOKUP(Y73,Feuil2!$C$1:$CD$9,6,FALSE) ->  | AF73: =T73-HLOOKUP(Y73,Feuil2!$C$1:$CD$9,7,FALSE) ->  | AG73: =T73-HLOOKUP(Y73,Feuil2!$C$1:$CD$9,8,FALSE) ->  | AH73: =T73-HLOOKUP(Y73,Feuil2!$C$1:$CD$9,9,FALSE) ->  | AQ73: 2016 | AS73: =IF(AQ73,VLOOKUP(AQ73,HOM!$AS$555:$AT$610,2)) -> 3.571
A74: H | V74: =IF(K74="","",AP74) ->  | W74: =IF(K74="","",IF(AH74>=0,AH74,IF(AG74>=0,AG74,IF(AF74>=0,AF74,IF(AE74>=0,AE74,IF(AD74>=0,AD74,IF(AC74>=0,AC74,IF(AB74>=0,AB74,AA74)))))))) ->  | Y74: =IF(AND(J74<1920),VLOOKUP(K74,Feuil2!$F$10:$P$28,11),IF(AND(J74>=1920,J74<1937),VLOOKUP(K74,Feuil2!$F$10:$P$28,11),IF(AND(J74>=1936,J74<1942),VLOOKUP(K74,Feuil2!$F$10:$P$28,10),IF(AND(J74>=1942,J74<1947),VLOOKUP(K74,Feuil2!$F$10:$P$28,9),IF(AND(J74>=1947,J74<1952),VLOOKUP(K74,Feuil2!$F$10:$P$28,8),IF(AND(J74>=1952,J74<1957),VLOOKUP(K74,Feuil2!$F$10:$P$28,7),IF(AND(J74>=1957,J74<1962),VLOOKUP(K74,Feuil2!$F$10:$P$28,6),IF(AND(J74>=1962,J74<1967),VLOOKUP(K74,Feuil2!$F$10:$P$28,5),IF(AND(J74>=1967,J74<1972),VLOOKUP(K74,Feuil2!$F$10:$P$28,4),IF(AND(J74>=1972,J74<1977),VLOOKUP(K74,Feuil2!$F$10:$P$28,3),IF(AND(J74>=1977,J74<1982),VLOOKUP(K74,Feuil2!$F$10:$P$28,2),VLOOKUP(K74,Feuil2!$F$10:$P$28,2)))))))))))) ->  | AA74: =T74-HLOOKUP(Y74,Feuil2!$C$1:$CD$9,2,FALSE) ->  | AB74: =T74-HLOOKUP(Y74,Feuil2!$C$1:$CD$9,3,FALSE) ->  | AC74: =T74-HLOOKUP(Y74,Feuil2!$C$1:$CD$9,4,FALSE) ->  | AD74: =T74-HLOOKUP(Y74,Feuil2!$C$1:$CD$9,5,FALSE) ->  | AE74: =T74-HLOOKUP(Y74,Feuil2!$C$1:$CD$9,6,FALSE) ->  | AF74: =T74-HLOOKUP(Y74,Feuil2!$C$1:$CD$9,7,FALSE) ->  | AG74: =T74-HLOOKUP(Y74,Feuil2!$C$1:$CD$9,8,FALSE) ->  | AH74: =T74-HLOOKUP(Y74,Feuil2!$C$1:$CD$9,9,FALSE) ->  | AP74: =IF(AH74>=0,$AH$4,IF(AG74>=0,$AG$4,IF(AF74>=0,$AF$4,IF(AE74>=0,$AE$4,IF(AD74>=0,$AD$4,IF(AC74>=0,$AC$4,IF(AB74>=0,$AB$4,IF(AA74>=0,$AA$4,$AI$4)))))))) ->  | AQ74: 2016 | AS74: =IF(AQ74,VLOOKUP(AQ74,HOM!$AS$555:$AT$610,2)) -> 3.571
A75: H | Y75: =IF(AND(J75<1920),VLOOKUP(K75,Feuil2!$F$10:$P$28,11),IF(AND(J75>=1920,J75<1937),VLOOKUP(K75,Feuil2!$F$10:$P$28,11),IF(AND(J75>=1936,J75<1942),VLOOKUP(K75,Feuil2!$F$10:$P$28,10),IF(AND(J75>=1942,J75<1947),VLOOKUP(K75,Feuil2!$F$10:$P$28,9),IF(AND(J75>=1947,J75<1952),VLOOKUP(K75,Feuil2!$F$10:$P$28,8),IF(AND(J75>=1952,J75<1957),VLOOKUP(K75,Feuil2!$F$10:$P$28,7),IF(AND(J75>=1957,J75<1962),VLOOKUP(K75,Feuil2!$F$10:$P$28,6),IF(AND(J75>=1962,J75<1967),VLOOKUP(K75,Feuil2!$F$10:$P$28,5),IF(AND(J75>=1967,J75<1972),VLOOKUP(K75,Feuil2!$F$10:$P$28,4),IF(AND(J75>=1972,J75<1977),VLOOKUP(K75,Feuil2!$F$10:$P$28,3),IF(AND(J75>=1977,J75<1982),VLOOKUP(K75,Feuil2!$F$10:$P$28,2),VLOOKUP(K75,Feuil2!$F$10:$P$28,2)))))))))))) ->  | AA75: =T75-HLOOKUP(Y75,Feuil2!$C$1:$CD$9,2,FALSE) ->  | AB75: =T75-HLOOKUP(Y75,Feuil2!$C$1:$CD$9,3,FALSE) ->  | AC75: =T75-HLOOKUP(Y75,Feuil2!$C$1:$CD$9,4,FALSE) ->  | AD75: =T75-HLOOKUP(Y75,Feuil2!$C$1:$CD$9,5,FALSE) ->  | AE75: =T75-HLOOKUP(Y75,Feuil2!$C$1:$CD$9,6,FALSE) ->  | AF75: =T75-HLOOKUP(Y75,Feuil2!$C$1:$CD$9,7,FALSE) ->  | AG75: =T75-HLOOKUP(Y75,Feuil2!$C$1:$CD$9,8,FALSE) ->  | AH75: =T75-HLOOKUP(Y75,Feuil2!$C$1:$CD$9,9,FALSE) ->  | AQ75: =2016-J75 -> 2016 | AS75: =IF(AQ75,VLOOKUP(AQ75,HOM!$AS$555:$AT$610,2)) -> 3.571
A76: H | Y76: =IF(AND(J76<1920),VLOOKUP(K76,Feuil2!$F$10:$P$28,11),IF(AND(J76>=1920,J76<1937),VLOOKUP(K76,Feuil2!$F$10:$P$28,11),IF(AND(J76>=1936,J76<1942),VLOOKUP(K76,Feuil2!$F$10:$P$28,10),IF(AND(J76>=1942,J76<1947),VLOOKUP(K76,Feuil2!$F$10:$P$28,9),IF(AND(J76>=1947,J76<1952),VLOOKUP(K76,Feuil2!$F$10:$P$28,8),IF(AND(J76>=1952,J76<1957),VLOOKUP(K76,Feuil2!$F$10:$P$28,7),IF(AND(J76>=1957,J76<1962),VLOOKUP(K76,Feuil2!$F$10:$P$28,6),IF(AND(J76>=1962,J76<1967),VLOOKUP(K76,Feuil2!$F$10:$P$28,5),IF(AND(J76>=1967,J76<1972),VLOOKUP(K76,Feuil2!$F$10:$P$28,4),IF(AND(J76>=1972,J76<1977),VLOOKUP(K76,Feuil2!$F$10:$P$28,3),IF(AND(J76>=1977,J76<1982),VLOOKUP(K76,Feuil2!$F$10:$P$28,2),VLOOKUP(K76,Feuil2!$F$10:$P$28,2)))))))))))) ->  | AA76: =T76-HLOOKUP(Y76,Feuil2!$C$1:$CD$9,2,FALSE) ->  | AB76: =T76-HLOOKUP(Y76,Feuil2!$C$1:$CD$9,3,FALSE) ->  | AC76: =T76-HLOOKUP(Y76,Feuil2!$C$1:$CD$9,4,FALSE) ->  | AD76: =T76-HLOOKUP(Y76,Feuil2!$C$1:$CD$9,5,FALSE) ->  | AE76: =T76-HLOOKUP(Y76,Feuil2!$C$1:$CD$9,6,FALSE) ->  | AF76: =T76-HLOOKUP(Y76,Feuil2!$C$1:$CD$9,7,FALSE) ->  | AG76: =T76-HLOOKUP(Y76,Feuil2!$C$1:$CD$9,8,FALSE) ->  | AH76: =T76-HLOOKUP(Y76,Feuil2!$C$1:$CD$9,9,FALSE) ->  | AQ76: 2016 | AS76: =IF(AQ76,VLOOKUP(AQ76,HOM!$AS$555:$AT$610,2)) -> 3.571
A77: H | S77: =IF(K77="","",IF(MAXA(P77:R77)<=0,0,MAXA(P77:R77))) ->  | T77: =IF(K77="","",IF(OR(O77=0,S77=0),0,O77+S77)) ->  | Y77: =IF(AND(J77<1920),VLOOKUP(K77,Feuil2!$F$10:$P$28,11),IF(AND(J77>=1920,J77<1937),VLOOKUP(K77,Feuil2!$F$10:$P$28,11),IF(AND(J77>=1936,J77<1942),VLOOKUP(K77,Feuil2!$F$10:$P$28,10),IF(AND(J77>=1942,J77<1947),VLOOKUP(K77,Feuil2!$F$10:$P$28,9),IF(AND(J77>=1947,J77<1952),VLOOKUP(K77,Feuil2!$F$10:$P$28,8),IF(AND(J77>=1952,J77<1957),VLOOKUP(K77,Feuil2!$F$10:$P$28,7),IF(AND(J77>=1957,J77<1962),VLOOKUP(K77,Feuil2!$F$10:$P$28,6),IF(AND(J77>=1962,J77<1967),VLOOKUP(K77,Feuil2!$F$10:$P$28,5),IF(AND(J77>=1967,J77<1972),VLOOKUP(K77,Feuil2!$F$10:$P$28,4),IF(AND(J77>=1972,J77<1977),VLOOKUP(K77,Feuil2!$F$10:$P$28,3),IF(AND(J77>=1977,J77<1982),VLOOKUP(K77,Feuil2!$F$10:$P$28,2),VLOOKUP(K77,Feuil2!$F$10:$P$28,2)))))))))))) ->  | AA77: =T77-HLOOKUP(Y77,Feuil2!$C$1:$CD$9,2,FALSE) ->  | AB77: =T77-HLOOKUP(Y77,Feuil2!$C$1:$CD$9,3,FALSE) ->  | AC77: =T77-HLOOKUP(Y77,Feuil2!$C$1:$CD$9,4,FALSE) ->  | AD77: =T77-HLOOKUP(Y77,Feuil2!$C$1:$CD$9,5,FALSE) ->  | AE77: =T77-HLOOKUP(Y77,Feuil2!$C$1:$CD$9,6,FALSE) ->  | AF77: =T77-HLOOKUP(Y77,Feuil2!$C$1:$CD$9,7,FALSE) ->  | AG77: =T77-HLOOKUP(Y77,Feuil2!$C$1:$CD$9,8,FALSE) ->  | AH77: =T77-HLOOKUP(Y77,Feuil2!$C$1:$CD$9,9,FALSE) ->  | AQ77: 2016 | AS77: =IF(AQ77,VLOOKUP(AQ77,HOM!$AS$555:$AT$610,2)) -> 3.571
A78: H | Y78: =IF(AND(J78<1920),VLOOKUP(K78,Feuil2!$F$10:$P$28,11),IF(AND(J78>=1920,J78<1937),VLOOKUP(K78,Feuil2!$F$10:$P$28,11),IF(AND(J78>=1936,J78<1942),VLOOKUP(K78,Feuil2!$F$10:$P$28,10),IF(AND(J78>=1942,J78<1947),VLOOKUP(K78,Feuil2!$F$10:$P$28,9),IF(AND(J78>=1947,J78<1952),VLOOKUP(K78,Feuil2!$F$10:$P$28,8),IF(AND(J78>=1952,J78<1957),VLOOKUP(K78,Feuil2!$F$10:$P$28,7),IF(AND(J78>=1957,J78<1962),VLOOKUP(K78,Feuil2!$F$10:$P$28,6),IF(AND(J78>=1962,J78<1967),VLOOKUP(K78,Feuil2!$F$10:$P$28,5),IF(AND(J78>=1967,J78<1972),VLOOKUP(K78,Feuil2!$F$10:$P$28,4),IF(AND(J78>=1972,J78<1977),VLOOKUP(K78,Feuil2!$F$10:$P$28,3),IF(AND(J78>=1977,J78<1982),VLOOKUP(K78,Feuil2!$F$10:$P$28,2),VLOOKUP(K78,Feuil2!$F$10:$P$28,2)))))))))))) ->  | AA78: =T78-HLOOKUP(Y78,Feuil2!$C$1:$CD$9,2,FALSE) ->  | AB78: =T78-HLOOKUP(Y78,Feuil2!$C$1:$CD$9,3,FALSE) ->  | AC78: =T78-HLOOKUP(Y78,Feuil2!$C$1:$CD$9,4,FALSE) ->  | AD78: =T78-HLOOKUP(Y78,Feuil2!$C$1:$CD$9,5,FALSE) ->  | AE78: =T78-HLOOKUP(Y78,Feuil2!$C$1:$CD$9,6,FALSE) ->  | AF78: =T78-HLOOKUP(Y78,Feuil2!$C$1:$CD$9,7,FALSE) ->  | AG78: =T78-HLOOKUP(Y78,Feuil2!$C$1:$CD$9,8,FALSE) ->  | AH78: =T78-HLOOKUP(Y78,Feuil2!$C$1:$CD$9,9,FALSE) ->  | AQ78: 2016 | AS78: =IF(AQ78,VLOOKUP(AQ78,HOM!$AS$555:$AT$610,2)) -> 3.571
A79: H | Y79: =IF(AND(J79<1920),VLOOKUP(K79,Feuil2!$F$10:$P$28,11),IF(AND(J79>=1920,J79<1937),VLOOKUP(K79,Feuil2!$F$10:$P$28,11),IF(AND(J79>=1936,J79<1942),VLOOKUP(K79,Feuil2!$F$10:$P$28,10),IF(AND(J79>=1942,J79<1947),VLOOKUP(K79,Feuil2!$F$10:$P$28,9),IF(AND(J79>=1947,J79<1952),VLOOKUP(K79,Feuil2!$F$10:$P$28,8),IF(AND(J79>=1952,J79<1957),VLOOKUP(K79,Feuil2!$F$10:$P$28,7),IF(AND(J79>=1957,J79<1962),VLOOKUP(K79,Feuil2!$F$10:$P$28,6),IF(AND(J79>=1962,J79<1967),VLOOKUP(K79,Feuil2!$F$10:$P$28,5),IF(AND(J79>=1967,J79<1972),VLOOKUP(K79,Feuil2!$F$10:$P$28,4),IF(AND(J79>=1972,J79<1977),VLOOKUP(K79,Feuil2!$F$10:$P$28,3),IF(AND(J79>=1977,J79<1982),VLOOKUP(K79,Feuil2!$F$10:$P$28,2),VLOOKUP(K79,Feuil2!$F$10:$P$28,2)))))))))))) ->  | AA79: =T79-HLOOKUP(Y79,Feuil2!$C$1:$CD$9,2,FALSE) ->  | AB79: =T79-HLOOKUP(Y79,Feuil2!$C$1:$CD$9,3,FALSE) ->  | AC79: =T79-HLOOKUP(Y79,Feuil2!$C$1:$CD$9,4,FALSE) ->  | AD79: =T79-HLOOKUP(Y79,Feuil2!$C$1:$CD$9,5,FALSE) ->  | AE79: =T79-HLOOKUP(Y79,Feuil2!$C$1:$CD$9,6,FALSE) ->  | AF79: =T79-HLOOKUP(Y79,Feuil2!$C$1:$CD$9,7,FALSE) ->  | AG79: =T79-HLOOKUP(Y79,Feuil2!$C$1:$CD$9,8,FALSE) ->  | AH79: =T79-HLOOKUP(Y79,Feuil2!$C$1:$CD$9,9,FALSE) ->  | AQ79: 2016 | AS79: =IF(AQ79,VLOOKUP(AQ79,HOM!$AS$555:$AT$610,2)) -> 3.571
A80: H | Y80: =IF(AND(J80<1920),VLOOKUP(K80,Feuil2!$F$10:$P$28,11),IF(AND(J80>=1920,J80<1937),VLOOKUP(K80,Feuil2!$F$10:$P$28,11),IF(AND(J80>=1936,J80<1942),VLOOKUP(K80,Feuil2!$F$10:$P$28,10),IF(AND(J80>=1942,J80<1947),VLOOKUP(K80,Feuil2!$F$10:$P$28,9),IF(AND(J80>=1947,J80<1952),VLOOKUP(K80,Feuil2!$F$10:$P$28,8),IF(AND(J80>=1952,J80<1957),VLOOKUP(K80,Feuil2!$F$10:$P$28,7),IF(AND(J80>=1957,J80<1962),VLOOKUP(K80,Feuil2!$F$10:$P$28,6),IF(AND(J80>=1962,J80<1967),VLOOKUP(K80,Feuil2!$F$10:$P$28,5),IF(AND(J80>=1967,J80<1972),VLOOKUP(K80,Feuil2!$F$10:$P$28,4),IF(AND(J80>=1972,J80<1977),VLOOKUP(K80,Feuil2!$F$10:$P$28,3),IF(AND(J80>=1977,J80<1982),VLOOKUP(K80,Feuil2!$F$10:$P$28,2),VLOOKUP(K80,Feuil2!$F$10:$P$28,2)))))))))))) ->  | AA80: =T80-HLOOKUP(Y80,Feuil2!$C$1:$CD$9,2,FALSE) ->  | AB80: =T80-HLOOKUP(Y80,Feuil2!$C$1:$CD$9,3,FALSE) ->  | AC80: =T80-HLOOKUP(Y80,Feuil2!$C$1:$CD$9,4,FALSE) ->  | AD80: =T80-HLOOKUP(Y80,Feuil2!$C$1:$CD$9,5,FALSE) ->  | AE80: =T80-HLOOKUP(Y80,Feuil2!$C$1:$CD$9,6,FALSE) ->  | AF80: =T80-HLOOKUP(Y80,Feuil2!$C$1:$CD$9,7,FALSE) ->  | AG80: =T80-HLOOKUP(Y80,Feuil2!$C$1:$CD$9,8,FALSE) ->  | AH80: =T80-HLOOKUP(Y80,Feuil2!$C$1:$CD$9,9,FALSE) ->  | AQ80: 2016 | AS80: =IF(AQ80,VLOOKUP(AQ80,HOM!$AS$555:$AT$610,2)) -> 3.571
A81: H | Y81: =IF(AND(J81<1920),VLOOKUP(K81,Feuil2!$F$10:$P$28,11),IF(AND(J81>=1920,J81<1937),VLOOKUP(K81,Feuil2!$F$10:$P$28,11),IF(AND(J81>=1936,J81<1942),VLOOKUP(K81,Feuil2!$F$10:$P$28,10),IF(AND(J81>=1942,J81<1947),VLOOKUP(K81,Feuil2!$F$10:$P$28,9),IF(AND(J81>=1947,J81<1952),VLOOKUP(K81,Feuil2!$F$10:$P$28,8),IF(AND(J81>=1952,J81<1957),VLOOKUP(K81,Feuil2!$F$10:$P$28,7),IF(AND(J81>=1957,J81<1962),VLOOKUP(K81,Feuil2!$F$10:$P$28,6),IF(AND(J81>=1962,J81<1967),VLOOKUP(K81,Feuil2!$F$10:$P$28,5),IF(AND(J81>=1967,J81<1972),VLOOKUP(K81,Feuil2!$F$10:$P$28,4),IF(AND(J81>=1972,J81<1977),VLOOKUP(K81,Feuil2!$F$10:$P$28,3),IF(AND(J81>=1977,J81<1982),VLOOKUP(K81,Feuil2!$F$10:$P$28,2),VLOOKUP(K81,Feuil2!$F$10:$P$28,2)))))))))))) ->  | AA81: =T81-HLOOKUP(Y81,Feuil2!$C$1:$CD$9,2,FALSE) ->  | AB81: =T81-HLOOKUP(Y81,Feuil2!$C$1:$CD$9,3,FALSE) ->  | AC81: =T81-HLOOKUP(Y81,Feuil2!$C$1:$CD$9,4,FALSE) ->  | AD81: =T81-HLOOKUP(Y81,Feuil2!$C$1:$CD$9,5,FALSE) ->  | AE81: =T81-HLOOKUP(Y81,Feuil2!$C$1:$CD$9,6,FALSE) ->  | AF81: =T81-HLOOKUP(Y81,Feuil2!$C$1:$CD$9,7,FALSE) ->  | AG81: =T81-HLOOKUP(Y81,Feuil2!$C$1:$CD$9,8,FALSE) ->  | AH81: =T81-HLOOKUP(Y81,Feuil2!$C$1:$CD$9,9,FALSE) ->  | AQ81: 2016 | AS81: =IF(AQ81,VLOOKUP(AQ81,HOM!$AS$555:$AT$610,2)) -> 3.571
A82: H | Y82: =IF(AND(J82<1920),VLOOKUP(K82,Feuil2!$F$10:$P$28,11),IF(AND(J82>=1920,J82<1937),VLOOKUP(K82,Feuil2!$F$10:$P$28,11),IF(AND(J82>=1936,J82<1942),VLOOKUP(K82,Feuil2!$F$10:$P$28,10),IF(AND(J82>=1942,J82<1947),VLOOKUP(K82,Feuil2!$F$10:$P$28,9),IF(AND(J82>=1947,J82<1952),VLOOKUP(K82,Feuil2!$F$10:$P$28,8),IF(AND(J82>=1952,J82<1957),VLOOKUP(K82,Feuil2!$F$10:$P$28,7),IF(AND(J82>=1957,J82<1962),VLOOKUP(K82,Feuil2!$F$10:$P$28,6),IF(AND(J82>=1962,J82<1967),VLOOKUP(K82,Feuil2!$F$10:$P$28,5),IF(AND(J82>=1967,J82<1972),VLOOKUP(K82,Feuil2!$F$10:$P$28,4),IF(AND(J82>=1972,J82<1977),VLOOKUP(K82,Feuil2!$F$10:$P$28,3),IF(AND(J82>=1977,J82<1982),VLOOKUP(K82,Feuil2!$F$10:$P$28,2),VLOOKUP(K82,Feuil2!$F$10:$P$28,2)))))))))))) ->  | AA82: =T82-HLOOKUP(Y82,Feuil2!$C$1:$CD$9,2,FALSE) ->  | AB82: =T82-HLOOKUP(Y82,Feuil2!$C$1:$CD$9,3,FALSE) ->  | AC82: =T82-HLOOKUP(Y82,Feuil2!$C$1:$CD$9,4,FALSE) ->  | AD82: =T82-HLOOKUP(Y82,Feuil2!$C$1:$CD$9,5,FALSE) ->  | AE82: =T82-HLOOKUP(Y82,Feuil2!$C$1:$CD$9,6,FALSE) ->  | AF82: =T82-HLOOKUP(Y82,Feuil2!$C$1:$CD$9,7,FALSE) ->  | AG82: =T82-HLOOKUP(Y82,Feuil2!$C$1:$CD$9,8,FALSE) ->  | AH82: =T82-HLOOKUP(Y82,Feuil2!$C$1:$CD$9,9,FALSE) ->  | AQ82: 2016 | AS82: =IF(AQ82,VLOOKUP(AQ82,HOM!$AS$555:$AT$610,2)) -> 3.571
A83: H | Y83: =IF(AND(J83<1920),VLOOKUP(K83,Feuil2!$F$10:$P$28,11),IF(AND(J83>=1920,J83<1937),VLOOKUP(K83,Feuil2!$F$10:$P$28,11),IF(AND(J83>=1936,J83<1942),VLOOKUP(K83,Feuil2!$F$10:$P$28,10),IF(AND(J83>=1942,J83<1947),VLOOKUP(K83,Feuil2!$F$10:$P$28,9),IF(AND(J83>=1947,J83<1952),VLOOKUP(K83,Feuil2!$F$10:$P$28,8),IF(AND(J83>=1952,J83<1957),VLOOKUP(K83,Feuil2!$F$10:$P$28,7),IF(AND(J83>=1957,J83<1962),VLOOKUP(K83,Feuil2!$F$10:$P$28,6),IF(AND(J83>=1962,J83<1967),VLOOKUP(K83,Feuil2!$F$10:$P$28,5),IF(AND(J83>=1967,J83<1972),VLOOKUP(K83,Feuil2!$F$10:$P$28,4),IF(AND(J83>=1972,J83<1977),VLOOKUP(K83,Feuil2!$F$10:$P$28,3),IF(AND(J83>=1977,J83<1982),VLOOKUP(K83,Feuil2!$F$10:$P$28,2),VLOOKUP(K83,Feuil2!$F$10:$P$28,2)))))))))))) ->  | AA83: =T83-HLOOKUP(Y83,Feuil2!$C$1:$CD$9,2,FALSE) ->  | AB83: =T83-HLOOKUP(Y83,Feuil2!$C$1:$CD$9,3,FALSE) ->  | AC83: =T83-HLOOKUP(Y83,Feuil2!$C$1:$CD$9,4,FALSE) ->  | AD83: =T83-HLOOKUP(Y83,Feuil2!$C$1:$CD$9,5,FALSE) ->  | AE83: =T83-HLOOKUP(Y83,Feuil2!$C$1:$CD$9,6,FALSE) ->  | AF83: =T83-HLOOKUP(Y83,Feuil2!$C$1:$CD$9,7,FALSE) ->  | AG83: =T83-HLOOKUP(Y83,Feuil2!$C$1:$CD$9,8,FALSE) ->  | AH83: =T83-HLOOKUP(Y83,Feuil2!$C$1:$CD$9,9,FALSE) ->  | AQ83: 2016 | AS83: =IF(AQ83,VLOOKUP(AQ83,HOM!$AS$555:$AT$610,2)) -> 3.571
A84: H | Y84: =IF(AND(J84<1920),VLOOKUP(K84,Feuil2!$F$10:$P$28,11),IF(AND(J84>=1920,J84<1937),VLOOKUP(K84,Feuil2!$F$10:$P$28,11),IF(AND(J84>=1936,J84<1942),VLOOKUP(K84,Feuil2!$F$10:$P$28,10),IF(AND(J84>=1942,J84<1947),VLOOKUP(K84,Feuil2!$F$10:$P$28,9),IF(AND(J84>=1947,J84<1952),VLOOKUP(K84,Feuil2!$F$10:$P$28,8),IF(AND(J84>=1952,J84<1957),VLOOKUP(K84,Feuil2!$F$10:$P$28,7),IF(AND(J84>=1957,J84<1962),VLOOKUP(K84,Feuil2!$F$10:$P$28,6),IF(AND(J84>=1962,J84<1967),VLOOKUP(K84,Feuil2!$F$10:$P$28,5),IF(AND(J84>=1967,J84<1972),VLOOKUP(K84,Feuil2!$F$10:$P$28,4),IF(AND(J84>=1972,J84<1977),VLOOKUP(K84,Feuil2!$F$10:$P$28,3),IF(AND(J84>=1977,J84<1982),VLOOKUP(K84,Feuil2!$F$10:$P$28,2),VLOOKUP(K84,Feuil2!$F$10:$P$28,2)))))))))))) ->  | AA84: =T84-HLOOKUP(Y84,Feuil2!$C$1:$CD$9,2,FALSE) ->  | AB84: =T84-HLOOKUP(Y84,Feuil2!$C$1:$CD$9,3,FALSE) ->  | AC84: =T84-HLOOKUP(Y84,Feuil2!$C$1:$CD$9,4,FALSE) ->  | AD84: =T84-HLOOKUP(Y84,Feuil2!$C$1:$CD$9,5,FALSE) ->  | AE84: =T84-HLOOKUP(Y84,Feuil2!$C$1:$CD$9,6,FALSE) ->  | AF84: =T84-HLOOKUP(Y84,Feuil2!$C$1:$CD$9,7,FALSE) ->  | AG84: =T84-HLOOKUP(Y84,Feuil2!$C$1:$CD$9,8,FALSE) ->  | AH84: =T84-HLOOKUP(Y84,Feuil2!$C$1:$CD$9,9,FALSE) ->  | AQ84: 2016 | AS84: =IF(AQ84,VLOOKUP(AQ84,HOM!$AS$555:$AT$610,2)) -> 3.571
A85: H | O85: =IF(K85="","",IF(MAXA(L85:N85)<=0,0,MAXA(L85:N85))) ->  | Y85: =IF(AND(J85<1920),VLOOKUP(K85,Feuil2!$F$10:$P$28,11),IF(AND(J85>=1920,J85<1937),VLOOKUP(K85,Feuil2!$F$10:$P$28,11),IF(AND(J85>=1936,J85<1942),VLOOKUP(K85,Feuil2!$F$10:$P$28,10),IF(AND(J85>=1942,J85<1947),VLOOKUP(K85,Feuil2!$F$10:$P$28,9),IF(AND(J85>=1947,J85<1952),VLOOKUP(K85,Feuil2!$F$10:$P$28,8),IF(AND(J85>=1952,J85<1957),VLOOKUP(K85,Feuil2!$F$10:$P$28,7),IF(AND(J85>=1957,J85<1962),VLOOKUP(K85,Feuil2!$F$10:$P$28,6),IF(AND(J85>=1962,J85<1967),VLOOKUP(K85,Feuil2!$F$10:$P$28,5),IF(AND(J85>=1967,J85<1972),VLOOKUP(K85,Feuil2!$F$10:$P$28,4),IF(AND(J85>=1972,J85<1977),VLOOKUP(K85,Feuil2!$F$10:$P$28,3),IF(AND(J85>=1977,J85<1982),VLOOKUP(K85,Feuil2!$F$10:$P$28,2),VLOOKUP(K85,Feuil2!$F$10:$P$28,2)))))))))))) ->  | AA85: =T85-HLOOKUP(Y85,Feuil2!$C$1:$CD$9,2,FALSE) ->  | AB85: =T85-HLOOKUP(Y85,Feuil2!$C$1:$CD$9,3,FALSE) ->  | AC85: =T85-HLOOKUP(Y85,Feuil2!$C$1:$CD$9,4,FALSE) ->  | AD85: =T85-HLOOKUP(Y85,Feuil2!$C$1:$CD$9,5,FALSE) ->  | AE85: =T85-HLOOKUP(Y85,Feuil2!$C$1:$CD$9,6,FALSE) ->  | AF85: =T85-HLOOKUP(Y85,Feuil2!$C$1:$CD$9,7,FALSE) ->  | AG85: =T85-HLOOKUP(Y85,Feuil2!$C$1:$CD$9,8,FALSE) ->  | AH85: =T85-HLOOKUP(Y85,Feuil2!$C$1:$CD$9,9,FALSE) ->  | AQ85: 2016 | AS85: =IF(AQ85,VLOOKUP(AQ85,HOM!$AS$555:$AT$610,2)) -> 3.571
A86: H | Y86: =IF(AND(J86<1920),VLOOKUP(K86,Feuil2!$F$10:$P$28,11),IF(AND(J86>=1920,J86<1937),VLOOKUP(K86,Feuil2!$F$10:$P$28,11),IF(AND(J86>=1936,J86<1942),VLOOKUP(K86,Feuil2!$F$10:$P$28,10),IF(AND(J86>=1942,J86<1947),VLOOKUP(K86,Feuil2!$F$10:$P$28,9),IF(AND(J86>=1947,J86<1952),VLOOKUP(K86,Feuil2!$F$10:$P$28,8),IF(AND(J86>=1952,J86<1957),VLOOKUP(K86,Feuil2!$F$10:$P$28,7),IF(AND(J86>=1957,J86<1962),VLOOKUP(K86,Feuil2!$F$10:$P$28,6),IF(AND(J86>=1962,J86<1967),VLOOKUP(K86,Feuil2!$F$10:$P$28,5),IF(AND(J86>=1967,J86<1972),VLOOKUP(K86,Feuil2!$F$10:$P$28,4),IF(AND(J86>=1972,J86<1977),VLOOKUP(K86,Feuil2!$F$10:$P$28,3),IF(AND(J86>=1977,J86<1982),VLOOKUP(K86,Feuil2!$F$10:$P$28,2),VLOOKUP(K86,Feuil2!$F$10:$P$28,2)))))))))))) ->  | AA86: =T86-HLOOKUP(Y86,Feuil2!$C$1:$CD$9,2,FALSE) ->  | AB86: =T86-HLOOKUP(Y86,Feuil2!$C$1:$CD$9,3,FALSE) ->  | AC86: =T86-HLOOKUP(Y86,Feuil2!$C$1:$CD$9,4,FALSE) ->  | AD86: =T86-HLOOKUP(Y86,Feuil2!$C$1:$CD$9,5,FALSE) ->  | AE86: =T86-HLOOKUP(Y86,Feuil2!$C$1:$CD$9,6,FALSE) ->  | AF86: =T86-HLOOKUP(Y86,Feuil2!$C$1:$CD$9,7,FALSE) ->  | AG86: =T86-HLOOKUP(Y86,Feuil2!$C$1:$CD$9,8,FALSE) ->  | AH86: =T86-HLOOKUP(Y86,Feuil2!$C$1:$CD$9,9,FALSE) ->  | AQ86: 2016 | AS86: =IF(AQ86,VLOOKUP(AQ86,HOM!$AS$555:$AT$610,2)) -> 3.571
A87: H | Y87: =IF(AND(J87<1920),VLOOKUP(K87,Feuil2!$F$10:$P$28,11),IF(AND(J87>=1920,J87<1937),VLOOKUP(K87,Feuil2!$F$10:$P$28,11),IF(AND(J87>=1936,J87<1942),VLOOKUP(K87,Feuil2!$F$10:$P$28,10),IF(AND(J87>=1942,J87<1947),VLOOKUP(K87,Feuil2!$F$10:$P$28,9),IF(AND(J87>=1947,J87<1952),VLOOKUP(K87,Feuil2!$F$10:$P$28,8),IF(AND(J87>=1952,J87<1957),VLOOKUP(K87,Feuil2!$F$10:$P$28,7),IF(AND(J87>=1957,J87<1962),VLOOKUP(K87,Feuil2!$F$10:$P$28,6),IF(AND(J87>=1962,J87<1967),VLOOKUP(K87,Feuil2!$F$10:$P$28,5),IF(AND(J87>=1967,J87<1972),VLOOKUP(K87,Feuil2!$F$10:$P$28,4),IF(AND(J87>=1972,J87<1977),VLOOKUP(K87,Feuil2!$F$10:$P$28,3),IF(AND(J87>=1977,J87<1982),VLOOKUP(K87,Feuil2!$F$10:$P$28,2),VLOOKUP(K87,Feuil2!$F$10:$P$28,2)))))))))))) ->  | AA87: =T87-HLOOKUP(Y87,Feuil2!$C$1:$CD$9,2,FALSE) ->  | AB87: =T87-HLOOKUP(Y87,Feuil2!$C$1:$CD$9,3,FALSE) ->  | AC87: =T87-HLOOKUP(Y87,Feuil2!$C$1:$CD$9,4,FALSE) ->  | AD87: =T87-HLOOKUP(Y87,Feuil2!$C$1:$CD$9,5,FALSE) ->  | AE87: =T87-HLOOKUP(Y87,Feuil2!$C$1:$CD$9,6,FALSE) ->  | AF87: =T87-HLOOKUP(Y87,Feuil2!$C$1:$CD$9,7,FALSE) ->  | AG87: =T87-HLOOKUP(Y87,Feuil2!$C$1:$CD$9,8,FALSE) ->  | AH87: =T87-HLOOKUP(Y87,Feuil2!$C$1:$CD$9,9,FALSE) ->  | AQ87: 2016 | AS87: =IF(AQ87,VLOOKUP(AQ87,HOM!$AS$555:$AT$610,2)) -> 3.571
A88: H | Y88: =IF(AND(J88<1920),VLOOKUP(K88,Feuil2!$F$10:$P$28,11),IF(AND(J88>=1920,J88<1937),VLOOKUP(K88,Feuil2!$F$10:$P$28,11),IF(AND(J88>=1936,J88<1942),VLOOKUP(K88,Feuil2!$F$10:$P$28,10),IF(AND(J88>=1942,J88<1947),VLOOKUP(K88,Feuil2!$F$10:$P$28,9),IF(AND(J88>=1947,J88<1952),VLOOKUP(K88,Feuil2!$F$10:$P$28,8),IF(AND(J88>=1952,J88<1957),VLOOKUP(K88,Feuil2!$F$10:$P$28,7),IF(AND(J88>=1957,J88<1962),VLOOKUP(K88,Feuil2!$F$10:$P$28,6),IF(AND(J88>=1962,J88<1967),VLOOKUP(K88,Feuil2!$F$10:$P$28,5),IF(AND(J88>=1967,J88<1972),VLOOKUP(K88,Feuil2!$F$10:$P$28,4),IF(AND(J88>=1972,J88<1977),VLOOKUP(K88,Feuil2!$F$10:$P$28,3),IF(AND(J88>=1977,J88<1982),VLOOKUP(K88,Feuil2!$F$10:$P$28,2),VLOOKUP(K88,Feuil2!$F$10:$P$28,2)))))))))))) ->  | AA88: =T88-HLOOKUP(Y88,Feuil2!$C$1:$CD$9,2,FALSE) ->  | AB88: =T88-HLOOKUP(Y88,Feuil2!$C$1:$CD$9,3,FALSE) ->  | AC88: =T88-HLOOKUP(Y88,Feuil2!$C$1:$CD$9,4,FALSE) ->  | AD88: =T88-HLOOKUP(Y88,Feuil2!$C$1:$CD$9,5,FALSE) ->  | AE88: =T88-HLOOKUP(Y88,Feuil2!$C$1:$CD$9,6,FALSE) ->  | AF88: =T88-HLOOKUP(Y88,Feuil2!$C$1:$CD$9,7,FALSE) ->  | AG88: =T88-HLOOKUP(Y88,Feuil2!$C$1:$CD$9,8,FALSE) ->  | AH88: =T88-HLOOKUP(Y88,Feuil2!$C$1:$CD$9,9,FALSE) ->  | AQ88: 2016 | AS88: =IF(AQ88,VLOOKUP(AQ88,HOM!$AS$555:$AT$610,2)) -> 3.571
A89: H | Y89: =IF(AND(J89<1920),VLOOKUP(K89,Feuil2!$F$10:$P$28,11),IF(AND(J89>=1920,J89<1937),VLOOKUP(K89,Feuil2!$F$10:$P$28,11),IF(AND(J89>=1936,J89<1942),VLOOKUP(K89,Feuil2!$F$10:$P$28,10),IF(AND(J89>=1942,J89<1947),VLOOKUP(K89,Feuil2!$F$10:$P$28,9),IF(AND(J89>=1947,J89<1952),VLOOKUP(K89,Feuil2!$F$10:$P$28,8),IF(AND(J89>=1952,J89<1957),VLOOKUP(K89,Feuil2!$F$10:$P$28,7),IF(AND(J89>=1957,J89<1962),VLOOKUP(K89,Feuil2!$F$10:$P$28,6),IF(AND(J89>=1962,J89<1967),VLOOKUP(K89,Feuil2!$F$10:$P$28,5),IF(AND(J89>=1967,J89<1972),VLOOKUP(K89,Feuil2!$F$10:$P$28,4),IF(AND(J89>=1972,J89<1977),VLOOKUP(K89,Feuil2!$F$10:$P$28,3),IF(AND(J89>=1977,J89<1982),VLOOKUP(K89,Feuil2!$F$10:$P$28,2),VLOOKUP(K89,Feuil2!$F$10:$P$28,2)))))))))))) ->  | AA89: =T89-HLOOKUP(Y89,Feuil2!$C$1:$CD$9,2,FALSE) ->  | AB89: =T89-HLOOKUP(Y89,Feuil2!$C$1:$CD$9,3,FALSE) ->  | AC89: =T89-HLOOKUP(Y89,Feuil2!$C$1:$CD$9,4,FALSE) ->  | AD89: =T89-HLOOKUP(Y89,Feuil2!$C$1:$CD$9,5,FALSE) ->  | AE89: =T89-HLOOKUP(Y89,Feuil2!$C$1:$CD$9,6,FALSE) ->  | AF89: =T89-HLOOKUP(Y89,Feuil2!$C$1:$CD$9,7,FALSE) ->  | AG89: =T89-HLOOKUP(Y89,Feuil2!$C$1:$CD$9,8,FALSE) ->  | AH89: =T89-HLOOKUP(Y89,Feuil2!$C$1:$CD$9,9,FALSE) ->  | AQ89: 2016 | AS89: =IF(AQ89,VLOOKUP(AQ89,HOM!$AS$555:$AT$610,2)) -> 3.571
A90: H | Y90: =IF(AND(J90<1920),VLOOKUP(K90,Feuil2!$F$10:$P$28,11),IF(AND(J90>=1920,J90<1937),VLOOKUP(K90,Feuil2!$F$10:$P$28,11),IF(AND(J90>=1936,J90<1942),VLOOKUP(K90,Feuil2!$F$10:$P$28,10),IF(AND(J90>=1942,J90<1947),VLOOKUP(K90,Feuil2!$F$10:$P$28,9),IF(AND(J90>=1947,J90<1952),VLOOKUP(K90,Feuil2!$F$10:$P$28,8),IF(AND(J90>=1952,J90<1957),VLOOKUP(K90,Feuil2!$F$10:$P$28,7),IF(AND(J90>=1957,J90<1962),VLOOKUP(K90,Feuil2!$F$10:$P$28,6),IF(AND(J90>=1962,J90<1967),VLOOKUP(K90,Feuil2!$F$10:$P$28,5),IF(AND(J90>=1967,J90<1972),VLOOKUP(K90,Feuil2!$F$10:$P$28,4),IF(AND(J90>=1972,J90<1977),VLOOKUP(K90,Feuil2!$F$10:$P$28,3),IF(AND(J90>=1977,J90<1982),VLOOKUP(K90,Feuil2!$F$10:$P$28,2),VLOOKUP(K90,Feuil2!$F$10:$P$28,2)))))))))))) ->  | AA90: =T90-HLOOKUP(Y90,Feuil2!$C$1:$CD$9,2,FALSE) ->  | AB90: =T90-HLOOKUP(Y90,Feuil2!$C$1:$CD$9,3,FALSE) ->  | AC90: =T90-HLOOKUP(Y90,Feuil2!$C$1:$CD$9,4,FALSE) ->  | AD90: =T90-HLOOKUP(Y90,Feuil2!$C$1:$CD$9,5,FALSE) ->  | AE90: =T90-HLOOKUP(Y90,Feuil2!$C$1:$CD$9,6,FALSE) ->  | AF90: =T90-HLOOKUP(Y90,Feuil2!$C$1:$CD$9,7,FALSE) ->  | AG90: =T90-HLOOKUP(Y90,Feuil2!$C$1:$CD$9,8,FALSE) ->  | AH90: =T90-HLOOKUP(Y90,Feuil2!$C$1:$CD$9,9,FALSE) ->  | AQ90: 2016 | AS90: =IF(AQ90,VLOOKUP(AQ90,HOM!$AS$555:$AT$610,2)) -> 3.571
A91: H | Y91: =IF(AND(J91<1920),VLOOKUP(K91,Feuil2!$F$10:$P$28,11),IF(AND(J91>=1920,J91<1937),VLOOKUP(K91,Feuil2!$F$10:$P$28,11),IF(AND(J91>=1936,J91<1942),VLOOKUP(K91,Feuil2!$F$10:$P$28,10),IF(AND(J91>=1942,J91<1947),VLOOKUP(K91,Feuil2!$F$10:$P$28,9),IF(AND(J91>=1947,J91<1952),VLOOKUP(K91,Feuil2!$F$10:$P$28,8),IF(AND(J91>=1952,J91<1957),VLOOKUP(K91,Feuil2!$F$10:$P$28,7),IF(AND(J91>=1957,J91<1962),VLOOKUP(K91,Feuil2!$F$10:$P$28,6),IF(AND(J91>=1962,J91<1967),VLOOKUP(K91,Feuil2!$F$10:$P$28,5),IF(AND(J91>=1967,J91<1972),VLOOKUP(K91,Feuil2!$F$10:$P$28,4),IF(AND(J91>=1972,J91<1977),VLOOKUP(K91,Feuil2!$F$10:$P$28,3),IF(AND(J91>=1977,J91<1982),VLOOKUP(K91,Feuil2!$F$10:$P$28,2),VLOOKUP(K91,Feuil2!$F$10:$P$28,2)))))))))))) ->  | AA91: =T91-HLOOKUP(Y91,Feuil2!$C$1:$CD$9,2,FALSE) ->  | AB91: =T91-HLOOKUP(Y91,Feuil2!$C$1:$CD$9,3,FALSE) ->  | AC91: =T91-HLOOKUP(Y91,Feuil2!$C$1:$CD$9,4,FALSE) ->  | AD91: =T91-HLOOKUP(Y91,Feuil2!$C$1:$CD$9,5,FALSE) ->  | AE91: =T91-HLOOKUP(Y91,Feuil2!$C$1:$CD$9,6,FALSE) ->  | AF91: =T91-HLOOKUP(Y91,Feuil2!$C$1:$CD$9,7,FALSE) ->  | AG91: =T91-HLOOKUP(Y91,Feuil2!$C$1:$CD$9,8,FALSE) ->  | AH91: =T91-HLOOKUP(Y91,Feuil2!$C$1:$CD$9,9,FALSE) ->  | AQ91: 2016 | AS91: =IF(AQ91,VLOOKUP(AQ91,HOM!$AS$555:$AT$610,2)) -> 3.571
A92: H | Y92: =IF(AND(J92<1920),VLOOKUP(K92,Feuil2!$F$10:$P$28,11),IF(AND(J92>=1920,J92<1937),VLOOKUP(K92,Feuil2!$F$10:$P$28,11),IF(AND(J92>=1936,J92<1942),VLOOKUP(K92,Feuil2!$F$10:$P$28,10),IF(AND(J92>=1942,J92<1947),VLOOKUP(K92,Feuil2!$F$10:$P$28,9),IF(AND(J92>=1947,J92<1952),VLOOKUP(K92,Feuil2!$F$10:$P$28,8),IF(AND(J92>=1952,J92<1957),VLOOKUP(K92,Feuil2!$F$10:$P$28,7),IF(AND(J92>=1957,J92<1962),VLOOKUP(K92,Feuil2!$F$10:$P$28,6),IF(AND(J92>=1962,J92<1967),VLOOKUP(K92,Feuil2!$F$10:$P$28,5),IF(AND(J92>=1967,J92<1972),VLOOKUP(K92,Feuil2!$F$10:$P$28,4),IF(AND(J92>=1972,J92<1977),VLOOKUP(K92,Feuil2!$F$10:$P$28,3),IF(AND(J92>=1977,J92<1982),VLOOKUP(K92,Feuil2!$F$10:$P$28,2),VLOOKUP(K92,Feuil2!$F$10:$P$28,2)))))))))))) ->  | AA92: =T92-HLOOKUP(Y92,Feuil2!$C$1:$CD$9,2,FALSE) ->  | AB92: =T92-HLOOKUP(Y92,Feuil2!$C$1:$CD$9,3,FALSE) ->  | AC92: =T92-HLOOKUP(Y92,Feuil2!$C$1:$CD$9,4,FALSE) ->  | AD92: =T92-HLOOKUP(Y92,Feuil2!$C$1:$CD$9,5,FALSE) ->  | AE92: =T92-HLOOKUP(Y92,Feuil2!$C$1:$CD$9,6,FALSE) ->  | AF92: =T92-HLOOKUP(Y92,Feuil2!$C$1:$CD$9,7,FALSE) ->  | AG92: =T92-HLOOKUP(Y92,Feuil2!$C$1:$CD$9,8,FALSE) ->  | AH92: =T92-HLOOKUP(Y92,Feuil2!$C$1:$CD$9,9,FALSE) ->  | AQ92: 2016 | AS92: =IF(AQ92,VLOOKUP(AQ92,HOM!$AS$555:$AT$610,2)) -> 3.571
A93: H | Y93: =IF(AND(J93<1920),VLOOKUP(K93,Feuil2!$F$10:$P$28,11),IF(AND(J93>=1920,J93<1937),VLOOKUP(K93,Feuil2!$F$10:$P$28,11),IF(AND(J93>=1936,J93<1942),VLOOKUP(K93,Feuil2!$F$10:$P$28,10),IF(AND(J93>=1942,J93<1947),VLOOKUP(K93,Feuil2!$F$10:$P$28,9),IF(AND(J93>=1947,J93<1952),VLOOKUP(K93,Feuil2!$F$10:$P$28,8),IF(AND(J93>=1952,J93<1957),VLOOKUP(K93,Feuil2!$F$10:$P$28,7),IF(AND(J93>=1957,J93<1962),VLOOKUP(K93,Feuil2!$F$10:$P$28,6),IF(AND(J93>=1962,J93<1967),VLOOKUP(K93,Feuil2!$F$10:$P$28,5),IF(AND(J93>=1967,J93<1972),VLOOKUP(K93,Feuil2!$F$10:$P$28,4),IF(AND(J93>=1972,J93<1977),VLOOKUP(K93,Feuil2!$F$10:$P$28,3),IF(AND(J93>=1977,J93<1982),VLOOKUP(K93,Feuil2!$F$10:$P$28,2),VLOOKUP(K93,Feuil2!$F$10:$P$28,2)))))))))))) ->  | AA93: =T93-HLOOKUP(Y93,Feuil2!$C$1:$CD$9,2,FALSE) ->  | AB93: =T93-HLOOKUP(Y93,Feuil2!$C$1:$CD$9,3,FALSE) ->  | AC93: =T93-HLOOKUP(Y93,Feuil2!$C$1:$CD$9,4,FALSE) ->  | AD93: =T93-HLOOKUP(Y93,Feuil2!$C$1:$CD$9,5,FALSE) ->  | AE93: =T93-HLOOKUP(Y93,Feuil2!$C$1:$CD$9,6,FALSE) ->  | AF93: =T93-HLOOKUP(Y93,Feuil2!$C$1:$CD$9,7,FALSE) ->  | AG93: =T93-HLOOKUP(Y93,Feuil2!$C$1:$CD$9,8,FALSE) ->  | AH93: =T93-HLOOKUP(Y93,Feuil2!$C$1:$CD$9,9,FALSE) ->  | AQ93: 2016 | AS93: =IF(AQ93,VLOOKUP(AQ93,HOM!$AS$555:$AT$610,2)) -> 3.571
A94: H | Y94: =IF(AND(J94<1920),VLOOKUP(K94,Feuil2!$F$10:$P$28,11),IF(AND(J94>=1920,J94<1937),VLOOKUP(K94,Feuil2!$F$10:$P$28,11),IF(AND(J94>=1936,J94<1942),VLOOKUP(K94,Feuil2!$F$10:$P$28,10),IF(AND(J94>=1942,J94<1947),VLOOKUP(K94,Feuil2!$F$10:$P$28,9),IF(AND(J94>=1947,J94<1952),VLOOKUP(K94,Feuil2!$F$10:$P$28,8),IF(AND(J94>=1952,J94<1957),VLOOKUP(K94,Feuil2!$F$10:$P$28,7),IF(AND(J94>=1957,J94<1962),VLOOKUP(K94,Feuil2!$F$10:$P$28,6),IF(AND(J94>=1962,J94<1967),VLOOKUP(K94,Feuil2!$F$10:$P$28,5),IF(AND(J94>=1967,J94<1972),VLOOKUP(K94,Feuil2!$F$10:$P$28,4),IF(AND(J94>=1972,J94<1977),VLOOKUP(K94,Feuil2!$F$10:$P$28,3),IF(AND(J94>=1977,J94<1982),VLOOKUP(K94,Feuil2!$F$10:$P$28,2),VLOOKUP(K94,Feuil2!$F$10:$P$28,2)))))))))))) ->  | AA94: =T94-HLOOKUP(Y94,Feuil2!$C$1:$CD$9,2,FALSE) ->  | AB94: =T94-HLOOKUP(Y94,Feuil2!$C$1:$CD$9,3,FALSE) ->  | AC94: =T94-HLOOKUP(Y94,Feuil2!$C$1:$CD$9,4,FALSE) ->  | AD94: =T94-HLOOKUP(Y94,Feuil2!$C$1:$CD$9,5,FALSE) ->  | AE94: =T94-HLOOKUP(Y94,Feuil2!$C$1:$CD$9,6,FALSE) ->  | AF94: =T94-HLOOKUP(Y94,Feuil2!$C$1:$CD$9,7,FALSE) ->  | AG94: =T94-HLOOKUP(Y94,Feuil2!$C$1:$CD$9,8,FALSE) ->  | AH94: =T94-HLOOKUP(Y94,Feuil2!$C$1:$CD$9,9,FALSE) ->  | AQ94: 2016 | AS94: =IF(AQ94,VLOOKUP(AQ94,HOM!$AS$555:$AT$610,2)) -> 3.571
A95: H | Y95: =IF(AND(J95<1920),VLOOKUP(K95,Feuil2!$F$10:$P$28,11),IF(AND(J95>=1920,J95<1937),VLOOKUP(K95,Feuil2!$F$10:$P$28,11),IF(AND(J95>=1936,J95<1942),VLOOKUP(K95,Feuil2!$F$10:$P$28,10),IF(AND(J95>=1942,J95<1947),VLOOKUP(K95,Feuil2!$F$10:$P$28,9),IF(AND(J95>=1947,J95<1952),VLOOKUP(K95,Feuil2!$F$10:$P$28,8),IF(AND(J95>=1952,J95<1957),VLOOKUP(K95,Feuil2!$F$10:$P$28,7),IF(AND(J95>=1957,J95<1962),VLOOKUP(K95,Feuil2!$F$10:$P$28,6),IF(AND(J95>=1962,J95<1967),VLOOKUP(K95,Feuil2!$F$10:$P$28,5),IF(AND(J95>=1967,J95<1972),VLOOKUP(K95,Feuil2!$F$10:$P$28,4),IF(AND(J95>=1972,J95<1977),VLOOKUP(K95,Feuil2!$F$10:$P$28,3),IF(AND(J95>=1977,J95<1982),VLOOKUP(K95,Feuil2!$F$10:$P$28,2),VLOOKUP(K95,Feuil2!$F$10:$P$28,2)))))))))))) ->  | AA95: =T95-HLOOKUP(Y95,Feuil2!$C$1:$CD$9,2,FALSE) ->  | AB95: =T95-HLOOKUP(Y95,Feuil2!$C$1:$CD$9,3,FALSE) ->  | AC95: =T95-HLOOKUP(Y95,Feuil2!$C$1:$CD$9,4,FALSE) ->  | AD95: =T95-HLOOKUP(Y95,Feuil2!$C$1:$CD$9,5,FALSE) ->  | AE95: =T95-HLOOKUP(Y95,Feuil2!$C$1:$CD$9,6,FALSE) ->  | AF95: =T95-HLOOKUP(Y95,Feuil2!$C$1:$CD$9,7,FALSE) ->  | AG95: =T95-HLOOKUP(Y95,Feuil2!$C$1:$CD$9,8,FALSE) ->  | AH95: =T95-HLOOKUP(Y95,Feuil2!$C$1:$CD$9,9,FALSE) ->  | AQ95: 2016 | AS95: =IF(AQ95,VLOOKUP(AQ95,HOM!$AS$555:$AT$610,2)) -> 3.571
A96: H | Y96: =IF(AND(J96<1920),VLOOKUP(K96,Feuil2!$F$10:$P$28,11),IF(AND(J96>=1920,J96<1937),VLOOKUP(K96,Feuil2!$F$10:$P$28,11),IF(AND(J96>=1936,J96<1942),VLOOKUP(K96,Feuil2!$F$10:$P$28,10),IF(AND(J96>=1942,J96<1947),VLOOKUP(K96,Feuil2!$F$10:$P$28,9),IF(AND(J96>=1947,J96<1952),VLOOKUP(K96,Feuil2!$F$10:$P$28,8),IF(AND(J96>=1952,J96<1957),VLOOKUP(K96,Feuil2!$F$10:$P$28,7),IF(AND(J96>=1957,J96<1962),VLOOKUP(K96,Feuil2!$F$10:$P$28,6),IF(AND(J96>=1962,J96<1967),VLOOKUP(K96,Feuil2!$F$10:$P$28,5),IF(AND(J96>=1967,J96<1972),VLOOKUP(K96,Feuil2!$F$10:$P$28,4),IF(AND(J96>=1972,J96<1977),VLOOKUP(K96,Feuil2!$F$10:$P$28,3),IF(AND(J96>=1977,J96<1982),VLOOKUP(K96,Feuil2!$F$10:$P$28,2),VLOOKUP(K96,Feuil2!$F$10:$P$28,2)))))))))))) ->  | AA96: =T96-HLOOKUP(Y96,Feuil2!$C$1:$CD$9,2,FALSE) ->  | AB96: =T96-HLOOKUP(Y96,Feuil2!$C$1:$CD$9,3,FALSE) ->  | AC96: =T96-HLOOKUP(Y96,Feuil2!$C$1:$CD$9,4,FALSE) ->  | AD96: =T96-HLOOKUP(Y96,Feuil2!$C$1:$CD$9,5,FALSE) ->  | AE96: =T96-HLOOKUP(Y96,Feuil2!$C$1:$CD$9,6,FALSE) ->  | AF96: =T96-HLOOKUP(Y96,Feuil2!$C$1:$CD$9,7,FALSE) ->  | AG96: =T96-HLOOKUP(Y96,Feuil2!$C$1:$CD$9,8,FALSE) ->  | AH96: =T96-HLOOKUP(Y96,Feuil2!$C$1:$CD$9,9,FALSE) ->  | AQ96: 2016 | AS96: =IF(AQ96,VLOOKUP(AQ96,HOM!$AS$555:$AT$610,2)) -> 3.571
A97: H | Y97: =IF(AND(J97<1920),VLOOKUP(K97,Feuil2!$F$10:$P$28,11),IF(AND(J97>=1920,J97<1937),VLOOKUP(K97,Feuil2!$F$10:$P$28,11),IF(AND(J97>=1936,J97<1942),VLOOKUP(K97,Feuil2!$F$10:$P$28,10),IF(AND(J97>=1942,J97<1947),VLOOKUP(K97,Feuil2!$F$10:$P$28,9),IF(AND(J97>=1947,J97<1952),VLOOKUP(K97,Feuil2!$F$10:$P$28,8),IF(AND(J97>=1952,J97<1957),VLOOKUP(K97,Feuil2!$F$10:$P$28,7),IF(AND(J97>=1957,J97<1962),VLOOKUP(K97,Feuil2!$F$10:$P$28,6),IF(AND(J97>=1962,J97<1967),VLOOKUP(K97,Feuil2!$F$10:$P$28,5),IF(AND(J97>=1967,J97<1972),VLOOKUP(K97,Feuil2!$F$10:$P$28,4),IF(AND(J97>=1972,J97<1977),VLOOKUP(K97,Feuil2!$F$10:$P$28,3),IF(AND(J97>=1977,J97<1982),VLOOKUP(K97,Feuil2!$F$10:$P$28,2),VLOOKUP(K97,Feuil2!$F$10:$P$28,2)))))))))))) ->  | AA97: =T97-HLOOKUP(Y97,Feuil2!$C$1:$CD$9,2,FALSE) ->  | AB97: =T97-HLOOKUP(Y97,Feuil2!$C$1:$CD$9,3,FALSE) ->  | AC97: =T97-HLOOKUP(Y97,Feuil2!$C$1:$CD$9,4,FALSE) ->  | AD97: =T97-HLOOKUP(Y97,Feuil2!$C$1:$CD$9,5,FALSE) ->  | AE97: =T97-HLOOKUP(Y97,Feuil2!$C$1:$CD$9,6,FALSE) ->  | AF97: =T97-HLOOKUP(Y97,Feuil2!$C$1:$CD$9,7,FALSE) ->  | AG97: =T97-HLOOKUP(Y97,Feuil2!$C$1:$CD$9,8,FALSE) ->  | AH97: =T97-HLOOKUP(Y97,Feuil2!$C$1:$CD$9,9,FALSE) ->  | AQ97: 2016 | AS97: =IF(AQ97,VLOOKUP(AQ97,HOM!$AS$555:$AT$610,2)) -> 3.571
A98: H | Y98: =IF(AND(J98<1920),VLOOKUP(K98,Feuil2!$F$10:$P$28,11),IF(AND(J98>=1920,J98<1937),VLOOKUP(K98,Feuil2!$F$10:$P$28,11),IF(AND(J98>=1936,J98<1942),VLOOKUP(K98,Feuil2!$F$10:$P$28,10),IF(AND(J98>=1942,J98<1947),VLOOKUP(K98,Feuil2!$F$10:$P$28,9),IF(AND(J98>=1947,J98<1952),VLOOKUP(K98,Feuil2!$F$10:$P$28,8),IF(AND(J98>=1952,J98<1957),VLOOKUP(K98,Feuil2!$F$10:$P$28,7),IF(AND(J98>=1957,J98<1962),VLOOKUP(K98,Feuil2!$F$10:$P$28,6),IF(AND(J98>=1962,J98<1967),VLOOKUP(K98,Feuil2!$F$10:$P$28,5),IF(AND(J98>=1967,J98<1972),VLOOKUP(K98,Feuil2!$F$10:$P$28,4),IF(AND(J98>=1972,J98<1977),VLOOKUP(K98,Feuil2!$F$10:$P$28,3),IF(AND(J98>=1977,J98<1982),VLOOKUP(K98,Feuil2!$F$10:$P$28,2),VLOOKUP(K98,Feuil2!$F$10:$P$28,2)))))))))))) ->  | AA98: =T98-HLOOKUP(Y98,Feuil2!$C$1:$CD$9,2,FALSE) ->  | AB98: =T98-HLOOKUP(Y98,Feuil2!$C$1:$CD$9,3,FALSE) ->  | AC98: =T98-HLOOKUP(Y98,Feuil2!$C$1:$CD$9,4,FALSE) ->  | AD98: =T98-HLOOKUP(Y98,Feuil2!$C$1:$CD$9,5,FALSE) ->  | AE98: =T98-HLOOKUP(Y98,Feuil2!$C$1:$CD$9,6,FALSE) ->  | AF98: =T98-HLOOKUP(Y98,Feuil2!$C$1:$CD$9,7,FALSE) ->  | AG98: =T98-HLOOKUP(Y98,Feuil2!$C$1:$CD$9,8,FALSE) ->  | AH98: =T98-HLOOKUP(Y98,Feuil2!$C$1:$CD$9,9,FALSE) ->  | AQ98: 2016 | AS98: =IF(AQ98,VLOOKUP(AQ98,HOM!$AS$555:$AT$610,2)) -> 3.571
A99: H | Y99: =IF(AND(J99<1920),VLOOKUP(K99,Feuil2!$F$10:$P$28,11),IF(AND(J99>=1920,J99<1937),VLOOKUP(K99,Feuil2!$F$10:$P$28,11),IF(AND(J99>=1936,J99<1942),VLOOKUP(K99,Feuil2!$F$10:$P$28,10),IF(AND(J99>=1942,J99<1947),VLOOKUP(K99,Feuil2!$F$10:$P$28,9),IF(AND(J99>=1947,J99<1952),VLOOKUP(K99,Feuil2!$F$10:$P$28,8),IF(AND(J99>=1952,J99<1957),VLOOKUP(K99,Feuil2!$F$10:$P$28,7),IF(AND(J99>=1957,J99<1962),VLOOKUP(K99,Feuil2!$F$10:$P$28,6),IF(AND(J99>=1962,J99<1967),VLOOKUP(K99,Feuil2!$F$10:$P$28,5),IF(AND(J99>=1967,J99<1972),VLOOKUP(K99,Feuil2!$F$10:$P$28,4),IF(AND(J99>=1972,J99<1977),VLOOKUP(K99,Feuil2!$F$10:$P$28,3),IF(AND(J99>=1977,J99<1982),VLOOKUP(K99,Feuil2!$F$10:$P$28,2),VLOOKUP(K99,Feuil2!$F$10:$P$28,2)))))))))))) ->  | AA99: =T99-HLOOKUP(Y99,Feuil2!$C$1:$CD$9,2,FALSE) ->  | AB99: =T99-HLOOKUP(Y99,Feuil2!$C$1:$CD$9,3,FALSE) ->  | AC99: =T99-HLOOKUP(Y99,Feuil2!$C$1:$CD$9,4,FALSE) ->  | AD99: =T99-HLOOKUP(Y99,Feuil2!$C$1:$CD$9,5,FALSE) ->  | AE99: =T99-HLOOKUP(Y99,Feuil2!$C$1:$CD$9,6,FALSE) ->  | AF99: =T99-HLOOKUP(Y99,Feuil2!$C$1:$CD$9,7,FALSE) ->  | AG99: =T99-HLOOKUP(Y99,Feuil2!$C$1:$CD$9,8,FALSE) ->  | AH99: =T99-HLOOKUP(Y99,Feuil2!$C$1:$CD$9,9,FALSE) ->  | AQ99: 2016 | AS99: =IF(AQ99,VLOOKUP(AQ99,HOM!$AS$555:$AT$610,2)) -> 3.571
A100: H | Y100: =IF(AND(J100<1920),VLOOKUP(K100,Feuil2!$F$10:$P$28,11),IF(AND(J100>=1920,J100<1937),VLOOKUP(K100,Feuil2!$F$10:$P$28,11),IF(AND(J100>=1936,J100<1942),VLOOKUP(K100,Feuil2!$F$10:$P$28,10),IF(AND(J100>=1942,J100<1947),VLOOKUP(K100,Feuil2!$F$10:$P$28,9),IF(AND(J100>=1947,J100<1952),VLOOKUP(K100,Feuil2!$F$10:$P$28,8),IF(AND(J100>=1952,J100<1957),VLOOKUP(K100,Feuil2!$F$10:$P$28,7),IF(AND(J100>=1957,J100<1962),VLOOKUP(K100,Feuil2!$F$10:$P$28,6),IF(AND(J100>=1962,J100<1967),VLOOKUP(K100,Feuil2!$F$10:$P$28,5),IF(AND(J100>=1967,J100<1972),VLOOKUP(K100,Feuil2!$F$10:$P$28,4),IF(AND(J100>=1972,J100<1977),VLOOKUP(K100,Feuil2!$F$10:$P$28,3),IF(AND(J100>=1977,J100<1982),VLOOKUP(K100,Feuil2!$F$10:$P$28,2),VLOOKUP(K100,Feuil2!$F$10:$P$28,2)))))))))))) ->  | AA100: =T100-HLOOKUP(Y100,Feuil2!$C$1:$CD$9,2,FALSE) ->  | AB100: =T100-HLOOKUP(Y100,Feuil2!$C$1:$CD$9,3,FALSE) ->  | AC100: =T100-HLOOKUP(Y100,Feuil2!$C$1:$CD$9,4,FALSE) ->  | AD100: =T100-HLOOKUP(Y100,Feuil2!$C$1:$CD$9,5,FALSE) ->  | AE100: =T100-HLOOKUP(Y100,Feuil2!$C$1:$CD$9,6,FALSE) ->  | AF100: =T100-HLOOKUP(Y100,Feuil2!$C$1:$CD$9,7,FALSE) ->  | AG100: =T100-HLOOKUP(Y100,Feuil2!$C$1:$CD$9,8,FALSE) ->  | AH100: =T100-HLOOKUP(Y100,Feuil2!$C$1:$CD$9,9,FALSE) ->  | AQ100: 2016 | AS100: =IF(AQ100,VLOOKUP(AQ100,HOM!$AS$555:$AT$610,2)) -> 3.571
A101: H | Y101: =IF(AND(J101<1920),VLOOKUP(K101,Feuil2!$F$10:$P$28,11),IF(AND(J101>=1920,J101<1937),VLOOKUP(K101,Feuil2!$F$10:$P$28,11),IF(AND(J101>=1936,J101<1942),VLOOKUP(K101,Feuil2!$F$10:$P$28,10),IF(AND(J101>=1942,J101<1947),VLOOKUP(K101,Feuil2!$F$10:$P$28,9),IF(AND(J101>=1947,J101<1952),VLOOKUP(K101,Feuil2!$F$10:$P$28,8),IF(AND(J101>=1952,J101<1957),VLOOKUP(K101,Feuil2!$F$10:$P$28,7),IF(AND(J101>=1957,J101<1962),VLOOKUP(K101,Feuil2!$F$10:$P$28,6),IF(AND(J101>=1962,J101<1967),VLOOKUP(K101,Feuil2!$F$10:$P$28,5),IF(AND(J101>=1967,J101<1972),VLOOKUP(K101,Feuil2!$F$10:$P$28,4),IF(AND(J101>=1972,J101<1977),VLOOKUP(K101,Feuil2!$F$10:$P$28,3),IF(AND(J101>=1977,J101<1982),VLOOKUP(K101,Feuil2!$F$10:$P$28,2),VLOOKUP(K101,Feuil2!$F$10:$P$28,2)))))))))))) ->  | AA101: =T101-HLOOKUP(Y101,Feuil2!$C$1:$CD$9,2,FALSE) ->  | AB101: =T101-HLOOKUP(Y101,Feuil2!$C$1:$CD$9,3,FALSE) ->  | AC101: =T101-HLOOKUP(Y101,Feuil2!$C$1:$CD$9,4,FALSE) ->  | AD101: =T101-HLOOKUP(Y101,Feuil2!$C$1:$CD$9,5,FALSE) ->  | AE101: =T101-HLOOKUP(Y101,Feuil2!$C$1:$CD$9,6,FALSE) ->  | AF101: =T101-HLOOKUP(Y101,Feuil2!$C$1:$CD$9,7,FALSE) ->  | AG101: =T101-HLOOKUP(Y101,Feuil2!$C$1:$CD$9,8,FALSE) ->  | AH101: =T101-HLOOKUP(Y101,Feuil2!$C$1:$CD$9,9,FALSE) ->  | AQ101: 2016 | AS101: =IF(AQ101,VLOOKUP(AQ101,HOM!$AS$555:$AT$610,2)) -> 3.571
A102: H | Y102: =IF(AND(J102<1920),VLOOKUP(K102,Feuil2!$F$10:$P$28,11),IF(AND(J102>=1920,J102<1937),VLOOKUP(K102,Feuil2!$F$10:$P$28,11),IF(AND(J102>=1936,J102<1942),VLOOKUP(K102,Feuil2!$F$10:$P$28,10),IF(AND(J102>=1942,J102<1947),VLOOKUP(K102,Feuil2!$F$10:$P$28,9),IF(AND(J102>=1947,J102<1952),VLOOKUP(K102,Feuil2!$F$10:$P$28,8),IF(AND(J102>=1952,J102<1957),VLOOKUP(K102,Feuil2!$F$10:$P$28,7),IF(AND(J102>=1957,J102<1962),VLOOKUP(K102,Feuil2!$F$10:$P$28,6),IF(AND(J102>=1962,J102<1967),VLOOKUP(K102,Feuil2!$F$10:$P$28,5),IF(AND(J102>=1967,J102<1972),VLOOKUP(K102,Feuil2!$F$10:$P$28,4),IF(AND(J102>=1972,J102<1977),VLOOKUP(K102,Feuil2!$F$10:$P$28,3),IF(AND(J102>=1977,J102<1982),VLOOKUP(K102,Feuil2!$F$10:$P$28,2),VLOOKUP(K102,Feuil2!$F$10:$P$28,2)))))))))))) ->  | AA102: =T102-HLOOKUP(Y102,Feuil2!$C$1:$CD$9,2,FALSE) ->  | AB102: =T102-HLOOKUP(Y102,Feuil2!$C$1:$CD$9,3,FALSE) ->  | AC102: =T102-HLOOKUP(Y102,Feuil2!$C$1:$CD$9,4,FALSE) ->  | AD102: =T102-HLOOKUP(Y102,Feuil2!$C$1:$CD$9,5,FALSE) ->  | AE102: =T102-HLOOKUP(Y102,Feuil2!$C$1:$CD$9,6,FALSE) ->  | AF102: =T102-HLOOKUP(Y102,Feuil2!$C$1:$CD$9,7,FALSE) ->  | AG102: =T102-HLOOKUP(Y102,Feuil2!$C$1:$CD$9,8,FALSE) ->  | AH102: =T102-HLOOKUP(Y102,Feuil2!$C$1:$CD$9,9,FALSE) ->  | AQ102: 2016 | AS102: =IF(AQ102,VLOOKUP(AQ102,HOM!$AS$555:$AT$610,2)) -> 3.571
A103: H | Y103: =IF(AND(J103<1920),VLOOKUP(K103,Feuil2!$F$10:$P$28,11),IF(AND(J103>=1920,J103<1937),VLOOKUP(K103,Feuil2!$F$10:$P$28,11),IF(AND(J103>=1936,J103<1942),VLOOKUP(K103,Feuil2!$F$10:$P$28,10),IF(AND(J103>=1942,J103<1947),VLOOKUP(K103,Feuil2!$F$10:$P$28,9),IF(AND(J103>=1947,J103<1952),VLOOKUP(K103,Feuil2!$F$10:$P$28,8),IF(AND(J103>=1952,J103<1957),VLOOKUP(K103,Feuil2!$F$10:$P$28,7),IF(AND(J103>=1957,J103<1962),VLOOKUP(K103,Feuil2!$F$10:$P$28,6),IF(AND(J103>=1962,J103<1967),VLOOKUP(K103,Feuil2!$F$10:$P$28,5),IF(AND(J103>=1967,J103<1972),VLOOKUP(K103,Feuil2!$F$10:$P$28,4),IF(AND(J103>=1972,J103<1977),VLOOKUP(K103,Feuil2!$F$10:$P$28,3),IF(AND(J103>=1977,J103<1982),VLOOKUP(K103,Feuil2!$F$10:$P$28,2),VLOOKUP(K103,Feuil2!$F$10:$P$28,2)))))))))))) ->  | AA103: =T103-HLOOKUP(Y103,Feuil2!$C$1:$CD$9,2,FALSE) ->  | AB103: =T103-HLOOKUP(Y103,Feuil2!$C$1:$CD$9,3,FALSE) ->  | AC103: =T103-HLOOKUP(Y103,Feuil2!$C$1:$CD$9,4,FALSE) ->  | AD103: =T103-HLOOKUP(Y103,Feuil2!$C$1:$CD$9,5,FALSE) ->  | AE103: =T103-HLOOKUP(Y103,Feuil2!$C$1:$CD$9,6,FALSE) ->  | AF103: =T103-HLOOKUP(Y103,Feuil2!$C$1:$CD$9,7,FALSE) ->  | AG103: =T103-HLOOKUP(Y103,Feuil2!$C$1:$CD$9,8,FALSE) ->  | AH103: =T103-HLOOKUP(Y103,Feuil2!$C$1:$CD$9,9,FALSE) ->  | AQ103: 2016 | AS103: =IF(AQ103,VLOOKUP(AQ103,HOM!$AS$555:$AT$610,2)) -> 3.571
A104: H | Y104: =IF(AND(J104<1920),VLOOKUP(K104,Feuil2!$F$10:$P$28,11),IF(AND(J104>=1920,J104<1937),VLOOKUP(K104,Feuil2!$F$10:$P$28,11),IF(AND(J104>=1936,J104<1942),VLOOKUP(K104,Feuil2!$F$10:$P$28,10),IF(AND(J104>=1942,J104<1947),VLOOKUP(K104,Feuil2!$F$10:$P$28,9),IF(AND(J104>=1947,J104<1952),VLOOKUP(K104,Feuil2!$F$10:$P$28,8),IF(AND(J104>=1952,J104<1957),VLOOKUP(K104,Feuil2!$F$10:$P$28,7),IF(AND(J104>=1957,J104<1962),VLOOKUP(K104,Feuil2!$F$10:$P$28,6),IF(AND(J104>=1962,J104<1967),VLOOKUP(K104,Feuil2!$F$10:$P$28,5),IF(AND(J104>=1967,J104<1972),VLOOKUP(K104,Feuil2!$F$10:$P$28,4),IF(AND(J104>=1972,J104<1977),VLOOKUP(K104,Feuil2!$F$10:$P$28,3),IF(AND(J104>=1977,J104<1982),VLOOKUP(K104,Feuil2!$F$10:$P$28,2),VLOOKUP(K104,Feuil2!$F$10:$P$28,2)))))))))))) ->  | AA104: =T104-HLOOKUP(Y104,Feuil2!$C$1:$CD$9,2,FALSE) ->  | AB104: =T104-HLOOKUP(Y104,Feuil2!$C$1:$CD$9,3,FALSE) ->  | AC104: =T104-HLOOKUP(Y104,Feuil2!$C$1:$CD$9,4,FALSE) ->  | AD104: =T104-HLOOKUP(Y104,Feuil2!$C$1:$CD$9,5,FALSE) ->  | AE104: =T104-HLOOKUP(Y104,Feuil2!$C$1:$CD$9,6,FALSE) ->  | AF104: =T104-HLOOKUP(Y104,Feuil2!$C$1:$CD$9,7,FALSE) ->  | AG104: =T104-HLOOKUP(Y104,Feuil2!$C$1:$CD$9,8,FALSE) ->  | AH104: =T104-HLOOKUP(Y104,Feuil2!$C$1:$CD$9,9,FALSE) ->  | AQ104: 2016 | AS104: =IF(AQ104,VLOOKUP(AQ104,HOM!$AS$555:$AT$610,2)) -> 3.571
A105: H | Y105: =IF(AND(J105<1920),VLOOKUP(K105,Feuil2!$F$10:$P$28,11),IF(AND(J105>=1920,J105<1937),VLOOKUP(K105,Feuil2!$F$10:$P$28,11),IF(AND(J105>=1936,J105<1942),VLOOKUP(K105,Feuil2!$F$10:$P$28,10),IF(AND(J105>=1942,J105<1947),VLOOKUP(K105,Feuil2!$F$10:$P$28,9),IF(AND(J105>=1947,J105<1952),VLOOKUP(K105,Feuil2!$F$10:$P$28,8),IF(AND(J105>=1952,J105<1957),VLOOKUP(K105,Feuil2!$F$10:$P$28,7),IF(AND(J105>=1957,J105<1962),VLOOKUP(K105,Feuil2!$F$10:$P$28,6),IF(AND(J105>=1962,J105<1967),VLOOKUP(K105,Feuil2!$F$10:$P$28,5),IF(AND(J105>=1967,J105<1972),VLOOKUP(K105,Feuil2!$F$10:$P$28,4),IF(AND(J105>=1972,J105<1977),VLOOKUP(K105,Feuil2!$F$10:$P$28,3),IF(AND(J105>=1977,J105<1982),VLOOKUP(K105,Feuil2!$F$10:$P$28,2),VLOOKUP(K105,Feuil2!$F$10:$P$28,2)))))))))))) ->  | AA105: =T105-HLOOKUP(Y105,Feuil2!$C$1:$CD$9,2,FALSE) ->  | AB105: =T105-HLOOKUP(Y105,Feuil2!$C$1:$CD$9,3,FALSE) ->  | AC105: =T105-HLOOKUP(Y105,Feuil2!$C$1:$CD$9,4,FALSE) ->  | AD105: =T105-HLOOKUP(Y105,Feuil2!$C$1:$CD$9,5,FALSE) ->  | AE105: =T105-HLOOKUP(Y105,Feuil2!$C$1:$CD$9,6,FALSE) ->  | AF105: =T105-HLOOKUP(Y105,Feuil2!$C$1:$CD$9,7,FALSE) ->  | AG105: =T105-HLOOKUP(Y105,Feuil2!$C$1:$CD$9,8,FALSE) ->  | AH105: =T105-HLOOKUP(Y105,Feuil2!$C$1:$CD$9,9,FALSE) ->  | AQ105: 2016 | AS105: =IF(AQ105,VLOOKUP(AQ105,HOM!$AS$555:$AT$610,2)) -> 3.571
A106: H | S106: =IF(K106="","",IF(MAXA(P106:R106)<=0,0,MAXA(P106:R106))) ->  | T106: =IF(K106="","",IF(OR(O106=0,S106=0),0,O106+S106)) ->  | Y106: =IF(AND(J106<1920),VLOOKUP(K106,Feuil2!$F$10:$P$28,11),IF(AND(J106>=1920,J106<1937),VLOOKUP(K106,Feuil2!$F$10:$P$28,11),IF(AND(J106>=1936,J106<1942),VLOOKUP(K106,Feuil2!$F$10:$P$28,10),IF(AND(J106>=1942,J106<1947),VLOOKUP(K106,Feuil2!$F$10:$P$28,9),IF(AND(J106>=1947,J106<1952),VLOOKUP(K106,Feuil2!$F$10:$P$28,8),IF(AND(J106>=1952,J106<1957),VLOOKUP(K106,Feuil2!$F$10:$P$28,7),IF(AND(J106>=1957,J106<1962),VLOOKUP(K106,Feuil2!$F$10:$P$28,6),IF(AND(J106>=1962,J106<1967),VLOOKUP(K106,Feuil2!$F$10:$P$28,5),IF(AND(J106>=1967,J106<1972),VLOOKUP(K106,Feuil2!$F$10:$P$28,4),IF(AND(J106>=1972,J106<1977),VLOOKUP(K106,Feuil2!$F$10:$P$28,3),IF(AND(J106>=1977,J106<1982),VLOOKUP(K106,Feuil2!$F$10:$P$28,2),VLOOKUP(K106,Feuil2!$F$10:$P$28,2)))))))))))) ->  | AA106: =T106-HLOOKUP(Y106,Feuil2!$C$1:$CD$9,2,FALSE) ->  | AB106: =T106-HLOOKUP(Y106,Feuil2!$C$1:$CD$9,3,FALSE) ->  | AC106: =T106-HLOOKUP(Y106,Feuil2!$C$1:$CD$9,4,FALSE) ->  | AD106: =T106-HLOOKUP(Y106,Feuil2!$C$1:$CD$9,5,FALSE) ->  | AE106: =T106-HLOOKUP(Y106,Feuil2!$C$1:$CD$9,6,FALSE) ->  | AF106: =T106-HLOOKUP(Y106,Feuil2!$C$1:$CD$9,7,FALSE) ->  | AG106: =T106-HLOOKUP(Y106,Feuil2!$C$1:$CD$9,8,FALSE) ->  | AH106: =T106-HLOOKUP(Y106,Feuil2!$C$1:$CD$9,9,FALSE) ->  | AQ106: 2016 | AS106: =IF(AQ106,VLOOKUP(AQ106,HOM!$AS$555:$AT$610,2)) -> 3.571
A107: H | Y107: =IF(AND(J107<1920),VLOOKUP(K107,Feuil2!$F$10:$P$28,11),IF(AND(J107>=1920,J107<1937),VLOOKUP(K107,Feuil2!$F$10:$P$28,11),IF(AND(J107>=1936,J107<1942),VLOOKUP(K107,Feuil2!$F$10:$P$28,10),IF(AND(J107>=1942,J107<1947),VLOOKUP(K107,Feuil2!$F$10:$P$28,9),IF(AND(J107>=1947,J107<1952),VLOOKUP(K107,Feuil2!$F$10:$P$28,8),IF(AND(J107>=1952,J107<1957),VLOOKUP(K107,Feuil2!$F$10:$P$28,7),IF(AND(J107>=1957,J107<1962),VLOOKUP(K107,Feuil2!$F$10:$P$28,6),IF(AND(J107>=1962,J107<1967),VLOOKUP(K107,Feuil2!$F$10:$P$28,5),IF(AND(J107>=1967,J107<1972),VLOOKUP(K107,Feuil2!$F$10:$P$28,4),IF(AND(J107>=1972,J107<1977),VLOOKUP(K107,Feuil2!$F$10:$P$28,3),IF(AND(J107>=1977,J107<1982),VLOOKUP(K107,Feuil2!$F$10:$P$28,2),VLOOKUP(K107,Feuil2!$F$10:$P$28,2)))))))))))) ->  | AA107: =T107-HLOOKUP(Y107,Feuil2!$C$1:$CD$9,2,FALSE) ->  | AB107: =T107-HLOOKUP(Y107,Feuil2!$C$1:$CD$9,3,FALSE) ->  | AC107: =T107-HLOOKUP(Y107,Feuil2!$C$1:$CD$9,4,FALSE) ->  | AD107: =T107-HLOOKUP(Y107,Feuil2!$C$1:$CD$9,5,FALSE) ->  | AE107: =T107-HLOOKUP(Y107,Feuil2!$C$1:$CD$9,6,FALSE) ->  | AF107: =T107-HLOOKUP(Y107,Feuil2!$C$1:$CD$9,7,FALSE) ->  | AG107: =T107-HLOOKUP(Y107,Feuil2!$C$1:$CD$9,8,FALSE) ->  | AH107: =T107-HLOOKUP(Y107,Feuil2!$C$1:$CD$9,9,FALSE) ->  | AQ107: 2016 | AS107: =IF(AQ107,VLOOKUP(AQ107,HOM!$AS$555:$AT$610,2)) -> 3.571
A108: H | Y108: =IF(AND(J108<1920),VLOOKUP(K108,Feuil2!$F$10:$P$28,11),IF(AND(J108>=1920,J108<1937),VLOOKUP(K108,Feuil2!$F$10:$P$28,11),IF(AND(J108>=1936,J108<1942),VLOOKUP(K108,Feuil2!$F$10:$P$28,10),IF(AND(J108>=1942,J108<1947),VLOOKUP(K108,Feuil2!$F$10:$P$28,9),IF(AND(J108>=1947,J108<1952),VLOOKUP(K108,Feuil2!$F$10:$P$28,8),IF(AND(J108>=1952,J108<1957),VLOOKUP(K108,Feuil2!$F$10:$P$28,7),IF(AND(J108>=1957,J108<1962),VLOOKUP(K108,Feuil2!$F$10:$P$28,6),IF(AND(J108>=1962,J108<1967),VLOOKUP(K108,Feuil2!$F$10:$P$28,5),IF(AND(J108>=1967,J108<1972),VLOOKUP(K108,Feuil2!$F$10:$P$28,4),IF(AND(J108>=1972,J108<1977),VLOOKUP(K108,Feuil2!$F$10:$P$28,3),IF(AND(J108>=1977,J108<1982),VLOOKUP(K108,Feuil2!$F$10:$P$28,2),VLOOKUP(K108,Feuil2!$F$10:$P$28,2)))))))))))) ->  | AA108: =T108-HLOOKUP(Y108,Feuil2!$C$1:$CD$9,2,FALSE) ->  | AB108: =T108-HLOOKUP(Y108,Feuil2!$C$1:$CD$9,3,FALSE) ->  | AC108: =T108-HLOOKUP(Y108,Feuil2!$C$1:$CD$9,4,FALSE) ->  | AD108: =T108-HLOOKUP(Y108,Feuil2!$C$1:$CD$9,5,FALSE) ->  | AE108: =T108-HLOOKUP(Y108,Feuil2!$C$1:$CD$9,6,FALSE) ->  | AF108: =T108-HLOOKUP(Y108,Feuil2!$C$1:$CD$9,7,FALSE) ->  | AG108: =T108-HLOOKUP(Y108,Feuil2!$C$1:$CD$9,8,FALSE) ->  | AH108: =T108-HLOOKUP(Y108,Feuil2!$C$1:$CD$9,9,FALSE) ->  | AQ108: 2016 | AS108: =IF(AQ108,VLOOKUP(AQ108,HOM!$AS$555:$AT$610,2)) -> 3.571
A109: H | Y109: =IF(AND(J109<1920),VLOOKUP(K109,Feuil2!$F$10:$P$28,11),IF(AND(J109>=1920,J109<1937),VLOOKUP(K109,Feuil2!$F$10:$P$28,11),IF(AND(J109>=1936,J109<1942),VLOOKUP(K109,Feuil2!$F$10:$P$28,10),IF(AND(J109>=1942,J109<1947),VLOOKUP(K109,Feuil2!$F$10:$P$28,9),IF(AND(J109>=1947,J109<1952),VLOOKUP(K109,Feuil2!$F$10:$P$28,8),IF(AND(J109>=1952,J109<1957),VLOOKUP(K109,Feuil2!$F$10:$P$28,7),IF(AND(J109>=1957,J109<1962),VLOOKUP(K109,Feuil2!$F$10:$P$28,6),IF(AND(J109>=1962,J109<1967),VLOOKUP(K109,Feuil2!$F$10:$P$28,5),IF(AND(J109>=1967,J109<1972),VLOOKUP(K109,Feuil2!$F$10:$P$28,4),IF(AND(J109>=1972,J109<1977),VLOOKUP(K109,Feuil2!$F$10:$P$28,3),IF(AND(J109>=1977,J109<1982),VLOOKUP(K109,Feuil2!$F$10:$P$28,2),VLOOKUP(K109,Feuil2!$F$10:$P$28,2)))))))))))) ->  | AA109: =T109-HLOOKUP(Y109,Feuil2!$C$1:$CD$9,2,FALSE) ->  | AB109: =T109-HLOOKUP(Y109,Feuil2!$C$1:$CD$9,3,FALSE) ->  | AC109: =T109-HLOOKUP(Y109,Feuil2!$C$1:$CD$9,4,FALSE) ->  | AD109: =T109-HLOOKUP(Y109,Feuil2!$C$1:$CD$9,5,FALSE) ->  | AE109: =T109-HLOOKUP(Y109,Feuil2!$C$1:$CD$9,6,FALSE) ->  | AF109: =T109-HLOOKUP(Y109,Feuil2!$C$1:$CD$9,7,FALSE) ->  | AG109: =T109-HLOOKUP(Y109,Feuil2!$C$1:$CD$9,8,FALSE) ->  | AH109: =T109-HLOOKUP(Y109,Feuil2!$C$1:$CD$9,9,FALSE) ->  | AQ109: 2016 | AS109: =IF(AQ109,VLOOKUP(AQ109,HOM!$AS$555:$AT$610,2)) -> 3.571
A110: H | Y110: =IF(AND(J110<1920),VLOOKUP(K110,Feuil2!$F$10:$P$28,11),IF(AND(J110>=1920,J110<1937),VLOOKUP(K110,Feuil2!$F$10:$P$28,11),IF(AND(J110>=1936,J110<1942),VLOOKUP(K110,Feuil2!$F$10:$P$28,10),IF(AND(J110>=1942,J110<1947),VLOOKUP(K110,Feuil2!$F$10:$P$28,9),IF(AND(J110>=1947,J110<1952),VLOOKUP(K110,Feuil2!$F$10:$P$28,8),IF(AND(J110>=1952,J110<1957),VLOOKUP(K110,Feuil2!$F$10:$P$28,7),IF(AND(J110>=1957,J110<1962),VLOOKUP(K110,Feuil2!$F$10:$P$28,6),IF(AND(J110>=1962,J110<1967),VLOOKUP(K110,Feuil2!$F$10:$P$28,5),IF(AND(J110>=1967,J110<1972),VLOOKUP(K110,Feuil2!$F$10:$P$28,4),IF(AND(J110>=1972,J110<1977),VLOOKUP(K110,Feuil2!$F$10:$P$28,3),IF(AND(J110>=1977,J110<1982),VLOOKUP(K110,Feuil2!$F$10:$P$28,2),VLOOKUP(K110,Feuil2!$F$10:$P$28,2)))))))))))) ->  | AA110: =T110-HLOOKUP(Y110,Feuil2!$C$1:$CD$9,2,FALSE) ->  | AB110: =T110-HLOOKUP(Y110,Feuil2!$C$1:$CD$9,3,FALSE) ->  | AC110: =T110-HLOOKUP(Y110,Feuil2!$C$1:$CD$9,4,FALSE) ->  | AD110: =T110-HLOOKUP(Y110,Feuil2!$C$1:$CD$9,5,FALSE) ->  | AE110: =T110-HLOOKUP(Y110,Feuil2!$C$1:$CD$9,6,FALSE) ->  | AF110: =T110-HLOOKUP(Y110,Feuil2!$C$1:$CD$9,7,FALSE) ->  | AG110: =T110-HLOOKUP(Y110,Feuil2!$C$1:$CD$9,8,FALSE) ->  | AH110: =T110-HLOOKUP(Y110,Feuil2!$C$1:$CD$9,9,FALSE) ->  | AQ110: 2016 | AS110: =IF(AQ110,VLOOKUP(AQ110,HOM!$AS$555:$AT$610,2)) -> 3.571
A111: H | Y111: =IF(AND(J111<1920),VLOOKUP(K111,Feuil2!$F$10:$P$28,11),IF(AND(J111>=1920,J111<1937),VLOOKUP(K111,Feuil2!$F$10:$P$28,11),IF(AND(J111>=1936,J111<1942),VLOOKUP(K111,Feuil2!$F$10:$P$28,10),IF(AND(J111>=1942,J111<1947),VLOOKUP(K111,Feuil2!$F$10:$P$28,9),IF(AND(J111>=1947,J111<1952),VLOOKUP(K111,Feuil2!$F$10:$P$28,8),IF(AND(J111>=1952,J111<1957),VLOOKUP(K111,Feuil2!$F$10:$P$28,7),IF(AND(J111>=1957,J111<1962),VLOOKUP(K111,Feuil2!$F$10:$P$28,6),IF(AND(J111>=1962,J111<1967),VLOOKUP(K111,Feuil2!$F$10:$P$28,5),IF(AND(J111>=1967,J111<1972),VLOOKUP(K111,Feuil2!$F$10:$P$28,4),IF(AND(J111>=1972,J111<1977),VLOOKUP(K111,Feuil2!$F$10:$P$28,3),IF(AND(J111>=1977,J111<1982),VLOOKUP(K111,Feuil2!$F$10:$P$28,2),VLOOKUP(K111,Feuil2!$F$10:$P$28,2)))))))))))) ->  | AA111: =T111-HLOOKUP(Y111,Feuil2!$C$1:$CD$9,2,FALSE) ->  | AB111: =T111-HLOOKUP(Y111,Feuil2!$C$1:$CD$9,3,FALSE) ->  | AC111: =T111-HLOOKUP(Y111,Feuil2!$C$1:$CD$9,4,FALSE) ->  | AD111: =T111-HLOOKUP(Y111,Feuil2!$C$1:$CD$9,5,FALSE) ->  | AE111: =T111-HLOOKUP(Y111,Feuil2!$C$1:$CD$9,6,FALSE) ->  | AF111: =T111-HLOOKUP(Y111,Feuil2!$C$1:$CD$9,7,FALSE) ->  | AG111: =T111-HLOOKUP(Y111,Feuil2!$C$1:$CD$9,8,FALSE) ->  | AH111: =T111-HLOOKUP(Y111,Feuil2!$C$1:$CD$9,9,FALSE) ->  | AQ111: 2016 | AS111: =IF(AQ111,VLOOKUP(AQ111,HOM!$AS$555:$AT$610,2)) -> 3.571
A112: H | O112: =IF(K112="","",IF(MAXA(L112:N112)<=0,0,MAXA(L112:N112))) ->  | S112: =IF(K112="","",IF(MAXA(P112:R112)<=0,0,MAXA(P112:R112))) ->  | T112: =IF(K112="","",IF(OR(O112=0,S112=0),0,O112+S112)) ->  | Y112: =IF(AND(J112<1920),VLOOKUP(K112,Feuil2!$F$10:$P$28,11),IF(AND(J112>=1920,J112<1937),VLOOKUP(K112,Feuil2!$F$10:$P$28,11),IF(AND(J112>=1936,J112<1942),VLOOKUP(K112,Feuil2!$F$10:$P$28,10),IF(AND(J112>=1942,J112<1947),VLOOKUP(K112,Feuil2!$F$10:$P$28,9),IF(AND(J112>=1947,J112<1952),VLOOKUP(K112,Feuil2!$F$10:$P$28,8),IF(AND(J112>=1952,J112<1957),VLOOKUP(K112,Feuil2!$F$10:$P$28,7),IF(AND(J112>=1957,J112<1962),VLOOKUP(K112,Feuil2!$F$10:$P$28,6),IF(AND(J112>=1962,J112<1967),VLOOKUP(K112,Feuil2!$F$10:$P$28,5),IF(AND(J112>=1967,J112<1972),VLOOKUP(K112,Feuil2!$F$10:$P$28,4),IF(AND(J112>=1972,J112<1977),VLOOKUP(K112,Feuil2!$F$10:$P$28,3),IF(AND(J112>=1977,J112<1982),VLOOKUP(K112,Feuil2!$F$10:$P$28,2),VLOOKUP(K112,Feuil2!$F$10:$P$28,2)))))))))))) ->  | AA112: =T112-HLOOKUP(Y112,Feuil2!$C$1:$CD$9,2,FALSE) ->  | AB112: =T112-HLOOKUP(Y112,Feuil2!$C$1:$CD$9,3,FALSE) ->  | AC112: =T112-HLOOKUP(Y112,Feuil2!$C$1:$CD$9,4,FALSE) ->  | AD112: =T112-HLOOKUP(Y112,Feuil2!$C$1:$CD$9,5,FALSE) ->  | AE112: =T112-HLOOKUP(Y112,Feuil2!$C$1:$CD$9,6,FALSE) ->  | AF112: =T112-HLOOKUP(Y112,Feuil2!$C$1:$CD$9,7,FALSE) ->  | AG112: =T112-HLOOKUP(Y112,Feuil2!$C$1:$CD$9,8,FALSE) ->  | AH112: =T112-HLOOKUP(Y112,Feuil2!$C$1:$CD$9,9,FALSE) ->  | AQ112: 2016 | AS112: =IF(AQ112,VLOOKUP(AQ112,HOM!$AS$555:$AT$610,2)) -> 3.571
A113: F | O113: =IF(K113="","",IF(MAXA(L113:N113)<=0,0,MAXA(L113:N113))) ->  | Y113: =IF(AND(J113<1920),VLOOKUP(K113,Feuil2!$F$10:$P$28,11),IF(AND(J113>=1920,J113<1937),VLOOKUP(K113,Feuil2!$F$10:$P$28,11),IF(AND(J113>=1936,J113<1942),VLOOKUP(K113,Feuil2!$F$10:$P$28,10),IF(AND(J113>=1942,J113<1947),VLOOKUP(K113,Feuil2!$F$10:$P$28,9),IF(AND(J113>=1947,J113<1952),VLOOKUP(K113,Feuil2!$F$10:$P$28,8),IF(AND(J113>=1952,J113<1957),VLOOKUP(K113,Feuil2!$F$10:$P$28,7),IF(AND(J113>=1957,J113<1962),VLOOKUP(K113,Feuil2!$F$10:$P$28,6),IF(AND(J113>=1962,J113<1967),VLOOKUP(K113,Feuil2!$F$10:$P$28,5),IF(AND(J113>=1967,J113<1972),VLOOKUP(K113,Feuil2!$F$10:$P$28,4),IF(AND(J113>=1972,J113<1977),VLOOKUP(K113,Feuil2!$F$10:$P$28,3),IF(AND(J113>=1977,J113<1982),VLOOKUP(K113,Feuil2!$F$10:$P$28,2),VLOOKUP(K113,Feuil2!$F$10:$P$28,2)))))))))))) ->  | AA113: =T113-HLOOKUP(Y113,Feuil2!$C$1:$CD$9,2,FALSE) ->  | AB113: =T113-HLOOKUP(Y113,Feuil2!$C$1:$CD$9,3,FALSE) ->  | AC113: =T113-HLOOKUP(Y113,Feuil2!$C$1:$CD$9,4,FALSE) ->  | AD113: =T113-HLOOKUP(Y113,Feuil2!$C$1:$CD$9,5,FALSE) ->  | AE113: =T113-HLOOKUP(Y113,Feuil2!$C$1:$CD$9,6,FALSE) ->  | AF113: =T113-HLOOKUP(Y113,Feuil2!$C$1:$CD$9,7,FALSE) ->  | AG113: =T113-HLOOKUP(Y113,Feuil2!$C$1:$CD$9,8,FALSE) ->  | AH113: =T113-HLOOKUP(Y113,Feuil2!$C$1:$CD$9,9,FALSE) ->  | AQ113: 2016 | AS113: =IF(AQ113,VLOOKUP(AQ113,HOM!$AS$555:$AT$610,2)) -> 3.571
A114: H | O114: =IF(K114="","",IF(MAXA(L114:N114)<=0,0,MAXA(L114:N114))) ->  | Y114: =IF(AND(J114<1920),VLOOKUP(K114,Feuil2!$F$10:$P$28,11),IF(AND(J114>=1920,J114<1937),VLOOKUP(K114,Feuil2!$F$10:$P$28,11),IF(AND(J114>=1936,J114<1942),VLOOKUP(K114,Feuil2!$F$10:$P$28,10),IF(AND(J114>=1942,J114<1947),VLOOKUP(K114,Feuil2!$F$10:$P$28,9),IF(AND(J114>=1947,J114<1952),VLOOKUP(K114,Feuil2!$F$10:$P$28,8),IF(AND(J114>=1952,J114<1957),VLOOKUP(K114,Feuil2!$F$10:$P$28,7),IF(AND(J114>=1957,J114<1962),VLOOKUP(K114,Feuil2!$F$10:$P$28,6),IF(AND(J114>=1962,J114<1967),VLOOKUP(K114,Feuil2!$F$10:$P$28,5),IF(AND(J114>=1967,J114<1972),VLOOKUP(K114,Feuil2!$F$10:$P$28,4),IF(AND(J114>=1972,J114<1977),VLOOKUP(K114,Feuil2!$F$10:$P$28,3),IF(AND(J114>=1977,J114<1982),VLOOKUP(K114,Feuil2!$F$10:$P$28,2),VLOOKUP(K114,Feuil2!$F$10:$P$28,2)))))))))))) ->  | AA114: =T114-HLOOKUP(Y114,Feuil2!$C$1:$CD$9,2,FALSE) ->  | AB114: =T114-HLOOKUP(Y114,Feuil2!$C$1:$CD$9,3,FALSE) ->  | AC114: =T114-HLOOKUP(Y114,Feuil2!$C$1:$CD$9,4,FALSE) ->  | AD114: =T114-HLOOKUP(Y114,Feuil2!$C$1:$CD$9,5,FALSE) ->  | AE114: =T114-HLOOKUP(Y114,Feuil2!$C$1:$CD$9,6,FALSE) ->  | AF114: =T114-HLOOKUP(Y114,Feuil2!$C$1:$CD$9,7,FALSE) ->  | AG114: =T114-HLOOKUP(Y114,Feuil2!$C$1:$CD$9,8,FALSE) ->  | AH114: =T114-HLOOKUP(Y114,Feuil2!$C$1:$CD$9,9,FALSE) ->  | AQ114: 2016 | AS114: =IF(AQ114,VLOOKUP(AQ114,HOM!$AS$555:$AT$610,2)) -> 3.571
A115: H | Y115: =IF(AND(J115<1920),VLOOKUP(K115,Feuil2!$F$10:$P$28,11),IF(AND(J115>=1920,J115<1937),VLOOKUP(K115,Feuil2!$F$10:$P$28,11),IF(AND(J115>=1936,J115<1942),VLOOKUP(K115,Feuil2!$F$10:$P$28,10),IF(AND(J115>=1942,J115<1947),VLOOKUP(K115,Feuil2!$F$10:$P$28,9),IF(AND(J115>=1947,J115<1952),VLOOKUP(K115,Feuil2!$F$10:$P$28,8),IF(AND(J115>=1952,J115<1957),VLOOKUP(K115,Feuil2!$F$10:$P$28,7),IF(AND(J115>=1957,J115<1962),VLOOKUP(K115,Feuil2!$F$10:$P$28,6),IF(AND(J115>=1962,J115<1967),VLOOKUP(K115,Feuil2!$F$10:$P$28,5),IF(AND(J115>=1967,J115<1972),VLOOKUP(K115,Feuil2!$F$10:$P$28,4),IF(AND(J115>=1972,J115<1977),VLOOKUP(K115,Feuil2!$F$10:$P$28,3),IF(AND(J115>=1977,J115<1982),VLOOKUP(K115,Feuil2!$F$10:$P$28,2),VLOOKUP(K115,Feuil2!$F$10:$P$28,2)))))))))))) ->  | AA115: =T115-HLOOKUP(Y115,Feuil2!$C$1:$CD$9,2,FALSE) ->  | AB115: =T115-HLOOKUP(Y115,Feuil2!$C$1:$CD$9,3,FALSE) ->  | AC115: =T115-HLOOKUP(Y115,Feuil2!$C$1:$CD$9,4,FALSE) ->  | AD115: =T115-HLOOKUP(Y115,Feuil2!$C$1:$CD$9,5,FALSE) ->  | AE115: =T115-HLOOKUP(Y115,Feuil2!$C$1:$CD$9,6,FALSE) ->  | AF115: =T115-HLOOKUP(Y115,Feuil2!$C$1:$CD$9,7,FALSE) ->  | AG115: =T115-HLOOKUP(Y115,Feuil2!$C$1:$CD$9,8,FALSE) ->  | AH115: =T115-HLOOKUP(Y115,Feuil2!$C$1:$CD$9,9,FALSE) ->  | AQ115: 2016 | AS115: =IF(AQ115,VLOOKUP(AQ115,HOM!$AS$555:$AT$610,2)) -> 3.571
A116: H | Y116: =IF(AND(J116<1920),VLOOKUP(K116,Feuil2!$F$10:$P$28,11),IF(AND(J116>=1920,J116<1937),VLOOKUP(K116,Feuil2!$F$10:$P$28,11),IF(AND(J116>=1936,J116<1942),VLOOKUP(K116,Feuil2!$F$10:$P$28,10),IF(AND(J116>=1942,J116<1947),VLOOKUP(K116,Feuil2!$F$10:$P$28,9),IF(AND(J116>=1947,J116<1952),VLOOKUP(K116,Feuil2!$F$10:$P$28,8),IF(AND(J116>=1952,J116<1957),VLOOKUP(K116,Feuil2!$F$10:$P$28,7),IF(AND(J116>=1957,J116<1962),VLOOKUP(K116,Feuil2!$F$10:$P$28,6),IF(AND(J116>=1962,J116<1967),VLOOKUP(K116,Feuil2!$F$10:$P$28,5),IF(AND(J116>=1967,J116<1972),VLOOKUP(K116,Feuil2!$F$10:$P$28,4),IF(AND(J116>=1972,J116<1977),VLOOKUP(K116,Feuil2!$F$10:$P$28,3),IF(AND(J116>=1977,J116<1982),VLOOKUP(K116,Feuil2!$F$10:$P$28,2),VLOOKUP(K116,Feuil2!$F$10:$P$28,2)))))))))))) ->  | AA116: =T116-HLOOKUP(Y116,Feuil2!$C$1:$CD$9,2,FALSE) ->  | AB116: =T116-HLOOKUP(Y116,Feuil2!$C$1:$CD$9,3,FALSE) ->  | AC116: =T116-HLOOKUP(Y116,Feuil2!$C$1:$CD$9,4,FALSE) ->  | AD116: =T116-HLOOKUP(Y116,Feuil2!$C$1:$CD$9,5,FALSE) ->  | AE116: =T116-HLOOKUP(Y116,Feuil2!$C$1:$CD$9,6,FALSE) ->  | AF116: =T116-HLOOKUP(Y116,Feuil2!$C$1:$CD$9,7,FALSE) ->  | AG116: =T116-HLOOKUP(Y116,Feuil2!$C$1:$CD$9,8,FALSE) ->  | AH116: =T116-HLOOKUP(Y116,Feuil2!$C$1:$CD$9,9,FALSE) ->  | AQ116: 2016 | AS116: =IF(AQ116,VLOOKUP(AQ116,HOM!$AS$555:$AT$610,2)) -> 3.571
A117: H | Y117: =IF(AND(J117<1920),VLOOKUP(K117,Feuil2!$F$10:$P$28,11),IF(AND(J117>=1920,J117<1937),VLOOKUP(K117,Feuil2!$F$10:$P$28,11),IF(AND(J117>=1936,J117<1942),VLOOKUP(K117,Feuil2!$F$10:$P$28,10),IF(AND(J117>=1942,J117<1947),VLOOKUP(K117,Feuil2!$F$10:$P$28,9),IF(AND(J117>=1947,J117<1952),VLOOKUP(K117,Feuil2!$F$10:$P$28,8),IF(AND(J117>=1952,J117<1957),VLOOKUP(K117,Feuil2!$F$10:$P$28,7),IF(AND(J117>=1957,J117<1962),VLOOKUP(K117,Feuil2!$F$10:$P$28,6),IF(AND(J117>=1962,J117<1967),VLOOKUP(K117,Feuil2!$F$10:$P$28,5),IF(AND(J117>=1967,J117<1972),VLOOKUP(K117,Feuil2!$F$10:$P$28,4),IF(AND(J117>=1972,J117<1977),VLOOKUP(K117,Feuil2!$F$10:$P$28,3),IF(AND(J117>=1977,J117<1982),VLOOKUP(K117,Feuil2!$F$10:$P$28,2),VLOOKUP(K117,Feuil2!$F$10:$P$28,2)))))))))))) ->  | AA117: =T117-HLOOKUP(Y117,Feuil2!$C$1:$CD$9,2,FALSE) ->  | AB117: =T117-HLOOKUP(Y117,Feuil2!$C$1:$CD$9,3,FALSE) ->  | AC117: =T117-HLOOKUP(Y117,Feuil2!$C$1:$CD$9,4,FALSE) ->  | AD117: =T117-HLOOKUP(Y117,Feuil2!$C$1:$CD$9,5,FALSE) ->  | AE117: =T117-HLOOKUP(Y117,Feuil2!$C$1:$CD$9,6,FALSE) ->  | AF117: =T117-HLOOKUP(Y117,Feuil2!$C$1:$CD$9,7,FALSE) ->  | AG117: =T117-HLOOKUP(Y117,Feuil2!$C$1:$CD$9,8,FALSE) ->  | AH117: =T117-HLOOKUP(Y117,Feuil2!$C$1:$CD$9,9,FALSE) ->  | AQ117: 2016 | AS117: =IF(AQ117,VLOOKUP(AQ117,HOM!$AS$555:$AT$610,2)) -> 3.571
A118: H | Y118: =IF(AND(J118<1920),VLOOKUP(K118,Feuil2!$F$10:$P$28,11),IF(AND(J118>=1920,J118<1937),VLOOKUP(K118,Feuil2!$F$10:$P$28,11),IF(AND(J118>=1936,J118<1942),VLOOKUP(K118,Feuil2!$F$10:$P$28,10),IF(AND(J118>=1942,J118<1947),VLOOKUP(K118,Feuil2!$F$10:$P$28,9),IF(AND(J118>=1947,J118<1952),VLOOKUP(K118,Feuil2!$F$10:$P$28,8),IF(AND(J118>=1952,J118<1957),VLOOKUP(K118,Feuil2!$F$10:$P$28,7),IF(AND(J118>=1957,J118<1962),VLOOKUP(K118,Feuil2!$F$10:$P$28,6),IF(AND(J118>=1962,J118<1967),VLOOKUP(K118,Feuil2!$F$10:$P$28,5),IF(AND(J118>=1967,J118<1972),VLOOKUP(K118,Feuil2!$F$10:$P$28,4),IF(AND(J118>=1972,J118<1977),VLOOKUP(K118,Feuil2!$F$10:$P$28,3),IF(AND(J118>=1977,J118<1982),VLOOKUP(K118,Feuil2!$F$10:$P$28,2),VLOOKUP(K118,Feuil2!$F$10:$P$28,2)))))))))))) ->  | AA118: =T118-HLOOKUP(Y118,Feuil2!$C$1:$CD$9,2,FALSE) ->  | AB118: =T118-HLOOKUP(Y118,Feuil2!$C$1:$CD$9,3,FALSE) ->  | AC118: =T118-HLOOKUP(Y118,Feuil2!$C$1:$CD$9,4,FALSE) ->  | AD118: =T118-HLOOKUP(Y118,Feuil2!$C$1:$CD$9,5,FALSE) ->  | AE118: =T118-HLOOKUP(Y118,Feuil2!$C$1:$CD$9,6,FALSE) ->  | AF118: =T118-HLOOKUP(Y118,Feuil2!$C$1:$CD$9,7,FALSE) ->  | AG118: =T118-HLOOKUP(Y118,Feuil2!$C$1:$CD$9,8,FALSE) ->  | AH118: =T118-HLOOKUP(Y118,Feuil2!$C$1:$CD$9,9,FALSE) ->  | AQ118: 2016 | AS118: =IF(AQ118,VLOOKUP(AQ118,HOM!$AS$555:$AT$610,2)) -> 3.571
A119: H | Y119: =IF(AND(J119<1920),VLOOKUP(K119,Feuil2!$F$10:$P$28,11),IF(AND(J119>=1920,J119<1937),VLOOKUP(K119,Feuil2!$F$10:$P$28,11),IF(AND(J119>=1936,J119<1942),VLOOKUP(K119,Feuil2!$F$10:$P$28,10),IF(AND(J119>=1942,J119<1947),VLOOKUP(K119,Feuil2!$F$10:$P$28,9),IF(AND(J119>=1947,J119<1952),VLOOKUP(K119,Feuil2!$F$10:$P$28,8),IF(AND(J119>=1952,J119<1957),VLOOKUP(K119,Feuil2!$F$10:$P$28,7),IF(AND(J119>=1957,J119<1962),VLOOKUP(K119,Feuil2!$F$10:$P$28,6),IF(AND(J119>=1962,J119<1967),VLOOKUP(K119,Feuil2!$F$10:$P$28,5),IF(AND(J119>=1967,J119<1972),VLOOKUP(K119,Feuil2!$F$10:$P$28,4),IF(AND(J119>=1972,J119<1977),VLOOKUP(K119,Feuil2!$F$10:$P$28,3),IF(AND(J119>=1977,J119<1982),VLOOKUP(K119,Feuil2!$F$10:$P$28,2),VLOOKUP(K119,Feuil2!$F$10:$P$28,2)))))))))))) ->  | AA119: =T119-HLOOKUP(Y119,Feuil2!$C$1:$CD$9,2,FALSE) ->  | AB119: =T119-HLOOKUP(Y119,Feuil2!$C$1:$CD$9,3,FALSE) ->  | AC119: =T119-HLOOKUP(Y119,Feuil2!$C$1:$CD$9,4,FALSE) ->  | AD119: =T119-HLOOKUP(Y119,Feuil2!$C$1:$CD$9,5,FALSE) ->  | AE119: =T119-HLOOKUP(Y119,Feuil2!$C$1:$CD$9,6,FALSE) ->  | AF119: =T119-HLOOKUP(Y119,Feuil2!$C$1:$CD$9,7,FALSE) ->  | AG119: =T119-HLOOKUP(Y119,Feuil2!$C$1:$CD$9,8,FALSE) ->  | AH119: =T119-HLOOKUP(Y119,Feuil2!$C$1:$CD$9,9,FALSE) ->  | AQ119: 2016 | AS119: =IF(AQ119,VLOOKUP(AQ119,HOM!$AS$555:$AT$610,2)) -> 3.571
A120: H | Y120: =IF(AND(J120<1920),VLOOKUP(K120,Feuil2!$F$10:$P$28,11),IF(AND(J120>=1920,J120<1937),VLOOKUP(K120,Feuil2!$F$10:$P$28,11),IF(AND(J120>=1936,J120<1942),VLOOKUP(K120,Feuil2!$F$10:$P$28,10),IF(AND(J120>=1942,J120<1947),VLOOKUP(K120,Feuil2!$F$10:$P$28,9),IF(AND(J120>=1947,J120<1952),VLOOKUP(K120,Feuil2!$F$10:$P$28,8),IF(AND(J120>=1952,J120<1957),VLOOKUP(K120,Feuil2!$F$10:$P$28,7),IF(AND(J120>=1957,J120<1962),VLOOKUP(K120,Feuil2!$F$10:$P$28,6),IF(AND(J120>=1962,J120<1967),VLOOKUP(K120,Feuil2!$F$10:$P$28,5),IF(AND(J120>=1967,J120<1972),VLOOKUP(K120,Feuil2!$F$10:$P$28,4),IF(AND(J120>=1972,J120<1977),VLOOKUP(K120,Feuil2!$F$10:$P$28,3),IF(AND(J120>=1977,J120<1982),VLOOKUP(K120,Feuil2!$F$10:$P$28,2),VLOOKUP(K120,Feuil2!$F$10:$P$28,2)))))))))))) ->  | AA120: =T120-HLOOKUP(Y120,Feuil2!$C$1:$CD$9,2,FALSE) ->  | AB120: =T120-HLOOKUP(Y120,Feuil2!$C$1:$CD$9,3,FALSE) ->  | AC120: =T120-HLOOKUP(Y120,Feuil2!$C$1:$CD$9,4,FALSE) ->  | AD120: =T120-HLOOKUP(Y120,Feuil2!$C$1:$CD$9,5,FALSE) ->  | AE120: =T120-HLOOKUP(Y120,Feuil2!$C$1:$CD$9,6,FALSE) ->  | AF120: =T120-HLOOKUP(Y120,Feuil2!$C$1:$CD$9,7,FALSE) ->  | AG120: =T120-HLOOKUP(Y120,Feuil2!$C$1:$CD$9,8,FALSE) ->  | AH120: =T120-HLOOKUP(Y120,Feuil2!$C$1:$CD$9,9,FALSE) ->  | AQ120: 2016 | AS120: =IF(AQ120,VLOOKUP(AQ120,HOM!$AS$555:$AT$610,2)) -> 3.571
A121: H | Y121: =IF(AND(J121<1920),VLOOKUP(K121,Feuil2!$F$10:$P$28,11),IF(AND(J121>=1920,J121<1937),VLOOKUP(K121,Feuil2!$F$10:$P$28,11),IF(AND(J121>=1936,J121<1942),VLOOKUP(K121,Feuil2!$F$10:$P$28,10),IF(AND(J121>=1942,J121<1947),VLOOKUP(K121,Feuil2!$F$10:$P$28,9),IF(AND(J121>=1947,J121<1952),VLOOKUP(K121,Feuil2!$F$10:$P$28,8),IF(AND(J121>=1952,J121<1957),VLOOKUP(K121,Feuil2!$F$10:$P$28,7),IF(AND(J121>=1957,J121<1962),VLOOKUP(K121,Feuil2!$F$10:$P$28,6),IF(AND(J121>=1962,J121<1967),VLOOKUP(K121,Feuil2!$F$10:$P$28,5),IF(AND(J121>=1967,J121<1972),VLOOKUP(K121,Feuil2!$F$10:$P$28,4),IF(AND(J121>=1972,J121<1977),VLOOKUP(K121,Feuil2!$F$10:$P$28,3),IF(AND(J121>=1977,J121<1982),VLOOKUP(K121,Feuil2!$F$10:$P$28,2),VLOOKUP(K121,Feuil2!$F$10:$P$28,2)))))))))))) ->  | AA121: =T121-HLOOKUP(Y121,Feuil2!$C$1:$CD$9,2,FALSE) ->  | AB121: =T121-HLOOKUP(Y121,Feuil2!$C$1:$CD$9,3,FALSE) ->  | AC121: =T121-HLOOKUP(Y121,Feuil2!$C$1:$CD$9,4,FALSE) ->  | AD121: =T121-HLOOKUP(Y121,Feuil2!$C$1:$CD$9,5,FALSE) ->  | AE121: =T121-HLOOKUP(Y121,Feuil2!$C$1:$CD$9,6,FALSE) ->  | AF121: =T121-HLOOKUP(Y121,Feuil2!$C$1:$CD$9,7,FALSE) ->  | AG121: =T121-HLOOKUP(Y121,Feuil2!$C$1:$CD$9,8,FALSE) ->  | AH121: =T121-HLOOKUP(Y121,Feuil2!$C$1:$CD$9,9,FALSE) ->  | AQ121: 2016 | AS121: =IF(AQ121,VLOOKUP(AQ121,HOM!$AS$555:$AT$610,2)) -> 3.571
A122: H | O122: =IF(K122="","",IF(MAXA(L122:N122)<=0,0,MAXA(L122:N122))) ->  | Y122: =IF(AND(J122<1920),VLOOKUP(K122,Feuil2!$F$10:$P$28,11),IF(AND(J122>=1920,J122<1937),VLOOKUP(K122,Feuil2!$F$10:$P$28,11),IF(AND(J122>=1936,J122<1942),VLOOKUP(K122,Feuil2!$F$10:$P$28,10),IF(AND(J122>=1942,J122<1947),VLOOKUP(K122,Feuil2!$F$10:$P$28,9),IF(AND(J122>=1947,J122<1952),VLOOKUP(K122,Feuil2!$F$10:$P$28,8),IF(AND(J122>=1952,J122<1957),VLOOKUP(K122,Feuil2!$F$10:$P$28,7),IF(AND(J122>=1957,J122<1962),VLOOKUP(K122,Feuil2!$F$10:$P$28,6),IF(AND(J122>=1962,J122<1967),VLOOKUP(K122,Feuil2!$F$10:$P$28,5),IF(AND(J122>=1967,J122<1972),VLOOKUP(K122,Feuil2!$F$10:$P$28,4),IF(AND(J122>=1972,J122<1977),VLOOKUP(K122,Feuil2!$F$10:$P$28,3),IF(AND(J122>=1977,J122<1982),VLOOKUP(K122,Feuil2!$F$10:$P$28,2),VLOOKUP(K122,Feuil2!$F$10:$P$28,2)))))))))))) ->  | AA122: =T122-HLOOKUP(Y122,Feuil2!$C$1:$CD$9,2,FALSE) ->  | AB122: =T122-HLOOKUP(Y122,Feuil2!$C$1:$CD$9,3,FALSE) ->  | AC122: =T122-HLOOKUP(Y122,Feuil2!$C$1:$CD$9,4,FALSE) ->  | AD122: =T122-HLOOKUP(Y122,Feuil2!$C$1:$CD$9,5,FALSE) ->  | AE122: =T122-HLOOKUP(Y122,Feuil2!$C$1:$CD$9,6,FALSE) ->  | AF122: =T122-HLOOKUP(Y122,Feuil2!$C$1:$CD$9,7,FALSE) ->  | AG122: =T122-HLOOKUP(Y122,Feuil2!$C$1:$CD$9,8,FALSE) ->  | AH122: =T122-HLOOKUP(Y122,Feuil2!$C$1:$CD$9,9,FALSE) ->  | AQ122: 2016 | AS122: =IF(AQ122,VLOOKUP(AQ122,HOM!$AS$555:$AT$610,2)) -> 3.571
A123: H | Y123: =IF(AND(J123<1920),VLOOKUP(K123,Feuil2!$F$10:$P$28,11),IF(AND(J123>=1920,J123<1937),VLOOKUP(K123,Feuil2!$F$10:$P$28,11),IF(AND(J123>=1936,J123<1942),VLOOKUP(K123,Feuil2!$F$10:$P$28,10),IF(AND(J123>=1942,J123<1947),VLOOKUP(K123,Feuil2!$F$10:$P$28,9),IF(AND(J123>=1947,J123<1952),VLOOKUP(K123,Feuil2!$F$10:$P$28,8),IF(AND(J123>=1952,J123<1957),VLOOKUP(K123,Feuil2!$F$10:$P$28,7),IF(AND(J123>=1957,J123<1962),VLOOKUP(K123,Feuil2!$F$10:$P$28,6),IF(AND(J123>=1962,J123<1967),VLOOKUP(K123,Feuil2!$F$10:$P$28,5),IF(AND(J123>=1967,J123<1972),VLOOKUP(K123,Feuil2!$F$10:$P$28,4),IF(AND(J123>=1972,J123<1977),VLOOKUP(K123,Feuil2!$F$10:$P$28,3),IF(AND(J123>=1977,J123<1982),VLOOKUP(K123,Feuil2!$F$10:$P$28,2),VLOOKUP(K123,Feuil2!$F$10:$P$28,2)))))))))))) ->  | AA123: =T123-HLOOKUP(Y123,Feuil2!$C$1:$CD$9,2,FALSE) ->  | AB123: =T123-HLOOKUP(Y123,Feuil2!$C$1:$CD$9,3,FALSE) ->  | AC123: =T123-HLOOKUP(Y123,Feuil2!$C$1:$CD$9,4,FALSE) ->  | AD123: =T123-HLOOKUP(Y123,Feuil2!$C$1:$CD$9,5,FALSE) ->  | AE123: =T123-HLOOKUP(Y123,Feuil2!$C$1:$CD$9,6,FALSE) ->  | AF123: =T123-HLOOKUP(Y123,Feuil2!$C$1:$CD$9,7,FALSE) ->  | AG123: =T123-HLOOKUP(Y123,Feuil2!$C$1:$CD$9,8,FALSE) ->  | AH123: =T123-HLOOKUP(Y123,Feuil2!$C$1:$CD$9,9,FALSE) ->  | AQ123: 2016 | AS123: =IF(AQ123,VLOOKUP(AQ123,HOM!$AS$555:$AT$610,2)) -> 3.571
A124: H | Y124: =IF(AND(J124<1920),VLOOKUP(K124,Feuil2!$F$10:$P$28,11),IF(AND(J124>=1920,J124<1937),VLOOKUP(K124,Feuil2!$F$10:$P$28,11),IF(AND(J124>=1936,J124<1942),VLOOKUP(K124,Feuil2!$F$10:$P$28,10),IF(AND(J124>=1942,J124<1947),VLOOKUP(K124,Feuil2!$F$10:$P$28,9),IF(AND(J124>=1947,J124<1952),VLOOKUP(K124,Feuil2!$F$10:$P$28,8),IF(AND(J124>=1952,J124<1957),VLOOKUP(K124,Feuil2!$F$10:$P$28,7),IF(AND(J124>=1957,J124<1962),VLOOKUP(K124,Feuil2!$F$10:$P$28,6),IF(AND(J124>=1962,J124<1967),VLOOKUP(K124,Feuil2!$F$10:$P$28,5),IF(AND(J124>=1967,J124<1972),VLOOKUP(K124,Feuil2!$F$10:$P$28,4),IF(AND(J124>=1972,J124<1977),VLOOKUP(K124,Feuil2!$F$10:$P$28,3),IF(AND(J124>=1977,J124<1982),VLOOKUP(K124,Feuil2!$F$10:$P$28,2),VLOOKUP(K124,Feuil2!$F$10:$P$28,2)))))))))))) ->  | AA124: =T124-HLOOKUP(Y124,Feuil2!$C$1:$CD$9,2,FALSE) ->  | AB124: =T124-HLOOKUP(Y124,Feuil2!$C$1:$CD$9,3,FALSE) ->  | AC124: =T124-HLOOKUP(Y124,Feuil2!$C$1:$CD$9,4,FALSE) ->  | AD124: =T124-HLOOKUP(Y124,Feuil2!$C$1:$CD$9,5,FALSE) ->  | AE124: =T124-HLOOKUP(Y124,Feuil2!$C$1:$CD$9,6,FALSE) ->  | AF124: =T124-HLOOKUP(Y124,Feuil2!$C$1:$CD$9,7,FALSE) ->  | AG124: =T124-HLOOKUP(Y124,Feuil2!$C$1:$CD$9,8,FALSE) ->  | AH124: =T124-HLOOKUP(Y124,Feuil2!$C$1:$CD$9,9,FALSE) ->  | AQ124: 2016 | AS124: =IF(AQ124,VLOOKUP(AQ124,HOM!$AS$555:$AT$610,2)) -> 3.571
A125: H | Y125: =IF(AND(J125<1920),VLOOKUP(K125,Feuil2!$F$10:$P$28,11),IF(AND(J125>=1920,J125<1937),VLOOKUP(K125,Feuil2!$F$10:$P$28,11),IF(AND(J125>=1936,J125<1942),VLOOKUP(K125,Feuil2!$F$10:$P$28,10),IF(AND(J125>=1942,J125<1947),VLOOKUP(K125,Feuil2!$F$10:$P$28,9),IF(AND(J125>=1947,J125<1952),VLOOKUP(K125,Feuil2!$F$10:$P$28,8),IF(AND(J125>=1952,J125<1957),VLOOKUP(K125,Feuil2!$F$10:$P$28,7),IF(AND(J125>=1957,J125<1962),VLOOKUP(K125,Feuil2!$F$10:$P$28,6),IF(AND(J125>=1962,J125<1967),VLOOKUP(K125,Feuil2!$F$10:$P$28,5),IF(AND(J125>=1967,J125<1972),VLOOKUP(K125,Feuil2!$F$10:$P$28,4),IF(AND(J125>=1972,J125<1977),VLOOKUP(K125,Feuil2!$F$10:$P$28,3),IF(AND(J125>=1977,J125<1982),VLOOKUP(K125,Feuil2!$F$10:$P$28,2),VLOOKUP(K125,Feuil2!$F$10:$P$28,2)))))))))))) ->  | AA125: =T125-HLOOKUP(Y125,Feuil2!$C$1:$CD$9,2,FALSE) ->  | AB125: =T125-HLOOKUP(Y125,Feuil2!$C$1:$CD$9,3,FALSE) ->  | AC125: =T125-HLOOKUP(Y125,Feuil2!$C$1:$CD$9,4,FALSE) ->  | AD125: =T125-HLOOKUP(Y125,Feuil2!$C$1:$CD$9,5,FALSE) ->  | AE125: =T125-HLOOKUP(Y125,Feuil2!$C$1:$CD$9,6,FALSE) ->  | AF125: =T125-HLOOKUP(Y125,Feuil2!$C$1:$CD$9,7,FALSE) ->  | AG125: =T125-HLOOKUP(Y125,Feuil2!$C$1:$CD$9,8,FALSE) ->  | AH125: =T125-HLOOKUP(Y125,Feuil2!$C$1:$CD$9,9,FALSE) ->  | AQ125: 2016 | AS125: =IF(AQ125,VLOOKUP(AQ125,HOM!$AS$555:$AT$610,2)) -> 3.571
A126: H | Y126: =IF(AND(J126<1920),VLOOKUP(K126,Feuil2!$F$10:$P$28,11),IF(AND(J126>=1920,J126<1937),VLOOKUP(K126,Feuil2!$F$10:$P$28,11),IF(AND(J126>=1936,J126<1942),VLOOKUP(K126,Feuil2!$F$10:$P$28,10),IF(AND(J126>=1942,J126<1947),VLOOKUP(K126,Feuil2!$F$10:$P$28,9),IF(AND(J126>=1947,J126<1952),VLOOKUP(K126,Feuil2!$F$10:$P$28,8),IF(AND(J126>=1952,J126<1957),VLOOKUP(K126,Feuil2!$F$10:$P$28,7),IF(AND(J126>=1957,J126<1962),VLOOKUP(K126,Feuil2!$F$10:$P$28,6),IF(AND(J126>=1962,J126<1967),VLOOKUP(K126,Feuil2!$F$10:$P$28,5),IF(AND(J126>=1967,J126<1972),VLOOKUP(K126,Feuil2!$F$10:$P$28,4),IF(AND(J126>=1972,J126<1977),VLOOKUP(K126,Feuil2!$F$10:$P$28,3),IF(AND(J126>=1977,J126<1982),VLOOKUP(K126,Feuil2!$F$10:$P$28,2),VLOOKUP(K126,Feuil2!$F$10:$P$28,2)))))))))))) ->  | AA126: =T126-HLOOKUP(Y126,Feuil2!$C$1:$CD$9,2,FALSE) ->  | AB126: =T126-HLOOKUP(Y126,Feuil2!$C$1:$CD$9,3,FALSE) ->  | AC126: =T126-HLOOKUP(Y126,Feuil2!$C$1:$CD$9,4,FALSE) ->  | AD126: =T126-HLOOKUP(Y126,Feuil2!$C$1:$CD$9,5,FALSE) ->  | AE126: =T126-HLOOKUP(Y126,Feuil2!$C$1:$CD$9,6,FALSE) ->  | AF126: =T126-HLOOKUP(Y126,Feuil2!$C$1:$CD$9,7,FALSE) ->  | AG126: =T126-HLOOKUP(Y126,Feuil2!$C$1:$CD$9,8,FALSE) ->  | AH126: =T126-HLOOKUP(Y126,Feuil2!$C$1:$CD$9,9,FALSE) ->  | AQ126: 2016 | AS126: =IF(AQ126,VLOOKUP(AQ126,HOM!$AS$555:$AT$610,2)) -> 3.571
A127: H | Y127: =IF(AND(J127<1920),VLOOKUP(K127,Feuil2!$F$10:$P$28,11),IF(AND(J127>=1920,J127<1937),VLOOKUP(K127,Feuil2!$F$10:$P$28,11),IF(AND(J127>=1936,J127<1942),VLOOKUP(K127,Feuil2!$F$10:$P$28,10),IF(AND(J127>=1942,J127<1947),VLOOKUP(K127,Feuil2!$F$10:$P$28,9),IF(AND(J127>=1947,J127<1952),VLOOKUP(K127,Feuil2!$F$10:$P$28,8),IF(AND(J127>=1952,J127<1957),VLOOKUP(K127,Feuil2!$F$10:$P$28,7),IF(AND(J127>=1957,J127<1962),VLOOKUP(K127,Feuil2!$F$10:$P$28,6),IF(AND(J127>=1962,J127<1967),VLOOKUP(K127,Feuil2!$F$10:$P$28,5),IF(AND(J127>=1967,J127<1972),VLOOKUP(K127,Feuil2!$F$10:$P$28,4),IF(AND(J127>=1972,J127<1977),VLOOKUP(K127,Feuil2!$F$10:$P$28,3),IF(AND(J127>=1977,J127<1982),VLOOKUP(K127,Feuil2!$F$10:$P$28,2),VLOOKUP(K127,Feuil2!$F$10:$P$28,2)))))))))))) ->  | AA127: =T127-HLOOKUP(Y127,Feuil2!$C$1:$CD$9,2,FALSE) ->  | AB127: =T127-HLOOKUP(Y127,Feuil2!$C$1:$CD$9,3,FALSE) ->  | AC127: =T127-HLOOKUP(Y127,Feuil2!$C$1:$CD$9,4,FALSE) ->  | AD127: =T127-HLOOKUP(Y127,Feuil2!$C$1:$CD$9,5,FALSE) ->  | AE127: =T127-HLOOKUP(Y127,Feuil2!$C$1:$CD$9,6,FALSE) ->  | AF127: =T127-HLOOKUP(Y127,Feuil2!$C$1:$CD$9,7,FALSE) ->  | AG127: =T127-HLOOKUP(Y127,Feuil2!$C$1:$CD$9,8,FALSE) ->  | AH127: =T127-HLOOKUP(Y127,Feuil2!$C$1:$CD$9,9,FALSE) ->  | AQ127: 2016 | AS127: =IF(AQ127,VLOOKUP(AQ127,HOM!$AS$555:$AT$610,2)) -> 3.571
A128: H | Y128: =IF(AND(J128<1920),VLOOKUP(K128,Feuil2!$F$10:$P$28,11),IF(AND(J128>=1920,J128<1937),VLOOKUP(K128,Feuil2!$F$10:$P$28,11),IF(AND(J128>=1936,J128<1942),VLOOKUP(K128,Feuil2!$F$10:$P$28,10),IF(AND(J128>=1942,J128<1947),VLOOKUP(K128,Feuil2!$F$10:$P$28,9),IF(AND(J128>=1947,J128<1952),VLOOKUP(K128,Feuil2!$F$10:$P$28,8),IF(AND(J128>=1952,J128<1957),VLOOKUP(K128,Feuil2!$F$10:$P$28,7),IF(AND(J128>=1957,J128<1962),VLOOKUP(K128,Feuil2!$F$10:$P$28,6),IF(AND(J128>=1962,J128<1967),VLOOKUP(K128,Feuil2!$F$10:$P$28,5),IF(AND(J128>=1967,J128<1972),VLOOKUP(K128,Feuil2!$F$10:$P$28,4),IF(AND(J128>=1972,J128<1977),VLOOKUP(K128,Feuil2!$F$10:$P$28,3),IF(AND(J128>=1977,J128<1982),VLOOKUP(K128,Feuil2!$F$10:$P$28,2),VLOOKUP(K128,Feuil2!$F$10:$P$28,2)))))))))))) ->  | AA128: =T128-HLOOKUP(Y128,Feuil2!$C$1:$CD$9,2,FALSE) ->  | AB128: =T128-HLOOKUP(Y128,Feuil2!$C$1:$CD$9,3,FALSE) ->  | AC128: =T128-HLOOKUP(Y128,Feuil2!$C$1:$CD$9,4,FALSE) ->  | AD128: =T128-HLOOKUP(Y128,Feuil2!$C$1:$CD$9,5,FALSE) ->  | AE128: =T128-HLOOKUP(Y128,Feuil2!$C$1:$CD$9,6,FALSE) ->  | AF128: =T128-HLOOKUP(Y128,Feuil2!$C$1:$CD$9,7,FALSE) ->  | AG128: =T128-HLOOKUP(Y128,Feuil2!$C$1:$CD$9,8,FALSE) ->  | AH128: =T128-HLOOKUP(Y128,Feuil2!$C$1:$CD$9,9,FALSE) ->  | AQ128: 2016 | AS128: =IF(AQ128,VLOOKUP(AQ128,HOM!$AS$555:$AT$610,2)) -> 3.571
A129: H | Y129: =IF(AND(J129<1920),VLOOKUP(K129,Feuil2!$F$10:$P$28,11),IF(AND(J129>=1920,J129<1937),VLOOKUP(K129,Feuil2!$F$10:$P$28,11),IF(AND(J129>=1936,J129<1942),VLOOKUP(K129,Feuil2!$F$10:$P$28,10),IF(AND(J129>=1942,J129<1947),VLOOKUP(K129,Feuil2!$F$10:$P$28,9),IF(AND(J129>=1947,J129<1952),VLOOKUP(K129,Feuil2!$F$10:$P$28,8),IF(AND(J129>=1952,J129<1957),VLOOKUP(K129,Feuil2!$F$10:$P$28,7),IF(AND(J129>=1957,J129<1962),VLOOKUP(K129,Feuil2!$F$10:$P$28,6),IF(AND(J129>=1962,J129<1967),VLOOKUP(K129,Feuil2!$F$10:$P$28,5),IF(AND(J129>=1967,J129<1972),VLOOKUP(K129,Feuil2!$F$10:$P$28,4),IF(AND(J129>=1972,J129<1977),VLOOKUP(K129,Feuil2!$F$10:$P$28,3),IF(AND(J129>=1977,J129<1982),VLOOKUP(K129,Feuil2!$F$10:$P$28,2),VLOOKUP(K129,Feuil2!$F$10:$P$28,2)))))))))))) ->  | AA129: =T129-HLOOKUP(Y129,Feuil2!$C$1:$CD$9,2,FALSE) ->  | AB129: =T129-HLOOKUP(Y129,Feuil2!$C$1:$CD$9,3,FALSE) ->  | AC129: =T129-HLOOKUP(Y129,Feuil2!$C$1:$CD$9,4,FALSE) ->  | AD129: =T129-HLOOKUP(Y129,Feuil2!$C$1:$CD$9,5,FALSE) ->  | AE129: =T129-HLOOKUP(Y129,Feuil2!$C$1:$CD$9,6,FALSE) ->  | AF129: =T129-HLOOKUP(Y129,Feuil2!$C$1:$CD$9,7,FALSE) ->  | AG129: =T129-HLOOKUP(Y129,Feuil2!$C$1:$CD$9,8,FALSE) ->  | AH129: =T129-HLOOKUP(Y129,Feuil2!$C$1:$CD$9,9,FALSE) ->  | AQ129: 2016 | AS129: =IF(AQ129,VLOOKUP(AQ129,HOM!$AS$555:$AT$610,2)) -> 3.571
A130: H | V130: =IF(K130="","",AP130) ->  | W130: =IF(K130="","",IF(AH130>=0,AH130,IF(AG130>=0,AG130,IF(AF130>=0,AF130,IF(AE130>=0,AE130,IF(AD130>=0,AD130,IF(AC130>=0,AC130,IF(AB130>=0,AB130,AA130)))))))) ->  | Y130: =IF(AND(J130<1920),VLOOKUP(K130,Feuil2!$F$10:$P$28,11),IF(AND(J130>=1920,J130<1937),VLOOKUP(K130,Feuil2!$F$10:$P$28,11),IF(AND(J130>=1936,J130<1942),VLOOKUP(K130,Feuil2!$F$10:$P$28,10),IF(AND(J130>=1942,J130<1947),VLOOKUP(K130,Feuil2!$F$10:$P$28,9),IF(AND(J130>=1947,J130<1952),VLOOKUP(K130,Feuil2!$F$10:$P$28,8),IF(AND(J130>=1952,J130<1957),VLOOKUP(K130,Feuil2!$F$10:$P$28,7),IF(AND(J130>=1957,J130<1962),VLOOKUP(K130,Feuil2!$F$10:$P$28,6),IF(AND(J130>=1962,J130<1967),VLOOKUP(K130,Feuil2!$F$10:$P$28,5),IF(AND(J130>=1967,J130<1972),VLOOKUP(K130,Feuil2!$F$10:$P$28,4),IF(AND(J130>=1972,J130<1977),VLOOKUP(K130,Feuil2!$F$10:$P$28,3),IF(AND(J130>=1977,J130<1982),VLOOKUP(K130,Feuil2!$F$10:$P$28,2),VLOOKUP(K130,Feuil2!$F$10:$P$28,2)))))))))))) ->  | AA130: =T130-HLOOKUP(Y130,Feuil2!$C$1:$CD$9,2,FALSE) ->  | AB130: =T130-HLOOKUP(Y130,Feuil2!$C$1:$CD$9,3,FALSE) ->  | AC130: =T130-HLOOKUP(Y130,Feuil2!$C$1:$CD$9,4,FALSE) ->  | AD130: =T130-HLOOKUP(Y130,Feuil2!$C$1:$CD$9,5,FALSE) ->  | AE130: =T130-HLOOKUP(Y130,Feuil2!$C$1:$CD$9,6,FALSE) ->  | AF130: =T130-HLOOKUP(Y130,Feuil2!$C$1:$CD$9,7,FALSE) ->  | AG130: =T130-HLOOKUP(Y130,Feuil2!$C$1:$CD$9,8,FALSE) ->  | AH130: =T130-HLOOKUP(Y130,Feuil2!$C$1:$CD$9,9,FALSE) ->  | AP130: =IF(AH130>=0,$AH$4,IF(AG130>=0,$AG$4,IF(AF130>=0,$AF$4,IF(AE130>=0,$AE$4,IF(AD130>=0,$AD$4,IF(AC130>=0,$AC$4,IF(AB130>=0,$AB$4,IF(AA130>=0,$AA$4,$AI$4)))))))) ->  | AQ130: 2016 | AS130: =IF(AQ130,VLOOKUP(AQ130,HOM!$AS$555:$AT$610,2)) -> 3.571
A131: H | Y131: =IF(AND(J131<1920),VLOOKUP(K131,Feuil2!$F$10:$P$28,11),IF(AND(J131>=1920,J131<1937),VLOOKUP(K131,Feuil2!$F$10:$P$28,11),IF(AND(J131>=1936,J131<1942),VLOOKUP(K131,Feuil2!$F$10:$P$28,10),IF(AND(J131>=1942,J131<1947),VLOOKUP(K131,Feuil2!$F$10:$P$28,9),IF(AND(J131>=1947,J131<1952),VLOOKUP(K131,Feuil2!$F$10:$P$28,8),IF(AND(J131>=1952,J131<1957),VLOOKUP(K131,Feuil2!$F$10:$P$28,7),IF(AND(J131>=1957,J131<1962),VLOOKUP(K131,Feuil2!$F$10:$P$28,6),IF(AND(J131>=1962,J131<1967),VLOOKUP(K131,Feuil2!$F$10:$P$28,5),IF(AND(J131>=1967,J131<1972),VLOOKUP(K131,Feuil2!$F$10:$P$28,4),IF(AND(J131>=1972,J131<1977),VLOOKUP(K131,Feuil2!$F$10:$P$28,3),IF(AND(J131>=1977,J131<1982),VLOOKUP(K131,Feuil2!$F$10:$P$28,2),VLOOKUP(K131,Feuil2!$F$10:$P$28,2)))))))))))) ->  | AA131: =T131-HLOOKUP(Y131,Feuil2!$C$1:$CD$9,2,FALSE) ->  | AB131: =T131-HLOOKUP(Y131,Feuil2!$C$1:$CD$9,3,FALSE) ->  | AC131: =T131-HLOOKUP(Y131,Feuil2!$C$1:$CD$9,4,FALSE) ->  | AD131: =T131-HLOOKUP(Y131,Feuil2!$C$1:$CD$9,5,FALSE) ->  | AE131: =T131-HLOOKUP(Y131,Feuil2!$C$1:$CD$9,6,FALSE) ->  | AF131: =T131-HLOOKUP(Y131,Feuil2!$C$1:$CD$9,7,FALSE) ->  | AG131: =T131-HLOOKUP(Y131,Feuil2!$C$1:$CD$9,8,FALSE) ->  | AH131: =T131-HLOOKUP(Y131,Feuil2!$C$1:$CD$9,9,FALSE) ->  | AQ131: 2016 | AS131: =IF(AQ131,VLOOKUP(AQ131,HOM!$AS$555:$AT$610,2)) -> 3.571
A132: H | Y132: =IF(AND(J132<1920),VLOOKUP(K132,Feuil2!$F$10:$P$28,11),IF(AND(J132>=1920,J132<1937),VLOOKUP(K132,Feuil2!$F$10:$P$28,11),IF(AND(J132>=1936,J132<1942),VLOOKUP(K132,Feuil2!$F$10:$P$28,10),IF(AND(J132>=1942,J132<1947),VLOOKUP(K132,Feuil2!$F$10:$P$28,9),IF(AND(J132>=1947,J132<1952),VLOOKUP(K132,Feuil2!$F$10:$P$28,8),IF(AND(J132>=1952,J132<1957),VLOOKUP(K132,Feuil2!$F$10:$P$28,7),IF(AND(J132>=1957,J132<1962),VLOOKUP(K132,Feuil2!$F$10:$P$28,6),IF(AND(J132>=1962,J132<1967),VLOOKUP(K132,Feuil2!$F$10:$P$28,5),IF(AND(J132>=1967,J132<1972),VLOOKUP(K132,Feuil2!$F$10:$P$28,4),IF(AND(J132>=1972,J132<1977),VLOOKUP(K132,Feuil2!$F$10:$P$28,3),IF(AND(J132>=1977,J132<1982),VLOOKUP(K132,Feuil2!$F$10:$P$28,2),VLOOKUP(K132,Feuil2!$F$10:$P$28,2)))))))))))) ->  | AA132: =T132-HLOOKUP(Y132,Feuil2!$C$1:$CD$9,2,FALSE) ->  | AB132: =T132-HLOOKUP(Y132,Feuil2!$C$1:$CD$9,3,FALSE) ->  | AC132: =T132-HLOOKUP(Y132,Feuil2!$C$1:$CD$9,4,FALSE) ->  | AD132: =T132-HLOOKUP(Y132,Feuil2!$C$1:$CD$9,5,FALSE) ->  | AE132: =T132-HLOOKUP(Y132,Feuil2!$C$1:$CD$9,6,FALSE) ->  | AF132: =T132-HLOOKUP(Y132,Feuil2!$C$1:$CD$9,7,FALSE) ->  | AG132: =T132-HLOOKUP(Y132,Feuil2!$C$1:$CD$9,8,FALSE) ->  | AH132: =T132-HLOOKUP(Y132,Feuil2!$C$1:$CD$9,9,FALSE) ->  | AQ132: 2016 | AS132: =IF(AQ132,VLOOKUP(AQ132,HOM!$AS$555:$AT$610,2)) -> 3.571
A133: H | Y133: =IF(AND(J133<1920),VLOOKUP(K133,Feuil2!$F$10:$P$28,11),IF(AND(J133>=1920,J133<1937),VLOOKUP(K133,Feuil2!$F$10:$P$28,11),IF(AND(J133>=1936,J133<1942),VLOOKUP(K133,Feuil2!$F$10:$P$28,10),IF(AND(J133>=1942,J133<1947),VLOOKUP(K133,Feuil2!$F$10:$P$28,9),IF(AND(J133>=1947,J133<1952),VLOOKUP(K133,Feuil2!$F$10:$P$28,8),IF(AND(J133>=1952,J133<1957),VLOOKUP(K133,Feuil2!$F$10:$P$28,7),IF(AND(J133>=1957,J133<1962),VLOOKUP(K133,Feuil2!$F$10:$P$28,6),IF(AND(J133>=1962,J133<1967),VLOOKUP(K133,Feuil2!$F$10:$P$28,5),IF(AND(J133>=1967,J133<1972),VLOOKUP(K133,Feuil2!$F$10:$P$28,4),IF(AND(J133>=1972,J133<1977),VLOOKUP(K133,Feuil2!$F$10:$P$28,3),IF(AND(J133>=1977,J133<1982),VLOOKUP(K133,Feuil2!$F$10:$P$28,2),VLOOKUP(K133,Feuil2!$F$10:$P$28,2)))))))))))) ->  | AA133: =T133-HLOOKUP(Y133,Feuil2!$C$1:$CD$9,2,FALSE) ->  | AB133: =T133-HLOOKUP(Y133,Feuil2!$C$1:$CD$9,3,FALSE) ->  | AC133: =T133-HLOOKUP(Y133,Feuil2!$C$1:$CD$9,4,FALSE) ->  | AD133: =T133-HLOOKUP(Y133,Feuil2!$C$1:$CD$9,5,FALSE) ->  | AE133: =T133-HLOOKUP(Y133,Feuil2!$C$1:$CD$9,6,FALSE) ->  | AF133: =T133-HLOOKUP(Y133,Feuil2!$C$1:$CD$9,7,FALSE) ->  | AG133: =T133-HLOOKUP(Y133,Feuil2!$C$1:$CD$9,8,FALSE) ->  | AH133: =T133-HLOOKUP(Y133,Feuil2!$C$1:$CD$9,9,FALSE) ->  | AQ133: 2016 | AS133: =IF(AQ133,VLOOKUP(AQ133,HOM!$AS$555:$AT$610,2)) -> 3.571
A134: H | Y134: =IF(AND(J134<1920),VLOOKUP(K134,Feuil2!$F$10:$P$28,11),IF(AND(J134>=1920,J134<1937),VLOOKUP(K134,Feuil2!$F$10:$P$28,11),IF(AND(J134>=1936,J134<1942),VLOOKUP(K134,Feuil2!$F$10:$P$28,10),IF(AND(J134>=1942,J134<1947),VLOOKUP(K134,Feuil2!$F$10:$P$28,9),IF(AND(J134>=1947,J134<1952),VLOOKUP(K134,Feuil2!$F$10:$P$28,8),IF(AND(J134>=1952,J134<1957),VLOOKUP(K134,Feuil2!$F$10:$P$28,7),IF(AND(J134>=1957,J134<1962),VLOOKUP(K134,Feuil2!$F$10:$P$28,6),IF(AND(J134>=1962,J134<1967),VLOOKUP(K134,Feuil2!$F$10:$P$28,5),IF(AND(J134>=1967,J134<1972),VLOOKUP(K134,Feuil2!$F$10:$P$28,4),IF(AND(J134>=1972,J134<1977),VLOOKUP(K134,Feuil2!$F$10:$P$28,3),IF(AND(J134>=1977,J134<1982),VLOOKUP(K134,Feuil2!$F$10:$P$28,2),VLOOKUP(K134,Feuil2!$F$10:$P$28,2)))))))))))) ->  | AA134: =T134-HLOOKUP(Y134,Feuil2!$C$1:$CD$9,2,FALSE) ->  | AB134: =T134-HLOOKUP(Y134,Feuil2!$C$1:$CD$9,3,FALSE) ->  | AC134: =T134-HLOOKUP(Y134,Feuil2!$C$1:$CD$9,4,FALSE) ->  | AD134: =T134-HLOOKUP(Y134,Feuil2!$C$1:$CD$9,5,FALSE) ->  | AE134: =T134-HLOOKUP(Y134,Feuil2!$C$1:$CD$9,6,FALSE) ->  | AF134: =T134-HLOOKUP(Y134,Feuil2!$C$1:$CD$9,7,FALSE) ->  | AG134: =T134-HLOOKUP(Y134,Feuil2!$C$1:$CD$9,8,FALSE) ->  | AH134: =T134-HLOOKUP(Y134,Feuil2!$C$1:$CD$9,9,FALSE) ->  | AQ134: 2016 | AS134: =IF(AQ134,VLOOKUP(AQ134,HOM!$AS$555:$AT$610,2)) -> 3.571
A135: H | Y135: =IF(AND(J135<1920),VLOOKUP(K135,Feuil2!$F$10:$P$28,11),IF(AND(J135>=1920,J135<1937),VLOOKUP(K135,Feuil2!$F$10:$P$28,11),IF(AND(J135>=1936,J135<1942),VLOOKUP(K135,Feuil2!$F$10:$P$28,10),IF(AND(J135>=1942,J135<1947),VLOOKUP(K135,Feuil2!$F$10:$P$28,9),IF(AND(J135>=1947,J135<1952),VLOOKUP(K135,Feuil2!$F$10:$P$28,8),IF(AND(J135>=1952,J135<1957),VLOOKUP(K135,Feuil2!$F$10:$P$28,7),IF(AND(J135>=1957,J135<1962),VLOOKUP(K135,Feuil2!$F$10:$P$28,6),IF(AND(J135>=1962,J135<1967),VLOOKUP(K135,Feuil2!$F$10:$P$28,5),IF(AND(J135>=1967,J135<1972),VLOOKUP(K135,Feuil2!$F$10:$P$28,4),IF(AND(J135>=1972,J135<1977),VLOOKUP(K135,Feuil2!$F$10:$P$28,3),IF(AND(J135>=1977,J135<1982),VLOOKUP(K135,Feuil2!$F$10:$P$28,2),VLOOKUP(K135,Feuil2!$F$10:$P$28,2)))))))))))) ->  | AA135: =T135-HLOOKUP(Y135,Feuil2!$C$1:$CD$9,2,FALSE) ->  | AB135: =T135-HLOOKUP(Y135,Feuil2!$C$1:$CD$9,3,FALSE) ->  | AC135: =T135-HLOOKUP(Y135,Feuil2!$C$1:$CD$9,4,FALSE) ->  | AD135: =T135-HLOOKUP(Y135,Feuil2!$C$1:$CD$9,5,FALSE) ->  | AE135: =T135-HLOOKUP(Y135,Feuil2!$C$1:$CD$9,6,FALSE) ->  | AF135: =T135-HLOOKUP(Y135,Feuil2!$C$1:$CD$9,7,FALSE) ->  | AG135: =T135-HLOOKUP(Y135,Feuil2!$C$1:$CD$9,8,FALSE) ->  | AH135: =T135-HLOOKUP(Y135,Feuil2!$C$1:$CD$9,9,FALSE) ->  | AQ135: 2016 | AS135: =IF(AQ135,VLOOKUP(AQ135,HOM!$AS$555:$AT$610,2)) -> 3.571
A136: H | Y136: =IF(AND(J136<1920),VLOOKUP(K136,Feuil2!$F$10:$P$28,11),IF(AND(J136>=1920,J136<1937),VLOOKUP(K136,Feuil2!$F$10:$P$28,11),IF(AND(J136>=1936,J136<1942),VLOOKUP(K136,Feuil2!$F$10:$P$28,10),IF(AND(J136>=1942,J136<1947),VLOOKUP(K136,Feuil2!$F$10:$P$28,9),IF(AND(J136>=1947,J136<1952),VLOOKUP(K136,Feuil2!$F$10:$P$28,8),IF(AND(J136>=1952,J136<1957),VLOOKUP(K136,Feuil2!$F$10:$P$28,7),IF(AND(J136>=1957,J136<1962),VLOOKUP(K136,Feuil2!$F$10:$P$28,6),IF(AND(J136>=1962,J136<1967),VLOOKUP(K136,Feuil2!$F$10:$P$28,5),IF(AND(J136>=1967,J136<1972),VLOOKUP(K136,Feuil2!$F$10:$P$28,4),IF(AND(J136>=1972,J136<1977),VLOOKUP(K136,Feuil2!$F$10:$P$28,3),IF(AND(J136>=1977,J136<1982),VLOOKUP(K136,Feuil2!$F$10:$P$28,2),VLOOKUP(K136,Feuil2!$F$10:$P$28,2)))))))))))) ->  | AA136: =T136-HLOOKUP(Y136,Feuil2!$C$1:$CD$9,2,FALSE) ->  | AB136: =T136-HLOOKUP(Y136,Feuil2!$C$1:$CD$9,3,FALSE) ->  | AC136: =T136-HLOOKUP(Y136,Feuil2!$C$1:$CD$9,4,FALSE) ->  | AD136: =T136-HLOOKUP(Y136,Feuil2!$C$1:$CD$9,5,FALSE) ->  | AE136: =T136-HLOOKUP(Y136,Feuil2!$C$1:$CD$9,6,FALSE) ->  | AF136: =T136-HLOOKUP(Y136,Feuil2!$C$1:$CD$9,7,FALSE) ->  | AG136: =T136-HLOOKUP(Y136,Feuil2!$C$1:$CD$9,8,FALSE) ->  | AH136: =T136-HLOOKUP(Y136,Feuil2!$C$1:$CD$9,9,FALSE) ->  | AQ136: 2016 | AS136: =IF(AQ136,VLOOKUP(AQ136,HOM!$AS$555:$AT$610,2)) -> 3.571
A137: H | U137: =IF(K137="","",IF(A137="H",10^(0.794358141*LOG(K137/174.393)^2)*T137*AS137,IF(A137="F",10^(0.89726074 * LOG(K137/148.026)^2)*T137*AS137,""))) ->  | X137: =IF(BI137<95,IF(BI137<=90,VLOOKUP(BI137,$AQ$554:$AR$609,2))) ->  | Y137: =IF(AND(J137<1920),VLOOKUP(K137,Feuil2!$F$10:$P$28,11),IF(AND(J137>=1920,J137<1937),VLOOKUP(K137,Feuil2!$F$10:$P$28,11),IF(AND(J137>=1936,J137<1942),VLOOKUP(K137,Feuil2!$F$10:$P$28,10),IF(AND(J137>=1942,J137<1947),VLOOKUP(K137,Feuil2!$F$10:$P$28,9),IF(AND(J137>=1947,J137<1952),VLOOKUP(K137,Feuil2!$F$10:$P$28,8),IF(AND(J137>=1952,J137<1957),VLOOKUP(K137,Feuil2!$F$10:$P$28,7),IF(AND(J137>=1957,J137<1962),VLOOKUP(K137,Feuil2!$F$10:$P$28,6),IF(AND(J137>=1962,J137<1967),VLOOKUP(K137,Feuil2!$F$10:$P$28,5),IF(AND(J137>=1967,J137<1972),VLOOKUP(K137,Feuil2!$F$10:$P$28,4),IF(AND(J137>=1972,J137<1977),VLOOKUP(K137,Feuil2!$F$10:$P$28,3),IF(AND(J137>=1977,J137<1982),VLOOKUP(K137,Feuil2!$F$10:$P$28,2),VLOOKUP(K137,Feuil2!$F$10:$P$28,2)))))))))))) ->  | AA137: =T137-HLOOKUP(Y137,Feuil2!$C$1:$CD$9,2,FALSE) ->  | AB137: =T137-HLOOKUP(Y137,Feuil2!$C$1:$CD$9,3,FALSE) ->  | AC137: =T137-HLOOKUP(Y137,Feuil2!$C$1:$CD$9,4,FALSE) ->  | AD137: =T137-HLOOKUP(Y137,Feuil2!$C$1:$CD$9,5,FALSE) ->  | AE137: =T137-HLOOKUP(Y137,Feuil2!$C$1:$CD$9,6,FALSE) ->  | AF137: =T137-HLOOKUP(Y137,Feuil2!$C$1:$CD$9,7,FALSE) ->  | AG137: =T137-HLOOKUP(Y137,Feuil2!$C$1:$CD$9,8,FALSE) ->  | AH137: =T137-HLOOKUP(Y137,Feuil2!$C$1:$CD$9,9,FALSE) ->  | AQ137: 2016 | AS137: =IF(AQ137,VLOOKUP(AQ137,HOM!$AS$555:$AT$610,2)) -> 3.571
A138: H | Y138: =IF(AND(J138<1920),VLOOKUP(K138,Feuil2!$F$10:$P$28,11),IF(AND(J138>=1920,J138<1937),VLOOKUP(K138,Feuil2!$F$10:$P$28,11),IF(AND(J138>=1936,J138<1942),VLOOKUP(K138,Feuil2!$F$10:$P$28,10),IF(AND(J138>=1942,J138<1947),VLOOKUP(K138,Feuil2!$F$10:$P$28,9),IF(AND(J138>=1947,J138<1952),VLOOKUP(K138,Feuil2!$F$10:$P$28,8),IF(AND(J138>=1952,J138<1957),VLOOKUP(K138,Feuil2!$F$10:$P$28,7),IF(AND(J138>=1957,J138<1962),VLOOKUP(K138,Feuil2!$F$10:$P$28,6),IF(AND(J138>=1962,J138<1967),VLOOKUP(K138,Feuil2!$F$10:$P$28,5),IF(AND(J138>=1967,J138<1972),VLOOKUP(K138,Feuil2!$F$10:$P$28,4),IF(AND(J138>=1972,J138<1977),VLOOKUP(K138,Feuil2!$F$10:$P$28,3),IF(AND(J138>=1977,J138<1982),VLOOKUP(K138,Feuil2!$F$10:$P$28,2),VLOOKUP(K138,Feuil2!$F$10:$P$28,2)))))))))))) ->  | AA138: =T138-HLOOKUP(Y138,Feuil2!$C$1:$CD$9,2,FALSE) ->  | AB138: =T138-HLOOKUP(Y138,Feuil2!$C$1:$CD$9,3,FALSE) ->  | AC138: =T138-HLOOKUP(Y138,Feuil2!$C$1:$CD$9,4,FALSE) ->  | AD138: =T138-HLOOKUP(Y138,Feuil2!$C$1:$CD$9,5,FALSE) ->  | AE138: =T138-HLOOKUP(Y138,Feuil2!$C$1:$CD$9,6,FALSE) ->  | AF138: =T138-HLOOKUP(Y138,Feuil2!$C$1:$CD$9,7,FALSE) ->  | AG138: =T138-HLOOKUP(Y138,Feuil2!$C$1:$CD$9,8,FALSE) ->  | AH138: =T138-HLOOKUP(Y138,Feuil2!$C$1:$CD$9,9,FALSE) ->  | AQ138: 2016 | AS138: =IF(AQ138,VLOOKUP(AQ138,HOM!$AS$555:$AT$610,2)) -> 3.571
A139: H | Y139: =IF(AND(J139<1920),VLOOKUP(K139,Feuil2!$F$10:$P$28,11),IF(AND(J139>=1920,J139<1937),VLOOKUP(K139,Feuil2!$F$10:$P$28,11),IF(AND(J139>=1936,J139<1942),VLOOKUP(K139,Feuil2!$F$10:$P$28,10),IF(AND(J139>=1942,J139<1947),VLOOKUP(K139,Feuil2!$F$10:$P$28,9),IF(AND(J139>=1947,J139<1952),VLOOKUP(K139,Feuil2!$F$10:$P$28,8),IF(AND(J139>=1952,J139<1957),VLOOKUP(K139,Feuil2!$F$10:$P$28,7),IF(AND(J139>=1957,J139<1962),VLOOKUP(K139,Feuil2!$F$10:$P$28,6),IF(AND(J139>=1962,J139<1967),VLOOKUP(K139,Feuil2!$F$10:$P$28,5),IF(AND(J139>=1967,J139<1972),VLOOKUP(K139,Feuil2!$F$10:$P$28,4),IF(AND(J139>=1972,J139<1977),VLOOKUP(K139,Feuil2!$F$10:$P$28,3),IF(AND(J139>=1977,J139<1982),VLOOKUP(K139,Feuil2!$F$10:$P$28,2),VLOOKUP(K139,Feuil2!$F$10:$P$28,2)))))))))))) ->  | AA139: =T139-HLOOKUP(Y139,Feuil2!$C$1:$CD$9,2,FALSE) ->  | AB139: =T139-HLOOKUP(Y139,Feuil2!$C$1:$CD$9,3,FALSE) ->  | AC139: =T139-HLOOKUP(Y139,Feuil2!$C$1:$CD$9,4,FALSE) ->  | AD139: =T139-HLOOKUP(Y139,Feuil2!$C$1:$CD$9,5,FALSE) ->  | AE139: =T139-HLOOKUP(Y139,Feuil2!$C$1:$CD$9,6,FALSE) ->  | AF139: =T139-HLOOKUP(Y139,Feuil2!$C$1:$CD$9,7,FALSE) ->  | AG139: =T139-HLOOKUP(Y139,Feuil2!$C$1:$CD$9,8,FALSE) ->  | AH139: =T139-HLOOKUP(Y139,Feuil2!$C$1:$CD$9,9,FALSE) ->  | AQ139: =2016-J139 -> 2016 | AS139: =IF(AQ139,VLOOKUP(AQ139,HOM!$AS$555:$AT$610,2)) -> 3.571
A140: H | Y140: =IF(AND(J140<1920),VLOOKUP(K140,Feuil2!$F$10:$P$28,11),IF(AND(J140>=1920,J140<1937),VLOOKUP(K140,Feuil2!$F$10:$P$28,11),IF(AND(J140>=1936,J140<1942),VLOOKUP(K140,Feuil2!$F$10:$P$28,10),IF(AND(J140>=1942,J140<1947),VLOOKUP(K140,Feuil2!$F$10:$P$28,9),IF(AND(J140>=1947,J140<1952),VLOOKUP(K140,Feuil2!$F$10:$P$28,8),IF(AND(J140>=1952,J140<1957),VLOOKUP(K140,Feuil2!$F$10:$P$28,7),IF(AND(J140>=1957,J140<1962),VLOOKUP(K140,Feuil2!$F$10:$P$28,6),IF(AND(J140>=1962,J140<1967),VLOOKUP(K140,Feuil2!$F$10:$P$28,5),IF(AND(J140>=1967,J140<1972),VLOOKUP(K140,Feuil2!$F$10:$P$28,4),IF(AND(J140>=1972,J140<1977),VLOOKUP(K140,Feuil2!$F$10:$P$28,3),IF(AND(J140>=1977,J140<1982),VLOOKUP(K140,Feuil2!$F$10:$P$28,2),VLOOKUP(K140,Feuil2!$F$10:$P$28,2)))))))))))) ->  | AA140: =T140-HLOOKUP(Y140,Feuil2!$C$1:$CD$9,2,FALSE) ->  | AB140: =T140-HLOOKUP(Y140,Feuil2!$C$1:$CD$9,3,FALSE) ->  | AC140: =T140-HLOOKUP(Y140,Feuil2!$C$1:$CD$9,4,FALSE) ->  | AD140: =T140-HLOOKUP(Y140,Feuil2!$C$1:$CD$9,5,FALSE) ->  | AE140: =T140-HLOOKUP(Y140,Feuil2!$C$1:$CD$9,6,FALSE) ->  | AF140: =T140-HLOOKUP(Y140,Feuil2!$C$1:$CD$9,7,FALSE) ->  | AG140: =T140-HLOOKUP(Y140,Feuil2!$C$1:$CD$9,8,FALSE) ->  | AH140: =T140-HLOOKUP(Y140,Feuil2!$C$1:$CD$9,9,FALSE) ->  | AQ140: 2016 | AS140: =IF(AQ140,VLOOKUP(AQ140,HOM!$AS$555:$AT$610,2)) -> 3.571
A141: H | Y141: =IF(AND(J141<1920),VLOOKUP(K141,Feuil2!$F$10:$P$28,11),IF(AND(J141>=1920,J141<1937),VLOOKUP(K141,Feuil2!$F$10:$P$28,11),IF(AND(J141>=1936,J141<1942),VLOOKUP(K141,Feuil2!$F$10:$P$28,10),IF(AND(J141>=1942,J141<1947),VLOOKUP(K141,Feuil2!$F$10:$P$28,9),IF(AND(J141>=1947,J141<1952),VLOOKUP(K141,Feuil2!$F$10:$P$28,8),IF(AND(J141>=1952,J141<1957),VLOOKUP(K141,Feuil2!$F$10:$P$28,7),IF(AND(J141>=1957,J141<1962),VLOOKUP(K141,Feuil2!$F$10:$P$28,6),IF(AND(J141>=1962,J141<1967),VLOOKUP(K141,Feuil2!$F$10:$P$28,5),IF(AND(J141>=1967,J141<1972),VLOOKUP(K141,Feuil2!$F$10:$P$28,4),IF(AND(J141>=1972,J141<1977),VLOOKUP(K141,Feuil2!$F$10:$P$28,3),IF(AND(J141>=1977,J141<1982),VLOOKUP(K141,Feuil2!$F$10:$P$28,2),VLOOKUP(K141,Feuil2!$F$10:$P$28,2)))))))))))) ->  | AA141: =T141-HLOOKUP(Y141,Feuil2!$C$1:$CD$9,2,FALSE) ->  | AB141: =T141-HLOOKUP(Y141,Feuil2!$C$1:$CD$9,3,FALSE) ->  | AC141: =T141-HLOOKUP(Y141,Feuil2!$C$1:$CD$9,4,FALSE) ->  | AD141: =T141-HLOOKUP(Y141,Feuil2!$C$1:$CD$9,5,FALSE) ->  | AE141: =T141-HLOOKUP(Y141,Feuil2!$C$1:$CD$9,6,FALSE) ->  | AF141: =T141-HLOOKUP(Y141,Feuil2!$C$1:$CD$9,7,FALSE) ->  | AG141: =T141-HLOOKUP(Y141,Feuil2!$C$1:$CD$9,8,FALSE) ->  | AH141: =T141-HLOOKUP(Y141,Feuil2!$C$1:$CD$9,9,FALSE) ->  | AQ141: 2016 | AS141: =IF(AQ141,VLOOKUP(AQ141,HOM!$AS$555:$AT$610,2)) -> 3.571
A142: H | Y142: =IF(AND(J142<1920),VLOOKUP(K142,Feuil2!$F$10:$P$28,11),IF(AND(J142>=1920,J142<1937),VLOOKUP(K142,Feuil2!$F$10:$P$28,11),IF(AND(J142>=1936,J142<1942),VLOOKUP(K142,Feuil2!$F$10:$P$28,10),IF(AND(J142>=1942,J142<1947),VLOOKUP(K142,Feuil2!$F$10:$P$28,9),IF(AND(J142>=1947,J142<1952),VLOOKUP(K142,Feuil2!$F$10:$P$28,8),IF(AND(J142>=1952,J142<1957),VLOOKUP(K142,Feuil2!$F$10:$P$28,7),IF(AND(J142>=1957,J142<1962),VLOOKUP(K142,Feuil2!$F$10:$P$28,6),IF(AND(J142>=1962,J142<1967),VLOOKUP(K142,Feuil2!$F$10:$P$28,5),IF(AND(J142>=1967,J142<1972),VLOOKUP(K142,Feuil2!$F$10:$P$28,4),IF(AND(J142>=1972,J142<1977),VLOOKUP(K142,Feuil2!$F$10:$P$28,3),IF(AND(J142>=1977,J142<1982),VLOOKUP(K142,Feuil2!$F$10:$P$28,2),VLOOKUP(K142,Feuil2!$F$10:$P$28,2)))))))))))) ->  | AA142: =T142-HLOOKUP(Y142,Feuil2!$C$1:$CD$9,2,FALSE) ->  | AB142: =T142-HLOOKUP(Y142,Feuil2!$C$1:$CD$9,3,FALSE) ->  | AC142: =T142-HLOOKUP(Y142,Feuil2!$C$1:$CD$9,4,FALSE) ->  | AD142: =T142-HLOOKUP(Y142,Feuil2!$C$1:$CD$9,5,FALSE) ->  | AE142: =T142-HLOOKUP(Y142,Feuil2!$C$1:$CD$9,6,FALSE) ->  | AF142: =T142-HLOOKUP(Y142,Feuil2!$C$1:$CD$9,7,FALSE) ->  | AG142: =T142-HLOOKUP(Y142,Feuil2!$C$1:$CD$9,8,FALSE) ->  | AH142: =T142-HLOOKUP(Y142,Feuil2!$C$1:$CD$9,9,FALSE) ->  | AQ142: 2016 | AS142: =IF(AQ142,VLOOKUP(AQ142,HOM!$AS$555:$AT$610,2)) -> 3.571
A143: H | O143: =IF(K143="","",IF(MAXA(L143:N143)<=0,0,MAXA(L143:N143))) ->  | Y143: =IF(AND(J143<1920),VLOOKUP(K143,Feuil2!$F$10:$P$28,11),IF(AND(J143>=1920,J143<1937),VLOOKUP(K143,Feuil2!$F$10:$P$28,11),IF(AND(J143>=1936,J143<1942),VLOOKUP(K143,Feuil2!$F$10:$P$28,10),IF(AND(J143>=1942,J143<1947),VLOOKUP(K143,Feuil2!$F$10:$P$28,9),IF(AND(J143>=1947,J143<1952),VLOOKUP(K143,Feuil2!$F$10:$P$28,8),IF(AND(J143>=1952,J143<1957),VLOOKUP(K143,Feuil2!$F$10:$P$28,7),IF(AND(J143>=1957,J143<1962),VLOOKUP(K143,Feuil2!$F$10:$P$28,6),IF(AND(J143>=1962,J143<1967),VLOOKUP(K143,Feuil2!$F$10:$P$28,5),IF(AND(J143>=1967,J143<1972),VLOOKUP(K143,Feuil2!$F$10:$P$28,4),IF(AND(J143>=1972,J143<1977),VLOOKUP(K143,Feuil2!$F$10:$P$28,3),IF(AND(J143>=1977,J143<1982),VLOOKUP(K143,Feuil2!$F$10:$P$28,2),VLOOKUP(K143,Feuil2!$F$10:$P$28,2)))))))))))) ->  | AA143: =T143-HLOOKUP(Y143,Feuil2!$C$1:$CD$9,2,FALSE) ->  | AB143: =T143-HLOOKUP(Y143,Feuil2!$C$1:$CD$9,3,FALSE) ->  | AC143: =T143-HLOOKUP(Y143,Feuil2!$C$1:$CD$9,4,FALSE) ->  | AD143: =T143-HLOOKUP(Y143,Feuil2!$C$1:$CD$9,5,FALSE) ->  | AE143: =T143-HLOOKUP(Y143,Feuil2!$C$1:$CD$9,6,FALSE) ->  | AF143: =T143-HLOOKUP(Y143,Feuil2!$C$1:$CD$9,7,FALSE) ->  | AG143: =T143-HLOOKUP(Y143,Feuil2!$C$1:$CD$9,8,FALSE) ->  | AH143: =T143-HLOOKUP(Y143,Feuil2!$C$1:$CD$9,9,FALSE) ->  | AQ143: 2016 | AS143: =IF(AQ143,VLOOKUP(AQ143,HOM!$AS$555:$AT$610,2)) -> 3.571
A144: H | O144: =IF(K144="","",IF(MAXA(L144:N144)<=0,0,MAXA(L144:N144))) ->  | S144: =IF(K144="","",IF(MAXA(P144:R144)<=0,0,MAXA(P144:R144))) ->  | T144: =IF(K144="","",IF(OR(O144=0,S144=0),0,O144+S144)) ->  | Y144: =IF(AND(J144<1920),VLOOKUP(K144,Feuil2!$F$10:$P$28,11),IF(AND(J144>=1920,J144<1937),VLOOKUP(K144,Feuil2!$F$10:$P$28,11),IF(AND(J144>=1936,J144<1942),VLOOKUP(K144,Feuil2!$F$10:$P$28,10),IF(AND(J144>=1942,J144<1947),VLOOKUP(K144,Feuil2!$F$10:$P$28,9),IF(AND(J144>=1947,J144<1952),VLOOKUP(K144,Feuil2!$F$10:$P$28,8),IF(AND(J144>=1952,J144<1957),VLOOKUP(K144,Feuil2!$F$10:$P$28,7),IF(AND(J144>=1957,J144<1962),VLOOKUP(K144,Feuil2!$F$10:$P$28,6),IF(AND(J144>=1962,J144<1967),VLOOKUP(K144,Feuil2!$F$10:$P$28,5),IF(AND(J144>=1967,J144<1972),VLOOKUP(K144,Feuil2!$F$10:$P$28,4),IF(AND(J144>=1972,J144<1977),VLOOKUP(K144,Feuil2!$F$10:$P$28,3),IF(AND(J144>=1977,J144<1982),VLOOKUP(K144,Feuil2!$F$10:$P$28,2),VLOOKUP(K144,Feuil2!$F$10:$P$28,2)))))))))))) ->  | AA144: =T144-HLOOKUP(Y144,Feuil2!$C$1:$CD$9,2,FALSE) ->  | AB144: =T144-HLOOKUP(Y144,Feuil2!$C$1:$CD$9,3,FALSE) ->  | AC144: =T144-HLOOKUP(Y144,Feuil2!$C$1:$CD$9,4,FALSE) ->  | AD144: =T144-HLOOKUP(Y144,Feuil2!$C$1:$CD$9,5,FALSE) ->  | AE144: =T144-HLOOKUP(Y144,Feuil2!$C$1:$CD$9,6,FALSE) ->  | AF144: =T144-HLOOKUP(Y144,Feuil2!$C$1:$CD$9,7,FALSE) ->  | AG144: =T144-HLOOKUP(Y144,Feuil2!$C$1:$CD$9,8,FALSE) ->  | AH144: =T144-HLOOKUP(Y144,Feuil2!$C$1:$CD$9,9,FALSE) ->  | AQ144: 2016 | AS144: =IF(AQ144,VLOOKUP(AQ144,HOM!$AS$555:$AT$610,2)) -> 3.571
A145: H | Y145: =IF(AND(J145<1920),VLOOKUP(K145,Feuil2!$F$10:$P$28,11),IF(AND(J145>=1920,J145<1937),VLOOKUP(K145,Feuil2!$F$10:$P$28,11),IF(AND(J145>=1936,J145<1942),VLOOKUP(K145,Feuil2!$F$10:$P$28,10),IF(AND(J145>=1942,J145<1947),VLOOKUP(K145,Feuil2!$F$10:$P$28,9),IF(AND(J145>=1947,J145<1952),VLOOKUP(K145,Feuil2!$F$10:$P$28,8),IF(AND(J145>=1952,J145<1957),VLOOKUP(K145,Feuil2!$F$10:$P$28,7),IF(AND(J145>=1957,J145<1962),VLOOKUP(K145,Feuil2!$F$10:$P$28,6),IF(AND(J145>=1962,J145<1967),VLOOKUP(K145,Feuil2!$F$10:$P$28,5),IF(AND(J145>=1967,J145<1972),VLOOKUP(K145,Feuil2!$F$10:$P$28,4),IF(AND(J145>=1972,J145<1977),VLOOKUP(K145,Feuil2!$F$10:$P$28,3),IF(AND(J145>=1977,J145<1982),VLOOKUP(K145,Feuil2!$F$10:$P$28,2),VLOOKUP(K145,Feuil2!$F$10:$P$28,2)))))))))))) ->  | AA145: =T145-HLOOKUP(Y145,Feuil2!$C$1:$CD$9,2,FALSE) ->  | AB145: =T145-HLOOKUP(Y145,Feuil2!$C$1:$CD$9,3,FALSE) ->  | AC145: =T145-HLOOKUP(Y145,Feuil2!$C$1:$CD$9,4,FALSE) ->  | AD145: =T145-HLOOKUP(Y145,Feuil2!$C$1:$CD$9,5,FALSE) ->  | AE145: =T145-HLOOKUP(Y145,Feuil2!$C$1:$CD$9,6,FALSE) ->  | AF145: =T145-HLOOKUP(Y145,Feuil2!$C$1:$CD$9,7,FALSE) ->  | AG145: =T145-HLOOKUP(Y145,Feuil2!$C$1:$CD$9,8,FALSE) ->  | AH145: =T145-HLOOKUP(Y145,Feuil2!$C$1:$CD$9,9,FALSE) ->  | AQ145: 2016 | AS145: =IF(AQ145,VLOOKUP(AQ145,HOM!$AS$555:$AT$610,2)) -> 3.571
A146: H | Y146: =IF(AND(J146<1920),VLOOKUP(K146,Feuil2!$F$10:$P$28,11),IF(AND(J146>=1920,J146<1937),VLOOKUP(K146,Feuil2!$F$10:$P$28,11),IF(AND(J146>=1936,J146<1942),VLOOKUP(K146,Feuil2!$F$10:$P$28,10),IF(AND(J146>=1942,J146<1947),VLOOKUP(K146,Feuil2!$F$10:$P$28,9),IF(AND(J146>=1947,J146<1952),VLOOKUP(K146,Feuil2!$F$10:$P$28,8),IF(AND(J146>=1952,J146<1957),VLOOKUP(K146,Feuil2!$F$10:$P$28,7),IF(AND(J146>=1957,J146<1962),VLOOKUP(K146,Feuil2!$F$10:$P$28,6),IF(AND(J146>=1962,J146<1967),VLOOKUP(K146,Feuil2!$F$10:$P$28,5),IF(AND(J146>=1967,J146<1972),VLOOKUP(K146,Feuil2!$F$10:$P$28,4),IF(AND(J146>=1972,J146<1977),VLOOKUP(K146,Feuil2!$F$10:$P$28,3),IF(AND(J146>=1977,J146<1982),VLOOKUP(K146,Feuil2!$F$10:$P$28,2),VLOOKUP(K146,Feuil2!$F$10:$P$28,2)))))))))))) ->  | AA146: =T146-HLOOKUP(Y146,Feuil2!$C$1:$CD$9,2,FALSE) ->  | AB146: =T146-HLOOKUP(Y146,Feuil2!$C$1:$CD$9,3,FALSE) ->  | AC146: =T146-HLOOKUP(Y146,Feuil2!$C$1:$CD$9,4,FALSE) ->  | AD146: =T146-HLOOKUP(Y146,Feuil2!$C$1:$CD$9,5,FALSE) ->  | AE146: =T146-HLOOKUP(Y146,Feuil2!$C$1:$CD$9,6,FALSE) ->  | AF146: =T146-HLOOKUP(Y146,Feuil2!$C$1:$CD$9,7,FALSE) ->  | AG146: =T146-HLOOKUP(Y146,Feuil2!$C$1:$CD$9,8,FALSE) ->  | AH146: =T146-HLOOKUP(Y146,Feuil2!$C$1:$CD$9,9,FALSE) ->  | AQ146: 2016 | AS146: =IF(AQ146,VLOOKUP(AQ146,HOM!$AS$555:$AT$610,2)) -> 3.571
A147: H | Y147: =IF(AND(J147<1920),VLOOKUP(K147,Feuil2!$F$10:$P$28,11),IF(AND(J147>=1920,J147<1937),VLOOKUP(K147,Feuil2!$F$10:$P$28,11),IF(AND(J147>=1936,J147<1942),VLOOKUP(K147,Feuil2!$F$10:$P$28,10),IF(AND(J147>=1942,J147<1947),VLOOKUP(K147,Feuil2!$F$10:$P$28,9),IF(AND(J147>=1947,J147<1952),VLOOKUP(K147,Feuil2!$F$10:$P$28,8),IF(AND(J147>=1952,J147<1957),VLOOKUP(K147,Feuil2!$F$10:$P$28,7),IF(AND(J147>=1957,J147<1962),VLOOKUP(K147,Feuil2!$F$10:$P$28,6),IF(AND(J147>=1962,J147<1967),VLOOKUP(K147,Feuil2!$F$10:$P$28,5),IF(AND(J147>=1967,J147<1972),VLOOKUP(K147,Feuil2!$F$10:$P$28,4),IF(AND(J147>=1972,J147<1977),VLOOKUP(K147,Feuil2!$F$10:$P$28,3),IF(AND(J147>=1977,J147<1982),VLOOKUP(K147,Feuil2!$F$10:$P$28,2),VLOOKUP(K147,Feuil2!$F$10:$P$28,2)))))))))))) ->  | AA147: =T147-HLOOKUP(Y147,Feuil2!$C$1:$CD$9,2,FALSE) ->  | AB147: =T147-HLOOKUP(Y147,Feuil2!$C$1:$CD$9,3,FALSE) ->  | AC147: =T147-HLOOKUP(Y147,Feuil2!$C$1:$CD$9,4,FALSE) ->  | AD147: =T147-HLOOKUP(Y147,Feuil2!$C$1:$CD$9,5,FALSE) ->  | AE147: =T147-HLOOKUP(Y147,Feuil2!$C$1:$CD$9,6,FALSE) ->  | AF147: =T147-HLOOKUP(Y147,Feuil2!$C$1:$CD$9,7,FALSE) ->  | AG147: =T147-HLOOKUP(Y147,Feuil2!$C$1:$CD$9,8,FALSE) ->  | AH147: =T147-HLOOKUP(Y147,Feuil2!$C$1:$CD$9,9,FALSE) ->  | AQ147: 2016 | AS147: =IF(AQ147,VLOOKUP(AQ147,HOM!$AS$555:$AT$610,2)) -> 3.571
A148: H | Y148: =IF(AND(J148<1920),VLOOKUP(K148,Feuil2!$F$10:$P$28,11),IF(AND(J148>=1920,J148<1937),VLOOKUP(K148,Feuil2!$F$10:$P$28,11),IF(AND(J148>=1936,J148<1942),VLOOKUP(K148,Feuil2!$F$10:$P$28,10),IF(AND(J148>=1942,J148<1947),VLOOKUP(K148,Feuil2!$F$10:$P$28,9),IF(AND(J148>=1947,J148<1952),VLOOKUP(K148,Feuil2!$F$10:$P$28,8),IF(AND(J148>=1952,J148<1957),VLOOKUP(K148,Feuil2!$F$10:$P$28,7),IF(AND(J148>=1957,J148<1962),VLOOKUP(K148,Feuil2!$F$10:$P$28,6),IF(AND(J148>=1962,J148<1967),VLOOKUP(K148,Feuil2!$F$10:$P$28,5),IF(AND(J148>=1967,J148<1972),VLOOKUP(K148,Feuil2!$F$10:$P$28,4),IF(AND(J148>=1972,J148<1977),VLOOKUP(K148,Feuil2!$F$10:$P$28,3),IF(AND(J148>=1977,J148<1982),VLOOKUP(K148,Feuil2!$F$10:$P$28,2),VLOOKUP(K148,Feuil2!$F$10:$P$28,2)))))))))))) ->  | AA148: =T148-HLOOKUP(Y148,Feuil2!$C$1:$CD$9,2,FALSE) ->  | AB148: =T148-HLOOKUP(Y148,Feuil2!$C$1:$CD$9,3,FALSE) ->  | AC148: =T148-HLOOKUP(Y148,Feuil2!$C$1:$CD$9,4,FALSE) ->  | AD148: =T148-HLOOKUP(Y148,Feuil2!$C$1:$CD$9,5,FALSE) ->  | AE148: =T148-HLOOKUP(Y148,Feuil2!$C$1:$CD$9,6,FALSE) ->  | AF148: =T148-HLOOKUP(Y148,Feuil2!$C$1:$CD$9,7,FALSE) ->  | AG148: =T148-HLOOKUP(Y148,Feuil2!$C$1:$CD$9,8,FALSE) ->  | AH148: =T148-HLOOKUP(Y148,Feuil2!$C$1:$CD$9,9,FALSE) ->  | AQ148: 2016 | AS148: =IF(AQ148,VLOOKUP(AQ148,HOM!$AS$555:$AT$610,2)) -> 3.571
A149: H | Y149: =IF(AND(J149<1920),VLOOKUP(K149,Feuil2!$F$10:$P$28,11),IF(AND(J149>=1920,J149<1937),VLOOKUP(K149,Feuil2!$F$10:$P$28,11),IF(AND(J149>=1936,J149<1942),VLOOKUP(K149,Feuil2!$F$10:$P$28,10),IF(AND(J149>=1942,J149<1947),VLOOKUP(K149,Feuil2!$F$10:$P$28,9),IF(AND(J149>=1947,J149<1952),VLOOKUP(K149,Feuil2!$F$10:$P$28,8),IF(AND(J149>=1952,J149<1957),VLOOKUP(K149,Feuil2!$F$10:$P$28,7),IF(AND(J149>=1957,J149<1962),VLOOKUP(K149,Feuil2!$F$10:$P$28,6),IF(AND(J149>=1962,J149<1967),VLOOKUP(K149,Feuil2!$F$10:$P$28,5),IF(AND(J149>=1967,J149<1972),VLOOKUP(K149,Feuil2!$F$10:$P$28,4),IF(AND(J149>=1972,J149<1977),VLOOKUP(K149,Feuil2!$F$10:$P$28,3),IF(AND(J149>=1977,J149<1982),VLOOKUP(K149,Feuil2!$F$10:$P$28,2),VLOOKUP(K149,Feuil2!$F$10:$P$28,2)))))))))))) ->  | AA149: =T149-HLOOKUP(Y149,Feuil2!$C$1:$CD$9,2,FALSE) ->  | AB149: =T149-HLOOKUP(Y149,Feuil2!$C$1:$CD$9,3,FALSE) ->  | AC149: =T149-HLOOKUP(Y149,Feuil2!$C$1:$CD$9,4,FALSE) ->  | AD149: =T149-HLOOKUP(Y149,Feuil2!$C$1:$CD$9,5,FALSE) ->  | AE149: =T149-HLOOKUP(Y149,Feuil2!$C$1:$CD$9,6,FALSE) ->  | AF149: =T149-HLOOKUP(Y149,Feuil2!$C$1:$CD$9,7,FALSE) ->  | AG149: =T149-HLOOKUP(Y149,Feuil2!$C$1:$CD$9,8,FALSE) ->  | AH149: =T149-HLOOKUP(Y149,Feuil2!$C$1:$CD$9,9,FALSE) ->  | AQ149: 2016 | AS149: =IF(AQ149,VLOOKUP(AQ149,HOM!$AS$555:$AT$610,2)) -> 3.571
A150: H | Y150: =IF(AND(J150<1920),VLOOKUP(K150,Feuil2!$F$10:$P$28,11),IF(AND(J150>=1920,J150<1937),VLOOKUP(K150,Feuil2!$F$10:$P$28,11),IF(AND(J150>=1936,J150<1942),VLOOKUP(K150,Feuil2!$F$10:$P$28,10),IF(AND(J150>=1942,J150<1947),VLOOKUP(K150,Feuil2!$F$10:$P$28,9),IF(AND(J150>=1947,J150<1952),VLOOKUP(K150,Feuil2!$F$10:$P$28,8),IF(AND(J150>=1952,J150<1957),VLOOKUP(K150,Feuil2!$F$10:$P$28,7),IF(AND(J150>=1957,J150<1962),VLOOKUP(K150,Feuil2!$F$10:$P$28,6),IF(AND(J150>=1962,J150<1967),VLOOKUP(K150,Feuil2!$F$10:$P$28,5),IF(AND(J150>=1967,J150<1972),VLOOKUP(K150,Feuil2!$F$10:$P$28,4),IF(AND(J150>=1972,J150<1977),VLOOKUP(K150,Feuil2!$F$10:$P$28,3),IF(AND(J150>=1977,J150<1982),VLOOKUP(K150,Feuil2!$F$10:$P$28,2),VLOOKUP(K150,Feuil2!$F$10:$P$28,2)))))))))))) ->  | AA150: =T150-HLOOKUP(Y150,Feuil2!$C$1:$CD$9,2,FALSE) ->  | AB150: =T150-HLOOKUP(Y150,Feuil2!$C$1:$CD$9,3,FALSE) ->  | AC150: =T150-HLOOKUP(Y150,Feuil2!$C$1:$CD$9,4,FALSE) ->  | AD150: =T150-HLOOKUP(Y150,Feuil2!$C$1:$CD$9,5,FALSE) ->  | AE150: =T150-HLOOKUP(Y150,Feuil2!$C$1:$CD$9,6,FALSE) ->  | AF150: =T150-HLOOKUP(Y150,Feuil2!$C$1:$CD$9,7,FALSE) ->  | AG150: =T150-HLOOKUP(Y150,Feuil2!$C$1:$CD$9,8,FALSE) ->  | AH150: =T150-HLOOKUP(Y150,Feuil2!$C$1:$CD$9,9,FALSE) ->  | AQ150: 2016 | AS150: =IF(AQ150,VLOOKUP(AQ150,HOM!$AS$555:$AT$610,2)) -> 3.571
A151: H | Y151: =IF(AND(J151<1920),VLOOKUP(K151,Feuil2!$F$10:$P$28,11),IF(AND(J151>=1920,J151<1937),VLOOKUP(K151,Feuil2!$F$10:$P$28,11),IF(AND(J151>=1936,J151<1942),VLOOKUP(K151,Feuil2!$F$10:$P$28,10),IF(AND(J151>=1942,J151<1947),VLOOKUP(K151,Feuil2!$F$10:$P$28,9),IF(AND(J151>=1947,J151<1952),VLOOKUP(K151,Feuil2!$F$10:$P$28,8),IF(AND(J151>=1952,J151<1957),VLOOKUP(K151,Feuil2!$F$10:$P$28,7),IF(AND(J151>=1957,J151<1962),VLOOKUP(K151,Feuil2!$F$10:$P$28,6),IF(AND(J151>=1962,J151<1967),VLOOKUP(K151,Feuil2!$F$10:$P$28,5),IF(AND(J151>=1967,J151<1972),VLOOKUP(K151,Feuil2!$F$10:$P$28,4),IF(AND(J151>=1972,J151<1977),VLOOKUP(K151,Feuil2!$F$10:$P$28,3),IF(AND(J151>=1977,J151<1982),VLOOKUP(K151,Feuil2!$F$10:$P$28,2),VLOOKUP(K151,Feuil2!$F$10:$P$28,2)))))))))))) ->  | AA151: =T151-HLOOKUP(Y151,Feuil2!$C$1:$CD$9,2,FALSE) ->  | AB151: =T151-HLOOKUP(Y151,Feuil2!$C$1:$CD$9,3,FALSE) ->  | AC151: =T151-HLOOKUP(Y151,Feuil2!$C$1:$CD$9,4,FALSE) ->  | AD151: =T151-HLOOKUP(Y151,Feuil2!$C$1:$CD$9,5,FALSE) ->  | AE151: =T151-HLOOKUP(Y151,Feuil2!$C$1:$CD$9,6,FALSE) ->  | AF151: =T151-HLOOKUP(Y151,Feuil2!$C$1:$CD$9,7,FALSE) ->  | AG151: =T151-HLOOKUP(Y151,Feuil2!$C$1:$CD$9,8,FALSE) ->  | AH151: =T151-HLOOKUP(Y151,Feuil2!$C$1:$CD$9,9,FALSE) ->  | AQ151: 2016 | AS151: =IF(AQ151,VLOOKUP(AQ151,HOM!$AS$555:$AT$610,2)) -> 3.571
A152: H | Y152: =IF(AND(J152<1920),VLOOKUP(K152,Feuil2!$F$10:$P$28,11),IF(AND(J152>=1920,J152<1937),VLOOKUP(K152,Feuil2!$F$10:$P$28,11),IF(AND(J152>=1936,J152<1942),VLOOKUP(K152,Feuil2!$F$10:$P$28,10),IF(AND(J152>=1942,J152<1947),VLOOKUP(K152,Feuil2!$F$10:$P$28,9),IF(AND(J152>=1947,J152<1952),VLOOKUP(K152,Feuil2!$F$10:$P$28,8),IF(AND(J152>=1952,J152<1957),VLOOKUP(K152,Feuil2!$F$10:$P$28,7),IF(AND(J152>=1957,J152<1962),VLOOKUP(K152,Feuil2!$F$10:$P$28,6),IF(AND(J152>=1962,J152<1967),VLOOKUP(K152,Feuil2!$F$10:$P$28,5),IF(AND(J152>=1967,J152<1972),VLOOKUP(K152,Feuil2!$F$10:$P$28,4),IF(AND(J152>=1972,J152<1977),VLOOKUP(K152,Feuil2!$F$10:$P$28,3),IF(AND(J152>=1977,J152<1982),VLOOKUP(K152,Feuil2!$F$10:$P$28,2),VLOOKUP(K152,Feuil2!$F$10:$P$28,2)))))))))))) ->  | AA152: =T152-HLOOKUP(Y152,Feuil2!$C$1:$CD$9,2,FALSE) ->  | AB152: =T152-HLOOKUP(Y152,Feuil2!$C$1:$CD$9,3,FALSE) ->  | AC152: =T152-HLOOKUP(Y152,Feuil2!$C$1:$CD$9,4,FALSE) ->  | AD152: =T152-HLOOKUP(Y152,Feuil2!$C$1:$CD$9,5,FALSE) ->  | AE152: =T152-HLOOKUP(Y152,Feuil2!$C$1:$CD$9,6,FALSE) ->  | AF152: =T152-HLOOKUP(Y152,Feuil2!$C$1:$CD$9,7,FALSE) ->  | AG152: =T152-HLOOKUP(Y152,Feuil2!$C$1:$CD$9,8,FALSE) ->  | AH152: =T152-HLOOKUP(Y152,Feuil2!$C$1:$CD$9,9,FALSE) ->  | AQ152: 2016 | AS152: =IF(AQ152,VLOOKUP(AQ152,HOM!$AS$555:$AT$610,2)) -> 3.571
A153: H | Y153: =IF(AND(J153<1920),VLOOKUP(K153,Feuil2!$F$10:$P$28,11),IF(AND(J153>=1920,J153<1937),VLOOKUP(K153,Feuil2!$F$10:$P$28,11),IF(AND(J153>=1936,J153<1942),VLOOKUP(K153,Feuil2!$F$10:$P$28,10),IF(AND(J153>=1942,J153<1947),VLOOKUP(K153,Feuil2!$F$10:$P$28,9),IF(AND(J153>=1947,J153<1952),VLOOKUP(K153,Feuil2!$F$10:$P$28,8),IF(AND(J153>=1952,J153<1957),VLOOKUP(K153,Feuil2!$F$10:$P$28,7),IF(AND(J153>=1957,J153<1962),VLOOKUP(K153,Feuil2!$F$10:$P$28,6),IF(AND(J153>=1962,J153<1967),VLOOKUP(K153,Feuil2!$F$10:$P$28,5),IF(AND(J153>=1967,J153<1972),VLOOKUP(K153,Feuil2!$F$10:$P$28,4),IF(AND(J153>=1972,J153<1977),VLOOKUP(K153,Feuil2!$F$10:$P$28,3),IF(AND(J153>=1977,J153<1982),VLOOKUP(K153,Feuil2!$F$10:$P$28,2),VLOOKUP(K153,Feuil2!$F$10:$P$28,2)))))))))))) ->  | AA153: =T153-HLOOKUP(Y153,Feuil2!$C$1:$CD$9,2,FALSE) ->  | AB153: =T153-HLOOKUP(Y153,Feuil2!$C$1:$CD$9,3,FALSE) ->  | AC153: =T153-HLOOKUP(Y153,Feuil2!$C$1:$CD$9,4,FALSE) ->  | AD153: =T153-HLOOKUP(Y153,Feuil2!$C$1:$CD$9,5,FALSE) ->  | AE153: =T153-HLOOKUP(Y153,Feuil2!$C$1:$CD$9,6,FALSE) ->  | AF153: =T153-HLOOKUP(Y153,Feuil2!$C$1:$CD$9,7,FALSE) ->  | AG153: =T153-HLOOKUP(Y153,Feuil2!$C$1:$CD$9,8,FALSE) ->  | AH153: =T153-HLOOKUP(Y153,Feuil2!$C$1:$CD$9,9,FALSE) ->  | AQ153: 2016 | AS153: =IF(AQ153,VLOOKUP(AQ153,HOM!$AS$555:$AT$610,2)) -> 3.571
A154: H | Y154: =IF(AND(J154<1920),VLOOKUP(K154,Feuil2!$F$10:$P$28,11),IF(AND(J154>=1920,J154<1937),VLOOKUP(K154,Feuil2!$F$10:$P$28,11),IF(AND(J154>=1936,J154<1942),VLOOKUP(K154,Feuil2!$F$10:$P$28,10),IF(AND(J154>=1942,J154<1947),VLOOKUP(K154,Feuil2!$F$10:$P$28,9),IF(AND(J154>=1947,J154<1952),VLOOKUP(K154,Feuil2!$F$10:$P$28,8),IF(AND(J154>=1952,J154<1957),VLOOKUP(K154,Feuil2!$F$10:$P$28,7),IF(AND(J154>=1957,J154<1962),VLOOKUP(K154,Feuil2!$F$10:$P$28,6),IF(AND(J154>=1962,J154<1967),VLOOKUP(K154,Feuil2!$F$10:$P$28,5),IF(AND(J154>=1967,J154<1972),VLOOKUP(K154,Feuil2!$F$10:$P$28,4),IF(AND(J154>=1972,J154<1977),VLOOKUP(K154,Feuil2!$F$10:$P$28,3),IF(AND(J154>=1977,J154<1982),VLOOKUP(K154,Feuil2!$F$10:$P$28,2),VLOOKUP(K154,Feuil2!$F$10:$P$28,2)))))))))))) ->  | AA154: =T154-HLOOKUP(Y154,Feuil2!$C$1:$CD$9,2,FALSE) ->  | AB154: =T154-HLOOKUP(Y154,Feuil2!$C$1:$CD$9,3,FALSE) ->  | AC154: =T154-HLOOKUP(Y154,Feuil2!$C$1:$CD$9,4,FALSE) ->  | AD154: =T154-HLOOKUP(Y154,Feuil2!$C$1:$CD$9,5,FALSE) ->  | AE154: =T154-HLOOKUP(Y154,Feuil2!$C$1:$CD$9,6,FALSE) ->  | AF154: =T154-HLOOKUP(Y154,Feuil2!$C$1:$CD$9,7,FALSE) ->  | AG154: =T154-HLOOKUP(Y154,Feuil2!$C$1:$CD$9,8,FALSE) ->  | AH154: =T154-HLOOKUP(Y154,Feuil2!$C$1:$CD$9,9,FALSE) ->  | AQ154: 2016 | AS154: =IF(AQ154,VLOOKUP(AQ154,HOM!$AS$555:$AT$610,2)) -> 3.571
A155: H | Y155: =IF(AND(J155<1920),VLOOKUP(K155,Feuil2!$F$10:$P$28,11),IF(AND(J155>=1920,J155<1937),VLOOKUP(K155,Feuil2!$F$10:$P$28,11),IF(AND(J155>=1936,J155<1942),VLOOKUP(K155,Feuil2!$F$10:$P$28,10),IF(AND(J155>=1942,J155<1947),VLOOKUP(K155,Feuil2!$F$10:$P$28,9),IF(AND(J155>=1947,J155<1952),VLOOKUP(K155,Feuil2!$F$10:$P$28,8),IF(AND(J155>=1952,J155<1957),VLOOKUP(K155,Feuil2!$F$10:$P$28,7),IF(AND(J155>=1957,J155<1962),VLOOKUP(K155,Feuil2!$F$10:$P$28,6),IF(AND(J155>=1962,J155<1967),VLOOKUP(K155,Feuil2!$F$10:$P$28,5),IF(AND(J155>=1967,J155<1972),VLOOKUP(K155,Feuil2!$F$10:$P$28,4),IF(AND(J155>=1972,J155<1977),VLOOKUP(K155,Feuil2!$F$10:$P$28,3),IF(AND(J155>=1977,J155<1982),VLOOKUP(K155,Feuil2!$F$10:$P$28,2),VLOOKUP(K155,Feuil2!$F$10:$P$28,2)))))))))))) ->  | AA155: =T155-HLOOKUP(Y155,Feuil2!$C$1:$CD$9,2,FALSE) ->  | AB155: =T155-HLOOKUP(Y155,Feuil2!$C$1:$CD$9,3,FALSE) ->  | AC155: =T155-HLOOKUP(Y155,Feuil2!$C$1:$CD$9,4,FALSE) ->  | AD155: =T155-HLOOKUP(Y155,Feuil2!$C$1:$CD$9,5,FALSE) ->  | AE155: =T155-HLOOKUP(Y155,Feuil2!$C$1:$CD$9,6,FALSE) ->  | AF155: =T155-HLOOKUP(Y155,Feuil2!$C$1:$CD$9,7,FALSE) ->  | AG155: =T155-HLOOKUP(Y155,Feuil2!$C$1:$CD$9,8,FALSE) ->  | AH155: =T155-HLOOKUP(Y155,Feuil2!$C$1:$CD$9,9,FALSE) ->  | AQ155: 2016 | AS155: =IF(AQ155,VLOOKUP(AQ155,HOM!$AS$555:$AT$610,2)) -> 3.571
A156: H | Y156: =IF(AND(J156<1920),VLOOKUP(K156,Feuil2!$F$10:$P$28,11),IF(AND(J156>=1920,J156<1937),VLOOKUP(K156,Feuil2!$F$10:$P$28,11),IF(AND(J156>=1936,J156<1942),VLOOKUP(K156,Feuil2!$F$10:$P$28,10),IF(AND(J156>=1942,J156<1947),VLOOKUP(K156,Feuil2!$F$10:$P$28,9),IF(AND(J156>=1947,J156<1952),VLOOKUP(K156,Feuil2!$F$10:$P$28,8),IF(AND(J156>=1952,J156<1957),VLOOKUP(K156,Feuil2!$F$10:$P$28,7),IF(AND(J156>=1957,J156<1962),VLOOKUP(K156,Feuil2!$F$10:$P$28,6),IF(AND(J156>=1962,J156<1967),VLOOKUP(K156,Feuil2!$F$10:$P$28,5),IF(AND(J156>=1967,J156<1972),VLOOKUP(K156,Feuil2!$F$10:$P$28,4),IF(AND(J156>=1972,J156<1977),VLOOKUP(K156,Feuil2!$F$10:$P$28,3),IF(AND(J156>=1977,J156<1982),VLOOKUP(K156,Feuil2!$F$10:$P$28,2),VLOOKUP(K156,Feuil2!$F$10:$P$28,2)))))))))))) ->  | AA156: =T156-HLOOKUP(Y156,Feuil2!$C$1:$CD$9,2,FALSE) ->  | AB156: =T156-HLOOKUP(Y156,Feuil2!$C$1:$CD$9,3,FALSE) ->  | AC156: =T156-HLOOKUP(Y156,Feuil2!$C$1:$CD$9,4,FALSE) ->  | AD156: =T156-HLOOKUP(Y156,Feuil2!$C$1:$CD$9,5,FALSE) ->  | AE156: =T156-HLOOKUP(Y156,Feuil2!$C$1:$CD$9,6,FALSE) ->  | AF156: =T156-HLOOKUP(Y156,Feuil2!$C$1:$CD$9,7,FALSE) ->  | AG156: =T156-HLOOKUP(Y156,Feuil2!$C$1:$CD$9,8,FALSE) ->  | AH156: =T156-HLOOKUP(Y156,Feuil2!$C$1:$CD$9,9,FALSE) ->  | AQ156: 2016 | AS156: =IF(AQ156,VLOOKUP(AQ156,HOM!$AS$555:$AT$610,2)) -> 3.571
A157: H | Y157: =IF(AND(J157<1920),VLOOKUP(K157,Feuil2!$F$10:$P$28,11),IF(AND(J157>=1920,J157<1937),VLOOKUP(K157,Feuil2!$F$10:$P$28,11),IF(AND(J157>=1936,J157<1942),VLOOKUP(K157,Feuil2!$F$10:$P$28,10),IF(AND(J157>=1942,J157<1947),VLOOKUP(K157,Feuil2!$F$10:$P$28,9),IF(AND(J157>=1947,J157<1952),VLOOKUP(K157,Feuil2!$F$10:$P$28,8),IF(AND(J157>=1952,J157<1957),VLOOKUP(K157,Feuil2!$F$10:$P$28,7),IF(AND(J157>=1957,J157<1962),VLOOKUP(K157,Feuil2!$F$10:$P$28,6),IF(AND(J157>=1962,J157<1967),VLOOKUP(K157,Feuil2!$F$10:$P$28,5),IF(AND(J157>=1967,J157<1972),VLOOKUP(K157,Feuil2!$F$10:$P$28,4),IF(AND(J157>=1972,J157<1977),VLOOKUP(K157,Feuil2!$F$10:$P$28,3),IF(AND(J157>=1977,J157<1982),VLOOKUP(K157,Feuil2!$F$10:$P$28,2),VLOOKUP(K157,Feuil2!$F$10:$P$28,2)))))))))))) ->  | AA157: =T157-HLOOKUP(Y157,Feuil2!$C$1:$CD$9,2,FALSE) ->  | AB157: =T157-HLOOKUP(Y157,Feuil2!$C$1:$CD$9,3,FALSE) ->  | AC157: =T157-HLOOKUP(Y157,Feuil2!$C$1:$CD$9,4,FALSE) ->  | AD157: =T157-HLOOKUP(Y157,Feuil2!$C$1:$CD$9,5,FALSE) ->  | AE157: =T157-HLOOKUP(Y157,Feuil2!$C$1:$CD$9,6,FALSE) ->  | AF157: =T157-HLOOKUP(Y157,Feuil2!$C$1:$CD$9,7,FALSE) ->  | AG157: =T157-HLOOKUP(Y157,Feuil2!$C$1:$CD$9,8,FALSE) ->  | AH157: =T157-HLOOKUP(Y157,Feuil2!$C$1:$CD$9,9,FALSE) ->  | AQ157: 2016 | AS157: =IF(AQ157,VLOOKUP(AQ157,HOM!$AS$555:$AT$610,2)) -> 3.571
A158: H | Y158: =IF(AND(J158<1920),VLOOKUP(K158,Feuil2!$F$10:$P$28,11),IF(AND(J158>=1920,J158<1937),VLOOKUP(K158,Feuil2!$F$10:$P$28,11),IF(AND(J158>=1936,J158<1942),VLOOKUP(K158,Feuil2!$F$10:$P$28,10),IF(AND(J158>=1942,J158<1947),VLOOKUP(K158,Feuil2!$F$10:$P$28,9),IF(AND(J158>=1947,J158<1952),VLOOKUP(K158,Feuil2!$F$10:$P$28,8),IF(AND(J158>=1952,J158<1957),VLOOKUP(K158,Feuil2!$F$10:$P$28,7),IF(AND(J158>=1957,J158<1962),VLOOKUP(K158,Feuil2!$F$10:$P$28,6),IF(AND(J158>=1962,J158<1967),VLOOKUP(K158,Feuil2!$F$10:$P$28,5),IF(AND(J158>=1967,J158<1972),VLOOKUP(K158,Feuil2!$F$10:$P$28,4),IF(AND(J158>=1972,J158<1977),VLOOKUP(K158,Feuil2!$F$10:$P$28,3),IF(AND(J158>=1977,J158<1982),VLOOKUP(K158,Feuil2!$F$10:$P$28,2),VLOOKUP(K158,Feuil2!$F$10:$P$28,2)))))))))))) ->  | AA158: =T158-HLOOKUP(Y158,Feuil2!$C$1:$CD$9,2,FALSE) ->  | AB158: =T158-HLOOKUP(Y158,Feuil2!$C$1:$CD$9,3,FALSE) ->  | AC158: =T158-HLOOKUP(Y158,Feuil2!$C$1:$CD$9,4,FALSE) ->  | AD158: =T158-HLOOKUP(Y158,Feuil2!$C$1:$CD$9,5,FALSE) ->  | AE158: =T158-HLOOKUP(Y158,Feuil2!$C$1:$CD$9,6,FALSE) ->  | AF158: =T158-HLOOKUP(Y158,Feuil2!$C$1:$CD$9,7,FALSE) ->  | AG158: =T158-HLOOKUP(Y158,Feuil2!$C$1:$CD$9,8,FALSE) ->  | AH158: =T158-HLOOKUP(Y158,Feuil2!$C$1:$CD$9,9,FALSE) ->  | AQ158: 2016 | AS158: =IF(AQ158,VLOOKUP(AQ158,HOM!$AS$555:$AT$610,2)) -> 3.571
A159: H | Y159: =IF(AND(J159<1920),VLOOKUP(K159,Feuil2!$F$10:$P$28,11),IF(AND(J159>=1920,J159<1937),VLOOKUP(K159,Feuil2!$F$10:$P$28,11),IF(AND(J159>=1936,J159<1942),VLOOKUP(K159,Feuil2!$F$10:$P$28,10),IF(AND(J159>=1942,J159<1947),VLOOKUP(K159,Feuil2!$F$10:$P$28,9),IF(AND(J159>=1947,J159<1952),VLOOKUP(K159,Feuil2!$F$10:$P$28,8),IF(AND(J159>=1952,J159<1957),VLOOKUP(K159,Feuil2!$F$10:$P$28,7),IF(AND(J159>=1957,J159<1962),VLOOKUP(K159,Feuil2!$F$10:$P$28,6),IF(AND(J159>=1962,J159<1967),VLOOKUP(K159,Feuil2!$F$10:$P$28,5),IF(AND(J159>=1967,J159<1972),VLOOKUP(K159,Feuil2!$F$10:$P$28,4),IF(AND(J159>=1972,J159<1977),VLOOKUP(K159,Feuil2!$F$10:$P$28,3),IF(AND(J159>=1977,J159<1982),VLOOKUP(K159,Feuil2!$F$10:$P$28,2),VLOOKUP(K159,Feuil2!$F$10:$P$28,2)))))))))))) ->  | AA159: =T159-HLOOKUP(Y159,Feuil2!$C$1:$CD$9,2,FALSE) ->  | AB159: =T159-HLOOKUP(Y159,Feuil2!$C$1:$CD$9,3,FALSE) ->  | AC159: =T159-HLOOKUP(Y159,Feuil2!$C$1:$CD$9,4,FALSE) ->  | AD159: =T159-HLOOKUP(Y159,Feuil2!$C$1:$CD$9,5,FALSE) ->  | AE159: =T159-HLOOKUP(Y159,Feuil2!$C$1:$CD$9,6,FALSE) ->  | AF159: =T159-HLOOKUP(Y159,Feuil2!$C$1:$CD$9,7,FALSE) ->  | AG159: =T159-HLOOKUP(Y159,Feuil2!$C$1:$CD$9,8,FALSE) ->  | AH159: =T159-HLOOKUP(Y159,Feuil2!$C$1:$CD$9,9,FALSE) ->  | AQ159: 2016 | AS159: =IF(AQ159,VLOOKUP(AQ159,HOM!$AS$555:$AT$610,2)) -> 3.571
A160: H | Y160: =IF(AND(J160<1920),VLOOKUP(K160,Feuil2!$F$10:$P$28,11),IF(AND(J160>=1920,J160<1937),VLOOKUP(K160,Feuil2!$F$10:$P$28,11),IF(AND(J160>=1936,J160<1942),VLOOKUP(K160,Feuil2!$F$10:$P$28,10),IF(AND(J160>=1942,J160<1947),VLOOKUP(K160,Feuil2!$F$10:$P$28,9),IF(AND(J160>=1947,J160<1952),VLOOKUP(K160,Feuil2!$F$10:$P$28,8),IF(AND(J160>=1952,J160<1957),VLOOKUP(K160,Feuil2!$F$10:$P$28,7),IF(AND(J160>=1957,J160<1962),VLOOKUP(K160,Feuil2!$F$10:$P$28,6),IF(AND(J160>=1962,J160<1967),VLOOKUP(K160,Feuil2!$F$10:$P$28,5),IF(AND(J160>=1967,J160<1972),VLOOKUP(K160,Feuil2!$F$10:$P$28,4),IF(AND(J160>=1972,J160<1977),VLOOKUP(K160,Feuil2!$F$10:$P$28,3),IF(AND(J160>=1977,J160<1982),VLOOKUP(K160,Feuil2!$F$10:$P$28,2),VLOOKUP(K160,Feuil2!$F$10:$P$28,2)))))))))))) ->  | AA160: =T160-HLOOKUP(Y160,Feuil2!$C$1:$CD$9,2,FALSE) ->  | AB160: =T160-HLOOKUP(Y160,Feuil2!$C$1:$CD$9,3,FALSE) ->  | AC160: =T160-HLOOKUP(Y160,Feuil2!$C$1:$CD$9,4,FALSE) ->  | AD160: =T160-HLOOKUP(Y160,Feuil2!$C$1:$CD$9,5,FALSE) ->  | AE160: =T160-HLOOKUP(Y160,Feuil2!$C$1:$CD$9,6,FALSE) ->  | AF160: =T160-HLOOKUP(Y160,Feuil2!$C$1:$CD$9,7,FALSE) ->  | AG160: =T160-HLOOKUP(Y160,Feuil2!$C$1:$CD$9,8,FALSE) ->  | AH160: =T160-HLOOKUP(Y160,Feuil2!$C$1:$CD$9,9,FALSE) ->  | AQ160: 2016 | AS160: =IF(AQ160,VLOOKUP(AQ160,HOM!$AS$555:$AT$610,2)) -> 3.571
A161: H | Y161: =IF(AND(J161<1920),VLOOKUP(K161,Feuil2!$F$10:$P$28,11),IF(AND(J161>=1920,J161<1937),VLOOKUP(K161,Feuil2!$F$10:$P$28,11),IF(AND(J161>=1936,J161<1942),VLOOKUP(K161,Feuil2!$F$10:$P$28,10),IF(AND(J161>=1942,J161<1947),VLOOKUP(K161,Feuil2!$F$10:$P$28,9),IF(AND(J161>=1947,J161<1952),VLOOKUP(K161,Feuil2!$F$10:$P$28,8),IF(AND(J161>=1952,J161<1957),VLOOKUP(K161,Feuil2!$F$10:$P$28,7),IF(AND(J161>=1957,J161<1962),VLOOKUP(K161,Feuil2!$F$10:$P$28,6),IF(AND(J161>=1962,J161<1967),VLOOKUP(K161,Feuil2!$F$10:$P$28,5),IF(AND(J161>=1967,J161<1972),VLOOKUP(K161,Feuil2!$F$10:$P$28,4),IF(AND(J161>=1972,J161<1977),VLOOKUP(K161,Feuil2!$F$10:$P$28,3),IF(AND(J161>=1977,J161<1982),VLOOKUP(K161,Feuil2!$F$10:$P$28,2),VLOOKUP(K161,Feuil2!$F$10:$P$28,2)))))))))))) ->  | AA161: =T161-HLOOKUP(Y161,Feuil2!$C$1:$CD$9,2,FALSE) ->  | AB161: =T161-HLOOKUP(Y161,Feuil2!$C$1:$CD$9,3,FALSE) ->  | AC161: =T161-HLOOKUP(Y161,Feuil2!$C$1:$CD$9,4,FALSE) ->  | AD161: =T161-HLOOKUP(Y161,Feuil2!$C$1:$CD$9,5,FALSE) ->  | AE161: =T161-HLOOKUP(Y161,Feuil2!$C$1:$CD$9,6,FALSE) ->  | AF161: =T161-HLOOKUP(Y161,Feuil2!$C$1:$CD$9,7,FALSE) ->  | AG161: =T161-HLOOKUP(Y161,Feuil2!$C$1:$CD$9,8,FALSE) ->  | AH161: =T161-HLOOKUP(Y161,Feuil2!$C$1:$CD$9,9,FALSE) ->  | AQ161: 2016 | AS161: =IF(AQ161,VLOOKUP(AQ161,HOM!$AS$555:$AT$610,2)) -> 3.571
A162: H | Y162: =IF(AND(J162<1920),VLOOKUP(K162,Feuil2!$F$10:$P$28,11),IF(AND(J162>=1920,J162<1937),VLOOKUP(K162,Feuil2!$F$10:$P$28,11),IF(AND(J162>=1936,J162<1942),VLOOKUP(K162,Feuil2!$F$10:$P$28,10),IF(AND(J162>=1942,J162<1947),VLOOKUP(K162,Feuil2!$F$10:$P$28,9),IF(AND(J162>=1947,J162<1952),VLOOKUP(K162,Feuil2!$F$10:$P$28,8),IF(AND(J162>=1952,J162<1957),VLOOKUP(K162,Feuil2!$F$10:$P$28,7),IF(AND(J162>=1957,J162<1962),VLOOKUP(K162,Feuil2!$F$10:$P$28,6),IF(AND(J162>=1962,J162<1967),VLOOKUP(K162,Feuil2!$F$10:$P$28,5),IF(AND(J162>=1967,J162<1972),VLOOKUP(K162,Feuil2!$F$10:$P$28,4),IF(AND(J162>=1972,J162<1977),VLOOKUP(K162,Feuil2!$F$10:$P$28,3),IF(AND(J162>=1977,J162<1982),VLOOKUP(K162,Feuil2!$F$10:$P$28,2),VLOOKUP(K162,Feuil2!$F$10:$P$28,2)))))))))))) ->  | AA162: =T162-HLOOKUP(Y162,Feuil2!$C$1:$CD$9,2,FALSE) ->  | AB162: =T162-HLOOKUP(Y162,Feuil2!$C$1:$CD$9,3,FALSE) ->  | AC162: =T162-HLOOKUP(Y162,Feuil2!$C$1:$CD$9,4,FALSE) ->  | AD162: =T162-HLOOKUP(Y162,Feuil2!$C$1:$CD$9,5,FALSE) ->  | AE162: =T162-HLOOKUP(Y162,Feuil2!$C$1:$CD$9,6,FALSE) ->  | AF162: =T162-HLOOKUP(Y162,Feuil2!$C$1:$CD$9,7,FALSE) ->  | AG162: =T162-HLOOKUP(Y162,Feuil2!$C$1:$CD$9,8,FALSE) ->  | AH162: =T162-HLOOKUP(Y162,Feuil2!$C$1:$CD$9,9,FALSE) ->  | AQ162: 2016 | AS162: =IF(AQ162,VLOOKUP(AQ162,HOM!$AS$555:$AT$610,2)) -> 3.571
A163: H | O163: =IF(K163="","",IF(MAXA(L163:N163)<=0,0,MAXA(L163:N163))) ->  | S163: =IF(K163="","",IF(MAXA(P163:R163)<=0,0,MAXA(P163:R163))) ->  | T163: =IF(K163="","",IF(OR(O163=0,S163=0),0,O163+S163)) ->  | V163: =IF(K163="","",AP163) ->  | W163: =IF(K163="","",IF(AH163>=0,AH163,IF(AG163>=0,AG163,IF(AF163>=0,AF163,IF(AE163>=0,AE163,IF(AD163>=0,AD163,IF(AC163>=0,AC163,IF(AB163>=0,AB163,AA163)))))))) ->  | Y163: =IF(AND(J163<1920),VLOOKUP(K163,Feuil2!$F$10:$P$28,11),IF(AND(J163>=1920,J163<1937),VLOOKUP(K163,Feuil2!$F$10:$P$28,11),IF(AND(J163>=1936,J163<1942),VLOOKUP(K163,Feuil2!$F$10:$P$28,10),IF(AND(J163>=1942,J163<1947),VLOOKUP(K163,Feuil2!$F$10:$P$28,9),IF(AND(J163>=1947,J163<1952),VLOOKUP(K163,Feuil2!$F$10:$P$28,8),IF(AND(J163>=1952,J163<1957),VLOOKUP(K163,Feuil2!$F$10:$P$28,7),IF(AND(J163>=1957,J163<1962),VLOOKUP(K163,Feuil2!$F$10:$P$28,6),IF(AND(J163>=1962,J163<1967),VLOOKUP(K163,Feuil2!$F$10:$P$28,5),IF(AND(J163>=1967,J163<1972),VLOOKUP(K163,Feuil2!$F$10:$P$28,4),IF(AND(J163>=1972,J163<1977),VLOOKUP(K163,Feuil2!$F$10:$P$28,3),IF(AND(J163>=1977,J163<1982),VLOOKUP(K163,Feuil2!$F$10:$P$28,2),VLOOKUP(K163,Feuil2!$F$10:$P$28,2)))))))))))) ->  | AA163: =T163-HLOOKUP(Y163,Feuil2!$C$1:$CD$9,2,FALSE) ->  | AB163: =T163-HLOOKUP(Y163,Feuil2!$C$1:$CD$9,3,FALSE) ->  | AC163: =T163-HLOOKUP(Y163,Feuil2!$C$1:$CD$9,4,FALSE) ->  | AD163: =T163-HLOOKUP(Y163,Feuil2!$C$1:$CD$9,5,FALSE) ->  | AE163: =T163-HLOOKUP(Y163,Feuil2!$C$1:$CD$9,6,FALSE) ->  | AF163: =T163-HLOOKUP(Y163,Feuil2!$C$1:$CD$9,7,FALSE) ->  | AG163: =T163-HLOOKUP(Y163,Feuil2!$C$1:$CD$9,8,FALSE) ->  | AH163: =T163-HLOOKUP(Y163,Feuil2!$C$1:$CD$9,9,FALSE) ->  | AP163: =IF(AH163>=0,$AH$4,IF(AG163>=0,$AG$4,IF(AF163>=0,$AF$4,IF(AE163>=0,$AE$4,IF(AD163>=0,$AD$4,IF(AC163>=0,$AC$4,IF(AB163>=0,$AB$4,IF(AA163>=0,$AA$4,$AI$4)))))))) ->  | AQ163: 2016 | AS163: =IF(AQ163,VLOOKUP(AQ163,HOM!$AS$555:$AT$610,2)) -> 3.571
A164: H | Y164: =IF(AND(J164<1920),VLOOKUP(K164,Feuil2!$F$10:$P$28,11),IF(AND(J164>=1920,J164<1937),VLOOKUP(K164,Feuil2!$F$10:$P$28,11),IF(AND(J164>=1936,J164<1942),VLOOKUP(K164,Feuil2!$F$10:$P$28,10),IF(AND(J164>=1942,J164<1947),VLOOKUP(K164,Feuil2!$F$10:$P$28,9),IF(AND(J164>=1947,J164<1952),VLOOKUP(K164,Feuil2!$F$10:$P$28,8),IF(AND(J164>=1952,J164<1957),VLOOKUP(K164,Feuil2!$F$10:$P$28,7),IF(AND(J164>=1957,J164<1962),VLOOKUP(K164,Feuil2!$F$10:$P$28,6),IF(AND(J164>=1962,J164<1967),VLOOKUP(K164,Feuil2!$F$10:$P$28,5),IF(AND(J164>=1967,J164<1972),VLOOKUP(K164,Feuil2!$F$10:$P$28,4),IF(AND(J164>=1972,J164<1977),VLOOKUP(K164,Feuil2!$F$10:$P$28,3),IF(AND(J164>=1977,J164<1982),VLOOKUP(K164,Feuil2!$F$10:$P$28,2),VLOOKUP(K164,Feuil2!$F$10:$P$28,2)))))))))))) ->  | AA164: =T164-HLOOKUP(Y164,Feuil2!$C$1:$CD$9,2,FALSE) ->  | AB164: =T164-HLOOKUP(Y164,Feuil2!$C$1:$CD$9,3,FALSE) ->  | AC164: =T164-HLOOKUP(Y164,Feuil2!$C$1:$CD$9,4,FALSE) ->  | AD164: =T164-HLOOKUP(Y164,Feuil2!$C$1:$CD$9,5,FALSE) ->  | AE164: =T164-HLOOKUP(Y164,Feuil2!$C$1:$CD$9,6,FALSE) ->  | AF164: =T164-HLOOKUP(Y164,Feuil2!$C$1:$CD$9,7,FALSE) ->  | AG164: =T164-HLOOKUP(Y164,Feuil2!$C$1:$CD$9,8,FALSE) ->  | AH164: =T164-HLOOKUP(Y164,Feuil2!$C$1:$CD$9,9,FALSE) ->  | AQ164: 2016 | AS164: =IF(AQ164,VLOOKUP(AQ164,HOM!$AS$555:$AT$610,2)) -> 3.571
A165: H | Y165: =IF(AND(J165<1920),VLOOKUP(K165,Feuil2!$F$10:$P$28,11),IF(AND(J165>=1920,J165<1937),VLOOKUP(K165,Feuil2!$F$10:$P$28,11),IF(AND(J165>=1936,J165<1942),VLOOKUP(K165,Feuil2!$F$10:$P$28,10),IF(AND(J165>=1942,J165<1947),VLOOKUP(K165,Feuil2!$F$10:$P$28,9),IF(AND(J165>=1947,J165<1952),VLOOKUP(K165,Feuil2!$F$10:$P$28,8),IF(AND(J165>=1952,J165<1957),VLOOKUP(K165,Feuil2!$F$10:$P$28,7),IF(AND(J165>=1957,J165<1962),VLOOKUP(K165,Feuil2!$F$10:$P$28,6),IF(AND(J165>=1962,J165<1967),VLOOKUP(K165,Feuil2!$F$10:$P$28,5),IF(AND(J165>=1967,J165<1972),VLOOKUP(K165,Feuil2!$F$10:$P$28,4),IF(AND(J165>=1972,J165<1977),VLOOKUP(K165,Feuil2!$F$10:$P$28,3),IF(AND(J165>=1977,J165<1982),VLOOKUP(K165,Feuil2!$F$10:$P$28,2),VLOOKUP(K165,Feuil2!$F$10:$P$28,2)))))))))))) ->  | AA165: =T165-HLOOKUP(Y165,Feuil2!$C$1:$CD$9,2,FALSE) ->  | AB165: =T165-HLOOKUP(Y165,Feuil2!$C$1:$CD$9,3,FALSE) ->  | AC165: =T165-HLOOKUP(Y165,Feuil2!$C$1:$CD$9,4,FALSE) ->  | AD165: =T165-HLOOKUP(Y165,Feuil2!$C$1:$CD$9,5,FALSE) ->  | AE165: =T165-HLOOKUP(Y165,Feuil2!$C$1:$CD$9,6,FALSE) ->  | AF165: =T165-HLOOKUP(Y165,Feuil2!$C$1:$CD$9,7,FALSE) ->  | AG165: =T165-HLOOKUP(Y165,Feuil2!$C$1:$CD$9,8,FALSE) ->  | AH165: =T165-HLOOKUP(Y165,Feuil2!$C$1:$CD$9,9,FALSE) ->  | AQ165: 2016 | AS165: =IF(AQ165,VLOOKUP(AQ165,HOM!$AS$555:$AT$610,2)) -> 3.571
A166: H | Y166: =IF(AND(J166<1920),VLOOKUP(K166,Feuil2!$F$10:$P$28,11),IF(AND(J166>=1920,J166<1937),VLOOKUP(K166,Feuil2!$F$10:$P$28,11),IF(AND(J166>=1936,J166<1942),VLOOKUP(K166,Feuil2!$F$10:$P$28,10),IF(AND(J166>=1942,J166<1947),VLOOKUP(K166,Feuil2!$F$10:$P$28,9),IF(AND(J166>=1947,J166<1952),VLOOKUP(K166,Feuil2!$F$10:$P$28,8),IF(AND(J166>=1952,J166<1957),VLOOKUP(K166,Feuil2!$F$10:$P$28,7),IF(AND(J166>=1957,J166<1962),VLOOKUP(K166,Feuil2!$F$10:$P$28,6),IF(AND(J166>=1962,J166<1967),VLOOKUP(K166,Feuil2!$F$10:$P$28,5),IF(AND(J166>=1967,J166<1972),VLOOKUP(K166,Feuil2!$F$10:$P$28,4),IF(AND(J166>=1972,J166<1977),VLOOKUP(K166,Feuil2!$F$10:$P$28,3),IF(AND(J166>=1977,J166<1982),VLOOKUP(K166,Feuil2!$F$10:$P$28,2),VLOOKUP(K166,Feuil2!$F$10:$P$28,2)))))))))))) ->  | AA166: =T166-HLOOKUP(Y166,Feuil2!$C$1:$CD$9,2,FALSE) ->  | AB166: =T166-HLOOKUP(Y166,Feuil2!$C$1:$CD$9,3,FALSE) ->  | AC166: =T166-HLOOKUP(Y166,Feuil2!$C$1:$CD$9,4,FALSE) ->  | AD166: =T166-HLOOKUP(Y166,Feuil2!$C$1:$CD$9,5,FALSE) ->  | AE166: =T166-HLOOKUP(Y166,Feuil2!$C$1:$CD$9,6,FALSE) ->  | AF166: =T166-HLOOKUP(Y166,Feuil2!$C$1:$CD$9,7,FALSE) ->  | AG166: =T166-HLOOKUP(Y166,Feuil2!$C$1:$CD$9,8,FALSE) ->  | AH166: =T166-HLOOKUP(Y166,Feuil2!$C$1:$CD$9,9,FALSE) ->  | AQ166: 2016 | AS166: =IF(AQ166,VLOOKUP(AQ166,HOM!$AS$555:$AT$610,2)) -> 3.571
A167: H | Y167: =IF(AND(J167<1920),VLOOKUP(K167,Feuil2!$F$10:$P$28,11),IF(AND(J167>=1920,J167<1937),VLOOKUP(K167,Feuil2!$F$10:$P$28,11),IF(AND(J167>=1936,J167<1942),VLOOKUP(K167,Feuil2!$F$10:$P$28,10),IF(AND(J167>=1942,J167<1947),VLOOKUP(K167,Feuil2!$F$10:$P$28,9),IF(AND(J167>=1947,J167<1952),VLOOKUP(K167,Feuil2!$F$10:$P$28,8),IF(AND(J167>=1952,J167<1957),VLOOKUP(K167,Feuil2!$F$10:$P$28,7),IF(AND(J167>=1957,J167<1962),VLOOKUP(K167,Feuil2!$F$10:$P$28,6),IF(AND(J167>=1962,J167<1967),VLOOKUP(K167,Feuil2!$F$10:$P$28,5),IF(AND(J167>=1967,J167<1972),VLOOKUP(K167,Feuil2!$F$10:$P$28,4),IF(AND(J167>=1972,J167<1977),VLOOKUP(K167,Feuil2!$F$10:$P$28,3),IF(AND(J167>=1977,J167<1982),VLOOKUP(K167,Feuil2!$F$10:$P$28,2),VLOOKUP(K167,Feuil2!$F$10:$P$28,2)))))))))))) ->  | AA167: =T167-HLOOKUP(Y167,Feuil2!$C$1:$CD$9,2,FALSE) ->  | AB167: =T167-HLOOKUP(Y167,Feuil2!$C$1:$CD$9,3,FALSE) ->  | AC167: =T167-HLOOKUP(Y167,Feuil2!$C$1:$CD$9,4,FALSE) ->  | AD167: =T167-HLOOKUP(Y167,Feuil2!$C$1:$CD$9,5,FALSE) ->  | AE167: =T167-HLOOKUP(Y167,Feuil2!$C$1:$CD$9,6,FALSE) ->  | AF167: =T167-HLOOKUP(Y167,Feuil2!$C$1:$CD$9,7,FALSE) ->  | AG167: =T167-HLOOKUP(Y167,Feuil2!$C$1:$CD$9,8,FALSE) ->  | AH167: =T167-HLOOKUP(Y167,Feuil2!$C$1:$CD$9,9,FALSE) ->  | AQ167: 2016 | AS167: =IF(AQ167,VLOOKUP(AQ167,HOM!$AS$555:$AT$610,2)) -> 3.571
A168: H | Y168: =IF(AND(J168<1920),VLOOKUP(K168,Feuil2!$F$10:$P$28,11),IF(AND(J168>=1920,J168<1937),VLOOKUP(K168,Feuil2!$F$10:$P$28,11),IF(AND(J168>=1936,J168<1942),VLOOKUP(K168,Feuil2!$F$10:$P$28,10),IF(AND(J168>=1942,J168<1947),VLOOKUP(K168,Feuil2!$F$10:$P$28,9),IF(AND(J168>=1947,J168<1952),VLOOKUP(K168,Feuil2!$F$10:$P$28,8),IF(AND(J168>=1952,J168<1957),VLOOKUP(K168,Feuil2!$F$10:$P$28,7),IF(AND(J168>=1957,J168<1962),VLOOKUP(K168,Feuil2!$F$10:$P$28,6),IF(AND(J168>=1962,J168<1967),VLOOKUP(K168,Feuil2!$F$10:$P$28,5),IF(AND(J168>=1967,J168<1972),VLOOKUP(K168,Feuil2!$F$10:$P$28,4),IF(AND(J168>=1972,J168<1977),VLOOKUP(K168,Feuil2!$F$10:$P$28,3),IF(AND(J168>=1977,J168<1982),VLOOKUP(K168,Feuil2!$F$10:$P$28,2),VLOOKUP(K168,Feuil2!$F$10:$P$28,2)))))))))))) ->  | AA168: =T168-HLOOKUP(Y168,Feuil2!$C$1:$CD$9,2,FALSE) ->  | AB168: =T168-HLOOKUP(Y168,Feuil2!$C$1:$CD$9,3,FALSE) ->  | AC168: =T168-HLOOKUP(Y168,Feuil2!$C$1:$CD$9,4,FALSE) ->  | AD168: =T168-HLOOKUP(Y168,Feuil2!$C$1:$CD$9,5,FALSE) ->  | AE168: =T168-HLOOKUP(Y168,Feuil2!$C$1:$CD$9,6,FALSE) ->  | AF168: =T168-HLOOKUP(Y168,Feuil2!$C$1:$CD$9,7,FALSE) ->  | AG168: =T168-HLOOKUP(Y168,Feuil2!$C$1:$CD$9,8,FALSE) ->  | AH168: =T168-HLOOKUP(Y168,Feuil2!$C$1:$CD$9,9,FALSE) ->  | AQ168: 2016 | AS168: =IF(AQ168,VLOOKUP(AQ168,HOM!$AS$555:$AT$610,2)) -> 3.571
A169: H | Y169: =IF(AND(J169<1920),VLOOKUP(K169,Feuil2!$F$10:$P$28,11),IF(AND(J169>=1920,J169<1937),VLOOKUP(K169,Feuil2!$F$10:$P$28,11),IF(AND(J169>=1936,J169<1942),VLOOKUP(K169,Feuil2!$F$10:$P$28,10),IF(AND(J169>=1942,J169<1947),VLOOKUP(K169,Feuil2!$F$10:$P$28,9),IF(AND(J169>=1947,J169<1952),VLOOKUP(K169,Feuil2!$F$10:$P$28,8),IF(AND(J169>=1952,J169<1957),VLOOKUP(K169,Feuil2!$F$10:$P$28,7),IF(AND(J169>=1957,J169<1962),VLOOKUP(K169,Feuil2!$F$10:$P$28,6),IF(AND(J169>=1962,J169<1967),VLOOKUP(K169,Feuil2!$F$10:$P$28,5),IF(AND(J169>=1967,J169<1972),VLOOKUP(K169,Feuil2!$F$10:$P$28,4),IF(AND(J169>=1972,J169<1977),VLOOKUP(K169,Feuil2!$F$10:$P$28,3),IF(AND(J169>=1977,J169<1982),VLOOKUP(K169,Feuil2!$F$10:$P$28,2),VLOOKUP(K169,Feuil2!$F$10:$P$28,2)))))))))))) ->  | AA169: =T169-HLOOKUP(Y169,Feuil2!$C$1:$CD$9,2,FALSE) ->  | AB169: =T169-HLOOKUP(Y169,Feuil2!$C$1:$CD$9,3,FALSE) ->  | AC169: =T169-HLOOKUP(Y169,Feuil2!$C$1:$CD$9,4,FALSE) ->  | AD169: =T169-HLOOKUP(Y169,Feuil2!$C$1:$CD$9,5,FALSE) ->  | AE169: =T169-HLOOKUP(Y169,Feuil2!$C$1:$CD$9,6,FALSE) ->  | AF169: =T169-HLOOKUP(Y169,Feuil2!$C$1:$CD$9,7,FALSE) ->  | AG169: =T169-HLOOKUP(Y169,Feuil2!$C$1:$CD$9,8,FALSE) ->  | AH169: =T169-HLOOKUP(Y169,Feuil2!$C$1:$CD$9,9,FALSE) ->  | AQ169: 2016 | AS169: =IF(AQ169,VLOOKUP(AQ169,HOM!$AS$555:$AT$610,2)) -> 3.571
A170: H | Y170: =IF(AND(J170<1920),VLOOKUP(K170,Feuil2!$F$10:$P$28,11),IF(AND(J170>=1920,J170<1937),VLOOKUP(K170,Feuil2!$F$10:$P$28,11),IF(AND(J170>=1936,J170<1942),VLOOKUP(K170,Feuil2!$F$10:$P$28,10),IF(AND(J170>=1942,J170<1947),VLOOKUP(K170,Feuil2!$F$10:$P$28,9),IF(AND(J170>=1947,J170<1952),VLOOKUP(K170,Feuil2!$F$10:$P$28,8),IF(AND(J170>=1952,J170<1957),VLOOKUP(K170,Feuil2!$F$10:$P$28,7),IF(AND(J170>=1957,J170<1962),VLOOKUP(K170,Feuil2!$F$10:$P$28,6),IF(AND(J170>=1962,J170<1967),VLOOKUP(K170,Feuil2!$F$10:$P$28,5),IF(AND(J170>=1967,J170<1972),VLOOKUP(K170,Feuil2!$F$10:$P$28,4),IF(AND(J170>=1972,J170<1977),VLOOKUP(K170,Feuil2!$F$10:$P$28,3),IF(AND(J170>=1977,J170<1982),VLOOKUP(K170,Feuil2!$F$10:$P$28,2),VLOOKUP(K170,Feuil2!$F$10:$P$28,2)))))))))))) ->  | AA170: =T170-HLOOKUP(Y170,Feuil2!$C$1:$CD$9,2,FALSE) ->  | AB170: =T170-HLOOKUP(Y170,Feuil2!$C$1:$CD$9,3,FALSE) ->  | AC170: =T170-HLOOKUP(Y170,Feuil2!$C$1:$CD$9,4,FALSE) ->  | AD170: =T170-HLOOKUP(Y170,Feuil2!$C$1:$CD$9,5,FALSE) ->  | AE170: =T170-HLOOKUP(Y170,Feuil2!$C$1:$CD$9,6,FALSE) ->  | AF170: =T170-HLOOKUP(Y170,Feuil2!$C$1:$CD$9,7,FALSE) ->  | AG170: =T170-HLOOKUP(Y170,Feuil2!$C$1:$CD$9,8,FALSE) ->  | AH170: =T170-HLOOKUP(Y170,Feuil2!$C$1:$CD$9,9,FALSE) ->  | AQ170: 2016 | AS170: =IF(AQ170,VLOOKUP(AQ170,HOM!$AS$555:$AT$610,2)) -> 3.571
A171: H | Y171: =IF(AND(J171<1920),VLOOKUP(K171,Feuil2!$F$10:$P$28,11),IF(AND(J171>=1920,J171<1937),VLOOKUP(K171,Feuil2!$F$10:$P$28,11),IF(AND(J171>=1936,J171<1942),VLOOKUP(K171,Feuil2!$F$10:$P$28,10),IF(AND(J171>=1942,J171<1947),VLOOKUP(K171,Feuil2!$F$10:$P$28,9),IF(AND(J171>=1947,J171<1952),VLOOKUP(K171,Feuil2!$F$10:$P$28,8),IF(AND(J171>=1952,J171<1957),VLOOKUP(K171,Feuil2!$F$10:$P$28,7),IF(AND(J171>=1957,J171<1962),VLOOKUP(K171,Feuil2!$F$10:$P$28,6),IF(AND(J171>=1962,J171<1967),VLOOKUP(K171,Feuil2!$F$10:$P$28,5),IF(AND(J171>=1967,J171<1972),VLOOKUP(K171,Feuil2!$F$10:$P$28,4),IF(AND(J171>=1972,J171<1977),VLOOKUP(K171,Feuil2!$F$10:$P$28,3),IF(AND(J171>=1977,J171<1982),VLOOKUP(K171,Feuil2!$F$10:$P$28,2),VLOOKUP(K171,Feuil2!$F$10:$P$28,2)))))))))))) ->  | AA171: =T171-HLOOKUP(Y171,Feuil2!$C$1:$CD$9,2,FALSE) ->  | AB171: =T171-HLOOKUP(Y171,Feuil2!$C$1:$CD$9,3,FALSE) ->  | AC171: =T171-HLOOKUP(Y171,Feuil2!$C$1:$CD$9,4,FALSE) ->  | AD171: =T171-HLOOKUP(Y171,Feuil2!$C$1:$CD$9,5,FALSE) ->  | AE171: =T171-HLOOKUP(Y171,Feuil2!$C$1:$CD$9,6,FALSE) ->  | AF171: =T171-HLOOKUP(Y171,Feuil2!$C$1:$CD$9,7,FALSE) ->  | AG171: =T171-HLOOKUP(Y171,Feuil2!$C$1:$CD$9,8,FALSE) ->  | AH171: =T171-HLOOKUP(Y171,Feuil2!$C$1:$CD$9,9,FALSE) ->  | AQ171: 2016 | AS171: =IF(AQ171,VLOOKUP(AQ171,HOM!$AS$555:$AT$610,2)) -> 3.571
A172: H | Y172: =IF(AND(J172<1920),VLOOKUP(K172,Feuil2!$F$10:$P$28,11),IF(AND(J172>=1920,J172<1937),VLOOKUP(K172,Feuil2!$F$10:$P$28,11),IF(AND(J172>=1936,J172<1942),VLOOKUP(K172,Feuil2!$F$10:$P$28,10),IF(AND(J172>=1942,J172<1947),VLOOKUP(K172,Feuil2!$F$10:$P$28,9),IF(AND(J172>=1947,J172<1952),VLOOKUP(K172,Feuil2!$F$10:$P$28,8),IF(AND(J172>=1952,J172<1957),VLOOKUP(K172,Feuil2!$F$10:$P$28,7),IF(AND(J172>=1957,J172<1962),VLOOKUP(K172,Feuil2!$F$10:$P$28,6),IF(AND(J172>=1962,J172<1967),VLOOKUP(K172,Feuil2!$F$10:$P$28,5),IF(AND(J172>=1967,J172<1972),VLOOKUP(K172,Feuil2!$F$10:$P$28,4),IF(AND(J172>=1972,J172<1977),VLOOKUP(K172,Feuil2!$F$10:$P$28,3),IF(AND(J172>=1977,J172<1982),VLOOKUP(K172,Feuil2!$F$10:$P$28,2),VLOOKUP(K172,Feuil2!$F$10:$P$28,2)))))))))))) ->  | AA172: =T172-HLOOKUP(Y172,Feuil2!$C$1:$CD$9,2,FALSE) ->  | AB172: =T172-HLOOKUP(Y172,Feuil2!$C$1:$CD$9,3,FALSE) ->  | AC172: =T172-HLOOKUP(Y172,Feuil2!$C$1:$CD$9,4,FALSE) ->  | AD172: =T172-HLOOKUP(Y172,Feuil2!$C$1:$CD$9,5,FALSE) ->  | AE172: =T172-HLOOKUP(Y172,Feuil2!$C$1:$CD$9,6,FALSE) ->  | AF172: =T172-HLOOKUP(Y172,Feuil2!$C$1:$CD$9,7,FALSE) ->  | AG172: =T172-HLOOKUP(Y172,Feuil2!$C$1:$CD$9,8,FALSE) ->  | AH172: =T172-HLOOKUP(Y172,Feuil2!$C$1:$CD$9,9,FALSE) ->  | AQ172: 2016 | AS172: =IF(AQ172,VLOOKUP(AQ172,HOM!$AS$555:$AT$610,2)) -> 3.571
A173: H | Y173: =IF(AND(J173<1920),VLOOKUP(K173,Feuil2!$F$10:$P$28,11),IF(AND(J173>=1920,J173<1937),VLOOKUP(K173,Feuil2!$F$10:$P$28,11),IF(AND(J173>=1936,J173<1942),VLOOKUP(K173,Feuil2!$F$10:$P$28,10),IF(AND(J173>=1942,J173<1947),VLOOKUP(K173,Feuil2!$F$10:$P$28,9),IF(AND(J173>=1947,J173<1952),VLOOKUP(K173,Feuil2!$F$10:$P$28,8),IF(AND(J173>=1952,J173<1957),VLOOKUP(K173,Feuil2!$F$10:$P$28,7),IF(AND(J173>=1957,J173<1962),VLOOKUP(K173,Feuil2!$F$10:$P$28,6),IF(AND(J173>=1962,J173<1967),VLOOKUP(K173,Feuil2!$F$10:$P$28,5),IF(AND(J173>=1967,J173<1972),VLOOKUP(K173,Feuil2!$F$10:$P$28,4),IF(AND(J173>=1972,J173<1977),VLOOKUP(K173,Feuil2!$F$10:$P$28,3),IF(AND(J173>=1977,J173<1982),VLOOKUP(K173,Feuil2!$F$10:$P$28,2),VLOOKUP(K173,Feuil2!$F$10:$P$28,2)))))))))))) ->  | AA173: =T173-HLOOKUP(Y173,Feuil2!$C$1:$CD$9,2,FALSE) ->  | AB173: =T173-HLOOKUP(Y173,Feuil2!$C$1:$CD$9,3,FALSE) ->  | AC173: =T173-HLOOKUP(Y173,Feuil2!$C$1:$CD$9,4,FALSE) ->  | AD173: =T173-HLOOKUP(Y173,Feuil2!$C$1:$CD$9,5,FALSE) ->  | AE173: =T173-HLOOKUP(Y173,Feuil2!$C$1:$CD$9,6,FALSE) ->  | AF173: =T173-HLOOKUP(Y173,Feuil2!$C$1:$CD$9,7,FALSE) ->  | AG173: =T173-HLOOKUP(Y173,Feuil2!$C$1:$CD$9,8,FALSE) ->  | AH173: =T173-HLOOKUP(Y173,Feuil2!$C$1:$CD$9,9,FALSE) ->  | AQ173: 2016 | AS173: =IF(AQ173,VLOOKUP(AQ173,HOM!$AS$555:$AT$610,2)) -> 3.571
A174: H | Y174: =IF(AND(J174<1920),VLOOKUP(K174,Feuil2!$F$10:$P$28,11),IF(AND(J174>=1920,J174<1937),VLOOKUP(K174,Feuil2!$F$10:$P$28,11),IF(AND(J174>=1936,J174<1942),VLOOKUP(K174,Feuil2!$F$10:$P$28,10),IF(AND(J174>=1942,J174<1947),VLOOKUP(K174,Feuil2!$F$10:$P$28,9),IF(AND(J174>=1947,J174<1952),VLOOKUP(K174,Feuil2!$F$10:$P$28,8),IF(AND(J174>=1952,J174<1957),VLOOKUP(K174,Feuil2!$F$10:$P$28,7),IF(AND(J174>=1957,J174<1962),VLOOKUP(K174,Feuil2!$F$10:$P$28,6),IF(AND(J174>=1962,J174<1967),VLOOKUP(K174,Feuil2!$F$10:$P$28,5),IF(AND(J174>=1967,J174<1972),VLOOKUP(K174,Feuil2!$F$10:$P$28,4),IF(AND(J174>=1972,J174<1977),VLOOKUP(K174,Feuil2!$F$10:$P$28,3),IF(AND(J174>=1977,J174<1982),VLOOKUP(K174,Feuil2!$F$10:$P$28,2),VLOOKUP(K174,Feuil2!$F$10:$P$28,2)))))))))))) ->  | AA174: =T174-HLOOKUP(Y174,Feuil2!$C$1:$CD$9,2,FALSE) ->  | AB174: =T174-HLOOKUP(Y174,Feuil2!$C$1:$CD$9,3,FALSE) ->  | AC174: =T174-HLOOKUP(Y174,Feuil2!$C$1:$CD$9,4,FALSE) ->  | AD174: =T174-HLOOKUP(Y174,Feuil2!$C$1:$CD$9,5,FALSE) ->  | AE174: =T174-HLOOKUP(Y174,Feuil2!$C$1:$CD$9,6,FALSE) ->  | AF174: =T174-HLOOKUP(Y174,Feuil2!$C$1:$CD$9,7,FALSE) ->  | AG174: =T174-HLOOKUP(Y174,Feuil2!$C$1:$CD$9,8,FALSE) ->  | AH174: =T174-HLOOKUP(Y174,Feuil2!$C$1:$CD$9,9,FALSE) ->  | AQ174: 2016 | AS174: =IF(AQ174,VLOOKUP(AQ174,HOM!$AS$555:$AT$610,2)) -> 3.571
A175: H | Y175: =IF(AND(J175<1920),VLOOKUP(K175,Feuil2!$F$10:$P$28,11),IF(AND(J175>=1920,J175<1937),VLOOKUP(K175,Feuil2!$F$10:$P$28,11),IF(AND(J175>=1936,J175<1942),VLOOKUP(K175,Feuil2!$F$10:$P$28,10),IF(AND(J175>=1942,J175<1947),VLOOKUP(K175,Feuil2!$F$10:$P$28,9),IF(AND(J175>=1947,J175<1952),VLOOKUP(K175,Feuil2!$F$10:$P$28,8),IF(AND(J175>=1952,J175<1957),VLOOKUP(K175,Feuil2!$F$10:$P$28,7),IF(AND(J175>=1957,J175<1962),VLOOKUP(K175,Feuil2!$F$10:$P$28,6),IF(AND(J175>=1962,J175<1967),VLOOKUP(K175,Feuil2!$F$10:$P$28,5),IF(AND(J175>=1967,J175<1972),VLOOKUP(K175,Feuil2!$F$10:$P$28,4),IF(AND(J175>=1972,J175<1977),VLOOKUP(K175,Feuil2!$F$10:$P$28,3),IF(AND(J175>=1977,J175<1982),VLOOKUP(K175,Feuil2!$F$10:$P$28,2),VLOOKUP(K175,Feuil2!$F$10:$P$28,2)))))))))))) ->  | AA175: =T175-HLOOKUP(Y175,Feuil2!$C$1:$CD$9,2,FALSE) ->  | AB175: =T175-HLOOKUP(Y175,Feuil2!$C$1:$CD$9,3,FALSE) ->  | AC175: =T175-HLOOKUP(Y175,Feuil2!$C$1:$CD$9,4,FALSE) ->  | AD175: =T175-HLOOKUP(Y175,Feuil2!$C$1:$CD$9,5,FALSE) ->  | AE175: =T175-HLOOKUP(Y175,Feuil2!$C$1:$CD$9,6,FALSE) ->  | AF175: =T175-HLOOKUP(Y175,Feuil2!$C$1:$CD$9,7,FALSE) ->  | AG175: =T175-HLOOKUP(Y175,Feuil2!$C$1:$CD$9,8,FALSE) ->  | AH175: =T175-HLOOKUP(Y175,Feuil2!$C$1:$CD$9,9,FALSE) ->  | AQ175: 2016 | AS175: =IF(AQ175,VLOOKUP(AQ175,HOM!$AS$555:$AT$610,2)) -> 3.571
A176: H | Y176: =IF(AND(J176<1920),VLOOKUP(K176,Feuil2!$F$10:$P$28,11),IF(AND(J176>=1920,J176<1937),VLOOKUP(K176,Feuil2!$F$10:$P$28,11),IF(AND(J176>=1936,J176<1942),VLOOKUP(K176,Feuil2!$F$10:$P$28,10),IF(AND(J176>=1942,J176<1947),VLOOKUP(K176,Feuil2!$F$10:$P$28,9),IF(AND(J176>=1947,J176<1952),VLOOKUP(K176,Feuil2!$F$10:$P$28,8),IF(AND(J176>=1952,J176<1957),VLOOKUP(K176,Feuil2!$F$10:$P$28,7),IF(AND(J176>=1957,J176<1962),VLOOKUP(K176,Feuil2!$F$10:$P$28,6),IF(AND(J176>=1962,J176<1967),VLOOKUP(K176,Feuil2!$F$10:$P$28,5),IF(AND(J176>=1967,J176<1972),VLOOKUP(K176,Feuil2!$F$10:$P$28,4),IF(AND(J176>=1972,J176<1977),VLOOKUP(K176,Feuil2!$F$10:$P$28,3),IF(AND(J176>=1977,J176<1982),VLOOKUP(K176,Feuil2!$F$10:$P$28,2),VLOOKUP(K176,Feuil2!$F$10:$P$28,2)))))))))))) ->  | AA176: =T176-HLOOKUP(Y176,Feuil2!$C$1:$CD$9,2,FALSE) ->  | AB176: =T176-HLOOKUP(Y176,Feuil2!$C$1:$CD$9,3,FALSE) ->  | AC176: =T176-HLOOKUP(Y176,Feuil2!$C$1:$CD$9,4,FALSE) ->  | AD176: =T176-HLOOKUP(Y176,Feuil2!$C$1:$CD$9,5,FALSE) ->  | AE176: =T176-HLOOKUP(Y176,Feuil2!$C$1:$CD$9,6,FALSE) ->  | AF176: =T176-HLOOKUP(Y176,Feuil2!$C$1:$CD$9,7,FALSE) ->  | AG176: =T176-HLOOKUP(Y176,Feuil2!$C$1:$CD$9,8,FALSE) ->  | AH176: =T176-HLOOKUP(Y176,Feuil2!$C$1:$CD$9,9,FALSE) ->  | AQ176: 2016 | AS176: =IF(AQ176,VLOOKUP(AQ176,HOM!$AS$555:$AT$610,2)) -> 3.571
A177: H | Y177: =IF(AND(J177<1920),VLOOKUP(K177,Feuil2!$F$10:$P$28,11),IF(AND(J177>=1920,J177<1937),VLOOKUP(K177,Feuil2!$F$10:$P$28,11),IF(AND(J177>=1936,J177<1942),VLOOKUP(K177,Feuil2!$F$10:$P$28,10),IF(AND(J177>=1942,J177<1947),VLOOKUP(K177,Feuil2!$F$10:$P$28,9),IF(AND(J177>=1947,J177<1952),VLOOKUP(K177,Feuil2!$F$10:$P$28,8),IF(AND(J177>=1952,J177<1957),VLOOKUP(K177,Feuil2!$F$10:$P$28,7),IF(AND(J177>=1957,J177<1962),VLOOKUP(K177,Feuil2!$F$10:$P$28,6),IF(AND(J177>=1962,J177<1967),VLOOKUP(K177,Feuil2!$F$10:$P$28,5),IF(AND(J177>=1967,J177<1972),VLOOKUP(K177,Feuil2!$F$10:$P$28,4),IF(AND(J177>=1972,J177<1977),VLOOKUP(K177,Feuil2!$F$10:$P$28,3),IF(AND(J177>=1977,J177<1982),VLOOKUP(K177,Feuil2!$F$10:$P$28,2),VLOOKUP(K177,Feuil2!$F$10:$P$28,2)))))))))))) ->  | AA177: =T177-HLOOKUP(Y177,Feuil2!$C$1:$CD$9,2,FALSE) ->  | AB177: =T177-HLOOKUP(Y177,Feuil2!$C$1:$CD$9,3,FALSE) ->  | AC177: =T177-HLOOKUP(Y177,Feuil2!$C$1:$CD$9,4,FALSE) ->  | AD177: =T177-HLOOKUP(Y177,Feuil2!$C$1:$CD$9,5,FALSE) ->  | AE177: =T177-HLOOKUP(Y177,Feuil2!$C$1:$CD$9,6,FALSE) ->  | AF177: =T177-HLOOKUP(Y177,Feuil2!$C$1:$CD$9,7,FALSE) ->  | AG177: =T177-HLOOKUP(Y177,Feuil2!$C$1:$CD$9,8,FALSE) ->  | AH177: =T177-HLOOKUP(Y177,Feuil2!$C$1:$CD$9,9,FALSE) ->  | AQ177: 2016 | AS177: =IF(AQ177,VLOOKUP(AQ177,HOM!$AS$555:$AT$610,2)) -> 3.571
A178: H | Y178: =IF(AND(J178<1920),VLOOKUP(K178,Feuil2!$F$10:$P$28,11),IF(AND(J178>=1920,J178<1937),VLOOKUP(K178,Feuil2!$F$10:$P$28,11),IF(AND(J178>=1936,J178<1942),VLOOKUP(K178,Feuil2!$F$10:$P$28,10),IF(AND(J178>=1942,J178<1947),VLOOKUP(K178,Feuil2!$F$10:$P$28,9),IF(AND(J178>=1947,J178<1952),VLOOKUP(K178,Feuil2!$F$10:$P$28,8),IF(AND(J178>=1952,J178<1957),VLOOKUP(K178,Feuil2!$F$10:$P$28,7),IF(AND(J178>=1957,J178<1962),VLOOKUP(K178,Feuil2!$F$10:$P$28,6),IF(AND(J178>=1962,J178<1967),VLOOKUP(K178,Feuil2!$F$10:$P$28,5),IF(AND(J178>=1967,J178<1972),VLOOKUP(K178,Feuil2!$F$10:$P$28,4),IF(AND(J178>=1972,J178<1977),VLOOKUP(K178,Feuil2!$F$10:$P$28,3),IF(AND(J178>=1977,J178<1982),VLOOKUP(K178,Feuil2!$F$10:$P$28,2),VLOOKUP(K178,Feuil2!$F$10:$P$28,2)))))))))))) ->  | AA178: =T178-HLOOKUP(Y178,Feuil2!$C$1:$CD$9,2,FALSE) ->  | AB178: =T178-HLOOKUP(Y178,Feuil2!$C$1:$CD$9,3,FALSE) ->  | AC178: =T178-HLOOKUP(Y178,Feuil2!$C$1:$CD$9,4,FALSE) ->  | AD178: =T178-HLOOKUP(Y178,Feuil2!$C$1:$CD$9,5,FALSE) ->  | AE178: =T178-HLOOKUP(Y178,Feuil2!$C$1:$CD$9,6,FALSE) ->  | AF178: =T178-HLOOKUP(Y178,Feuil2!$C$1:$CD$9,7,FALSE) ->  | AG178: =T178-HLOOKUP(Y178,Feuil2!$C$1:$CD$9,8,FALSE) ->  | AH178: =T178-HLOOKUP(Y178,Feuil2!$C$1:$CD$9,9,FALSE) ->  | AQ178: 2016 | AS178: =IF(AQ178,VLOOKUP(AQ178,HOM!$AS$555:$AT$610,2)) -> 3.571
A179: H | Y179: =IF(AND(J179<1920),VLOOKUP(K179,Feuil2!$F$10:$P$28,11),IF(AND(J179>=1920,J179<1937),VLOOKUP(K179,Feuil2!$F$10:$P$28,11),IF(AND(J179>=1936,J179<1942),VLOOKUP(K179,Feuil2!$F$10:$P$28,10),IF(AND(J179>=1942,J179<1947),VLOOKUP(K179,Feuil2!$F$10:$P$28,9),IF(AND(J179>=1947,J179<1952),VLOOKUP(K179,Feuil2!$F$10:$P$28,8),IF(AND(J179>=1952,J179<1957),VLOOKUP(K179,Feuil2!$F$10:$P$28,7),IF(AND(J179>=1957,J179<1962),VLOOKUP(K179,Feuil2!$F$10:$P$28,6),IF(AND(J179>=1962,J179<1967),VLOOKUP(K179,Feuil2!$F$10:$P$28,5),IF(AND(J179>=1967,J179<1972),VLOOKUP(K179,Feuil2!$F$10:$P$28,4),IF(AND(J179>=1972,J179<1977),VLOOKUP(K179,Feuil2!$F$10:$P$28,3),IF(AND(J179>=1977,J179<1982),VLOOKUP(K179,Feuil2!$F$10:$P$28,2),VLOOKUP(K179,Feuil2!$F$10:$P$28,2)))))))))))) ->  | AA179: =T179-HLOOKUP(Y179,Feuil2!$C$1:$CD$9,2,FALSE) ->  | AB179: =T179-HLOOKUP(Y179,Feuil2!$C$1:$CD$9,3,FALSE) ->  | AC179: =T179-HLOOKUP(Y179,Feuil2!$C$1:$CD$9,4,FALSE) ->  | AD179: =T179-HLOOKUP(Y179,Feuil2!$C$1:$CD$9,5,FALSE) ->  | AE179: =T179-HLOOKUP(Y179,Feuil2!$C$1:$CD$9,6,FALSE) ->  | AF179: =T179-HLOOKUP(Y179,Feuil2!$C$1:$CD$9,7,FALSE) ->  | AG179: =T179-HLOOKUP(Y179,Feuil2!$C$1:$CD$9,8,FALSE) ->  | AH179: =T179-HLOOKUP(Y179,Feuil2!$C$1:$CD$9,9,FALSE) ->  | AQ179: 2016 | AS179: =IF(AQ179,VLOOKUP(AQ179,HOM!$AS$555:$AT$610,2)) -> 3.571
A180: H | Y180: =IF(AND(J180<1920),VLOOKUP(K180,Feuil2!$F$10:$P$28,11),IF(AND(J180>=1920,J180<1937),VLOOKUP(K180,Feuil2!$F$10:$P$28,11),IF(AND(J180>=1936,J180<1942),VLOOKUP(K180,Feuil2!$F$10:$P$28,10),IF(AND(J180>=1942,J180<1947),VLOOKUP(K180,Feuil2!$F$10:$P$28,9),IF(AND(J180>=1947,J180<1952),VLOOKUP(K180,Feuil2!$F$10:$P$28,8),IF(AND(J180>=1952,J180<1957),VLOOKUP(K180,Feuil2!$F$10:$P$28,7),IF(AND(J180>=1957,J180<1962),VLOOKUP(K180,Feuil2!$F$10:$P$28,6),IF(AND(J180>=1962,J180<1967),VLOOKUP(K180,Feuil2!$F$10:$P$28,5),IF(AND(J180>=1967,J180<1972),VLOOKUP(K180,Feuil2!$F$10:$P$28,4),IF(AND(J180>=1972,J180<1977),VLOOKUP(K180,Feuil2!$F$10:$P$28,3),IF(AND(J180>=1977,J180<1982),VLOOKUP(K180,Feuil2!$F$10:$P$28,2),VLOOKUP(K180,Feuil2!$F$10:$P$28,2)))))))))))) ->  | AA180: =T180-HLOOKUP(Y180,Feuil2!$C$1:$CD$9,2,FALSE) ->  | AB180: =T180-HLOOKUP(Y180,Feuil2!$C$1:$CD$9,3,FALSE) ->  | AC180: =T180-HLOOKUP(Y180,Feuil2!$C$1:$CD$9,4,FALSE) ->  | AD180: =T180-HLOOKUP(Y180,Feuil2!$C$1:$CD$9,5,FALSE) ->  | AE180: =T180-HLOOKUP(Y180,Feuil2!$C$1:$CD$9,6,FALSE) ->  | AF180: =T180-HLOOKUP(Y180,Feuil2!$C$1:$CD$9,7,FALSE) ->  | AG180: =T180-HLOOKUP(Y180,Feuil2!$C$1:$CD$9,8,FALSE) ->  | AH180: =T180-HLOOKUP(Y180,Feuil2!$C$1:$CD$9,9,FALSE) ->  | AQ180: 2016 | AS180: =IF(AQ180,VLOOKUP(AQ180,HOM!$AS$555:$AT$610,2)) -> 3.571
A181: H | O181: =IF(K181="","",IF(MAXA(L181:N181)<=0,0,MAXA(L181:N181))) ->  | S181: =IF(K181="","",IF(MAXA(P181:R181)<=0,0,MAXA(P181:R181))) ->  | T181: =IF(K181="","",IF(OR(O181=0,S181=0),0,O181+S181)) ->  | Y181: =IF(AND(J181<1920),VLOOKUP(K181,Feuil2!$F$10:$P$28,11),IF(AND(J181>=1920,J181<1937),VLOOKUP(K181,Feuil2!$F$10:$P$28,11),IF(AND(J181>=1936,J181<1942),VLOOKUP(K181,Feuil2!$F$10:$P$28,10),IF(AND(J181>=1942,J181<1947),VLOOKUP(K181,Feuil2!$F$10:$P$28,9),IF(AND(J181>=1947,J181<1952),VLOOKUP(K181,Feuil2!$F$10:$P$28,8),IF(AND(J181>=1952,J181<1957),VLOOKUP(K181,Feuil2!$F$10:$P$28,7),IF(AND(J181>=1957,J181<1962),VLOOKUP(K181,Feuil2!$F$10:$P$28,6),IF(AND(J181>=1962,J181<1967),VLOOKUP(K181,Feuil2!$F$10:$P$28,5),IF(AND(J181>=1967,J181<1972),VLOOKUP(K181,Feuil2!$F$10:$P$28,4),IF(AND(J181>=1972,J181<1977),VLOOKUP(K181,Feuil2!$F$10:$P$28,3),IF(AND(J181>=1977,J181<1982),VLOOKUP(K181,Feuil2!$F$10:$P$28,2),VLOOKUP(K181,Feuil2!$F$10:$P$28,2)))))))))))) ->  | AA181: =T181-HLOOKUP(Y181,Feuil2!$C$1:$CD$9,2,FALSE) ->  | AB181: =T181-HLOOKUP(Y181,Feuil2!$C$1:$CD$9,3,FALSE) ->  | AC181: =T181-HLOOKUP(Y181,Feuil2!$C$1:$CD$9,4,FALSE) ->  | AD181: =T181-HLOOKUP(Y181,Feuil2!$C$1:$CD$9,5,FALSE) ->  | AE181: =T181-HLOOKUP(Y181,Feuil2!$C$1:$CD$9,6,FALSE) ->  | AF181: =T181-HLOOKUP(Y181,Feuil2!$C$1:$CD$9,7,FALSE) ->  | AG181: =T181-HLOOKUP(Y181,Feuil2!$C$1:$CD$9,8,FALSE) ->  | AH181: =T181-HLOOKUP(Y181,Feuil2!$C$1:$CD$9,9,FALSE) ->  | AQ181: 2016 | AS181: =IF(AQ181,VLOOKUP(AQ181,HOM!$AS$555:$AT$610,2)) -> 3.571
A182: H | Y182: =IF(AND(J182<1920),VLOOKUP(K182,Feuil2!$F$10:$P$28,11),IF(AND(J182>=1920,J182<1937),VLOOKUP(K182,Feuil2!$F$10:$P$28,11),IF(AND(J182>=1936,J182<1942),VLOOKUP(K182,Feuil2!$F$10:$P$28,10),IF(AND(J182>=1942,J182<1947),VLOOKUP(K182,Feuil2!$F$10:$P$28,9),IF(AND(J182>=1947,J182<1952),VLOOKUP(K182,Feuil2!$F$10:$P$28,8),IF(AND(J182>=1952,J182<1957),VLOOKUP(K182,Feuil2!$F$10:$P$28,7),IF(AND(J182>=1957,J182<1962),VLOOKUP(K182,Feuil2!$F$10:$P$28,6),IF(AND(J182>=1962,J182<1967),VLOOKUP(K182,Feuil2!$F$10:$P$28,5),IF(AND(J182>=1967,J182<1972),VLOOKUP(K182,Feuil2!$F$10:$P$28,4),IF(AND(J182>=1972,J182<1977),VLOOKUP(K182,Feuil2!$F$10:$P$28,3),IF(AND(J182>=1977,J182<1982),VLOOKUP(K182,Feuil2!$F$10:$P$28,2),VLOOKUP(K182,Feuil2!$F$10:$P$28,2)))))))))))) ->  | AA182: =T182-HLOOKUP(Y182,Feuil2!$C$1:$CD$9,2,FALSE) ->  | AB182: =T182-HLOOKUP(Y182,Feuil2!$C$1:$CD$9,3,FALSE) ->  | AC182: =T182-HLOOKUP(Y182,Feuil2!$C$1:$CD$9,4,FALSE) ->  | AD182: =T182-HLOOKUP(Y182,Feuil2!$C$1:$CD$9,5,FALSE) ->  | AE182: =T182-HLOOKUP(Y182,Feuil2!$C$1:$CD$9,6,FALSE) ->  | AF182: =T182-HLOOKUP(Y182,Feuil2!$C$1:$CD$9,7,FALSE) ->  | AG182: =T182-HLOOKUP(Y182,Feuil2!$C$1:$CD$9,8,FALSE) ->  | AH182: =T182-HLOOKUP(Y182,Feuil2!$C$1:$CD$9,9,FALSE) ->  | AQ182: 2016 | AS182: =IF(AQ182,VLOOKUP(AQ182,HOM!$AS$555:$AT$610,2)) -> 3.571
A183: H | Y183: =IF(AND(J183<1920),VLOOKUP(K183,Feuil2!$F$10:$P$28,11),IF(AND(J183>=1920,J183<1937),VLOOKUP(K183,Feuil2!$F$10:$P$28,11),IF(AND(J183>=1936,J183<1942),VLOOKUP(K183,Feuil2!$F$10:$P$28,10),IF(AND(J183>=1942,J183<1947),VLOOKUP(K183,Feuil2!$F$10:$P$28,9),IF(AND(J183>=1947,J183<1952),VLOOKUP(K183,Feuil2!$F$10:$P$28,8),IF(AND(J183>=1952,J183<1957),VLOOKUP(K183,Feuil2!$F$10:$P$28,7),IF(AND(J183>=1957,J183<1962),VLOOKUP(K183,Feuil2!$F$10:$P$28,6),IF(AND(J183>=1962,J183<1967),VLOOKUP(K183,Feuil2!$F$10:$P$28,5),IF(AND(J183>=1967,J183<1972),VLOOKUP(K183,Feuil2!$F$10:$P$28,4),IF(AND(J183>=1972,J183<1977),VLOOKUP(K183,Feuil2!$F$10:$P$28,3),IF(AND(J183>=1977,J183<1982),VLOOKUP(K183,Feuil2!$F$10:$P$28,2),VLOOKUP(K183,Feuil2!$F$10:$P$28,2)))))))))))) ->  | AA183: =T183-HLOOKUP(Y183,Feuil2!$C$1:$CD$9,2,FALSE) ->  | AB183: =T183-HLOOKUP(Y183,Feuil2!$C$1:$CD$9,3,FALSE) ->  | AC183: =T183-HLOOKUP(Y183,Feuil2!$C$1:$CD$9,4,FALSE) ->  | AD183: =T183-HLOOKUP(Y183,Feuil2!$C$1:$CD$9,5,FALSE) ->  | AE183: =T183-HLOOKUP(Y183,Feuil2!$C$1:$CD$9,6,FALSE) ->  | AF183: =T183-HLOOKUP(Y183,Feuil2!$C$1:$CD$9,7,FALSE) ->  | AG183: =T183-HLOOKUP(Y183,Feuil2!$C$1:$CD$9,8,FALSE) ->  | AH183: =T183-HLOOKUP(Y183,Feuil2!$C$1:$CD$9,9,FALSE) ->  | AQ183: 2016 | AS183: =IF(AQ183,VLOOKUP(AQ183,HOM!$AS$555:$AT$610,2)) -> 3.571
A184: H | Y184: =IF(AND(J184<1920),VLOOKUP(K184,Feuil2!$F$10:$P$28,11),IF(AND(J184>=1920,J184<1937),VLOOKUP(K184,Feuil2!$F$10:$P$28,11),IF(AND(J184>=1936,J184<1942),VLOOKUP(K184,Feuil2!$F$10:$P$28,10),IF(AND(J184>=1942,J184<1947),VLOOKUP(K184,Feuil2!$F$10:$P$28,9),IF(AND(J184>=1947,J184<1952),VLOOKUP(K184,Feuil2!$F$10:$P$28,8),IF(AND(J184>=1952,J184<1957),VLOOKUP(K184,Feuil2!$F$10:$P$28,7),IF(AND(J184>=1957,J184<1962),VLOOKUP(K184,Feuil2!$F$10:$P$28,6),IF(AND(J184>=1962,J184<1967),VLOOKUP(K184,Feuil2!$F$10:$P$28,5),IF(AND(J184>=1967,J184<1972),VLOOKUP(K184,Feuil2!$F$10:$P$28,4),IF(AND(J184>=1972,J184<1977),VLOOKUP(K184,Feuil2!$F$10:$P$28,3),IF(AND(J184>=1977,J184<1982),VLOOKUP(K184,Feuil2!$F$10:$P$28,2),VLOOKUP(K184,Feuil2!$F$10:$P$28,2)))))))))))) ->  | AA184: =T184-HLOOKUP(Y184,Feuil2!$C$1:$CD$9,2,FALSE) ->  | AB184: =T184-HLOOKUP(Y184,Feuil2!$C$1:$CD$9,3,FALSE) ->  | AC184: =T184-HLOOKUP(Y184,Feuil2!$C$1:$CD$9,4,FALSE) ->  | AD184: =T184-HLOOKUP(Y184,Feuil2!$C$1:$CD$9,5,FALSE) ->  | AE184: =T184-HLOOKUP(Y184,Feuil2!$C$1:$CD$9,6,FALSE) ->  | AF184: =T184-HLOOKUP(Y184,Feuil2!$C$1:$CD$9,7,FALSE) ->  | AG184: =T184-HLOOKUP(Y184,Feuil2!$C$1:$CD$9,8,FALSE) ->  | AH184: =T184-HLOOKUP(Y184,Feuil2!$C$1:$CD$9,9,FALSE) ->  | AQ184: 2016 | AS184: =IF(AQ184,VLOOKUP(AQ184,HOM!$AS$555:$AT$610,2)) -> 3.571
A185: H | Y185: =IF(AND(J185<1920),VLOOKUP(K185,Feuil2!$F$10:$P$28,11),IF(AND(J185>=1920,J185<1937),VLOOKUP(K185,Feuil2!$F$10:$P$28,11),IF(AND(J185>=1936,J185<1942),VLOOKUP(K185,Feuil2!$F$10:$P$28,10),IF(AND(J185>=1942,J185<1947),VLOOKUP(K185,Feuil2!$F$10:$P$28,9),IF(AND(J185>=1947,J185<1952),VLOOKUP(K185,Feuil2!$F$10:$P$28,8),IF(AND(J185>=1952,J185<1957),VLOOKUP(K185,Feuil2!$F$10:$P$28,7),IF(AND(J185>=1957,J185<1962),VLOOKUP(K185,Feuil2!$F$10:$P$28,6),IF(AND(J185>=1962,J185<1967),VLOOKUP(K185,Feuil2!$F$10:$P$28,5),IF(AND(J185>=1967,J185<1972),VLOOKUP(K185,Feuil2!$F$10:$P$28,4),IF(AND(J185>=1972,J185<1977),VLOOKUP(K185,Feuil2!$F$10:$P$28,3),IF(AND(J185>=1977,J185<1982),VLOOKUP(K185,Feuil2!$F$10:$P$28,2),VLOOKUP(K185,Feuil2!$F$10:$P$28,2)))))))))))) ->  | AA185: =T185-HLOOKUP(Y185,Feuil2!$C$1:$CD$9,2,FALSE) ->  | AB185: =T185-HLOOKUP(Y185,Feuil2!$C$1:$CD$9,3,FALSE) ->  | AC185: =T185-HLOOKUP(Y185,Feuil2!$C$1:$CD$9,4,FALSE) ->  | AD185: =T185-HLOOKUP(Y185,Feuil2!$C$1:$CD$9,5,FALSE) ->  | AE185: =T185-HLOOKUP(Y185,Feuil2!$C$1:$CD$9,6,FALSE) ->  | AF185: =T185-HLOOKUP(Y185,Feuil2!$C$1:$CD$9,7,FALSE) ->  | AG185: =T185-HLOOKUP(Y185,Feuil2!$C$1:$CD$9,8,FALSE) ->  | AH185: =T185-HLOOKUP(Y185,Feuil2!$C$1:$CD$9,9,FALSE) ->  | AQ185: 2016 | AS185: =IF(AQ185,VLOOKUP(AQ185,HOM!$AS$555:$AT$610,2)) -> 3.571
A186: H | V186: =IF(K186="","",AP186) ->  | W186: =IF(K186="","",IF(AH186>=0,AH186,IF(AG186>=0,AG186,IF(AF186>=0,AF186,IF(AE186>=0,AE186,IF(AD186>=0,AD186,IF(AC186>=0,AC186,IF(AB186>=0,AB186,AA186)))))))) ->  | Y186: =IF(AND(J186<1920),VLOOKUP(K186,Feuil2!$F$10:$P$28,11),IF(AND(J186>=1920,J186<1937),VLOOKUP(K186,Feuil2!$F$10:$P$28,11),IF(AND(J186>=1936,J186<1942),VLOOKUP(K186,Feuil2!$F$10:$P$28,10),IF(AND(J186>=1942,J186<1947),VLOOKUP(K186,Feuil2!$F$10:$P$28,9),IF(AND(J186>=1947,J186<1952),VLOOKUP(K186,Feuil2!$F$10:$P$28,8),IF(AND(J186>=1952,J186<1957),VLOOKUP(K186,Feuil2!$F$10:$P$28,7),IF(AND(J186>=1957,J186<1962),VLOOKUP(K186,Feuil2!$F$10:$P$28,6),IF(AND(J186>=1962,J186<1967),VLOOKUP(K186,Feuil2!$F$10:$P$28,5),IF(AND(J186>=1967,J186<1972),VLOOKUP(K186,Feuil2!$F$10:$P$28,4),IF(AND(J186>=1972,J186<1977),VLOOKUP(K186,Feuil2!$F$10:$P$28,3),IF(AND(J186>=1977,J186<1982),VLOOKUP(K186,Feuil2!$F$10:$P$28,2),VLOOKUP(K186,Feuil2!$F$10:$P$28,2)))))))))))) ->  | AA186: =T186-HLOOKUP(Y186,Feuil2!$C$1:$CD$9,2,FALSE) ->  | AB186: =T186-HLOOKUP(Y186,Feuil2!$C$1:$CD$9,3,FALSE) ->  | AC186: =T186-HLOOKUP(Y186,Feuil2!$C$1:$CD$9,4,FALSE) ->  | AD186: =T186-HLOOKUP(Y186,Feuil2!$C$1:$CD$9,5,FALSE) ->  | AE186: =T186-HLOOKUP(Y186,Feuil2!$C$1:$CD$9,6,FALSE) ->  | AF186: =T186-HLOOKUP(Y186,Feuil2!$C$1:$CD$9,7,FALSE) ->  | AG186: =T186-HLOOKUP(Y186,Feuil2!$C$1:$CD$9,8,FALSE) ->  | AH186: =T186-HLOOKUP(Y186,Feuil2!$C$1:$CD$9,9,FALSE) ->  | AP186: =IF(AH186>=0,$AH$4,IF(AG186>=0,$AG$4,IF(AF186>=0,$AF$4,IF(AE186>=0,$AE$4,IF(AD186>=0,$AD$4,IF(AC186>=0,$AC$4,IF(AB186>=0,$AB$4,IF(AA186>=0,$AA$4,$AI$4)))))))) ->  | AQ186: 2016 | AS186: =IF(AQ186,VLOOKUP(AQ186,HOM!$AS$555:$AT$610,2)) -> 3.571
A187: H | Y187: =IF(AND(J187<1920),VLOOKUP(K187,Feuil2!$F$10:$P$28,11),IF(AND(J187>=1920,J187<1937),VLOOKUP(K187,Feuil2!$F$10:$P$28,11),IF(AND(J187>=1936,J187<1942),VLOOKUP(K187,Feuil2!$F$10:$P$28,10),IF(AND(J187>=1942,J187<1947),VLOOKUP(K187,Feuil2!$F$10:$P$28,9),IF(AND(J187>=1947,J187<1952),VLOOKUP(K187,Feuil2!$F$10:$P$28,8),IF(AND(J187>=1952,J187<1957),VLOOKUP(K187,Feuil2!$F$10:$P$28,7),IF(AND(J187>=1957,J187<1962),VLOOKUP(K187,Feuil2!$F$10:$P$28,6),IF(AND(J187>=1962,J187<1967),VLOOKUP(K187,Feuil2!$F$10:$P$28,5),IF(AND(J187>=1967,J187<1972),VLOOKUP(K187,Feuil2!$F$10:$P$28,4),IF(AND(J187>=1972,J187<1977),VLOOKUP(K187,Feuil2!$F$10:$P$28,3),IF(AND(J187>=1977,J187<1982),VLOOKUP(K187,Feuil2!$F$10:$P$28,2),VLOOKUP(K187,Feuil2!$F$10:$P$28,2)))))))))))) ->  | AA187: =T187-HLOOKUP(Y187,Feuil2!$C$1:$CD$9,2,FALSE) ->  | AB187: =T187-HLOOKUP(Y187,Feuil2!$C$1:$CD$9,3,FALSE) ->  | AC187: =T187-HLOOKUP(Y187,Feuil2!$C$1:$CD$9,4,FALSE) ->  | AD187: =T187-HLOOKUP(Y187,Feuil2!$C$1:$CD$9,5,FALSE) ->  | AE187: =T187-HLOOKUP(Y187,Feuil2!$C$1:$CD$9,6,FALSE) ->  | AF187: =T187-HLOOKUP(Y187,Feuil2!$C$1:$CD$9,7,FALSE) ->  | AG187: =T187-HLOOKUP(Y187,Feuil2!$C$1:$CD$9,8,FALSE) ->  | AH187: =T187-HLOOKUP(Y187,Feuil2!$C$1:$CD$9,9,FALSE) ->  | AQ187: 2016 | AS187: =IF(AQ187,VLOOKUP(AQ187,HOM!$AS$555:$AT$610,2)) -> 3.571
A188: H | Y188: =IF(AND(J188<1920),VLOOKUP(K188,Feuil2!$F$10:$P$28,11),IF(AND(J188>=1920,J188<1937),VLOOKUP(K188,Feuil2!$F$10:$P$28,11),IF(AND(J188>=1936,J188<1942),VLOOKUP(K188,Feuil2!$F$10:$P$28,10),IF(AND(J188>=1942,J188<1947),VLOOKUP(K188,Feuil2!$F$10:$P$28,9),IF(AND(J188>=1947,J188<1952),VLOOKUP(K188,Feuil2!$F$10:$P$28,8),IF(AND(J188>=1952,J188<1957),VLOOKUP(K188,Feuil2!$F$10:$P$28,7),IF(AND(J188>=1957,J188<1962),VLOOKUP(K188,Feuil2!$F$10:$P$28,6),IF(AND(J188>=1962,J188<1967),VLOOKUP(K188,Feuil2!$F$10:$P$28,5),IF(AND(J188>=1967,J188<1972),VLOOKUP(K188,Feuil2!$F$10:$P$28,4),IF(AND(J188>=1972,J188<1977),VLOOKUP(K188,Feuil2!$F$10:$P$28,3),IF(AND(J188>=1977,J188<1982),VLOOKUP(K188,Feuil2!$F$10:$P$28,2),VLOOKUP(K188,Feuil2!$F$10:$P$28,2)))))))))))) ->  | AA188: =T188-HLOOKUP(Y188,Feuil2!$C$1:$CD$9,2,FALSE) ->  | AB188: =T188-HLOOKUP(Y188,Feuil2!$C$1:$CD$9,3,FALSE) ->  | AC188: =T188-HLOOKUP(Y188,Feuil2!$C$1:$CD$9,4,FALSE) ->  | AD188: =T188-HLOOKUP(Y188,Feuil2!$C$1:$CD$9,5,FALSE) ->  | AE188: =T188-HLOOKUP(Y188,Feuil2!$C$1:$CD$9,6,FALSE) ->  | AF188: =T188-HLOOKUP(Y188,Feuil2!$C$1:$CD$9,7,FALSE) ->  | AG188: =T188-HLOOKUP(Y188,Feuil2!$C$1:$CD$9,8,FALSE) ->  | AH188: =T188-HLOOKUP(Y188,Feuil2!$C$1:$CD$9,9,FALSE) ->  | AQ188: 2016 | AS188: =IF(AQ188,VLOOKUP(AQ188,HOM!$AS$555:$AT$610,2)) -> 3.571
A189: H | O189: =IF(K189="","",IF(MAXA(L189:N189)<=0,0,MAXA(L189:N189))) ->  | S189: =IF(K189="","",IF(MAXA(P189:R189)<=0,0,MAXA(P189:R189))) ->  | T189: =IF(K189="","",IF(OR(O189=0,S189=0),0,O189+S189)) ->  | X189: =IF(BI189<95,IF(BI189<=90,VLOOKUP(BI189,$AQ$548:$AR$603,2))) ->  | Y189: =IF(AND(J189<1920),VLOOKUP(K189,Feuil2!$F$10:$P$28,11),IF(AND(J189>=1920,J189<1937),VLOOKUP(K189,Feuil2!$F$10:$P$28,11),IF(AND(J189>=1936,J189<1942),VLOOKUP(K189,Feuil2!$F$10:$P$28,10),IF(AND(J189>=1942,J189<1947),VLOOKUP(K189,Feuil2!$F$10:$P$28,9),IF(AND(J189>=1947,J189<1952),VLOOKUP(K189,Feuil2!$F$10:$P$28,8),IF(AND(J189>=1952,J189<1957),VLOOKUP(K189,Feuil2!$F$10:$P$28,7),IF(AND(J189>=1957,J189<1962),VLOOKUP(K189,Feuil2!$F$10:$P$28,6),IF(AND(J189>=1962,J189<1967),VLOOKUP(K189,Feuil2!$F$10:$P$28,5),IF(AND(J189>=1967,J189<1972),VLOOKUP(K189,Feuil2!$F$10:$P$28,4),IF(AND(J189>=1972,J189<1977),VLOOKUP(K189,Feuil2!$F$10:$P$28,3),IF(AND(J189>=1977,J189<1982),VLOOKUP(K189,Feuil2!$F$10:$P$28,2),VLOOKUP(K189,Feuil2!$F$10:$P$28,2)))))))))))) ->  | AA189: =T189-HLOOKUP(Y189,Feuil2!$C$1:$CD$9,2,FALSE) ->  | AB189: =T189-HLOOKUP(Y189,Feuil2!$C$1:$CD$9,3,FALSE) ->  | AC189: =T189-HLOOKUP(Y189,Feuil2!$C$1:$CD$9,4,FALSE) ->  | AD189: =T189-HLOOKUP(Y189,Feuil2!$C$1:$CD$9,5,FALSE) ->  | AE189: =T189-HLOOKUP(Y189,Feuil2!$C$1:$CD$9,6,FALSE) ->  | AF189: =T189-HLOOKUP(Y189,Feuil2!$C$1:$CD$9,7,FALSE) ->  | AG189: =T189-HLOOKUP(Y189,Feuil2!$C$1:$CD$9,8,FALSE) ->  | AH189: =T189-HLOOKUP(Y189,Feuil2!$C$1:$CD$9,9,FALSE) ->  | AQ189: 2016 | AS189: =IF(AQ189,VLOOKUP(AQ189,HOM!$AS$555:$AT$610,2)) -> 3.571
A190: H | Y190: =IF(AND(J190<1920),VLOOKUP(K190,Feuil2!$F$10:$P$28,11),IF(AND(J190>=1920,J190<1937),VLOOKUP(K190,Feuil2!$F$10:$P$28,11),IF(AND(J190>=1936,J190<1942),VLOOKUP(K190,Feuil2!$F$10:$P$28,10),IF(AND(J190>=1942,J190<1947),VLOOKUP(K190,Feuil2!$F$10:$P$28,9),IF(AND(J190>=1947,J190<1952),VLOOKUP(K190,Feuil2!$F$10:$P$28,8),IF(AND(J190>=1952,J190<1957),VLOOKUP(K190,Feuil2!$F$10:$P$28,7),IF(AND(J190>=1957,J190<1962),VLOOKUP(K190,Feuil2!$F$10:$P$28,6),IF(AND(J190>=1962,J190<1967),VLOOKUP(K190,Feuil2!$F$10:$P$28,5),IF(AND(J190>=1967,J190<1972),VLOOKUP(K190,Feuil2!$F$10:$P$28,4),IF(AND(J190>=1972,J190<1977),VLOOKUP(K190,Feuil2!$F$10:$P$28,3),IF(AND(J190>=1977,J190<1982),VLOOKUP(K190,Feuil2!$F$10:$P$28,2),VLOOKUP(K190,Feuil2!$F$10:$P$28,2)))))))))))) ->  | AA190: =T190-HLOOKUP(Y190,Feuil2!$C$1:$CD$9,2,FALSE) ->  | AB190: =T190-HLOOKUP(Y190,Feuil2!$C$1:$CD$9,3,FALSE) ->  | AC190: =T190-HLOOKUP(Y190,Feuil2!$C$1:$CD$9,4,FALSE) ->  | AD190: =T190-HLOOKUP(Y190,Feuil2!$C$1:$CD$9,5,FALSE) ->  | AE190: =T190-HLOOKUP(Y190,Feuil2!$C$1:$CD$9,6,FALSE) ->  | AF190: =T190-HLOOKUP(Y190,Feuil2!$C$1:$CD$9,7,FALSE) ->  | AG190: =T190-HLOOKUP(Y190,Feuil2!$C$1:$CD$9,8,FALSE) ->  | AH190: =T190-HLOOKUP(Y190,Feuil2!$C$1:$CD$9,9,FALSE) ->  | AQ190: 2016 | AS190: =IF(AQ190,VLOOKUP(AQ190,HOM!$AS$555:$AT$610,2)) -> 3.571
A191: H | Y191: =IF(AND(J191<1920),VLOOKUP(K191,Feuil2!$F$10:$P$28,11),IF(AND(J191>=1920,J191<1937),VLOOKUP(K191,Feuil2!$F$10:$P$28,11),IF(AND(J191>=1936,J191<1942),VLOOKUP(K191,Feuil2!$F$10:$P$28,10),IF(AND(J191>=1942,J191<1947),VLOOKUP(K191,Feuil2!$F$10:$P$28,9),IF(AND(J191>=1947,J191<1952),VLOOKUP(K191,Feuil2!$F$10:$P$28,8),IF(AND(J191>=1952,J191<1957),VLOOKUP(K191,Feuil2!$F$10:$P$28,7),IF(AND(J191>=1957,J191<1962),VLOOKUP(K191,Feuil2!$F$10:$P$28,6),IF(AND(J191>=1962,J191<1967),VLOOKUP(K191,Feuil2!$F$10:$P$28,5),IF(AND(J191>=1967,J191<1972),VLOOKUP(K191,Feuil2!$F$10:$P$28,4),IF(AND(J191>=1972,J191<1977),VLOOKUP(K191,Feuil2!$F$10:$P$28,3),IF(AND(J191>=1977,J191<1982),VLOOKUP(K191,Feuil2!$F$10:$P$28,2),VLOOKUP(K191,Feuil2!$F$10:$P$28,2)))))))))))) ->  | AA191: =T191-HLOOKUP(Y191,Feuil2!$C$1:$CD$9,2,FALSE) ->  | AB191: =T191-HLOOKUP(Y191,Feuil2!$C$1:$CD$9,3,FALSE) ->  | AC191: =T191-HLOOKUP(Y191,Feuil2!$C$1:$CD$9,4,FALSE) ->  | AD191: =T191-HLOOKUP(Y191,Feuil2!$C$1:$CD$9,5,FALSE) ->  | AE191: =T191-HLOOKUP(Y191,Feuil2!$C$1:$CD$9,6,FALSE) ->  | AF191: =T191-HLOOKUP(Y191,Feuil2!$C$1:$CD$9,7,FALSE) ->  | AG191: =T191-HLOOKUP(Y191,Feuil2!$C$1:$CD$9,8,FALSE) ->  | AH191: =T191-HLOOKUP(Y191,Feuil2!$C$1:$CD$9,9,FALSE) ->  | AQ191: 2016 | AS191: =IF(AQ191,VLOOKUP(AQ191,HOM!$AS$555:$AT$610,2)) -> 3.571
A192: H | Y192: =IF(AND(J192<1920),VLOOKUP(K192,Feuil2!$F$10:$P$28,11),IF(AND(J192>=1920,J192<1937),VLOOKUP(K192,Feuil2!$F$10:$P$28,11),IF(AND(J192>=1936,J192<1942),VLOOKUP(K192,Feuil2!$F$10:$P$28,10),IF(AND(J192>=1942,J192<1947),VLOOKUP(K192,Feuil2!$F$10:$P$28,9),IF(AND(J192>=1947,J192<1952),VLOOKUP(K192,Feuil2!$F$10:$P$28,8),IF(AND(J192>=1952,J192<1957),VLOOKUP(K192,Feuil2!$F$10:$P$28,7),IF(AND(J192>=1957,J192<1962),VLOOKUP(K192,Feuil2!$F$10:$P$28,6),IF(AND(J192>=1962,J192<1967),VLOOKUP(K192,Feuil2!$F$10:$P$28,5),IF(AND(J192>=1967,J192<1972),VLOOKUP(K192,Feuil2!$F$10:$P$28,4),IF(AND(J192>=1972,J192<1977),VLOOKUP(K192,Feuil2!$F$10:$P$28,3),IF(AND(J192>=1977,J192<1982),VLOOKUP(K192,Feuil2!$F$10:$P$28,2),VLOOKUP(K192,Feuil2!$F$10:$P$28,2)))))))))))) ->  | AA192: =T192-HLOOKUP(Y192,Feuil2!$C$1:$CD$9,2,FALSE) ->  | AB192: =T192-HLOOKUP(Y192,Feuil2!$C$1:$CD$9,3,FALSE) ->  | AC192: =T192-HLOOKUP(Y192,Feuil2!$C$1:$CD$9,4,FALSE) ->  | AD192: =T192-HLOOKUP(Y192,Feuil2!$C$1:$CD$9,5,FALSE) ->  | AE192: =T192-HLOOKUP(Y192,Feuil2!$C$1:$CD$9,6,FALSE) ->  | AF192: =T192-HLOOKUP(Y192,Feuil2!$C$1:$CD$9,7,FALSE) ->  | AG192: =T192-HLOOKUP(Y192,Feuil2!$C$1:$CD$9,8,FALSE) ->  | AH192: =T192-HLOOKUP(Y192,Feuil2!$C$1:$CD$9,9,FALSE) ->  | AQ192: 2016 | AS192: =IF(AQ192,VLOOKUP(AQ192,HOM!$AS$555:$AT$610,2)) -> 3.571
A193: H | Y193: =IF(AND(J193<1920),VLOOKUP(K193,Feuil2!$F$10:$P$28,11),IF(AND(J193>=1920,J193<1937),VLOOKUP(K193,Feuil2!$F$10:$P$28,11),IF(AND(J193>=1936,J193<1942),VLOOKUP(K193,Feuil2!$F$10:$P$28,10),IF(AND(J193>=1942,J193<1947),VLOOKUP(K193,Feuil2!$F$10:$P$28,9),IF(AND(J193>=1947,J193<1952),VLOOKUP(K193,Feuil2!$F$10:$P$28,8),IF(AND(J193>=1952,J193<1957),VLOOKUP(K193,Feuil2!$F$10:$P$28,7),IF(AND(J193>=1957,J193<1962),VLOOKUP(K193,Feuil2!$F$10:$P$28,6),IF(AND(J193>=1962,J193<1967),VLOOKUP(K193,Feuil2!$F$10:$P$28,5),IF(AND(J193>=1967,J193<1972),VLOOKUP(K193,Feuil2!$F$10:$P$28,4),IF(AND(J193>=1972,J193<1977),VLOOKUP(K193,Feuil2!$F$10:$P$28,3),IF(AND(J193>=1977,J193<1982),VLOOKUP(K193,Feuil2!$F$10:$P$28,2),VLOOKUP(K193,Feuil2!$F$10:$P$28,2)))))))))))) ->  | AA193: =T193-HLOOKUP(Y193,Feuil2!$C$1:$CD$9,2,FALSE) ->  | AB193: =T193-HLOOKUP(Y193,Feuil2!$C$1:$CD$9,3,FALSE) ->  | AC193: =T193-HLOOKUP(Y193,Feuil2!$C$1:$CD$9,4,FALSE) ->  | AD193: =T193-HLOOKUP(Y193,Feuil2!$C$1:$CD$9,5,FALSE) ->  | AE193: =T193-HLOOKUP(Y193,Feuil2!$C$1:$CD$9,6,FALSE) ->  | AF193: =T193-HLOOKUP(Y193,Feuil2!$C$1:$CD$9,7,FALSE) ->  | AG193: =T193-HLOOKUP(Y193,Feuil2!$C$1:$CD$9,8,FALSE) ->  | AH193: =T193-HLOOKUP(Y193,Feuil2!$C$1:$CD$9,9,FALSE) ->  | AQ193: 2016 | AS193: =IF(AQ193,VLOOKUP(AQ193,HOM!$AS$555:$AT$610,2)) -> 3.571
A194: H | Y194: =IF(AND(J194<1920),VLOOKUP(K194,Feuil2!$F$10:$P$28,11),IF(AND(J194>=1920,J194<1937),VLOOKUP(K194,Feuil2!$F$10:$P$28,11),IF(AND(J194>=1936,J194<1942),VLOOKUP(K194,Feuil2!$F$10:$P$28,10),IF(AND(J194>=1942,J194<1947),VLOOKUP(K194,Feuil2!$F$10:$P$28,9),IF(AND(J194>=1947,J194<1952),VLOOKUP(K194,Feuil2!$F$10:$P$28,8),IF(AND(J194>=1952,J194<1957),VLOOKUP(K194,Feuil2!$F$10:$P$28,7),IF(AND(J194>=1957,J194<1962),VLOOKUP(K194,Feuil2!$F$10:$P$28,6),IF(AND(J194>=1962,J194<1967),VLOOKUP(K194,Feuil2!$F$10:$P$28,5),IF(AND(J194>=1967,J194<1972),VLOOKUP(K194,Feuil2!$F$10:$P$28,4),IF(AND(J194>=1972,J194<1977),VLOOKUP(K194,Feuil2!$F$10:$P$28,3),IF(AND(J194>=1977,J194<1982),VLOOKUP(K194,Feuil2!$F$10:$P$28,2),VLOOKUP(K194,Feuil2!$F$10:$P$28,2)))))))))))) ->  | AA194: =T194-HLOOKUP(Y194,Feuil2!$C$1:$CD$9,2,FALSE) ->  | AB194: =T194-HLOOKUP(Y194,Feuil2!$C$1:$CD$9,3,FALSE) ->  | AC194: =T194-HLOOKUP(Y194,Feuil2!$C$1:$CD$9,4,FALSE) ->  | AD194: =T194-HLOOKUP(Y194,Feuil2!$C$1:$CD$9,5,FALSE) ->  | AE194: =T194-HLOOKUP(Y194,Feuil2!$C$1:$CD$9,6,FALSE) ->  | AF194: =T194-HLOOKUP(Y194,Feuil2!$C$1:$CD$9,7,FALSE) ->  | AG194: =T194-HLOOKUP(Y194,Feuil2!$C$1:$CD$9,8,FALSE) ->  | AH194: =T194-HLOOKUP(Y194,Feuil2!$C$1:$CD$9,9,FALSE) ->  | AQ194: 2016 | AS194: =IF(AQ194,VLOOKUP(AQ194,HOM!$AS$555:$AT$610,2)) -> 3.571
A195: H | Y195: =IF(AND(J195<1920),VLOOKUP(K195,Feuil2!$F$10:$P$28,11),IF(AND(J195>=1920,J195<1937),VLOOKUP(K195,Feuil2!$F$10:$P$28,11),IF(AND(J195>=1936,J195<1942),VLOOKUP(K195,Feuil2!$F$10:$P$28,10),IF(AND(J195>=1942,J195<1947),VLOOKUP(K195,Feuil2!$F$10:$P$28,9),IF(AND(J195>=1947,J195<1952),VLOOKUP(K195,Feuil2!$F$10:$P$28,8),IF(AND(J195>=1952,J195<1957),VLOOKUP(K195,Feuil2!$F$10:$P$28,7),IF(AND(J195>=1957,J195<1962),VLOOKUP(K195,Feuil2!$F$10:$P$28,6),IF(AND(J195>=1962,J195<1967),VLOOKUP(K195,Feuil2!$F$10:$P$28,5),IF(AND(J195>=1967,J195<1972),VLOOKUP(K195,Feuil2!$F$10:$P$28,4),IF(AND(J195>=1972,J195<1977),VLOOKUP(K195,Feuil2!$F$10:$P$28,3),IF(AND(J195>=1977,J195<1982),VLOOKUP(K195,Feuil2!$F$10:$P$28,2),VLOOKUP(K195,Feuil2!$F$10:$P$28,2)))))))))))) ->  | AA195: =T195-HLOOKUP(Y195,Feuil2!$C$1:$CD$9,2,FALSE) ->  | AB195: =T195-HLOOKUP(Y195,Feuil2!$C$1:$CD$9,3,FALSE) ->  | AC195: =T195-HLOOKUP(Y195,Feuil2!$C$1:$CD$9,4,FALSE) ->  | AD195: =T195-HLOOKUP(Y195,Feuil2!$C$1:$CD$9,5,FALSE) ->  | AE195: =T195-HLOOKUP(Y195,Feuil2!$C$1:$CD$9,6,FALSE) ->  | AF195: =T195-HLOOKUP(Y195,Feuil2!$C$1:$CD$9,7,FALSE) ->  | AG195: =T195-HLOOKUP(Y195,Feuil2!$C$1:$CD$9,8,FALSE) ->  | AH195: =T195-HLOOKUP(Y195,Feuil2!$C$1:$CD$9,9,FALSE) ->  | AQ195: 2016 | AS195: =IF(AQ195,VLOOKUP(AQ195,HOM!$AS$555:$AT$610,2)) -> 3.571
A196: H | Y196: =IF(AND(J196<1920),VLOOKUP(K196,Feuil2!$F$10:$P$28,11),IF(AND(J196>=1920,J196<1937),VLOOKUP(K196,Feuil2!$F$10:$P$28,11),IF(AND(J196>=1936,J196<1942),VLOOKUP(K196,Feuil2!$F$10:$P$28,10),IF(AND(J196>=1942,J196<1947),VLOOKUP(K196,Feuil2!$F$10:$P$28,9),IF(AND(J196>=1947,J196<1952),VLOOKUP(K196,Feuil2!$F$10:$P$28,8),IF(AND(J196>=1952,J196<1957),VLOOKUP(K196,Feuil2!$F$10:$P$28,7),IF(AND(J196>=1957,J196<1962),VLOOKUP(K196,Feuil2!$F$10:$P$28,6),IF(AND(J196>=1962,J196<1967),VLOOKUP(K196,Feuil2!$F$10:$P$28,5),IF(AND(J196>=1967,J196<1972),VLOOKUP(K196,Feuil2!$F$10:$P$28,4),IF(AND(J196>=1972,J196<1977),VLOOKUP(K196,Feuil2!$F$10:$P$28,3),IF(AND(J196>=1977,J196<1982),VLOOKUP(K196,Feuil2!$F$10:$P$28,2),VLOOKUP(K196,Feuil2!$F$10:$P$28,2)))))))))))) ->  | AA196: =T196-HLOOKUP(Y196,Feuil2!$C$1:$CD$9,2,FALSE) ->  | AB196: =T196-HLOOKUP(Y196,Feuil2!$C$1:$CD$9,3,FALSE) ->  | AC196: =T196-HLOOKUP(Y196,Feuil2!$C$1:$CD$9,4,FALSE) ->  | AD196: =T196-HLOOKUP(Y196,Feuil2!$C$1:$CD$9,5,FALSE) ->  | AE196: =T196-HLOOKUP(Y196,Feuil2!$C$1:$CD$9,6,FALSE) ->  | AF196: =T196-HLOOKUP(Y196,Feuil2!$C$1:$CD$9,7,FALSE) ->  | AG196: =T196-HLOOKUP(Y196,Feuil2!$C$1:$CD$9,8,FALSE) ->  | AH196: =T196-HLOOKUP(Y196,Feuil2!$C$1:$CD$9,9,FALSE) ->  | AQ196: 2016 | AS196: =IF(AQ196,VLOOKUP(AQ196,HOM!$AS$555:$AT$610,2)) -> 3.571
A197: H | Y197: =IF(AND(J197<1920),VLOOKUP(K197,Feuil2!$F$10:$P$28,11),IF(AND(J197>=1920,J197<1937),VLOOKUP(K197,Feuil2!$F$10:$P$28,11),IF(AND(J197>=1936,J197<1942),VLOOKUP(K197,Feuil2!$F$10:$P$28,10),IF(AND(J197>=1942,J197<1947),VLOOKUP(K197,Feuil2!$F$10:$P$28,9),IF(AND(J197>=1947,J197<1952),VLOOKUP(K197,Feuil2!$F$10:$P$28,8),IF(AND(J197>=1952,J197<1957),VLOOKUP(K197,Feuil2!$F$10:$P$28,7),IF(AND(J197>=1957,J197<1962),VLOOKUP(K197,Feuil2!$F$10:$P$28,6),IF(AND(J197>=1962,J197<1967),VLOOKUP(K197,Feuil2!$F$10:$P$28,5),IF(AND(J197>=1967,J197<1972),VLOOKUP(K197,Feuil2!$F$10:$P$28,4),IF(AND(J197>=1972,J197<1977),VLOOKUP(K197,Feuil2!$F$10:$P$28,3),IF(AND(J197>=1977,J197<1982),VLOOKUP(K197,Feuil2!$F$10:$P$28,2),VLOOKUP(K197,Feuil2!$F$10:$P$28,2)))))))))))) ->  | AA197: =T197-HLOOKUP(Y197,Feuil2!$C$1:$CD$9,2,FALSE) ->  | AB197: =T197-HLOOKUP(Y197,Feuil2!$C$1:$CD$9,3,FALSE) ->  | AC197: =T197-HLOOKUP(Y197,Feuil2!$C$1:$CD$9,4,FALSE) ->  | AD197: =T197-HLOOKUP(Y197,Feuil2!$C$1:$CD$9,5,FALSE) ->  | AE197: =T197-HLOOKUP(Y197,Feuil2!$C$1:$CD$9,6,FALSE) ->  | AF197: =T197-HLOOKUP(Y197,Feuil2!$C$1:$CD$9,7,FALSE) ->  | AG197: =T197-HLOOKUP(Y197,Feuil2!$C$1:$CD$9,8,FALSE) ->  | AH197: =T197-HLOOKUP(Y197,Feuil2!$C$1:$CD$9,9,FALSE) ->  | AQ197: 2016 | AS197: =IF(AQ197,VLOOKUP(AQ197,HOM!$AS$555:$AT$610,2)) -> 3.571
A198: H | Y198: =IF(AND(J198<1920),VLOOKUP(K198,Feuil2!$F$10:$P$28,11),IF(AND(J198>=1920,J198<1937),VLOOKUP(K198,Feuil2!$F$10:$P$28,11),IF(AND(J198>=1936,J198<1942),VLOOKUP(K198,Feuil2!$F$10:$P$28,10),IF(AND(J198>=1942,J198<1947),VLOOKUP(K198,Feuil2!$F$10:$P$28,9),IF(AND(J198>=1947,J198<1952),VLOOKUP(K198,Feuil2!$F$10:$P$28,8),IF(AND(J198>=1952,J198<1957),VLOOKUP(K198,Feuil2!$F$10:$P$28,7),IF(AND(J198>=1957,J198<1962),VLOOKUP(K198,Feuil2!$F$10:$P$28,6),IF(AND(J198>=1962,J198<1967),VLOOKUP(K198,Feuil2!$F$10:$P$28,5),IF(AND(J198>=1967,J198<1972),VLOOKUP(K198,Feuil2!$F$10:$P$28,4),IF(AND(J198>=1972,J198<1977),VLOOKUP(K198,Feuil2!$F$10:$P$28,3),IF(AND(J198>=1977,J198<1982),VLOOKUP(K198,Feuil2!$F$10:$P$28,2),VLOOKUP(K198,Feuil2!$F$10:$P$28,2)))))))))))) ->  | AA198: =T198-HLOOKUP(Y198,Feuil2!$C$1:$CD$9,2,FALSE) ->  | AB198: =T198-HLOOKUP(Y198,Feuil2!$C$1:$CD$9,3,FALSE) ->  | AC198: =T198-HLOOKUP(Y198,Feuil2!$C$1:$CD$9,4,FALSE) ->  | AD198: =T198-HLOOKUP(Y198,Feuil2!$C$1:$CD$9,5,FALSE) ->  | AE198: =T198-HLOOKUP(Y198,Feuil2!$C$1:$CD$9,6,FALSE) ->  | AF198: =T198-HLOOKUP(Y198,Feuil2!$C$1:$CD$9,7,FALSE) ->  | AG198: =T198-HLOOKUP(Y198,Feuil2!$C$1:$CD$9,8,FALSE) ->  | AH198: =T198-HLOOKUP(Y198,Feuil2!$C$1:$CD$9,9,FALSE) ->  | AQ198: 2016 | AS198: =IF(AQ198,VLOOKUP(AQ198,HOM!$AS$555:$AT$610,2)) -> 3.571
A199: H | Y199: =IF(AND(J199<1920),VLOOKUP(K199,Feuil2!$F$10:$P$28,11),IF(AND(J199>=1920,J199<1937),VLOOKUP(K199,Feuil2!$F$10:$P$28,11),IF(AND(J199>=1936,J199<1942),VLOOKUP(K199,Feuil2!$F$10:$P$28,10),IF(AND(J199>=1942,J199<1947),VLOOKUP(K199,Feuil2!$F$10:$P$28,9),IF(AND(J199>=1947,J199<1952),VLOOKUP(K199,Feuil2!$F$10:$P$28,8),IF(AND(J199>=1952,J199<1957),VLOOKUP(K199,Feuil2!$F$10:$P$28,7),IF(AND(J199>=1957,J199<1962),VLOOKUP(K199,Feuil2!$F$10:$P$28,6),IF(AND(J199>=1962,J199<1967),VLOOKUP(K199,Feuil2!$F$10:$P$28,5),IF(AND(J199>=1967,J199<1972),VLOOKUP(K199,Feuil2!$F$10:$P$28,4),IF(AND(J199>=1972,J199<1977),VLOOKUP(K199,Feuil2!$F$10:$P$28,3),IF(AND(J199>=1977,J199<1982),VLOOKUP(K199,Feuil2!$F$10:$P$28,2),VLOOKUP(K199,Feuil2!$F$10:$P$28,2)))))))))))) ->  | AA199: =T199-HLOOKUP(Y199,Feuil2!$C$1:$CD$9,2,FALSE) ->  | AB199: =T199-HLOOKUP(Y199,Feuil2!$C$1:$CD$9,3,FALSE) ->  | AC199: =T199-HLOOKUP(Y199,Feuil2!$C$1:$CD$9,4,FALSE) ->  | AD199: =T199-HLOOKUP(Y199,Feuil2!$C$1:$CD$9,5,FALSE) ->  | AE199: =T199-HLOOKUP(Y199,Feuil2!$C$1:$CD$9,6,FALSE) ->  | AF199: =T199-HLOOKUP(Y199,Feuil2!$C$1:$CD$9,7,FALSE) ->  | AG199: =T199-HLOOKUP(Y199,Feuil2!$C$1:$CD$9,8,FALSE) ->  | AH199: =T199-HLOOKUP(Y199,Feuil2!$C$1:$CD$9,9,FALSE) ->  | AQ199: 2016 | AS199: =IF(AQ199,VLOOKUP(AQ199,HOM!$AS$555:$AT$610,2)) -> 3.571
A200: H | Y200: =IF(AND(J200<1920),VLOOKUP(K200,Feuil2!$F$10:$P$28,11),IF(AND(J200>=1920,J200<1937),VLOOKUP(K200,Feuil2!$F$10:$P$28,11),IF(AND(J200>=1936,J200<1942),VLOOKUP(K200,Feuil2!$F$10:$P$28,10),IF(AND(J200>=1942,J200<1947),VLOOKUP(K200,Feuil2!$F$10:$P$28,9),IF(AND(J200>=1947,J200<1952),VLOOKUP(K200,Feuil2!$F$10:$P$28,8),IF(AND(J200>=1952,J200<1957),VLOOKUP(K200,Feuil2!$F$10:$P$28,7),IF(AND(J200>=1957,J200<1962),VLOOKUP(K200,Feuil2!$F$10:$P$28,6),IF(AND(J200>=1962,J200<1967),VLOOKUP(K200,Feuil2!$F$10:$P$28,5),IF(AND(J200>=1967,J200<1972),VLOOKUP(K200,Feuil2!$F$10:$P$28,4),IF(AND(J200>=1972,J200<1977),VLOOKUP(K200,Feuil2!$F$10:$P$28,3),IF(AND(J200>=1977,J200<1982),VLOOKUP(K200,Feuil2!$F$10:$P$28,2),VLOOKUP(K200,Feuil2!$F$10:$P$28,2)))))))))))) ->  | AA200: =T200-HLOOKUP(Y200,Feuil2!$C$1:$CD$9,2,FALSE) ->  | AB200: =T200-HLOOKUP(Y200,Feuil2!$C$1:$CD$9,3,FALSE) ->  | AC200: =T200-HLOOKUP(Y200,Feuil2!$C$1:$CD$9,4,FALSE) ->  | AD200: =T200-HLOOKUP(Y200,Feuil2!$C$1:$CD$9,5,FALSE) ->  | AE200: =T200-HLOOKUP(Y200,Feuil2!$C$1:$CD$9,6,FALSE) ->  | AF200: =T200-HLOOKUP(Y200,Feuil2!$C$1:$CD$9,7,FALSE) ->  | AG200: =T200-HLOOKUP(Y200,Feuil2!$C$1:$CD$9,8,FALSE) ->  | AH200: =T200-HLOOKUP(Y200,Feuil2!$C$1:$CD$9,9,FALSE) ->  | AQ200: 2016 | AS200: =IF(AQ200,VLOOKUP(AQ200,HOM!$AS$555:$AT$610,2)) -> 3.571
A201: H | U201: =IF(K201="","",IF(A201="H",10^(0.794358141*LOG(K201/174.393)^2)*T201*AS201,IF(A201="F",10^(0.89726074 * LOG(K201/148.026)^2)*T201*AS201,""))) ->  | Y201: =IF(AND(J201<1920),VLOOKUP(K201,Feuil2!$F$10:$P$28,11),IF(AND(J201>=1920,J201<1937),VLOOKUP(K201,Feuil2!$F$10:$P$28,11),IF(AND(J201>=1936,J201<1942),VLOOKUP(K201,Feuil2!$F$10:$P$28,10),IF(AND(J201>=1942,J201<1947),VLOOKUP(K201,Feuil2!$F$10:$P$28,9),IF(AND(J201>=1947,J201<1952),VLOOKUP(K201,Feuil2!$F$10:$P$28,8),IF(AND(J201>=1952,J201<1957),VLOOKUP(K201,Feuil2!$F$10:$P$28,7),IF(AND(J201>=1957,J201<1962),VLOOKUP(K201,Feuil2!$F$10:$P$28,6),IF(AND(J201>=1962,J201<1967),VLOOKUP(K201,Feuil2!$F$10:$P$28,5),IF(AND(J201>=1967,J201<1972),VLOOKUP(K201,Feuil2!$F$10:$P$28,4),IF(AND(J201>=1972,J201<1977),VLOOKUP(K201,Feuil2!$F$10:$P$28,3),IF(AND(J201>=1977,J201<1982),VLOOKUP(K201,Feuil2!$F$10:$P$28,2),VLOOKUP(K201,Feuil2!$F$10:$P$28,2)))))))))))) ->  | AA201: =T201-HLOOKUP(Y201,Feuil2!$C$1:$CD$9,2,FALSE) ->  | AB201: =T201-HLOOKUP(Y201,Feuil2!$C$1:$CD$9,3,FALSE) ->  | AC201: =T201-HLOOKUP(Y201,Feuil2!$C$1:$CD$9,4,FALSE) ->  | AD201: =T201-HLOOKUP(Y201,Feuil2!$C$1:$CD$9,5,FALSE) ->  | AE201: =T201-HLOOKUP(Y201,Feuil2!$C$1:$CD$9,6,FALSE) ->  | AF201: =T201-HLOOKUP(Y201,Feuil2!$C$1:$CD$9,7,FALSE) ->  | AG201: =T201-HLOOKUP(Y201,Feuil2!$C$1:$CD$9,8,FALSE) ->  | AH201: =T201-HLOOKUP(Y201,Feuil2!$C$1:$CD$9,9,FALSE) ->  | AQ201: 2016 | AS201: =IF(AQ201,VLOOKUP(AQ201,HOM!$AS$555:$AT$610,2)) -> 3.571
... 413 more rows

Sheet Feuil1 (hidden)
C1: VF35-48 | D1: VF35-53 | E1: VF35-58 | F1: VF35-63 | G1: VF35-69 | H1: VF35-75 | I1: VF35+75 | J1: VF40-48 | K1: VF40-53 | L1: VF40-58 | M1: VF40-63 | N1: VF40-69 | O1: VF40-75 | P1: VF40+75 | Q1: VF45-48 | R1: VF45-53 | S1: VF45-58 | T1: VF45-63 | U1: VF45-69 | V1: VF45-75 | W1: VF45+75 | X1: VF50-48 | Y1: VF50-53 | Z1: VF50-58 | AA1: VF50-63 | AB1: VF50-69 | AC1: VF50-75 | AD1: VF50+75 | AE1: VF55-48 | AF1: VF55-53 | AG1: VF55-58 | AH1: VF55-63 | AI1: VF55-69 | AJ1: VF55-75 | AK1: VF55+75 | AL1: VF60-48 | AM1: VF60-53 | AN1: VF60-58 | AO1: VF60-63 | AP1: VF60-69 | AQ1: VF60-75 | AR1: VF60+75 | AS1: VF65-48 | AT1: VF65-53 | AU1: VF65-58 | AV1: VF65-63 | AW1: VF65-69 | AX1: VF65-75 | AY1: VF65+75 | AZ1: VF70+-48 | BA1: VF70+-53 | BB1: VF70+-58 | BC1: VF70+-63 | BD1: VF70+-69 | BE1: VF70+-75 | BF1: VF70++75
B3: REGION | C3: 55 | D3: 60 | E3: 62 | F3: 65 | G3: 70 | H3: 72 | I3: 80 | J3: 52 | K3: 55 | L3: 60 | M3: 62 | N3: 65 | O3: 67 | P3: 75 | Q3: 50 | R3: 52 | S3: 55 | T3: 60 | U3: 62 | V3: 65 | W3: 72 | X3: 45 | Y3: 47 | Z3: 52 | AA3: 55 | AB3: 57 | AC3: 60 | AD3: 67 | AE3: 42 | AF3: 45 | AG3: 47 | AH3: 50 | AI3: 52 | AJ3: 55 | AK3: 57 | AL3: 40 | AM3: 42 | AN3: 45 | AO3: 47 | AP3: 50 | AQ3: 52 | AR3: 55 | AS3: 38 | AT3: 40 | AU3: 42 | AV3: 45 | AW3: 48 | AX3: 50 | AY3: 52 | AZ3: 36 | BA3: 38 | BB3: 40 | BC3: 43 | BD3: 45 | BE3: 48 | BF3: 50
B4: France | C4: 60 | D4: 62 | E4: 67 | F4: 70 | G4: 75 | H4: 77 | I4: 85 | J4: 55 | K4: 60 | L4: 62 | M4: 65 | N4: 70 | O4: 72 | P4: 80 | Q4: 52 | R4: 55 | S4: 60 | T4: 62 | U4: 65 | V4: 67 | W4: 75 | X4: 50 | Y4: 52 | Z4: 55 | AA4: 60 | AB4: 62 | AC4: 65 | AD4: 72 | AE4: 45 | AF4: 47 | AG4: 52 | AH4: 55 | AI4: 57 | AJ4: 60 | AK4: 67 | AL4: 42 | AM4: 45 | AN4: 47 | AO4: 50 | AP4: 52 | AQ4: 55 | AR4: 57 | AS4: 40 | AT4: 42 | AU4: 45 | AV4: 47 | AW4: 50 | AX4: 52 | AY4: 55 | AZ4: 38 | BA4: 40 | BB4: 42 | BC4: 45 | BD4: 48 | BE4: 50 | BF4: 52
B5: EUROPE | C5: 70 | D5: 72 | E5: 77 | F5: 80 | G5: 85 | H5: 87 | I5: 95 | J5: 65 | K5: 70 | L5: 72 | M5: 75 | N5: 80 | O5: 82 | P5: 90 | Q5: 62 | R5: 65 | S5: 70 | T5: 72 | U5: 75 | V5: 77 | W5: 85 | X5: 60 | Y5: 62 | Z5: 65 | AA5: 70 | AB5: 72 | AC5: 75 | AD5: 82 | AE5: 55 | AF5: 57 | AG5: 62 | AH5: 65 | AI5: 67 | AJ5: 70 | AK5: 77 | AL5: 52 | AM5: 55 | AN5: 57 | AO5: 60 | AP5: 62 | AQ5: 65 | AR5: 67 | AS5: 50 | AT5: 52 | AU5: 55 | AV5: 57 | AW5: 60 | AX5: 62 | AY5: 65 | AZ5: 45 | BA5: 47 | BB5: 49 | BC5: 52 | BD5: 55 | BE5: 57 | BF5: 60
B6: MONDE | C6: 82 | D6: 90 | E6: 95 | F6: 100 | G6: 102 | H6: 107 | I6: 112 | J6: 80 | K6: 85 | L6: 90 | M6: 95 | N6: 97 | O6: 100 | P6: 105 | Q6: 72 | R6: 77 | S6: 82 | T6: 85 | U6: 90 | V6: 92 | W6: 97 | X6: 67 | Y6: 72 | Z6: 75 | AA6: 77 | AB6: 82 | AC6: 85 | AD6: 90 | AE6: 60 | AF6: 65 | AG6: 67 | AH6: 70 | AI6: 75 | AJ6: 77 | AK6: 82 | AL6: 55 | AM6: 57 | AN6: 62 | AO6: 65 | AP6: 67 | AQ6: 70 | AR6: 72 | AS6: 50 | AT6: 52 | AU6: 55 | AV6: 57 | AW6: 60 | AX6: 62 | AY6: 65 | AZ6: 46 | BA6: 48 | BB6: 50 | BC6: 53 | BD6: 56 | BE6: 58 | BF6: 61
B7: INTERNATIONAL B | C7: 1000 | D7: 1000 | E7: 1000 | F7: 1000 | G7: 1000 | H7: 1000 | I7: 1000 | J7: 1000 | K7: 1000 | L7: 1000 | M7: 1000 | N7: 1000 | O7: 1000 | P7: 1000 | Q7: 1000 | R7: 1000 | S7: 1000 | T7: 1000 | U7: 1000 | V7: 1000 | W7: 1000 | X7: 1000 | Y7: 1000 | Z7: 1000 | AA7: 1000 | AB7: 1000 | AC7: 1000 | AD7: 1000 | AE7: 1000 | AF7: 1000 | AG7: 1000 | AH7: 1000 | AI7: 1000 | AJ7: 1000 | AK7: 1000 | AL7: 1000 | AM7: 1000 | AN7: 1000 | AO7: 1000 | AP7: 1000 | AQ7: 1000 | AR7: 1000 | AS7: 1000 | AT7: 1000 | AU7: 1000 | AV7: 1000 | AW7: 1000 | AX7: 1000 | AY7: 1000 | AZ7: 1000 | BA7: 1000 | BB7: 1000 | BC7: 1000 | BD7: 1000 | BE7: 1000 | BF7: 1000
B8: INTERNATIONAL A | C8: 1000 | D8: 1000 | E8: 1000 | F8: 1000 | G8: 1000 | H8: 1000 | I8: 1000 | J8: 1000 | K8: 1000 | L8: 1000 | M8: 1000 | N8: 1000 | O8: 1000 | P8: 1000 | Q8: 1000 | R8: 1000 | S8: 1000 | T8: 1000 | U8: 1000 | V8: 1000 | W8: 1000 | X8: 1000 | Y8: 1000 | Z8: 1000 | AA8: 1000 | AB8: 1000 | AC8: 1000 | AD8: 1000 | AE8: 1000 | AF8: 1000 | AG8: 1000 | AH8: 1000 | AI8: 1000 | AJ8: 1000 | AK8: 1000 | AL8: 1000 | AM8: 1000 | AN8: 1000 | AO8: 1000 | AP8: 1000 | AQ8: 1000 | AR8: 1000 | AS8: 1000 | AT8: 1000 | AU8: 1000 | AV8: 1000 | AW8: 1000 | AX8: 1000 | AY8: 1000 | AZ8: 1000 | BA8: 1000 | BB8: 1000 | BC8: 1000 | BD8: 1000 | BE8: 1000 | BF8: 1000
B9: OLYMPIQUE | C9: 1000 | D9: 1000 | E9: 1000 | F9: 1000 | G9: 1000 | H9: 1000 | I9: 1000 | J9: 1000 | K9: 1000 | L9: 1000 | M9: 1000 | N9: 1000 | O9: 1000 | P9: 1000 | Q9: 1000 | R9: 1000 | S9: 1000 | T9: 1000 | U9: 1000 | V9: 1000 | W9: 1000 | X9: 1000 | Y9: 1000 | Z9: 1000 | AA9: 1000 | AB9: 1000 | AC9: 1000 | AD9: 1000 | AE9: 1000 | AF9: 1000 | AG9: 1000 | AH9: 1000 | AI9: 1000 | AJ9: 1000 | AK9: 1000 | AL9: 1000 | AM9: 1000 | AN9: 1000 | AO9: 1000 | AP9: 1000 | AQ9: 1000 | AR9: 1000 | AS9: 1000 | AT9: 1000 | AU9: 1000 | AV9: 1000 | AW9: 1000 | AX9: 1000 | AY9: 1000 | AZ9: 1000 | BA9: 1000 | BB9: 1000 | BC9: 1000 | BD9: 1000 | BE9: 1000 | BF9: 1000
G10: VF35 | H10: VF40 | I10: VF45 | J10: VF50 | K10: VF55 | L10: VF60 | M10: VF65 | N10: VF70+
F11: 20.01 | G11: VF35-48 | H11: VF40-48 | I11: VF45-48 | J11: VF50-48 | K11: VF55-48 | L11: VF60-48 | M11: VF65-48 | N11: VF70+-48
F12: 30.01 | G12: VF35-48 | H12: VF40-48 | I12: VF45-48 | J12: VF50-48 | K12: VF55-48 | L12: VF60-48 | M12: VF65-48 | N12: VF70+-48
F13: 35.01 | G13: VF35-48 | H13: VF40-48 | I13: VF45-48 | J13: VF50-48 | K13: VF55-48 | L13: VF60-48 | M13: VF65-48 | N13: VF70+-48
F14: 36.01 | G14: VF35-48 | H14: VF40-48 | I14: VF45-48 | J14: VF50-48 | K14: VF55-48 | L14: VF60-48 | M14: VF65-48 | N14: VF70+-48
F15: 40.01 | G15: VF35-48 | H15: VF40-48 | I15: VF45-48 | J15: VF50-48 | K15: VF55-48 | L15: VF60-48 | M15: VF65-48 | N15: VF70+-48
F16: 44.01 | G16: VF35-48 | H16: VF40-48 | I16: VF45-48 | J16: VF50-48 | K16: VF55-48 | L16: VF60-48 | M16: VF65-48 | N16: VF70+-48
F17: 48.01 | G17: VF35-53 | H17: VF40-53 | I17: VF45-53 | J17: VF50-53 | K17: VF55-53 | L17: VF60-53 | M17: VF65-53 | N17: VF70+-53
F18: 53.01 | G18: VF35-58 | H18: VF40-58 | I18: VF45-58 | J18: VF50-58 | K18: VF55-58 | L18: VF60-58 | M18: VF65-58 | N18: VF70+-58
F19: 58.01 | G19: VF35-63 | H19: VF40-63 | I19: VF45-63 | J19: VF50-63 | K19: VF55-63 | L19: VF60-63 | M19: VF65-63 | N19: VF70+-63
F20: 63.01 | G20: VF35-69 | H20: VF40-69 | I20: VF45-69 | J20: VF50-69 | K20: VF55-69 | L20: VF60-69 | M20: VF65-69 | N20: VF70+-69
F21: 69.01 | G21: VF35-75 | H21: VF40-75 | I21: VF45-75 | J21: VF50-75 | K21: VF55-75 | L21: VF60-75 | M21: VF65-75 | N21: VF70+-75
F22: 75.01 | G22: VF35+75 | H22: VF40+75 | I22: VF45+75 | J22: VF50+75 | K22: VF55+75 | L22: VF60+75 | M22: VF65+75 | N22: VF70++75
F23: 110 | G23: VF35+75 | H23: VF40+75 | I23: VF45+75 | J23: VF50+75 | K23: VF55+75 | L23: VF60+75 | M23: VF65+75 | N23: VF70++75
F24: 140 | G24: VF35+75 | H24: VF40+75 | I24: VF45+75 | J24: VF50+75 | K24: VF55+75 | L24: VF60+75 | M24: VF65+75 | N24: VF70++75

Sheet Feuil2 (hidden)
C1: VH35-56 | D1: VH35-62 | E1: VH35-69 | F1: VH35-77 | G1: VH35-85 | H1: VH35-94 | I1: VH35-105 | J1: VH35+105 | K1: VH40-56 | L1: VH40-62 | M1: VH40-69 | N1: VH40-77 | O1: VH40-85 | P1: VH40-94 | Q1: VH40-105 | R1: VH40+105 | S1: VH45-56 | T1: VH45-62 | U1: VH45-69 | V1: VH45-77 | W1: VH45-85 | X1: VH45-94 | Y1: VH45-105 | Z1: VH45+105 | AA1: VH50-56 | AB1: VH50-62 | AC1: VH50-69 | AD1: VH50-77 | AE1: VH50-85 | AF1: VH50-94 | AG1: VH50-105 | AH1: VH50+105 | AI1: VH55-56 | AJ1: VH55-62 | AK1: VH55-69 | AL1: VH55-77 | AM1: VH55-85 | AN1: VH55-94 | AO1: VH55-105 | AP1: VH55+105 | AQ1: VH60-56 | AR1: VH60-62 | AS1: VH60-69 | AT1: VH60-77 | AU1: VH60-85 | AV1: VH60-94 | AW1: VH60-105 | AX1: VH60+105 | AY1: VH65-56 | AZ1: VH65-62 | BA1: VH65-69 | BB1: VH65-77 | BC1: VH65-85 | BD1: VH65-94 | BE1: VH65-105 | BF1: VH65+105 | BG1: VH70-56 | BH1: VH70-62 | BI1: VH70-69 | BJ1: VH70-77 | BK1: VH70-85 | BL1: VH70-94 | BM1: VH70-105 | BN1: VH70+105 | BO1: VH75-56 | BP1: VH75-62 | BQ1: VH75-69 | BR1: VH75-77 | BS1: VH75-85 | BT1: VH75-94 | BU1: VH75-105 | BV1: VH75+105 | BW1: VH80+-56 | BX1: VH80+-62 | BY1: VH80+-69 | BZ1: VH80+-77 | CA1: VH80+-85 | CB1: VH80+-94 | CC1: VH80+-105 | CD1: VH80++105
B3: REGION | C3: 117 | D3: 132 | E3: 147 | F3: 162 | G3: 172 | H3: 182 | I3: 190 | J3: 197 | K3: 110 | L3: 125 | M3: 140 | N3: 152 | O3: 162 | P3: 172 | Q3: 180 | R3: 187 | S3: 105 | T3: 117 | U3: 130 | V3: 145 | W3: 155 | X3: 162 | Y3: 170 | Z3: 177 | AA3: 95 | AB3: 107 | AC3: 120 | AD3: 130 | AE3: 140 | AF3: 147 | AG3: 155 | AH3: 162 | AI3: 82 | AJ3: 92 | AK3: 105 | AL3: 115 | AM3: 122 | AN3: 130 | AO3: 137 | AP3: 145 | AQ3: 72 | AR3: 82 | AS3: 92 | AT3: 102 | AU3: 110 | AV3: 117 | AW3: 122 | AX3: 130 | AY3: 60 | AZ3: 70 | BA3: 77 | BB3: 87 | BC3: 92 | BD3: 100 | BE3: 102 | BF3: 107 | BG3: 47 | BH3: 55 | BI3: 62 | BJ3: 70 | BK3: 75 | BL3: 80 | BM3: 82 | BN3: 87 | BO3: 42 | BP3: 47 | BQ3: 55 | BR3: 62 | BS3: 67 | BT3: 70 | BU3: 75 | BV3: 80 | BW3: 40 | BX3: 45 | BY3: 50 | BZ3: 60 | CA3: 63 | CB3: 64 | CC3: 69 | CD3: 70 | CE3: REGIONAL
B4: France | C4: 127 | D4: 142 | E4: 157 | F4: 172 | G4: 182 | H4: 192 | I4: 200 | J4: 202 | K4: 120 | L4: 135 | M4: 150 | N4: 162 | O4: 172 | P4: 182 | Q4: 190 | R4: 197 | S4: 115 | T4: 127 | U4: 140 | V4: 155 | W4: 165 | X4: 172 | Y4: 180 | Z4: 187 | AA4: 105 | AB4: 117 | AC4: 130 | AD4: 140 | AE4: 150 | AF4: 157 | AG4: 165 | AH4: 172 | AI4: 92 | AJ4: 102 | AK4: 115 | AL4: 125 | AM4: 132 | AN4: 140 | AO4: 147 | AP4: 155 | AQ4: 82 | AR4: 92 | AS4: 102 | AT4: 112 | AU4: 120 | AV4: 127 | AW4: 132 | AX4: 140 | AY4: 70 | AZ4: 80 | BA4: 87 | BB4: 97 | BC4: 102 | BD4: 110 | BE4: 112 | BF4: 117 | BG4: 57 | BH4: 65 | BI4: 72 | BJ4: 80 | BK4: 85 | BL4: 90 | BM4: 92 | BN4: 97 | BO4: 52 | BP4: 57 | BQ4: 65 | BR4: 72 | BS4: 77 | BT4: 80 | BU4: 85 | BV4: 90 | BW4: 50 | BX4: 55 | BY4: 58 | BZ4: 62 | CA4: 64 | CB4: 65 | CC4: 70 | CD4: 75 | CE4: France
B5: EUROPE | C5: 137 | D5: 152 | E5: 167 | F5: 182 | G5: 192 | H5: 202 | I5: 210 | J5: 217 | K5: 130 | L5: 145 | M5: 160 | N5: 172 | O5: 182 | P5: 192 | Q5: 200 | R5: 207 | S5: 125 | T5: 137 | U5: 150 | V5: 165 | W5: 175 | X5: 182 | Y5: 190 | Z5: 197 | AA5: 115 | AB5: 127 | AC5: 140 | AD5: 150 | AE5: 160 | AF5: 167 | AG5: 175 | AH5: 182 | AI5: 102 | AJ5: 112 | AK5: 125 | AL5: 135 | AM5: 142 | AN5: 150 | AO5: 157 | AP5: 165 | AQ5: 92 | AR5: 102 | AS5: 112 | AT5: 122 | AU5: 130 | AV5: 137 | AW5: 142 | AX5: 150 | AY5: 80 | AZ5: 90 | BA5: 97 | BB5: 107 | BC5: 112 | BD5: 120 | BE5: 122 | BF5: 127 | BG5: 67 | BH5: 75 | BI5: 82 | BJ5: 90 | BK5: 95 | BL5: 100 | BM5: 102 | BN5: 107 | BO5: 62 | BP5: 67 | BQ5: 75 | BR5: 82 | BS5: 87 | BT5: 90 | BU5: 95 | BV5: 100 | BW5: 54 | BX5: 56 | BY5: 59 | BZ5: 64 | CA5: 69 | CB5: 71 | CC5: 76 | CD5: 79 | CE5: EUROPE
B6: MONDE | C6: 155 | D6: 172 | E6: 187 | F6: 202 | G6: 215 | H6: 227 | I6: 237 | J6: 245 | K6: 147 | L6: 162 | M6: 177 | N6: 192 | O6: 205 | P6: 215 | Q6: 225 | R6: 232 | S6: 140 | T6: 155 | U6: 170 | V6: 185 | W6: 195 | X6: 205 | Y6: 212 | Z6: 222 | AA6: 130 | AB6: 142 | AC6: 157 | AD6: 170 | AE6: 180 | AF6: 190 | AG6: 197 | AH6: 205 | AI6: 115 | AJ6: 127 | AK6: 140 | AL6: 152 | AM6: 162 | AN6: 170 | AO6: 177 | AP6: 182 | AQ6: 105 | AR6: 117 | AS6: 127 | AT6: 137 | AU6: 147 | AV6: 155 | AW6: 160 | AX6: 167 | AY6: 92 | AZ6: 102 | BA6: 112 | BB6: 120 | BC6: 127 | BD6: 135 | BE6: 140 | BF6: 145 | BG6: 75 | BH6: 82 | BI6: 90 | BJ6: 97 | BK6: 102 | BL6: 107 | BM6: 112 | BN6: 117 | BO6: 67 | BP6: 75 | BQ6: 82 | BR6: 87 | BS6: 95 | BT6: 97 | BU6: 102 | BV6: 107 | BW6: 55 | BX6: 57 | BY6: 60 | BZ6: 65 | CA6: 70 | CB6: 72 | CC6: 77 | CD6: 80 | CE6: MONDE
B7: INTERNATIONAL B | C7: 1000 | D7: 1000 | E7: 1000 | F7: 1000 | G7: 1000 | H7: 1000 | I7: 1000 | J7: 1000 | K7: 1000 | L7: 1000 | M7: 1000 | N7: 1000 | O7: 1000 | P7: 1000 | Q7: 1000 | R7: 1000 | S7: 1000 | T7: 1000 | U7: 1000 | V7: 1000 | W7: 1000 | X7: 1000 | Y7: 1000 | Z7: 1000 | AA7: 1000 | AB7: 1000 | AC7: 1000 | AD7: 1000 | AE7: 1000 | AF7: 1000 | AG7: 1000 | AH7: 1000 | AI7: 1000 | AJ7: 1000 | AK7: 1000 | AL7: 1000 | AM7: 1000 | AN7: 1000 | AO7: 1000 | AP7: 1000 | AQ7: 1000 | AR7: 1000 | AS7: 1000 | AT7: 1000 | AU7: 1000 | AV7: 1000 | AW7: 1000 | AX7: 1000 | AY7: 1000 | AZ7: 1000 | BA7: 1000 | BB7: 1000 | BC7: 1000 | BD7: 1000 | BE7: 1000 | BF7: 1000 | BG7: 1000 | BH7: 1000 | BI7: 1000 | BJ7: 1000 | BK7: 1000 | BL7: 1000 | BM7: 1000 | BN7: 1000 | BO7: 1000 | BP7: 1000 | BQ7: 1000 | BR7: 1000 | BS7: 1000 | BT7: 1000 | BU7: 1000 | BV7: 1000 | BW7: 1000 | BX7: 1000 | BY7: 1000 | BZ7: 1000 | CA7: 1000 | CB7: 1000 | CC7: 1000 | CD7: 1000
B8: INTERNATIONAL A | C8: 1000 | D8: 1000 | E8: 1000 | F8: 1000 | G8: 1000 | H8: 1000 | I8: 1000 | J8: 1000 | K8: 1000 | L8: 1000 | M8: 1000 | N8: 1000 | O8: 1000 | P8: 1000 | Q8: 1000 | R8: 1000 | S8: 1000 | T8: 1000 | U8: 1000 | V8: 1000 | W8: 1000 | X8: 1000 | Y8: 1000 | Z8: 1000 | AA8: 1000 | AB8: 1000 | AC8: 1000 | AD8: 1000 | AE8: 1000 | AF8: 1000 | AG8: 1000 | AH8: 1000 | AI8: 1000 | AJ8: 1000 | AK8: 1000 | AL8: 1000 | AM8: 1000 | AN8: 1000 | AO8: 1000 | AP8: 1000 | AQ8: 1000 | AR8: 1000 | AS8: 1000 | AT8: 1000 | AU8: 1000 | AV8: 1000 | AW8: 1000 | AX8: 1000 | AY8: 1000 | AZ8: 1000 | BA8: 1000 | BB8: 1000 | BC8: 1000 | BD8: 1000 | BE8: 1000 | BF8: 1000 | BG8: 1000 | BH8: 1000 | BI8: 1000 | BJ8: 1000 | BK8: 1000 | BL8: 1000 | BM8: 1000 | BN8: 1000 | BO8: 1000 | BP8: 1000 | BQ8: 1000 | BR8: 1000 | BS8: 1000 | BT8: 1000 | BU8: 1000 | BV8: 1000 | BW8: 1000 | BX8: 1000 | BY8: 1000 | BZ8: 1000 | CA8: 1000 | CB8: 1000 | CC8: 1000 | CD8: 1000
B9: OLYMPIQUE | C9: 1000 | D9: 1000 | E9: 1000 | F9: 1000 | G9: 1000 | H9: 1000 | I9: 1000 | J9: 1000 | K9: 1000 | L9: 1000 | M9: 1000 | N9: 1000 | O9: 1000 | P9: 1000 | Q9: 1000 | R9: 1000 | S9: 1000 | T9: 1000 | U9: 1000 | V9: 1000 | W9: 1000 | X9: 1000 | Y9: 1000 | Z9: 1000 | AA9: 1000 | AB9: 1000 | AC9: 1000 | AD9: 1000 | AE9: 1000 | AF9: 1000 | AG9: 1000 | AH9: 1000 | AI9: 1000 | AJ9: 1000 | AK9: 1000 | AL9: 1000 | AM9: 1000 | AN9: 1000 | AO9: 1000 | AP9: 1000 | AQ9: 1000 | AR9: 1000 | AS9: 1000 | AT9: 1000 | AU9: 1000 | AV9: 1000 | AW9: 1000 | AX9: 1000 | AY9: 1000 | AZ9: 1000 | BA9: 1000 | BB9: 1000 | BC9: 1000 | BD9: 1000 | BE9: 1000 | BF9: 1000 | BG9: 1000 | BH9: 1000 | BI9: 1000 | BJ9: 1000 | BK9: 1000 | BL9: 1000 | BM9: 1000 | BN9: 1000 | BO9: 1000 | BP9: 1000 | BQ9: 1000 | BR9: 1000 | BS9: 1000 | BT9: 1000 | BU9: 1000 | BV9: 1000 | BW9: 1000 | BX9: 1000 | BY9: 1000 | BZ9: 1000 | CA9: 1000 | CB9: 1000 | CC9: 1000 | CD9: 1000
G10: VH35 | H10: VH40 | I10: VH45 | J10: VH50 | K10: VH55 | L10: VH60 | M10: VH65 | N10: VH70 | O10: VH75 | P10: VH80+
F11: 20.01 | G11: VH35-56 | H11: VH40-56 | I11: VH45-56 | J11: VH50-56 | K11: VH55-56 | L11: VH60-56 | M11: VH65-56 | N11: VH70-56 | O11: VH75-56 | P11: VH80+-56
F12: 34.01 | G12: VH35-56 | H12: VH40-56 | I12: VH45-56 | J12: VH50-56 | K12: VH55-56 | L12: VH60-56 | M12: VH65-56 | N12: VH70-56 | O12: VH75-56 | P12: VH80+-56
F13: 38.01 | G13: VH35-56 | H13: VH40-56 | I13: VH45-56 | J13: VH50-56 | K13: VH55-56 | L13: VH60-56 | M13: VH65-56 | N13: VH70-56 | O13: VH75-56 | P13: VH80+-56
F14: 40.01 | G14: VH35-56 | H14: VH40-56 | I14: VH45-56 | J14: VH50-56 | K14: VH55-56 | L14: VH60-56 | M14: VH65-56 | N14: VH70-56 | O14: VH75-56 | P14: VH80+-56
F15: 45.01 | G15: VH35-56 | H15: VH40-56 | I15: VH45-56 | J15: VH50-56 | K15: VH55-56 | L15: VH60-56 | M15: VH65-56 | N15: VH70-56 | O15: VH75-56 | P15: VH80+-56
F16: 50.01 | G16: VH35-56 | H16: VH40-56 | I16: VH45-56 | J16: VH50-56 | K16: VH55-56 | L16: VH60-56 | M16: VH65-56 | N16: VH70-56 | O16: VH75-56 | P16: VH80+-56
F17: 52.05 | G17: VH35-56 | H17: VH40-56 | I17: VH45-56 | J17: VH50-56 | K17: VH55-56 | L17: VH60-56 | M17: VH65-56 | N17: VH70-56 | O17: VH75-56 | P17: VH80+-56
F18: 56.01 | G18: VH35-62 | H18: VH40-62 | I18: VH45-62 | J18: VH50-62 | K18: VH55-62 | L18: VH60-62 | M18: VH65-62 | N18: VH70-62 | O18: VH75-62 | P18: VH80+-62
F19: 62.01 | G19: VH35-69 | H19: VH40-69 | I19: VH45-69 | J19: VH50-69 | K19: VH55-69 | L19: VH60-69 | M19: VH65-69 | N19: VH70-69 | O19: VH75-69 | P19: VH80+-69
F20: 69.01 | G20: VH35-77 | H20: VH40-77 | I20: VH45-77 | J20: VH50-77 | K20: VH55-77 | L20: VH60-77 | M20: VH65-77 | N20: VH70-77 | O20: VH75-77 | P20: VH80+-77
F21: 77.01 | G21: VH35-85 | H21: VH40-85 | I21: VH45-85 | J21: VH50-85 | K21: VH55-85 | L21: VH60-85 | M21: VH65-85 | N21: VH70-85 | O21: VH75-85 | P21: VH80+-85
F22: 85.01 | G22: VH35-94 | H22: VH40-94 | I22: VH45-94 | J22: VH50-94 | K22: VH55-94 | L22: VH60-94 | M22: VH65-94 | N22: VH70-94 | O22: VH75-94 | P22: VH80+-94
F23: 94.01 | G23: VH35-105 | H23: VH40-105 | I23: VH45-105 | J23: VH50-105 | K23: VH55-105 | L23: VH60-105 | M23: VH65-105 | N23: VH70-105 | O23: VH75-105 | P23: VH80+-105
F24: 105.01 | G24: VH35+105 | H24: VH40+105 | I24: VH45+105 | J24: VH50+105 | K24: VH55+105 | L24: VH60+105 | M24: VH65+105 | N24: VH70+105 | O24: VH75+105 | P24: VH80++105
F25: 110 | G25: VH35+105 | H25: VH40+105 | I25: VH45+105 | J25: VH50+105 | K25: VH55+105 | L25: VH60+105 | M25: VH65+105 | N25: VH70+105 | O25: VH75+105 | P25: VH80++105
F26: 120 | G26: VH35+105 | H26: VH40+105 | I26: VH45+105 | J26: VH50+105 | K26: VH55+105 | L26: VH60+105 | M26: VH65+105 | N26: VH70+105 | O26: VH75+105 | P26: VH80++105
F27: 130 | G27: VH35+105 | H27: VH40+105 | I27: VH45+105 | J27: VH50+105 | K27: VH55+105 | L27: VH60+105 | M27: VH65+105 | N27: VH70+105 | O27: VH75+105 | P27: VH80++105
F28: 140 | G28: VH35+105 | H28: VH40+105 | I28: VH45+105 | J28: VH50+105 | K28: VH55+105 | L28: VH60+105 | M28: VH65+105 | N28: VH70+105 | O28: VH75+105 | P28: VH80++105
F30: 35 | G30: 1.072
F31: 36 | G31: 1.087
F32: 37 | G32: 1.1
F33: 38 | G33: 1.113
F34: 39 | G34: 1.125
F35: 40 | G35: 1.136
F36: 41 | G36: 1.147
F37: 42 | G37: 1.158
F38: 43 | G38: 1.17
F39: 44 | G39: 1.183
F40: 45 | G40: 1.195
F41: 46 | G41: 1.207
F42: 47 | G42: 1.217
F43: 48 | G43: 1.226
F44: 49 | G44: 1.234
F45: 50 | G45: 1.243
F46: 51 | G46: 1.255
F47: 52 | G47: 1.271
F48: 53 | G48: 1.293
F49: 54 | G49: 1.319
F50: 55 | G50: 1.35
F51: 56 | G51: 1.384
F52: 57 | G52: 1.417
F53: 58 | G53: 1.449
F54: 59 | G54: 1.48
F55: 60 | G55: 1.509
F56: 61 | G56: 1.536
F57: 62 | G57: 1.561
F58: 63 | G58: 1.584
F59: 64 | G59: 1.608
F60: 65 | G60: 1.636
F61: 66 | G61: 1.671
F62: 67 | G62: 1.719
F63: 68 | G63: 1.782
F64: 69 | G64: 1.856
F65: 70 | G65: 1.933
F66: 71 | G66: 2.002
F67: 72 | G67: 2.053
F68: 73 | G68: 2.087
F69: 74 | G69: 2.113
F70: 75 | G70: 2.142
F71: 76 | G71: 2.184
F72: 77 | G72: 2.251
F73: 78 | G73: 2.358
F74: 79 | G74: 2.5
F75: 80 | G75: 2.669
F76: 81 | G76: 2.849
F77: 82 | G77: 3.018
F78: 83 | G78: 3.166
F79: 84 | G79: 3.288
F80: 85 | G80: 3.386
F81: 86 | G81: 3.458
F82: 87 | G82: 3.508
F83: 88 | G83: 3.54
F84: 89 | G84: 3.559
F85: 90 | G85: 3.571
